{"text_format":"1","workbook":"xlsx","n_sheets":62,"sheets":["MPJ","MMA","MLC","INFO","MsPJ","MsPJ1","MsPJ2","MsPJ3","MsPJ4","MsPJ5","MsPJ6","MsPJ7","MsLC","MsLC1","MsLC2","MsLC3","MsM","MsM1","MsM2","MsA","MsA1","MsA2","MsA3","MsA4","MsA5","MsA6","Composições","Composições - Aditivo","Orçamento","Orçamento - Aditivo","Orçamento - Licitação","MsA2X","MsA2XADT","MsA3X","Impressão - BDI1","Impressão - BDI2","Impressão - COT1","Impressão - COT1 Aditivo","Impressão - COT2","Impressão - COT2 Aditivo","Impressão - CRO","Impressão - CRO Aditivo","Impressão - CRO Licitação","Impressão - CPU","Impressão - CPU Aditivo","Impressão - LOC","Impressão - LOC Aditivo","Impressão - LOC Licitação","Impressão - LOC PAV Medição","Impressão - LOC DRE Medição","Impressão - LOC SAN Medição","Impressão - MDC","Impressão - MDC Aditivo","Impressão - ORC","Impressão - ORC Aditivo","Impressão - ORC Licitação","Impressão - ORC Medição","Controle","Municípios","Tipos de Obra","Menu Geral","Menu Secundário"],"not_rendered":{"charts":0,"images":3,"macros":1,"external_links":0,"defined_names":18,"comments":4,"pivot_tables":0},"unopened":[],"bounds":{"document_bytes":16777216,"sheet_cells":100000,"rows_first":2000,"rows_last":500,"rows_between":2000,"halvings":0,"cell_chars":16384,"cell_head_chars":4096},"cells_cut":0,"cells_raw":0,"read":"whole","date_system":"1900"}

{"sheet":"MPJ","index":0,"n_rows":0,"n_cols":0,"rows_kept":0,"cut":false,"hidden":false,"merged":[]}

{"sheet":"MMA","index":1,"n_rows":0,"n_cols":0,"rows_kept":0,"cut":false,"hidden":false,"merged":[]}

{"sheet":"MLC","index":2,"n_rows":0,"n_cols":0,"rows_kept":0,"cut":false,"hidden":false,"merged":[]}

{"sheet":"INFO","index":3,"n_rows":0,"n_cols":0,"rows_kept":0,"cut":false,"hidden":false,"merged":[]}

{"sheet":"MsPJ","index":4,"n_rows":18,"n_cols":15,"rows_kept":18,"cut":false,"hidden":false,"merged":[[1,11,3,14]]}
[]
[null,null,null,null,null,null,null,null,null,null,null,"DADOS DO PROJETO"]
[]
[]
[]
[null,null,null,null,null,null,null,null,null,null,null,null,"Município",538,"Ouro Fino"]
[]
[null,null,null,null,null,null,null,null,null,null,null,null,"Prefeito",null,"HENRIQUE ROSSI WOLF"]
[]
[null,null,null,null,null,null,null,null,null,null,null,null,"Projeto",null,"CONSTRUÇÃO DE PONTE MISTA DE 25,0M SOBREO RIO MOJI GUAÇU"]
[]
[null,null,null,null,null,null,null,null,null,null,null,null,"Responsável Técnico",null,"VANESSA FARIA GRISOLIA"]
[]
[null,null,null,null,null,null,null,null,null,null,null,null,"Nº CREA/CAU",null,"119171/D"]
[]
[null,null,null,null,null,null,null,null,null,null,null,null,"Data do Orçamento",null,"14/07/2023"]
[]
[null,null,null,null,null,null,null,null,null,null,null,null,"Regime Previdenciário Previsto para a Obra",null,"Não Desonerado"]

{"sheet":"MsPJ1","index":5,"n_rows":66,"n_cols":24,"rows_kept":66,"cut":false,"hidden":false,"merged":[[1,11,3,21]]}
[]
[null,null,null,null,null,null,null,null,null,null,null,"MEMÓRIA DE CÁLCULO"]
[]
[]
[]
[]
[]
[null,null,null,null,null,null,null,null,null,null,null,"Itens do Orçamento"]
[null,null,null,null,null,null,null,null,null,null,null,"ITEM","CÓDIGO","DESCRIÇÃO",null,null,null,null,null,null,"UNIDADE","QUANTIDADE",null,"MEMÓRIA DE CÁLCULO"]
[null,null,null,null,null,null,null,null,null,null,null,"1","","CONSTRUÇÃO DA PONTE",null,null,null,null,null,null,""]
[null,null,null,null,null,null,null,null,null,null,null,"1.1","","SERVIÇOS PRELIMINARES",null,null,null,null,null,null,""]
[null,null,null,null,null,null,null,null,null,null,null,"1.1.1","ED-28427","FORNECIMENTO E COLOCAÇÃO DE PLACA DE OBRA EM CHAPA GALVANIZADA #26, ESP. 0,45MM, DIMENSÃO (3X1,5)M, PLOTADA COM ADESIVO VINÍLICO, AFIXADA COM REBITES 4,8X40MM, EM ESTRUTURA METÁLICA DE METALON 20X20MM, ESP. 1,25MM, INCLUSIVE SUPORTE EM EUCALIPTO AUTOCLAVADO PINTADO COM TINTA PVA DUAS (2) DEMÃOS",null,null,null,null,null,null,"UN",1,null,"1 UNIDADE"]
[null,null,null,null,null,null,null,null,null,null,null,"1.1.2","CO-28390","MOBILIZAÇÃO E DESMOBILIZAÇÃO DE EQUIPAMENTO DE SONDAGEM A PERCUSSÃO COM ENSAIO DE PENETRAÇÃO PADRÃO (SPT) - (CUSTO FIXO)",null,null,null,null,null,null,"UN",1,null,"1 UNIDADE"]
[null,null,null,null,null,null,null,null,null,null,null,"1.1.3","CO-28388","SONDAGEM A PERCUSSÃO COM ENSAIO DE PENETRAÇÃO PADRÃO (SPT), DIÂMETRO 2.1/2\", EXCLUSIVE MOBILIZAÇÃO E DESMOBILIZAÇÃO",null,null,null,null,null,null,"M",40,null,"40,00 = 2 FUROS DE 20,00M (1 EM CADA MARGEM)"]
[null,null,null,null,null,null,null,null,null,null,null,"1.1.4","ED-50393","MOBILIZAÇÃO E DESMOBILIZAÇÃO DE OBRA EM CENTRO URBANO OU REGIÃO LIMÍTROFE COM VALOR ENTRE 1.000.000,01 E 3.000.000,00",null,null,null,null,null,null,"%",11146.28,null,"0,30"]
[null,null,null,null,null,null,null,null,null,null,null,"1.1.5","ED-50137","MOBILIZAÇÃO E DESMOBILIZAÇÃO DE CONTAINER, INCLUSIVE CARGA, DESCARGA E TRANSPORTE EM CAMINHÃO CARROCERIA COM GUINDAUTO (MUNCK), EXCLUSIVE LOCAÇÃO DO CONTAINER",null,null,null,null,null,null,"UN",2,null,"2 UNIDADES"]
[null,null,null,null,null,null,null,null,null,null,null,"1.1.6","ED-16349","LOCAÇÃO DE CONTAINER COM ISOLAMENTO TÉRMICO, TIPO 2, PARA ESCRITÓRIO DE OBRA COM SANITÁRIO CONTENDO UM (1) VASO SANITÁRIO E UM (1) LAVATÓRIO, COM MEDIDAS REFERENCIAIS DE (6) METROS COMPRIMENTO, (2,3) METROS LARGURA E (2,5) METROS ALTURA ÚTIL INTERNA, INCLUSIVE AR CONDICIONADO E LIGAÇÕES ELÉTRICAS E HIDROSSANITÁRIAS INTERNAS, EXCLUSIVE MOBILIZAÇÃO/DESMOBILIZAÇÃO E LIGAÇÕES PROVISÓRIAS EXTERNAS",null,null,null,null,null,null,"MÊS",3,null,"3 MESES"]
[null,null,null,null,null,null,null,null,null,null,null,"1.1.7","ED-16357","LIGAÇÕES PROVISÓRIAS PARA CONTAINER TIPO 2 (CORRESPONDENTE AO CÓDIGO ED-16349)",null,null,null,null,null,null,"UN",3,null,"1 UNIDADE"]
[null,null,null,null,null,null,null,null,null,null,null,"1.1.8","ED-16350","LOCAÇÃO DE CONTAINER COM ISOLAMENTO TÉRMICO, TIPO 3, PARA DEPÓSITO/FERRAMENTARIA DE OBRA, COM MEDIDAS REFERENCIAIS DE (6) METROS COMPRIMENTO, (2,3) METROS LARGURA E (2,5) METROS ALTURA ÚTIL INTERNA, INCLUSIVE LIGAÇÕES ELÉTRICAS INTERNAS, EXCLUSIVE MOBILIZAÇÃO/DESMOBILIZAÇÃO E LIGAÇÕES PROVISÓRIAS EXTERNAS",null,null,null,null,null,null,"MÊS",3,null,"3 MESES"]
[null,null,null,null,null,null,null,null,null,null,null,"1.1.9","ED-16358","LIGAÇÕES PROVISÓRIAS PARA CONTAINER TIPO 3 (CORRESPONDENTE AO CÓDIGO ED-16350)",null,null,null,null,null,null,"UN",1,null,"1 UNIDADE"]
[null,null,null,null,null,null,null,null,null,null,null,"1.1.10","ED-50274","LOCAÇÃO TOPOGRÁFICA PARA ATÉ VINTE (20) PONTOS REFERENCIAIS, INCLUSIVE ESTACA (PIQUETE) DE MARCAÇÃO",null,null,null,null,null,null,"UN",20,null,"20 (10 PONTOS EM CADA MARGEM)"]
[null,null,null,null,null,null,null,null,null,null,null,"1.1.11","ED-17989","LOCAÇÃO DE OBRA COM GABARITO DE TÁBUAS CORRIDAS PONTALETADAS A CADA 2,00M, REAPROVEITAMENTO (2X), INCLUSIVE ACOMPANHAMENTO DE EQUIPE TOPOGRÁFICA PARA MARCAÇÃO DE PONTO TOPOGRÁFICO",null,null,null,null,null,null,"M",70.02,null,"(2,32+4,79+2,32+25,58)*2 = 70,02"]
[null,null,null,null,null,null,null,null,null,null,null,"1.1.12","ED-50423","ENSECADEIRA INCLUSIVE RETIRADA DO MADEIRAMENTO , PAREDE DUPLA",null,null,null,null,null,null,"M2",22.86,null,"(1+2,32+4,79+2,32+1)*1*2 = 22,86"]
[null,null,null,null,null,null,null,null,null,null,null,"1.1.13","ED-51107","ESCAVAÇÃO MANUAL DE VALA COM PROFUNDIDADE MENOR OU IGUAL A 1,5M, INCLUSIVE DESCARGA LATERAL",null,null,null,null,null,null,"M3",22.58,null,"14,11*0,8*2 = 22,58 (área do fundo do bloco de coroamento x 2 margens)"]
[null,null,null,null,null,null,null,null,null,null,null,"1.1.14","ED-51123","REGULARIZAÇÃO MANUAL E COMPACTAÇÃO MECANIZADA DE TERRENO COM PLACA VIBRATÓRIA, EXCLUSIVE DESMATAMENTO, DESTOCAMENTO, LIMPEZA/ROÇADA DO TERRENO",null,null,null,null,null,null,"M2",28.22,null,"14,11*2 = 28,22 (área do fundo do bloco de coroamento x 2 margens)"]
[null,null,null,null,null,null,null,null,null,null,null,"1.1.15",104482,"ESGOTAMENTO DE VALA COM BOMBA SUBMERSÍVEL. AF_12/2022",null,null,null,null,null,null,"H",320,null,"2 meses x 20 dias x 8 horas = 320"]
[null,null,null,null,null,null,null,null,null,null,null,"1.1.16","ED-50151","LIGAÇÃO PROVISÓRIA COM ENTRADA DE ENERGIA AÉREA, PADRÃO CEMIG, CARGA INSTALADA DE 15,1KVA ATÉ 30KVA, TRIFÁSICO, COM SAÍDA SUBTERRÂNEA, INCLUSIVE POSTE, CAIXA PARA MEDIDOR, DISJUNTOR, BARRAMENTO, ATERRAMENTO E ACESSÓRIOS",null,null,null,null,null,null,"UN",1,null,"1 UNIDADE"]
[null,null,null,null,null,null,null,null,null,null,null,"1.1.17","ED-49812","LASTRO DE CONCRETO MAGRO, INCLUSIVE TRANSPORTE, LANÇAMENTO E ADENSAMENTO",null,null,null,null,null,null,"M3",2.82,null,"14,11*0,1*2 = 2,82 (área do fundo do bloco de coroamento x espessura x 2 lados)"]
[null,null,null,null,null,null,null,null,null,null,null,"1.1.18",98459,"TAPUME COM TELHA METÁLICA. AF_05/2018",null,null,null,null,null,null,"M2",117.72,null,"(5+5+2,32+4,79+2,32+5+5)*2*2 = 117,72 (perímetro x altura x 2 lados)"]
[null,null,null,null,null,null,null,null,null,null,null,"1.2","","INFRA ESTRUTURA / FUNDAÇÃO PROFUNDA",null,null,null,null,null,null,""]
[null,null,null,null,null,null,null,null,null,null,null,"1.2.1","ED-29819","MOBILIZAÇÃO E DESMOBILIZAÇÃO DE EQUIPAMENTO PARA ESTACA TIPO CRAVADA (CUSTO FIXO), INCLUSIVE CARGA E DESCARGA, EXCLUSIVE TRANSPORTE EM QUILÔMETRO RODADO (CUSTO VARIÁVEL)",null,null,null,null,null,null,"UN",1,null,"1,00 UNIDADE"]
[null,null,null,null,null,null,null,null,null,null,null,"1.2.2","ED-29820","MOBILIZAÇÃO E DESMOBILIZAÇÃO DE EQUIPAMENTO PARA ESTACA TIPO CRAVADA (CUSTO VARIÁVEL), EXCLUSIVE CUSTO FIXO DE TRANSPORTE",null,null,null,null,null,null,"KM",120,null,"60,00 + 60,00 = 120,00Km"]
[null,null,null,null,null,null,null,null,null,null,null,"1.2.3",100658,"ESTACA PRÉ-MOLDADA DE CONCRETO CENTRIFUGADO, SEÇÃO CIRCULAR, CAPACIDADE DE 100 TONELADAS, INCLUSO EMENDA (EXCLUSIVE MOBILIZAÇÃO E DESMOBILIZAÇÃO). AF_12/2019",null,null,null,null,null,null,"M",512,null,"16,00*16,00*2 = 512,00 (qtde de estacas x profundidade x margens)"]
[null,null,null,null,null,null,null,null,null,null,null,"1.2.4","ED-29686","CORTE E PREPARO DE CABEÇA/ARRASAMENTO MECANIZADO  DE ESTACA PARA BLOCO DE COROAMENTO, INCLUSIVE AFASTAMENTO E EMPILHAMENTO, EXCLUSIVE TRANSPORTE E RETIRADA DO MATERIAL DEMOLIDO",null,null,null,null,null,null,"M3",5.47,null,"2*16*(3,141592*(0,33^2)/4)*2,00 = 5,47 (margens x qtde. de estacas x área da estaca x altura)"]
[null,null,null,null,null,null,null,null,null,null,null,"1.2.5","ED-8571","FÔRMA E DESFORMA DE COMPENSADO PLASTIFICADO, ESP. 12MM, REAPROVEITAMENTO (3X) (FUNDAÇÃO)",null,null,null,null,null,null,"M2",36.46,null,"22,79*0,8*2 = 36,46 (perímetro do bloco de cororamento x altura x margens)"]
[null,null,null,null,null,null,null,null,null,null,null,"1.2.6","ED-48295","CORTE, DOBRA E MONTAGEM DE AÇO CA-50, DIÂMETRO (6,3MM A 12,5MM), INCLUSIVE ESPAÇADOR",null,null,null,null,null,null,"KG",1044.79,null,"somatório do N1 ao N8 do resumo de aço = (113,76 + 505,77 + 128,61 + 133,13 + 52,00 + 29,76 + 52,00) = 1.044,79"]
[null,null,null,null,null,null,null,null,null,null,null,"1.2.7","ED-49639","FORNECIMENTO DE CONCRETO ESTRUTURAL, USINADO BOMBEADO, COM FCK 30MPA, INCLUSIVE LANÇAMENTO, ADENSAMENTO E ACABAMENTO",null,null,null,null,null,null,"M3",22.58,null,"14,11*0,8*2 = 22,58 (área da base do bloco de coroamento x altura x margens)"]
[null,null,null,null,null,null,null,null,null,null,null,"1.2.8","RO-41544","CIMBRAMENTO: ESCORAMENTO EM MADEIRA (EXECUÇÃO, INCLUINDO O FORNECIMENTO E TRANSPORTE DE TODOS OS MATERIAIS)",null,null,null,null,null,null,"M3",18.23,null,"36,46*50% = 18,23 (item 2.2.6 x 50%)"]
[null,null,null,null,null,null,null,null,null,null,null,"1.3","","SUPRA ESTRUTURA / MESOESTRUUTURA",null,null,null,null,null,null,""]
[null,null,null,null,null,null,null,null,null,null,null,"1.3.1","ED-8398","FÔRMA E DESFORMA DE COMPENSADO PLASTIFICADO, ESP. 12MM, REAPROVEITAMENTO (3X), EXCLUSIVE ESCORAMENTO",null,null,null,null,null,null,"M2",304.55,null,"(21,34*3,55)+9,23\\81,45)+(28,82*1,45)+(7,36*2*1,45))*2) = 304,55 (perímetro da cortina x altura) + (perímetro da viga de contenção x altura) + (perímetro das abas laterais x altura ) x margens"]
[null,null,null,null,null,null,null,null,null,null,null,"1.3.2","RO-41544","CIMBRAMENTO: ESCORAMENTO EM MADEIRA (EXECUÇÃO, INCLUINDO O FORNECIMENTO E TRANSPORTE DE TODOS OS MATERIAIS)",null,null,null,null,null,null,"M3",152.27000000000001,null,"304,55*50% = 152,27 (item 2.3.1 x 50%)"]
[null,null,null,null,null,null,null,null,null,null,null,"1.3.3","ED-48295","CORTE, DOBRA E MONTAGEM DE AÇO CA-50, DIÂMETRO (6,3MM A 12,5MM), INCLUSIVE ESPAÇADOR",null,null,null,null,null,null,"KG",2602.7600000000002,null,"somatório do N16 do resumo de aço = (179,98 + 1.295,43 + 471,48 + 528,80 + 43,90 + 24,27 + 26,54 + 32,36) = 2.602,76"]
[null,null,null,null,null,null,null,null,null,null,null,"1.3.4","CPU-001","FABRICAÇÃO E FORNECIMENTO DAS TRANSVERSINAS, CONTRAVENTAMENTOS, CHAPAS DE LIGAÇÃO E CONECTORES DE LIGAÇÃO AO TABULEIRO",null,null,null,null,null,null,"KG",4891.71,null,"(80,70 + 1.167,45 + 140,60 + 3.152,03 + 350,93) = 4.891,71 (conforme tabela de resumo de aço da estrutura metálica)"]
[null,null,null,null,null,null,null,null,null,null,null,"1.3.5",100716,"JATEAMENTO ABRASIVO COM GRANALHA DE AÇO EM PERFIL METÁLICO EM FÁBRICA. AF_01/2020",null,null,null,null,null,null,"M2",408,null,"((1,2 + 0,39 + 0,39)*2*25*2) + (4,20*25*2) = 408,00 (perímetro do perfil metálico x comprimento x qtde. ) + (área do tabuleiro x 2 lados)"]
[null,null,null,null,null,null,null,null,null,null,null,"1.3.6","ED-29091","TRANSPORTE DE VIGA OU TABULEIRO PARA PONTE (CUSTO FIXO), INCLUSIVE CARGA, EXCLUSIVE FORNECIMENTO , DESCARGA E TRANSPORTE EM QUILÔMETRO RODADO (CUSTO VARIÁVEL)",null,null,null,null,null,null,"UN",1,null,"1 UNIDADE"]
[null,null,null,null,null,null,null,null,null,null,null,"1.3.7","ED-29092","TRANSPORTE DE VIGA OU TABULEIRO PARA PONTE (CUSTO VARIÁVEL), EXCLUSIVE FORNECIMENTO , DESCARGA E CUSTO FIXO DE TRANSPORTE",null,null,null,null,null,null,"TXKM",17508.740000000002,null,"(item 2.3.9 / 1000)x900 km = 17.508,74"]
[null,null,null,null,null,null,null,null,null,null,null,"1.3.8","ED-29090","DESCARGA DE CAMINHÃO, PARA ELEMENTOS DE VIGA OU TABULEIRO PARA PONTE, INCLUSIVE DESCARGA DE PERFIS LONGARINAS, TRANSVERSINAS, CHAPAS E ACESSÓRIOS, EXCLUSIVE FORNECIMENTO E TRANSPORTE",null,null,null,null,null,null,"UN",1,null,"1 UNIDADE"]
[null,null,null,null,null,null,null,null,null,null,null,"1.3.9","ED-50428","LANÇAMENTO DE VIGA PARA PONTE, EXCLUSIVE FORNECIMENTO, DESCARGA E TRANSPORTE - PROJETO PADRÃO SEINFRA-MG",null,null,null,null,null,null,"KG",19454.16,null,"17.941,71 + 1.512,45 = 19.454,16 (total de aço da estrutura metálica + steel deck)"]
[null,null,null,null,null,null,null,null,null,null,null,"1.3.10","ED-49639","FORNECIMENTO DE CONCRETO ESTRUTURAL, USINADO BOMBEADO, COM FCK 30MPA, INCLUSIVE LANÇAMENTO, ADENSAMENTO E ACABAMENTO",null,null,null,null,null,null,"M3",66.86,null,"((7,15*3,55)+(1,09*1,45)+(2,23*1,45*2))*2 = 66,86 ((área da cortina x altura) + (área da viga de contenção x altura) + (área das abas laterais x altura)) x margens"]
[null,null,null,null,null,null,null,null,null,null,null,"1.3.11","ED-49641","FORNECIMENTO DE CONCRETO ESTRUTURAL, USINADO BOMBEADO, COM FCK 40MPA, INCLUSIVE LANÇAMENTO, ADENSAMENTO E ACABAMENTO",null,null,null,null,null,null,"M3",21,null,"25*4,20*0,20 = 21,00 (área do tabuleiro x espessura)"]
[null,null,null,null,null,null,null,null,null,null,null,"1.3.12","RO-41582","APARELHOS DE APOIO EM NEOPRENE FRETADO (EXECUÇÃO, INCLUINDO A APLICAÇÃO, FORNECIMENTO E TRANSPORTE DOS MATERIAIS)",null,null,null,null,null,null,"DM3",9.3000000000000007,null,"4*3*2,5*0,31 = 9,30 (qtde. x larg. x comp. x esp.)"]
[null,null,null,null,null,null,null,null,null,null,null,"1.3.13","CPU-002","TABULEIRO EM ESTRUTURA METÁLICA AUTPORTANTE (ASSOALHO EM STEEL DECK 1,25MM)",null,null,null,null,null,null,"M²",105,null,"25*4,20 = 105,00 (largura x comprimento)"]
[null,null,null,null,null,null,null,null,null,null,null,"1.3.14","ED-48295","CORTE, DOBRA E MONTAGEM DE AÇO CA-50, DIÂMETRO (6,3MM A 12,5MM), INCLUSIVE ESPAÇADOR",null,null,null,null,null,null,"KG",196.71,null,"N1 (resumo de aço do tabuleiro) = 196,71"]
[null,null,null,null,null,null,null,null,null,null,null,"1.3.15",42407,"TRELICA NERVURADA (ESPACADOR), ALTURA = 120,0 MM, DIAMETRO DOS BANZOS INFERIORES E SUPERIOR = 6,0 MM, DIAMETRO DA DIAGONAL = 4,2 MM",null,null,null,null,null,null,"M",211.65,null,"N2 (resumo de aço do tabuleiro) = 211,65"]
[null,null,null,null,null,null,null,null,null,null,null,"1.3.16","0408067","TELA DE AÇO ELETROSSOLDADA - FORNECIMENTO, PREPARO E COLOCAÇÃO",null,null,null,null,null,null,"KG",1263.02,null,"N3 (resumo de aço do tabuleiro) = 1.263,02"]
[null,null,null,null,null,null,null,null,null,null,null,"1.3.17","CPU-003","FABRICAÇÃO E FORNECIMENTO DOS PERFIS METÁLICOS SOLDADOS AÇO ASTM A-36 DIM. (1200X12,7X390X22,4X390X25,4)MM X 2500MM X 261,0KG/M",null,null,null,null,null,null,"KG",13050,null,"25,00*261*2 = 13.050,00 (comprimento x peso/m x qtde.)"]
[null,null,null,null,null,null,null,null,null,null,null,"1.4","","SERVIÇOS COMPLEMENTARES",null,null,null,null,null,null,""]
[null,null,null,null,null,null,null,null,null,null,null,"1.4.1","RO-42808","DRENO PROFUNDO COM AREIA, SEM SELO, COM 1,50X0,40 M E TUBO DE POLIETILENO DE ALTA DENSIDADE PERFURADO, DE 100MM ENVOLVIDO EM MANTA GEOTÊXTIL NÃO TECIDA, TIPO DR.DP-02 (EXECUÇÃO  INCLUINDO  ESCAVAÇÃO , FORNECIMENTO DE TODOS OS MATERIAIS, EXCETO TRANSPORTE DOS AGREGADOS)",null,null,null,null,null,null,"M",76.16,null,"((2,59+4,34+2,59)*4)*2 - 76,16 (medidas da cortina no lado do aterro x qtde.) x margens"]
[null,null,null,null,null,null,null,null,null,null,null,"1.4.2","ED-50671","BUZINOTE PARA LAJES - DRENO COM TUBO DE 2\" EMBUTIDO NO CONCRETO",null,null,null,null,null,null,"M",17,null,"(25,58m/1,5m) = 17,05 vãos inteiros = 17 buzinotes + 0,50m x 2"]
[null,null,null,null,null,null,null,null,null,null,null,"1.4.3",4777,"CANTONEIRA ACO ABAS IGUAIS (QUALQUER BITOLA), ESPESSURA ENTRE 1/8\" E 1/4\"",null,null,null,null,null,null,"KG",21.03,null,"2,504kg/m x 4,20m x 2 = 21,03 (peso/m x comprimento x lados)"]
[null,null,null,null,null,null,null,null,null,null,null,"1.4.4","ED-50174","PINTURA COM EMULSÃO ASFÁLTICA, DUAS (2) DEMÃOS",null,null,null,null,null,null,"M2",213.98,null,"((4,32 + 2,59 + 0,3 + 2,94 + 5,05 + 2,94 + 0,3 + 2,59)*5,00*2) + ((0,6 + 0,6)*1,45*2)) = 213,98 (perímetro da cortina x altura média (cortina + viga contenção) x margens) + (lateral interna viga de contenção x altura x margens)"]
[null,null,null,null,null,null,null,null,null,null,null,"1.4.5","ED-49810","FÔRMA E DESFORMA DE TÁBUA E SARRAFO, REAPROVEITAMENTO (3X) (FUNDAÇÃO)",null,null,null,null,null,null,"M2",10.55,null,"(25,5*0,1*2*2)+(0,8*0,1*2*2) = 10,55 (comprimento x altura x 2 lados do passeio x qtde. passeios) + (comprimento x altura x 2 (início + fim) x qtde. passeios)"]
[null,null,null,null,null,null,null,null,null,null,null,"1.4.6",100727,"PINTURA COM TINTA EPOXÍDICA DE FUNDO PULVERIZADA SOBRE PERFIL METÁLICO EXECUTADO EM FÁBRICA (POR DEMÃO). AF_01/2020_PE",null,null,null,null,null,null,"M2",1671.6,null,"((1,2+0,39+0,39)*2*30*7) + (14*30*2) = 1.671,60 (perímetro do perfil metálico x comprimento x qtde.) + (área do tabuleiro x 2 lados)"]
[null,null,null,null,null,null,null,null,null,null,null,"1.4.7","ED-50497","PINTURA ESMALTE EM ESTRUTURA METÁLICA, DUAS (2) DEMÃOS, INCLUSIVE UMA (1) DEMÃO FUNDO ANTICORROSIVO",null,null,null,null,null,null,"M2",408,null,"((1,2+0,39+0,39)*2*25*2) + (4,2*25*2) = 408,00 (perímetro do perfil metálico x comprimento x qtde.) + (área do tabuleiro x 2 lados)"]
[null,null,null,null,null,null,null,null,null,null,null,"1.5","","SERVIÇOS FINAIS",null,null,null,null,null,null,""]
[null,null,null,null,null,null,null,null,null,null,null,"1.5.1","ED-50266","LIMPEZA FINAL PARA ENTREGA DA OBRA",null,null,null,null,null,null,"M2",107.44,null,"4,2*25,58 = 107,44 (comprimento x largura)"]

{"sheet":"MsPJ2","index":6,"n_rows":78,"n_cols":22,"rows_kept":78,"cut":false,"hidden":false,"merged":[[78,11,83,20],[65,11,66,20],[68,11,69,20],[71,11,71,20],[74,13,75,13],[74,14,74,17],[74,18,75,18],[75,14,75,17],[77,11,77,20],[59,11,59,18],[60,11,60,18],[61,11,61,18],[62,11,62,18],[73,11,73,20],[63,11,63,18],[54,11,54,18],[55,11,55,18],[56,11,56,18],[57,11,57,18],[58,11,58,18],[35,11,35,20],[43,11,45,20],[51,11,51,20],[53,11,53,18],[36,11,41,20],[19,11,19,18],[20,11,20,18],[31,11,31,20],[32,13,33,13],[32,14,32,17],[32,18,33,18],[33,14,33,17],[21,11,21,18],[23,11,24,20],[26,11,27,20],[29,11,29,20],[14,11,14,18],[15,11,15,18],[16,11,16,18],[17,11,17,18],[18,11,18,18],[1,11,3,20],[9,11,9,20],[11,11,11,18],[12,11,12,18],[13,11,13,18]]}
[]
[null,null,null,null,null,null,null,null,null,null,null,"BDI 1 - BENEFÍCIOS E DESPESAS INDIRETAS 1",null,null,null,null,null,null,null,null,null,"BDI2"]
[]
[]
[]
[null,null,null,null,null,null,null,null,null,null,null,"Conforme legislação tributária municipal, definir estimativa de percentual da base de cálculo para o ISS:  ",null,null,null,null,null,null,null,null,100]
[null,null,null,null,null,null,null,null,null,null,null,"Sobre a base de cálculo, definir a respectiva alíquota do ISS (entre 2% e 5%):  ",null,null,null,null,null,null,null,null,5]
[]
[null,null,null,null,null,null,null,null,null,null,null,"Tipo de obra"]
[null,null,null,null,null,null,null,null,null,null,1,"Construção de Praças Urbanas, Rodovias, Ferrovias e recapeamento e pavimentação de vias urbanas"]
[]
[null,null,null,null,null,null,null,null,null,null,null,"Itens",null,null,null,null,null,null,null,"Siglas","% Adotado"]
[null,null,null,null,null,null,null,null,null,null,null,"Administração Central",null,null,null,null,null,null,null,"AC",4.01]
[null,null,null,null,null,null,null,null,null,null,null,"Seguro e Garantia",null,null,null,null,null,null,null,"SG",0.4]
[null,null,null,null,null,null,null,null,null,null,null,"Risco",null,null,null,null,null,null,null,"R",0.56000000000000005]
[null,null,null,null,null,null,null,null,null,null,null,"Despesas Financeiras",null,null,null,null,null,null,null,"DF",1.1100000000000001]
[null,null,null,null,null,null,null,null,null,null,null,"Lucro",null,null,null,null,null,null,null,"L",7.3]
[null,null,null,null,null,null,null,null,null,null,null,"Tributos (impostos COFINS 3%, e  PIS 0,65%)",null,null,null,null,null,null,null,"CP",3.65]
[null,null,null,null,null,null,null,null,null,null,null,"Tributos (ISS, variável de acordo com o município)",null,null,null,null,null,null,null,"ISS",5]
[null,null,null,null,null,null,null,null,null,null,null,"Tributos (Contribuição Previdenciária sobre a Receita Bruta - 0% ou 4,5% - Desoneração)",null,null,null,null,null,null,null,"CPRB",0]
[null,null,null,null,null,null,null,null,null,null,null,"BDI SEM desoneração (Fórmula Acórdão TCU)",null,null,null,null,null,null,null,"BDI PAD",24.67]
[]
[]
[null,null,null,null,null,null,null,null,null,null,null,"Declaro para os devidos fins que, conforme legislação tributária municipal, a base de cálculo deste tipo de obra corresponde a 100%, com a respectiva alíquota de 5%."]
[]
[]
[null,null,null,null,null,null,null,null,null,null,null,"Declaro para os devidos fins que o regime de Contribuição Previdenciária sobre a Receita Bruta adotado para elaboração do orçamento foi SEM DESONERAÇÃO, e que esta é a alternativa mais adequada para a Administração Pública."]
[]
[]
[null,null,null,null,null,null,null,null,null,null,null,"Anexo: Relatório Técnico Circunstanciado justificando a adoção do percentual de cada parcela do BDI."]
[]
[null,null,null,null,null,null,null,null,null,null,null,"Os valores de BDI foram calculados com o emprego da fórmula:"]
[null,null,null,null,null,null,null,null,null,null,null,null,null,"BDI =","(1 + AC + SG + R) * (1 + DF) * (1 + L)",null,null,null,-1]
[null,null,null,null,null,null,null,null,null,null,null,null,null,null,"(1-CP-ISS-CPRB)"]
[]
[null,null,null,null,null,null,null,null,null,null,null,"Observações"]
[]
[]
[]
[]
[]
[]
[null,null,null,null,null,null,null,null,null,null,7]
[null,null,null,null,null,null,null,null,null,null,null,"BDI 2 - BENEFÍCIOS E DESPESAS INDIRETAS 2"]
[]
[]
[]
[null,null,null,null,null,null,null,null,null,null,null,"Conforme legislação tributária municipal, definir estimativa de percentual da base de cálculo para o ISS:  ",null,null,null,null,null,null,null,null,100]
[null,null,null,null,null,null,null,null,null,null,null,"Sobre a base de cálculo, definir a respectiva alíquota do ISS (entre 2% e 5%):  ",null,null,null,null,null,null,null,null,5]
[]
[null,null,null,null,null,null,null,null,null,null,null,"Tipo de obra"]
[null,null,null,null,null,null,null,null,null,null,7,"Estudos e Projetos, Planos e Gerenciamento e outros correlatos"]
[]
[null,null,null,null,null,null,null,null,null,null,null,"Itens",null,null,null,null,null,null,null,"Siglas","% Adotado"]
[null,null,null,null,null,null,null,null,null,null,null,"Encargos Sociais incidentes sobre a mão de obra",null,null,null,null,null,null,null,"K1",0]
[null,null,null,null,null,null,null,null,null,null,null,"Administração Central da empresa ou consultoria - overhead",null,null,null,null,null,null,null,"K2",0]
[]
[]
[null,null,null,null,null,null,null,null,null,null,null,"Margem bruta da empresa de consultoria",null,null,null,null,null,null,null,"K3",12]
[null,null,null,null,null,null,null,null,null,null,null,"Tributos (impostos COFINS 3%, e  PIS 0,65%)",null,null,null,null,null,null,null,"CP",3.65]
[null,null,null,null,null,null,null,null,null,null,null,"Tributos (ISS, variável de acordo com o município)",null,null,null,null,null,null,null,"ISS",5]
[null,null,null,null,null,null,null,null,null,null,null,"Tributos (Contribuição Previdenciária sobre a Receita Bruta - 0% ou 4,5% - Desoneração)",null,null,null,null,null,null,null,"CPRB",0]
[null,null,null,null,null,null,null,null,null,null,null,"BDI SEM desoneração (Fórmula Acórdão TCU)",null,null,null,null,null,null,null,"BDI PAD",22.61]
[]
[]
[null,null,null,null,null,null,null,null,null,null,null,"Declaro para os devidos fins que, conforme legislação tributária municipal, a base de cálculo deste tipo de obra corresponde a 100%, com a respectiva alíquota de 5%."]
[]
[]
[null,null,null,null,null,null,null,null,null,null,null,"Declaro para os devidos fins que o regime de Contribuição Previdenciária sobre a Receita Bruta adotado para elaboração do orçamento foi SEM DESONERAÇÃO, e que esta é a alternativa mais adequada para a Administração Pública."]
[]
[]
[null,null,null,null,null,null,null,null,null,null,null,"Anexo: Relatório Técnico Circunstanciado justificando a adoção do percentual de cada parcela do BDI."]
[]
[null,null,null,null,null,null,null,null,null,null,null,"Os valores de BDI foram calculados com o emprego da fórmula:"]
[null,null,null,null,null,null,null,null,null,null,null,null,null,"BDI =","(1 + K1 + K2) * (1 + K3)",null,null,null,-1]
[null,null,null,null,null,null,null,null,null,null,null,null,null,null,"(1-CP-ISS-CPRB)"]
[]
[null,null,null,null,null,null,null,null,null,null,null,"Observações"]

{"sheet":"MsPJ3","index":7,"n_rows":73,"n_cols":32,"rows_kept":73,"cut":false,"hidden":false,"merged":[[14,23,14,24],[14,25,14,26],[1,11,3,26]]}
[]
[null,null,null,null,null,null,null,null,null,null,null,"ORÇAMENTO"]
[]
[]
[null,null,null,null,null,null,null,null,null,null,null,null,null,null,null,null,null,null,null,null,null,null,null,null,null,null,"BDI1 = 24,67"]
[null,null,null,null,null,null,null,null,null,null,null,null,null,null,null,null,null,null,null,null,null,null,null,null,null,null,"BDI2 = 22,61"]
[]
[null,null,null,null,null,null,null,null,null,null,null,"Referências"]
[null,null,null,null,null,null,null,null,null,null,null,"SINAPI 05_2023"]
[null,null,null,null,null,null,null,null,null,null,null,"SEINFRA SUL 01_2023"]
[null,null,null,null,null,null,null,null,null,null,null,"DNIT 01_2023"]
[]
[]
[null,null,null,null,null,null,null,null,null,null,null,"Itens do Orçamento",null,null,null,null,null,null,null,null,null,null,null,null,1133067.6099999999,null,1412609.13,null,"BDI1 = 24,67","BDI2 = 22,61"]
[null,null,null,null,null,null,null,null,null,null,null,"ITEM","CÓDIGO","DESCRIÇÃO",null,null,null,null,null,null,"UNIDADE","QUANTIDADE","BDI","PREÇO (R$) SEM BDI",null,"PREÇO (R$) COM BDI",null,null,"DIFERENÇA ","VALOR","DIFERENÇA EM "]
[null,null,null,null,null,null,null,null,null,null,null,null,null,null,null,null,null,null,null,null,null,null,null,"VALOR UNIT.","TOTAL","VALOR UNIT.","TOTAL",null,"DE VALOR","UNIT. REF.","PERCENTUAL","REFERÊNCIA"]
[null,null,null,null,null,null,null,null,null,null,null,"1","","CONSTRUÇÃO DA PONTE",null,null,null,null,null,null,"",null,null,null,1133067.6099999999,null,1412609.13,"",null,null,null,""]
[null,null,null,null,null,null,null,null,null,null,null,"1.1","","SERVIÇOS PRELIMINARES",null,null,null,null,null,null,"",null,null,null,62551.029999999992,null,77937.91,"",null,null,null,""]
[null,null,null,null,null,null,null,null,null,null,null,"1.1.1","ED-28427","FORNECIMENTO E COLOCAÇÃO DE PLACA DE OBRA EM CHAPA GALVANIZADA #26, ESP. 0,45MM, DIMENSÃO (3X1,5)M, PLOTADA COM ADESIVO VINÍLICO, AFIXADA COM REBITES 4,8X40MM, EM ESTRUTURA METÁLICA DE METALON 20X20MM, ESP. 1,25MM, INCLUSIVE SUPORTE EM EUCALIPTO AUTOCLAVADO PINTADO COM TINTA PVA DUAS (2) DEMÃOS",null,null,null,null,null,null,"UN",1,"BDI1",1419.25,1419.25,1769.38,1769.38,"SEINFRA SUL 01_2023",0,1419.25,0,"SEINFRA SUL 01_2023"]
[null,null,null,null,null,null,null,null,null,null,null,"1.1.2","CO-28390","MOBILIZAÇÃO E DESMOBILIZAÇÃO DE EQUIPAMENTO DE SONDAGEM A PERCUSSÃO COM ENSAIO DE PENETRAÇÃO PADRÃO (SPT) - (CUSTO FIXO)",null,null,null,null,null,null,"UN",1,"BDI1",693.08,693.08,864.06,864.06,"SEINFRA SUL 01_2023",0,693.08,0,"SEINFRA SUL 01_2023"]
[null,null,null,null,null,null,null,null,null,null,null,"1.1.3","CO-28388","SONDAGEM A PERCUSSÃO COM ENSAIO DE PENETRAÇÃO PADRÃO (SPT), DIÂMETRO 2.1/2\", EXCLUSIVE MOBILIZAÇÃO E DESMOBILIZAÇÃO",null,null,null,null,null,null,"M",40,"BDI1",72.5,2900,90.39,3615.6,"SEINFRA SUL 01_2023",0,72.5,0,"SEINFRA SUL 01_2023"]
[null,null,null,null,null,null,null,null,null,null,null,"1.1.4","ED-50393","MOBILIZAÇÃO E DESMOBILIZAÇÃO DE OBRA EM CENTRO URBANO OU REGIÃO LIMÍTROFE COM VALOR ENTRE 1.000.000,01 E 3.000.000,00",null,null,null,null,null,null,"%",11146.28,"BDI1",0.3,3343.88,0.37,4124.12,"SEINFRA SUL 01_2023",0,0.3,0,"SEINFRA SUL 01_2023"]
[null,null,null,null,null,null,null,null,null,null,null,"1.1.5","ED-50137","MOBILIZAÇÃO E DESMOBILIZAÇÃO DE CONTAINER, INCLUSIVE CARGA, DESCARGA E TRANSPORTE EM CAMINHÃO CARROCERIA COM GUINDAUTO (MUNCK), EXCLUSIVE LOCAÇÃO DO CONTAINER",null,null,null,null,null,null,"UN",2,"BDI1",649.44000000000005,1298.8800000000001,809.66,1619.32,"SEINFRA SUL 01_2023",0,649.44000000000005,0,"SEINFRA SUL 01_2023"]
[null,null,null,null,null,null,null,null,null,null,null,"1.1.6","ED-16349","LOCAÇÃO DE CONTAINER COM ISOLAMENTO TÉRMICO, TIPO 2, PARA ESCRITÓRIO DE OBRA COM SANITÁRIO CONTENDO UM (1) VASO SANITÁRIO E UM (1) LAVATÓRIO, COM MEDIDAS REFERENCIAIS DE (6) METROS COMPRIMENTO, (2,3) METROS LARGURA E (2,5) METROS ALTURA ÚTIL INTERNA, INCLUSIVE AR CONDICIONADO E LIGAÇÕES ELÉTRICAS E HIDROSSANITÁRIAS INTERNAS, EXCLUSIVE MOBILIZAÇÃO/DESMOBILIZAÇÃO E LIGAÇÕES PROVISÓRIAS EXTERNAS",null,null,null,null,null,null,"MÊS",3,"BDI1",953.49,2860.47,1188.72,3566.16,"SEINFRA SUL 01_2023",0,953.49,0,"SEINFRA SUL 01_2023"]
[null,null,null,null,null,null,null,null,null,null,null,"1.1.7","ED-16357","LIGAÇÕES PROVISÓRIAS PARA CONTAINER TIPO 2 (CORRESPONDENTE AO CÓDIGO ED-16349)",null,null,null,null,null,null,"UN",3,"BDI1",658.91,1976.73,821.46,2464.38,"SEINFRA SUL 01_2023",0,658.91,0,"SEINFRA SUL 01_2023"]
[null,null,null,null,null,null,null,null,null,null,null,"1.1.8","ED-16350","LOCAÇÃO DE CONTAINER COM ISOLAMENTO TÉRMICO, TIPO 3, PARA DEPÓSITO/FERRAMENTARIA DE OBRA, COM MEDIDAS REFERENCIAIS DE (6) METROS COMPRIMENTO, (2,3) METROS LARGURA E (2,5) METROS ALTURA ÚTIL INTERNA, INCLUSIVE LIGAÇÕES ELÉTRICAS INTERNAS, EXCLUSIVE MOBILIZAÇÃO/DESMOBILIZAÇÃO E LIGAÇÕES PROVISÓRIAS EXTERNAS",null,null,null,null,null,null,"MÊS",3,"BDI1",689.47,2068.41,859.56,2578.6799999999998,"SEINFRA SUL 01_2023",0,689.47,0,"SEINFRA SUL 01_2023"]
[null,null,null,null,null,null,null,null,null,null,null,"1.1.9","ED-16358","LIGAÇÕES PROVISÓRIAS PARA CONTAINER TIPO 3 (CORRESPONDENTE AO CÓDIGO ED-16350)",null,null,null,null,null,null,"UN",1,"BDI1",340.69,340.69,424.74,424.74,"SEINFRA SUL 01_2023",0,340.69,0,"SEINFRA SUL 01_2023"]
[null,null,null,null,null,null,null,null,null,null,null,"1.1.10","ED-50274","LOCAÇÃO TOPOGRÁFICA PARA ATÉ VINTE (20) PONTOS REFERENCIAIS, INCLUSIVE ESTACA (PIQUETE) DE MARCAÇÃO",null,null,null,null,null,null,"UN",20,"BDI1",81.8,1636,101.98,2039.6,"SEINFRA SUL 01_2023",0,81.8,0,"SEINFRA SUL 01_2023"]
[null,null,null,null,null,null,null,null,null,null,null,"1.1.11","ED-17989","LOCAÇÃO DE OBRA COM GABARITO DE TÁBUAS CORRIDAS PONTALETADAS A CADA 2,00M, REAPROVEITAMENTO (2X), INCLUSIVE ACOMPANHAMENTO DE EQUIPE TOPOGRÁFICA PARA MARCAÇÃO DE PONTO TOPOGRÁFICO",null,null,null,null,null,null,"M",70.02,"BDI1",52.95,3707.56,66.010000000000005,4622.0200000000004,"SEINFRA SUL 01_2023",0,52.95,0,"SEINFRA SUL 01_2023"]
[null,null,null,null,null,null,null,null,null,null,null,"1.1.12","ED-50423","ENSECADEIRA INCLUSIVE RETIRADA DO MADEIRAMENTO , PAREDE DUPLA",null,null,null,null,null,null,"M2",22.86,"BDI1",394.48,9017.81,491.8,11242.55,"SEINFRA SUL 01_2023",0,394.48,0,"SEINFRA SUL 01_2023"]
[null,null,null,null,null,null,null,null,null,null,null,"1.1.13","ED-51107","ESCAVAÇÃO MANUAL DE VALA COM PROFUNDIDADE MENOR OU IGUAL A 1,5M, INCLUSIVE DESCARGA LATERAL",null,null,null,null,null,null,"M3",22.58,"BDI1",67.39,1521.67,84.02,1897.17,"SEINFRA SUL 01_2023",0,67.39,0,"SEINFRA SUL 01_2023"]
[null,null,null,null,null,null,null,null,null,null,null,"1.1.14","ED-51123","REGULARIZAÇÃO MANUAL E COMPACTAÇÃO MECANIZADA DE TERRENO COM PLACA VIBRATÓRIA, EXCLUSIVE DESMATAMENTO, DESTOCAMENTO, LIMPEZA/ROÇADA DO TERRENO",null,null,null,null,null,null,"M2",28.22,"BDI1",4.71,132.91999999999999,5.87,165.65,"SEINFRA SUL 01_2023",0,4.71,0,"SEINFRA SUL 01_2023"]
[null,null,null,null,null,null,null,null,null,null,null,"1.1.15",104482,"ESGOTAMENTO DE VALA COM BOMBA SUBMERSÍVEL. AF_12/2022",null,null,null,null,null,null,"H",320,"BDI1",28.78,9209.6,35.880000000000003,11481.6,"SINAPI 05_2023",0,28.78,0,"SINAPI 05_2023"]
[null,null,null,null,null,null,null,null,null,null,null,"1.1.16","ED-50151","LIGAÇÃO PROVISÓRIA COM ENTRADA DE ENERGIA AÉREA, PADRÃO CEMIG, CARGA INSTALADA DE 15,1KVA ATÉ 30KVA, TRIFÁSICO, COM SAÍDA SUBTERRÂNEA, INCLUSIVE POSTE, CAIXA PARA MEDIDOR, DISJUNTOR, BARRAMENTO, ATERRAMENTO E ACESSÓRIOS",null,null,null,null,null,null,"UN",1,"BDI1",1201.96,1201.96,1498.48,1498.48,"SEINFRA SUL 01_2023",0,1201.96,0,"SEINFRA SUL 01_2023"]
[null,null,null,null,null,null,null,null,null,null,null,"1.1.17","ED-49812","LASTRO DE CONCRETO MAGRO, INCLUSIVE TRANSPORTE, LANÇAMENTO E ADENSAMENTO",null,null,null,null,null,null,"M3",2.82,"BDI1",533.78,1505.26,665.46,1876.6,"SEINFRA SUL 01_2023",0,533.78,0,"SEINFRA SUL 01_2023"]
[null,null,null,null,null,null,null,null,null,null,null,"1.1.18",98459,"TAPUME COM TELHA METÁLICA. AF_05/2018",null,null,null,null,null,null,"M2",117.72,"BDI1",150.5,17716.86,187.63,22087.8,"SINAPI 05_2023",0,150.5,0,"SINAPI 05_2023"]
[null,null,null,null,null,null,null,null,null,null,null,"1.2","","INFRA ESTRUTURA / FUNDAÇÃO PROFUNDA",null,null,null,null,null,null,"",null,null,null,216507.39999999997,null,269924.96999999997,"",null,null,null,""]
[null,null,null,null,null,null,null,null,null,null,null,"1.2.1","ED-29819","MOBILIZAÇÃO E DESMOBILIZAÇÃO DE EQUIPAMENTO PARA ESTACA TIPO CRAVADA (CUSTO FIXO), INCLUSIVE CARGA E DESCARGA, EXCLUSIVE TRANSPORTE EM QUILÔMETRO RODADO (CUSTO VARIÁVEL)",null,null,null,null,null,null,"UN",1,"BDI1",9509.7999999999993,9509.7999999999993,11855.87,11855.87,"SEINFRA SUL 01_2023",0,9509.7999999999993,0,"SEINFRA SUL 01_2023"]
[null,null,null,null,null,null,null,null,null,null,null,"1.2.2","ED-29820","MOBILIZAÇÃO E DESMOBILIZAÇÃO DE EQUIPAMENTO PARA ESTACA TIPO CRAVADA (CUSTO VARIÁVEL), EXCLUSIVE CUSTO FIXO DE TRANSPORTE",null,null,null,null,null,null,"KM",120,"BDI1",24.98,2997.6,31.14,3736.8,"SEINFRA SUL 01_2023",0,24.98,0,"SEINFRA SUL 01_2023"]
[null,null,null,null,null,null,null,null,null,null,null,"1.2.3",100658,"ESTACA PRÉ-MOLDADA DE CONCRETO CENTRIFUGADO, SEÇÃO CIRCULAR, CAPACIDADE DE 100 TONELADAS, INCLUSO EMENDA (EXCLUSIVE MOBILIZAÇÃO E DESMOBILIZAÇÃO). AF_12/2019",null,null,null,null,null,null,"M",512,"BDI1",327.22000000000003,167536.64000000001,407.95,208870.39999999999,"SINAPI 05_2023",0,327.22000000000003,0,"SINAPI 05_2023"]
[null,null,null,null,null,null,null,null,null,null,null,"1.2.4","ED-29686","CORTE E PREPARO DE CABEÇA/ARRASAMENTO MECANIZADO  DE ESTACA PARA BLOCO DE COROAMENTO, INCLUSIVE AFASTAMENTO E EMPILHAMENTO, EXCLUSIVE TRANSPORTE E RETIRADA DO MATERIAL DEMOLIDO",null,null,null,null,null,null,"M3",5.47,"BDI1",153.46,839.43,191.32,1046.52,"SEINFRA SUL 01_2023",0,153.46,0,"SEINFRA SUL 01_2023"]
[null,null,null,null,null,null,null,null,null,null,null,"1.2.5","ED-8571","FÔRMA E DESFORMA DE COMPENSADO PLASTIFICADO, ESP. 12MM, REAPROVEITAMENTO (3X) (FUNDAÇÃO)",null,null,null,null,null,null,"M2",36.46,"BDI1",76.099999999999994,2774.61,94.87,3458.96,"SEINFRA SUL 01_2023",0,76.099999999999994,0,"SEINFRA SUL 01_2023"]
[null,null,null,null,null,null,null,null,null,null,null,"1.2.6","ED-48295","CORTE, DOBRA E MONTAGEM DE AÇO CA-50, DIÂMETRO (6,3MM A 12,5MM), INCLUSIVE ESPAÇADOR",null,null,null,null,null,null,"KG",1044.79,"BDI1",13.81,14428.55,17.22,17991.28,"SEINFRA SUL 01_2023",0,13.81,0,"SEINFRA SUL 01_2023"]
[null,null,null,null,null,null,null,null,null,null,null,"1.2.7","ED-49639","FORNECIMENTO DE CONCRETO ESTRUTURAL, USINADO BOMBEADO, COM FCK 30MPA, INCLUSIVE LANÇAMENTO, ADENSAMENTO E ACABAMENTO",null,null,null,null,null,null,"M3",22.58,"BDI1",754.07,17026.900000000001,940.1,21227.46,"SEINFRA SUL 01_2023",0,754.07,0,"SEINFRA SUL 01_2023"]
[null,null,null,null,null,null,null,null,null,null,null,"1.2.8","RO-41544","CIMBRAMENTO: ESCORAMENTO EM MADEIRA (EXECUÇÃO, INCLUINDO O FORNECIMENTO E TRANSPORTE DE TODOS OS MATERIAIS)",null,null,null,null,null,null,"M3",18.23,"BDI1",76.459999999999994,1393.87,95.32,1737.68,"SEINFRA SUL 01_2023",0,76.459999999999994,0,"SEINFRA SUL 01_2023"]
[null,null,null,null,null,null,null,null,null,null,null,"1.3","","SUPRA ESTRUTURA / MESOESTRUUTURA",null,null,null,null,null,null,"",null,null,null,774136.04,null,965168.33000000007,"",null,null,null,""]
[null,null,null,null,null,null,null,null,null,null,null,"1.3.1","ED-8398","FÔRMA E DESFORMA DE COMPENSADO PLASTIFICADO, ESP. 12MM, REAPROVEITAMENTO (3X), EXCLUSIVE ESCORAMENTO",null,null,null,null,null,null,"M2",304.55,"BDI1",78.02,23760.99,97.27,29623.58,"SEINFRA SUL 01_2023",0,78.02,0,"SEINFRA SUL 01_2023"]
[null,null,null,null,null,null,null,null,null,null,null,"1.3.2","RO-41544","CIMBRAMENTO: ESCORAMENTO EM MADEIRA (EXECUÇÃO, INCLUINDO O FORNECIMENTO E TRANSPORTE DE TODOS OS MATERIAIS)",null,null,null,null,null,null,"M3",152.27000000000001,"BDI1",76.459999999999994,11642.56,95.32,14514.38,"SEINFRA SUL 01_2023",0,76.459999999999994,0,"SEINFRA SUL 01_2023"]
[null,null,null,null,null,null,null,null,null,null,null,"1.3.3","ED-48295","CORTE, DOBRA E MONTAGEM DE AÇO CA-50, DIÂMETRO (6,3MM A 12,5MM), INCLUSIVE ESPAÇADOR",null,null,null,null,null,null,"KG",2602.7600000000002,"BDI1",13.81,35944.120000000003,17.22,44819.53,"SEINFRA SUL 01_2023",0,13.81,0,"SEINFRA SUL 01_2023"]
[null,null,null,null,null,null,null,null,null,null,null,"1.3.4","CPU-001","FABRICAÇÃO E FORNECIMENTO DAS TRANSVERSINAS, CONTRAVENTAMENTOS, CHAPAS DE LIGAÇÃO E CONECTORES DE LIGAÇÃO AO TABULEIRO",null,null,null,null,null,null,"KG",4891.71,"BDI1",27.370190000000001,133886.1,34.119999999999997,166905.15,"COMPOSIÇÕES",null,null,null,""]
[null,null,null,null,null,null,null,null,null,null,null,"1.3.5",100716,"JATEAMENTO ABRASIVO COM GRANALHA DE AÇO EM PERFIL METÁLICO EM FÁBRICA. AF_01/2020",null,null,null,null,null,null,"M2",408,"BDI1",27.06,11040.48,33.74,13765.92,"SINAPI 05_2023",0,27.06,0,"SINAPI 05_2023"]
[null,null,null,null,null,null,null,null,null,null,null,"1.3.6","ED-29091","TRANSPORTE DE VIGA OU TABULEIRO PARA PONTE (CUSTO FIXO), INCLUSIVE CARGA, EXCLUSIVE FORNECIMENTO , DESCARGA E TRANSPORTE EM QUILÔMETRO RODADO (CUSTO VARIÁVEL)",null,null,null,null,null,null,"UN",1,"BDI1",2479.19,2479.19,3090.81,3090.81,"SEINFRA SUL 01_2023",0,2479.19,0,"SEINFRA SUL 01_2023"]
[null,null,null,null,null,null,null,null,null,null,null,"1.3.7","ED-29092","TRANSPORTE DE VIGA OU TABULEIRO PARA PONTE (CUSTO VARIÁVEL), EXCLUSIVE FORNECIMENTO , DESCARGA E CUSTO FIXO DE TRANSPORTE",null,null,null,null,null,null,"TXKM",17508.740000000002,"BDI1",0.76,13306.64,0.95,16633.3,"SEINFRA SUL 01_2023",0,0.76,0,"SEINFRA SUL 01_2023"]
[null,null,null,null,null,null,null,null,null,null,null,"1.3.8","ED-29090","DESCARGA DE CAMINHÃO, PARA ELEMENTOS DE VIGA OU TABULEIRO PARA PONTE, INCLUSIVE DESCARGA DE PERFIS LONGARINAS, TRANSVERSINAS, CHAPAS E ACESSÓRIOS, EXCLUSIVE FORNECIMENTO E TRANSPORTE",null,null,null,null,null,null,"UN",1,"BDI1",3892.7,3892.7,4853.03,4853.03,"SEINFRA SUL 01_2023",0,3892.7,0,"SEINFRA SUL 01_2023"]
[null,null,null,null,null,null,null,null,null,null,null,"1.3.9","ED-50428","LANÇAMENTO DE VIGA PARA PONTE, EXCLUSIVE FORNECIMENTO, DESCARGA E TRANSPORTE - PROJETO PADRÃO SEINFRA-MG",null,null,null,null,null,null,"KG",19454.16,"BDI1",1.47,28597.62,1.83,35601.11,"SEINFRA SUL 01_2023",0,1.47,0,"SEINFRA SUL 01_2023"]
[null,null,null,null,null,null,null,null,null,null,null,"1.3.10","ED-49639","FORNECIMENTO DE CONCRETO ESTRUTURAL, USINADO BOMBEADO, COM FCK 30MPA, INCLUSIVE LANÇAMENTO, ADENSAMENTO E ACABAMENTO",null,null,null,null,null,null,"M3",66.86,"BDI1",754.07,50417.120000000003,940.1,62855.09,"SEINFRA SUL 01_2023",0,754.07,0,"SEINFRA SUL 01_2023"]
[null,null,null,null,null,null,null,null,null,null,null,"1.3.11","ED-49641","FORNECIMENTO DE CONCRETO ESTRUTURAL, USINADO BOMBEADO, COM FCK 40MPA, INCLUSIVE LANÇAMENTO, ADENSAMENTO E ACABAMENTO",null,null,null,null,null,null,"M3",21,"BDI1",804.15,16887.150000000001,1002.53,21053.13,"SEINFRA SUL 01_2023",0,804.15,0,"SEINFRA SUL 01_2023"]
[null,null,null,null,null,null,null,null,null,null,null,"1.3.12","RO-41582","APARELHOS DE APOIO EM NEOPRENE FRETADO (EXECUÇÃO, INCLUINDO A APLICAÇÃO, FORNECIMENTO E TRANSPORTE DOS MATERIAIS)",null,null,null,null,null,null,"DM3",9.3000000000000007,"BDI1",106.39,989.43,132.63999999999999,1233.55,"SEINFRA SUL 01_2023",0,106.39,0,"SEINFRA SUL 01_2023"]
[null,null,null,null,null,null,null,null,null,null,null,"1.3.13","CPU-002","TABULEIRO EM ESTRUTURA METÁLICA AUTPORTANTE (ASSOALHO EM STEEL DECK 1,25MM)",null,null,null,null,null,null,"M²",105,"BDI1",378.04442100000006,39694.199999999997,471.3,49486.5,"COMPOSIÇÕES",null,null,null,""]
[null,null,null,null,null,null,null,null,null,null,null,"1.3.14","ED-48295","CORTE, DOBRA E MONTAGEM DE AÇO CA-50, DIÂMETRO (6,3MM A 12,5MM), INCLUSIVE ESPAÇADOR",null,null,null,null,null,null,"KG",196.71,"BDI1",13.81,2716.57,17.22,3387.35,"SEINFRA SUL 01_2023",0,13.81,0,"SEINFRA SUL 01_2023"]
[null,null,null,null,null,null,null,null,null,null,null,"1.3.15",42407,"TRELICA NERVURADA (ESPACADOR), ALTURA = 120,0 MM, DIAMETRO DOS BANZOS INFERIORES E SUPERIOR = 6,0 MM, DIAMETRO DA DIAGONAL = 4,2 MM",null,null,null,null,null,null,"M",211.65,"BDI1",7.4,1566.21,9.23,1953.53,"SINAPI 05_2023",0,7.4,0,"SINAPI 05_2023"]
[null,null,null,null,null,null,null,null,null,null,null,"1.3.16","0408067","TELA DE AÇO ELETROSSOLDADA - FORNECIMENTO, PREPARO E COLOCAÇÃO",null,null,null,null,null,null,"KG",1263.02,"BDI1",11.94,15080.46,14.89,18806.37,"DNIT 01_2023",0,11.94,0,"DNIT 01_2023"]
[null,null,null,null,null,null,null,null,null,null,null,"1.3.17","CPU-003","FABRICAÇÃO E FORNECIMENTO DOS PERFIS METÁLICOS SOLDADOS AÇO ASTM A-36 DIM. (1200X12,7X390X22,4X390X25,4)MM X 2500MM X 261,0KG/M",null,null,null,null,null,null,"KG",13050,"BDI1",29.290995000000002,382234.5,36.520000000000003,476586,"COMPOSIÇÕES",null,null,null,""]
[null,null,null,null,null,null,null,null,null,null,null,"1.4","","SERVIÇOS COMPLEMENTARES",null,null,null,null,null,null,"",null,null,null,79112.460000000006,null,98629.22,"",null,null,null,""]
[null,null,null,null,null,null,null,null,null,null,null,"1.4.1","RO-42808","DRENO PROFUNDO COM AREIA, SEM SELO, COM 1,50X0,40 M E TUBO DE POLIETILENO DE ALTA DENSIDADE PERFURADO, DE 100MM ENVOLVIDO EM MANTA GEOTÊXTIL NÃO TECIDA, TIPO DR.DP-02 (EXECUÇÃO  INCLUINDO  ESCAVAÇÃO , FORNECIMENTO DE TODOS OS MATERIAIS, EXCETO TRANSPORTE DOS AGREGADOS)",null,null,null,null,null,null,"M",76.16,"BDI1",100.25,7635.04,124.98,9518.48,"SEINFRA SUL 01_2023",0,100.25,0,"SEINFRA SUL 01_2023"]
[null,null,null,null,null,null,null,null,null,null,null,"1.4.2","ED-50671","BUZINOTE PARA LAJES - DRENO COM TUBO DE 2\" EMBUTIDO NO CONCRETO",null,null,null,null,null,null,"M",17,"BDI1",37.18,632.05999999999995,46.35,787.95,"SEINFRA SUL 01_2023",0,37.18,0,"SEINFRA SUL 01_2023"]
[null,null,null,null,null,null,null,null,null,null,null,"1.4.3",4777,"CANTONEIRA ACO ABAS IGUAIS (QUALQUER BITOLA), ESPESSURA ENTRE 1/8\" E 1/4\"",null,null,null,null,null,null,"KG",21.03,"BDI1",8.2200000000000006,172.87,10.25,215.56,"SINAPI 05_2023",0,8.2200000000000006,0,"SINAPI 05_2023"]
[null,null,null,null,null,null,null,null,null,null,null,"1.4.4","ED-50174","PINTURA COM EMULSÃO ASFÁLTICA, DUAS (2) DEMÃOS",null,null,null,null,null,null,"M2",213.98,"BDI1",25.26,5405.13,31.49,6738.23,"SEINFRA SUL 01_2023",0,25.26,0,"SEINFRA SUL 01_2023"]
[null,null,null,null,null,null,null,null,null,null,null,"1.4.5","ED-49810","FÔRMA E DESFORMA DE TÁBUA E SARRAFO, REAPROVEITAMENTO (3X) (FUNDAÇÃO)",null,null,null,null,null,null,"M2",10.55,"BDI1",60.61,639.44000000000005,75.56,797.16,"SEINFRA SUL 01_2023",0,60.61,0,"SEINFRA SUL 01_2023"]
[null,null,null,null,null,null,null,null,null,null,null,"1.4.6",100727,"PINTURA COM TINTA EPOXÍDICA DE FUNDO PULVERIZADA SOBRE PERFIL METÁLICO EXECUTADO EM FÁBRICA (POR DEMÃO). AF_01/2020_PE",null,null,null,null,null,null,"M2",1671.6,"BDI1",30,50148,37.4,62517.84,"SINAPI 05_2023",0,30,0,"SINAPI 05_2023"]
[null,null,null,null,null,null,null,null,null,null,null,"1.4.7","ED-50497","PINTURA ESMALTE EM ESTRUTURA METÁLICA, DUAS (2) DEMÃOS, INCLUSIVE UMA (1) DEMÃO FUNDO ANTICORROSIVO",null,null,null,null,null,null,"M2",408,"BDI1",35.49,14479.92,44.25,18054,"SEINFRA SUL 01_2023",0,35.49,0,"SEINFRA SUL 01_2023"]
[null,null,null,null,null,null,null,null,null,null,null,"1.5","","SERVIÇOS FINAIS",null,null,null,null,null,null,"",null,null,null,760.68,null,948.7,"",null,null,null,""]
[null,null,null,null,null,null,null,null,null,null,null,"1.5.1","ED-50266","LIMPEZA FINAL PARA ENTREGA DA OBRA",null,null,null,null,null,null,"M2",107.44,"BDI1",7.08,760.68,8.83,948.7,"SEINFRA SUL 01_2023",0,7.08,0,"SEINFRA SUL 01_2023"]

{"sheet":"MsPJ4","index":8,"n_rows":14,"n_cols":29,"rows_kept":14,"cut":false,"hidden":false,"merged":[[8,17,8,18],[1,11,3,18]]}
[]
[null,null,null,null,null,null,null,null,null,null,null,"CRONOGRAMA FÍSICO-FINANCEIRO"]
[]
[]
[]
[]
[]
[null,null,null,null,null,null,null,null,null,null,null,"Itens do Orçamento"]
[null,null,null,null,null,null,null,null,null,null,null,"ITEM","DESCRIÇÃO",null,null,null,null,"VALOR DOS SERVIÇOS",null,null,null,"MÊS 1",null,"MÊS 2",null,"MÊS 3",null,null,"TOTAL"]
[null,null,null,null,null,null,null,null,null,null,null,null,null,null,null,null,null,"R$","PESO %",null,"R$","PESO %","R$","PESO %","R$","PESO %",null,"R$","PESO %"]
[null,null,null,null,null,null,null,null,null,null,null,"1","CONSTRUÇÃO DA PONTE",null,null,null,null,1412609.13,100,null,{"$f":"R11*V11/100","v":480287.10419999994},34,{"$f":"R11*X11/100","v":480287.10419999994},34,{"$f":"R11*Z11/100","v":452034.92159999994},32,null,{"$f":"0+U11+W11+Y11","v":1412609.13},{"$f":"0+V11+X11+Z11","v":100}]
[]
[null,null,null,null,null,null,null,null,null,null,null,null,"TOTAL",null,null,null,null,{"$f":"SUM(R11:R11)","v":1412609.13},{"$f":"SUM(S11:S11)","v":100},null,{"$f":"SUM(U11:U11)","v":480287.10419999994},{"$f":"(U13/R13)*100","v":34},{"$f":"SUM(W11:W11)","v":480287.10419999994},{"$f":"(W13/R13)*100","v":34},{"$f":"SUM(Y11:Y11)","v":452034.92159999994},{"$f":"(Y13/R13)*100","v":32}]
[null,null,null,null,null,null,null,null,null,null,null,null,"TOTAL ACUMULADO",null,null,null,null,{"$f":"Y14","v":1412609.13},{"$f":"(R14/R13)*100","v":100},null,{"$f":"U13","v":480287.10419999994},{"$f":"(U14/R13)*100","v":34},{"$f":"W13+U14","v":960574.20839999989},{"$f":"(W14/R13)*100","v":68},{"$f":"Y13+W14","v":1412609.13},{"$f":"(Y14/R13)*100","v":100}]

{"sheet":"MsPJ5","index":9,"n_rows":34,"n_cols":28,"rows_kept":34,"cut":false,"hidden":false,"merged":[[1,11,3,23],[13,22,13,23]]}
[]
[null,null,null,null,null,null,null,null,null,null,null,"COMPOSIÇÕES"]
[]
[]
[]
[]
[]
[null,null,null,null,null,null,null,null,null,null,null,"Referências"]
[null,null,null,null,null,null,null,null,null,null,null,"SINAPI 05_2023"]
[null,null,null,null,null,null,null,null,null,null,null,"SEINFRA SUL 01_2023"]
[null,null,null,null,null,null,null,null,null,null,null,"DNIT 01_2023"]
[]
[]
[null,null,null,null,null,null,null,null,null,null,null,"Composições"]
[null,null,null,null,null,null,null,null,null,null,null,"NÍVEL","CÓDIGO","DESCRIÇÃO",null,null,null,null,null,null,"UNIDADE","QUANTIDADE","VALOR","TOTAL",null,"DIFERENÇA\nVALOR","DIFERENÇA PERCENTUAL","REFERÊNCIA"]
[null,null,null,null,null,null,null,null,null,null,null,"1","CPU-001","FABRICAÇÃO E FORNECIMENTO DAS TRANSVERSINAS, CONTRAVENTAMENTOS, CHAPAS DE LIGAÇÃO E CONECTORES DE LIGAÇÃO AO TABULEIRO",null,null,null,null,null,null,"KG",null,null,27.370190000000001,null,null,"",""]
[null,null,null,null,null,null,null,null,null,null,null,"1.1","E9686-CP","CAMINHÃO CARROCERIA COM GUINDAUTO COM CAPACIDADE DE 20 T.M - 136 KW (CUSTO PRODUTIVO)",null,null,null,null,null,null,"H",3.2000000000000001E-2,318.54000000000002,10.193280000000001,null,0,"0,00%","DNIT 01_2023"]
[null,null,null,null,null,null,null,null,null,null,null,"1.2","ED-50366","AJUDANTE ESPECIALIZADO COM ENCARGOS COMPLEMENTARES",null,null,null,null,null,null,"HORA",2.9000000000000001E-2,21.76,0.63104000000000005,null,0,"0,00%","SEINFRA SUL 01_2023"]
[null,null,null,null,null,null,null,null,null,null,null,"1.3","ED-50380","MONTADOR COM ENCARGOS COMPLEMENTARES",null,null,null,null,null,null,"HORA",2.9000000000000001E-2,25.03,0.72587000000000002,null,0,"0,00%","SEINFRA SUL 01_2023"]
[null,null,null,null,null,null,null,null,null,null,null,"1.4",1330,"CHAPA DE ACO GROSSA, ASTM A36, E = 1/4 \" (6,35 MM) 49,79 KG/M2",null,null,null,null,null,null,"KG",1.1000000000000001,10.31,11.341000000000001,null,0,"0,00%","SINAPI 05_2023"]
[null,null,null,null,null,null,null,null,null,null,null,"1.5",1408173,"CORTE DE PERFIS METÁLICOS COM MAÇARICO OXIACETILENO",null,null,null,null,null,null,"CM²",1,0.04,0.04,null,0,"0,00%","DNIT 01_2023"]
[null,null,null,null,null,null,null,null,null,null,null,"1.6",1408028,"SOLDA ELÉTRICA MANUAL DE PERFIS METÁLICOS E CHAPAS DE AÇO COM ELETRODO E70XX PARA BENEFICIAMENTO DE AÇO NAVAL",null,null,null,null,null,null,"KG",0.02,221.95,4.4390000000000001,null,0,"0,00%","DNIT 01_2023"]
[null,null,null,null,null,null,null,null,null,null,null,"2","CPU-002","TABULEIRO EM ESTRUTURA METÁLICA AUTPORTANTE (ASSOALHO EM STEEL DECK 1,25MM)",null,null,null,null,null,null,"M²",null,null,378.04442100000006,null,null,"",""]
[null,null,null,null,null,null,null,null,null,null,null,"2.1",43125,"CHAPA EM ACO GALVANIZADO PARA STEEL DECK, COM NERVURAS TRAPEZOIDAIS, LARGURA UTIL DE 915 MM E ESPESSURA DE 1,25 MM",null,null,null,null,null,null,"M2",1.0929,141.49,154.634421,null,0,"0,00%","SINAPI 05_2023"]
[null,null,null,null,null,null,null,null,null,null,null,"2.2",88240,"AJUDANTE DE ESTRUTURA METÁLICA COM ENCARGOS COMPLEMENTARES",null,null,null,null,null,null,"H",3,19.170000000000002,57.510000000000005,null,0,"0,00%","SINAPI 05_2023"]
[null,null,null,null,null,null,null,null,null,null,null,"2.3",88245,"ARMADOR COM ENCARGOS COMPLEMENTARES",null,null,null,null,null,null,"H",3,27.23,81.69,null,0,"0,00%","SINAPI 05_2023"]
[null,null,null,null,null,null,null,null,null,null,null,"2.4",88317,"SOLDADOR COM ENCARGOS COMPLEMENTARES",null,null,null,null,null,null,"H",3,28.07,84.210000000000008,null,0,"0,00%","SINAPI 05_2023"]
[null,null,null,null,null,null,null,null,null,null,null,"3","CPU-003","FABRICAÇÃO E FORNECIMENTO DOS PERFIS METÁLICOS SOLDADOS AÇO ASTM A-36 DIM. (1200X12,7X390X22,4X390X25,4)MM X 2500MM X 261,0KG/M",null,null,null,null,null,null,"KG",null,null,29.290995000000002,null,null,"",""]
[null,null,null,null,null,null,null,null,null,null,null,"3.1","E9686-CP","CAMINHÃO CARROCERIA COM GUINDAUTO COM CAPACIDADE DE 20 T.M - 136 KW (CUSTO PRODUTIVO)",null,null,null,null,null,null,"H",3.5000000000000003E-2,318.54000000000002,11.148900000000001,null,0,"0,00%","DNIT 01_2023"]
[null,null,null,null,null,null,null,null,null,null,null,"3.2","ED-50366","AJUDANTE ESPECIALIZADO COM ENCARGOS COMPLEMENTARES",null,null,null,null,null,null,"HORA",3.7999999999999999E-2,21.76,0.82688000000000006,null,0,"0,00%","SEINFRA SUL 01_2023"]
[null,null,null,null,null,null,null,null,null,null,null,"3.3","ED-50380","MONTADOR COM ENCARGOS COMPLEMENTARES",null,null,null,null,null,null,"HORA",3.7999999999999999E-2,25.03,0.95113999999999999,null,0,"0,00%","SEINFRA SUL 01_2023"]
[null,null,null,null,null,null,null,null,null,null,null,"3.4",1330,"CHAPA DE ACO GROSSA, ASTM A36, E = 1/4 \" (6,35 MM) 49,79 KG/M2",null,null,null,null,null,null,"KG",1.1000000000000001,10.31,11.341000000000001,null,0,"0,00%","SINAPI 05_2023"]
[null,null,null,null,null,null,null,null,null,null,null,"3.5",1408173,"CORTE DE PERFIS METÁLICOS COM MAÇARICO OXIACETILENO",null,null,null,null,null,null,"CM²",0.73,0.04,2.92E-2,null,0,"0,00%","DNIT 01_2023"]
[null,null,null,null,null,null,null,null,null,null,null,"3.6",1408028,"SOLDA ELÉTRICA MANUAL DE PERFIS METÁLICOS E CHAPAS DE AÇO COM ELETRODO E70XX PARA BENEFICIAMENTO DE AÇO NAVAL",null,null,null,null,null,null,"KG",2.2499999999999999E-2,221.95,4.9938749999999992,null,0,"0,00%","DNIT 01_2023"]

{"sheet":"MsPJ6","index":10,"n_rows":20,"n_cols":21,"rows_kept":20,"cut":false,"hidden":false,"merged":[[1,11,3,20]]}
[]
[null,null,null,null,null,null,null,null,null,null,null,"COTAÇÕES"]
[]
[]
[]
[]
[]
[]
[]
[]
[]
[null,null,null,null,null,null,null,null,null,null,null,"Índices de Retroação"]
[null,null,null,null,null,null,null,null,null,null,null,"NOME","DESCRIÇÃO",null,null,null,"DATA BASE","ÍNDICE DT BASE","DT COTAÇÃO","ÍNDICE DT COT","COEFICIENTE"]
[]
[]
[null,null,null,null,null,null,null,null,null,null,null,"Empresas Fornecedoras"]
[null,null,null,null,null,null,null,null,null,null,null,"CNPJ","NOME",null,null,null,null,"TELEFONE",null,"CONTATO"]
[]
[]
[null,null,null,null,null,null,null,null,null,null,null,"Cotações"]

{"sheet":"MsPJ7","index":11,"n_rows":12,"n_cols":26,"rows_kept":12,"cut":false,"hidden":false,"merged":[[11,11,11,18],[7,19,7,21],[7,22,7,23],[1,11,3,25],[7,24,7,25],[7,11,9,11],[7,12,9,15],[7,16,9,18]]}
[]
[null,null,null,null,null,null,null,null,null,null,null,"LOCALIZAÇÃO"]
[]
[]
[]
[]
[]
[null,null,null,null,null,null,null,null,null,null,null,"Item","Rua / Avenida / Trecho",null,null,null,"Bairro",null,null,"Pavimentação",null,null,"Rede de Drenagem",null,"Rede de Saneamento"]
[null,null,null,null,null,null,null,null,null,null,null,null,null,null,null,null,null,null,null,"Comprimento","Largura","Área","Comprimento","Diâmetro","Comprimento","Diâmetro"]
[null,null,null,null,null,null,null,null,null,null,null,null,null,null,null,null,null,null,null,"(m)","(m)","(m2)","(m)","(mm)","(m)","(mm)"]
[]
[null,null,null,null,null,null,null,null,null,null,null,"Total"]

{"sheet":"MsLC","index":12,"n_rows":26,"n_cols":14,"rows_kept":26,"cut":false,"hidden":false,"merged":[[1,11,3,14]]}
[]
[null,null,null,null,null,null,null,null,null,null,null,"DADOS DA LICITAÇÃO"]
[]
[]
[]
[null,null,null,null,null,null,null,null,null,null,null,null,"Município",0]
[]
[null,null,null,null,null,null,null,null,null,null,null,null,"Obra"]
[]
[null,null,null,null,null,null,null,null,null,null,null,null,"Data da Assinatura Contrato Licitado"]
[]
[null,null,null,null,null,null,null,null,null,null,null,null,"Representante do Município"]
[]
[null,null,null,null,null,null,null,null,null,null,null,null,"Empresa Contratada"]
[]
[null,null,null,null,null,null,null,null,null,null,null,null,"Nº Contrato Licitado"]
[]
[null,null,null,null,null,null,null,null,null,null,null,null,"Representante da Empresa"]
[]
[null,null,null,null,null,null,null,null,null,null,null,null,"BDI 1"]
[]
[null,null,null,null,null,null,null,null,null,null,null,null,"BDI 2"]
[]
[null,null,null,null,null,null,null,null,null,null,null,null,"Regime Previdenciário Previsto para a Obra"]
[]
[null,null,null,null,null,null,null,null,null,null,null,null,"Data de Validade do Contrato Licitado"]

{"sheet":"MsLC1","index":13,"n_rows":29,"n_cols":24,"rows_kept":29,"cut":false,"hidden":false,"merged":[[13,21,13,22],[14,21,14,22],[1,11,3,22]]}
[]
[null,null,null,null,null,null,null,null,null,null,null,"ORÇAMENTO"]
[]
[]
[]
[]
[]
[null,null,null,null,null,null,null,null,null,null,null,"Informações Gerais"]
[null,null,null,null,null,null,null,null,null,null,null,"Município: c1",null,null,null,null,null,null,null,"Empresa Vencedora: c4"]
[null,null,null,null,null,null,null,null,null,null,null,"Obra: c2",null,null,null,null,null,null,null,"Nº do Contrato Licitado: c5"]
[null,null,null,null,null,null,null,null,null,null,null,"Data: 25/03/2020",null,null,null,null,null,null,null,"Representante da Empresa: c6"]
[null,null,null,null,null,null,null,null,null,null,null,"Representante do Município: c3"]
[]
[null,null,null,null,null,null,null,null,null,null,null,"Itens do Orçamento"]
[null,null,null,null,null,null,null,null,null,null,null,"ITEM","DESCRIÇÃO",null,null,null,null,null,null,"UNIDADE","QUANTIDADE","PREÇO (R$) COM BDI"]
[null,null,null,null,null,null,null,null,null,null,null,null,null,null,null,null,null,null,null,null,null,"UNITÁRIO","TOTAL"]
[null,null,null,null,null,null,null,null,null,null,null,null,null,null,null,null,null,null,null,null,null,null,null,""]
[null,null,null,null,null,null,null,null,null,null,null,null,null,null,null,null,null,null,null,null,null,null,null,"COMPOSIÇÕES"]
[null,null,null,null,null,null,null,null,null,null,null,null,null,null,null,null,null,null,null,null,null,null,null,""]
[null,null,null,null,null,null,null,null,null,null,null,null,null,null,null,null,null,null,null,null,null,null,null,"COTAÇÕES"]
[null,null,null,null,null,null,null,null,null,null,null,null,null,null,null,null,null,null,null,null,null,null,null,""]
[null,null,null,null,null,null,null,null,null,null,null,null,null,null,null,null,null,null,null,null,null,null,null,""]
[null,null,null,null,null,null,null,null,null,null,null,null,null,null,null,null,null,null,null,null,null,null,null,"SETOP Central 04_2019"]
[null,null,null,null,null,null,null,null,null,null,null,null,null,null,null,null,null,null,null,null,null,null,null,"SINAPI 07_2019"]
[null,null,null,null,null,null,null,null,null,null,null,null,null,null,null,null,null,null,null,null,null,null,null,"SINAPI 07_2019"]
[null,null,null,null,null,null,null,null,null,null,null,null,null,null,null,null,null,null,null,null,null,null,null,""]
[null,null,null,null,null,null,null,null,null,null,null,null,null,null,null,null,null,null,null,null,null,null,null,"SINAPI 07_2019"]
[null,null,null,null,null,null,null,null,null,null,null,null,null,null,null,null,null,null,null,null,null,null,null,"SINAPI 07_2019"]
[null,null,null,null,null,null,null,null,null,null,null,null,null,null,null,null,null,null,null,null,null,null,null,"SETOP Central 04_2019"]

{"sheet":"MsLC2","index":14,"n_rows":10,"n_cols":19,"rows_kept":10,"cut":false,"hidden":false,"merged":[[1,11,3,18],[8,17,8,18]]}
[]
[null,null,null,null,null,null,null,null,null,null,null,"CRONOGRAMA FÍSICO-FINANCEIRO"]
[]
[]
[]
[]
[]
[null,null,null,null,null,null,null,null,null,null,null,"Itens do Orçamento"]
[null,null,null,null,null,null,null,null,null,null,null,"ITEM","DESCRIÇÃO",null,null,null,null,"VALOR DOS SERVIÇOS"]
[null,null,null,null,null,null,null,null,null,null,null,null,null,null,null,null,null,"R$","PESO %"]

{"sheet":"MsLC3","index":15,"n_rows":12,"n_cols":26,"rows_kept":12,"cut":false,"hidden":false,"merged":[[11,11,11,18],[1,11,3,25],[7,11,9,11],[7,12,9,15],[7,16,9,18],[7,19,7,21],[7,22,7,23],[7,24,7,25]]}
[]
[null,null,null,null,null,null,null,null,null,null,null,"LOCALIZAÇÃO"]
[]
[]
[]
[]
[]
[null,null,null,null,null,null,null,null,null,null,null,"Item","Rua / Avenida / Trecho",null,null,null,"Bairro",null,null,"Pavimentação",null,null,"Rede de Drenagem",null,"Rede de Saneamento"]
[null,null,null,null,null,null,null,null,null,null,null,null,null,null,null,null,null,null,null,"Comprimento","Largura","Área","Comprimento","Diâmetro","Comprimento","Diâmetro"]
[null,null,null,null,null,null,null,null,null,null,null,null,null,null,null,null,null,null,null,"(m)","(m)","(m2)","(m)","(mm)","(m)","(mm)"]
[]
[null,null,null,null,null,null,null,null,null,null,null,"Total"]

{"sheet":"MsM","index":16,"n_rows":32,"n_cols":15,"rows_kept":32,"cut":false,"hidden":false,"merged":[[1,11,3,14]]}
[]
[null,null,null,null,null,null,null,null,null,null,null,"DADOS DA MEDIÇÃO"]
[]
[]
[]
[null,null,null,null,null,null,null,null,null,null,null,null,"Município"]
[]
[null,null,null,null,null,null,null,null,null,null,null,null,"Obra"]
[]
[null,null,null,null,null,null,null,null,null,null,null,null,"Responsável Técnico Fiscal"]
[]
[null,null,null,null,null,null,null,null,null,null,null,null,"Nº CREA/CAU"]
[]
[null,null,null,null,null,null,null,null,null,null,null,null,"Contrato BDMG Nº"]
[]
[null,null,null,null,null,null,null,null,null,null,null,null,"Empresa Contratada"]
[]
[null,null,null,null,null,null,null,null,null,null,null,null,"Nº Contrato Licitado"]
[]
[null,null,null,null,null,null,null,null,null,null,null,null,"Responsável Técnico Executor"]
[]
[null,null,null,null,null,null,null,null,null,null,null,null,"Nº CREA/CAU"]
[]
[null,null,null,null,null,null,null,null,null,null,null,null,"Período"]
[null,null,null,null,null,null,null,null,null,null,null,null,null,null,"A"]
[]
[]
[null,null,null,null,null,null,null,null,null,null,null,null,"Data"]
[]
[null,null,null,null,null,null,null,null,null,null,null,null,"Data de Vencimento do Contrato Licitado"]
[]
[null,null,null,null,null,null,null,null,null,null,null,null,"Quantidade de Aditivos Realizados"]

{"sheet":"MsM1","index":17,"n_rows":2,"n_cols":12,"rows_kept":2,"cut":false,"hidden":false,"merged":[[1,11,3,24]]}
[]
[null,null,null,null,null,null,null,null,null,null,null,"LOCALIZAÇÃO"]

{"sheet":"MsM2","index":18,"n_rows":12,"n_cols":21,"rows_kept":12,"cut":false,"hidden":false,"merged":[[1,11,3,20],[11,11,11,17]]}
[]
[null,null,null,null,null,null,null,null,null,null,null,"MEDIÇÃO"]
[]
[]
[]
[]
[]
[null,null,null,null,null,null,null,null,null,null,null,"Itens do Orçamento"]
[null,null,null,null,null,null,null,null,null,null,null,"ITEM","DESCRIÇÃO","UNIDADE","PREÇO\nUNITÁRIO\n\nA","QUANTIDADE\nPREVISTA\nTOTAL\nB","QUANTIDADE\nEXECUTADA\nNESTA MEDIÇÃO\nC","QUANTIDADE\nEXECUTADA\nACUMULADA\nD","VALOR (R$)\nPREVISTO\nTOTAL\nAxB","VALOR (R$)\nEXECUTADO\nNESTA MEDIÇÃO\nAxC","VALOR (R$)\nEXECUTADO\nACUMULADO\nAxD"]
[]
[]
[null,null,null,null,null,null,null,null,null,null,null,"TOTAL"]

{"sheet":"MsA","index":19,"n_rows":20,"n_cols":15,"rows_kept":20,"cut":false,"hidden":false,"merged":[[1,11,3,14]]}
[]
[null,null,null,null,null,null,null,null,null,null,null,"DADOS DO ADITIVO"]
[]
[]
[]
[null,null,null,null,null,null,null,null,null,null,null,null,"Nº do Termo Aditivo"]
[]
[null,null,null,null,null,null,null,null,null,null,null,null,"Tipo de Aditivo",4]
[]
[null,null,null,null,null,null,null,null,null,null,null,null,"Índice de Reajuste"]
[]
[null,null,null,null,null,null,null,null,null,null,null,null,"BDI1",null,""]
[]
[null,null,null,null,null,null,null,null,null,null,null,null,"BDI2",null,""]
[]
[null,null,null,null,null,null,null,null,null,null,null,null,"Regime Previdenciário Previsto para a Obra"]
[]
[null,null,null,null,null,null,null,null,null,null,null,null,"Data da Assinatura do Aditivo"]
[]
[null,null,null,null,null,null,null,null,null,null,null,null,"Data de Vencimento do Contrato Aditado"]

{"sheet":"MsA1","index":20,"n_rows":9,"n_cols":24,"rows_kept":9,"cut":false,"hidden":false,"merged":[[1,11,3,21]]}
[]
[null,null,null,null,null,null,null,null,null,null,null,"MEMÓRIA DE CÁLCULO"]
[]
[]
[]
[]
[]
[null,null,null,null,null,null,null,null,null,null,null,"Itens do Orçamento"]
[null,null,null,null,null,null,null,null,null,null,null,"ITEM","CÓDIGO","DESCRIÇÃO",null,null,null,null,null,null,"UNIDADE","QUANTIDADE",null,"MEMÓRIA DE CÁLCULO"]

{"sheet":"MsA2","index":21,"n_rows":15,"n_cols":25,"rows_kept":15,"cut":false,"hidden":false,"merged":[[1,11,3,24],[14,11,14,22]]}
[]
[null,null,null,null,null,null,null,null,null,null,null,"ORÇAMENTO"]
[]
[]
[null,null,null,null,null,null,null,null,null,null,null,null,null,null,null,null,null,null,null,null,null,null,null,null,"Reajuste de "]
[null,null,null,null,null,null,null,null,null,null,null,null,null,null,null,null,null,null,null,null,null,null,null,null,10]
[null,null,null,null,null,null,null,null,null,null,null,null,null,null,null,null,null,null,null,null,null,null,null,null,"% sobre itens a executar, exceto novos itens."]
[null,null,null,null,null,null,null,null,null,null,null,"Referências"]
[]
[]
[null,null,null,null,null,null,null,null,null,null,null,"Itens do Orçamento"]
[null,null,null,null,null,null,null,null,null,null,null,"ITEM","CÓDIGO","DESCRIÇÃO","UNIDADE","QUANTIDADE\nPREVISTA\nANTERIOR\nA","QUANTIDADE\nADICIONADA /\nSUPRIMIDA\nB","QUANTIDADE\nPREVISTA\nTOTAL\nC","QUANTIDADE\nEXECUTADA\n\nD","QUANTIDADE\nA EXECUTAR\n\nE","VALOR\nUNITÁRIO\nSEM BDI (R$)\nF","VALOR\nUNITÁRIO\nCOM BDI (R$)\nG","VALOR\nUNITÁRIO COM\nREAJUSTE (R$)\nH","VALOR TOTAL\nPREVISTO\nANTERIOR (R$)\nI","VALOR TOTAL\nPREVISTO\nATUAL (R$)\nJ"]
[]
[]
[null,null,null,null,null,null,null,null,null,null,null,"TOTAL MEDIÇÃO"]

{"sheet":"MsA3","index":22,"n_rows":10,"n_cols":19,"rows_kept":10,"cut":false,"hidden":false,"merged":[[1,11,3,18],[8,17,8,18]]}
[]
[null,null,null,null,null,null,null,null,null,null,null,"CRONOGRAMA FÍSICO-FINANCEIRO"]
[]
[]
[]
[]
[]
[null,null,null,null,null,null,null,null,null,null,null,"Itens do Orçamento"]
[null,null,null,null,null,null,null,null,null,null,null,"ITEM","DESCRIÇÃO",null,null,null,null,"VALOR DOS SERVIÇOS"]
[null,null,null,null,null,null,null,null,null,null,null,null,null,null,null,null,null,"R$","PESO %"]

{"sheet":"MsA4","index":23,"n_rows":12,"n_cols":28,"rows_kept":12,"cut":false,"hidden":false,"merged":[[1,11,3,23],[10,22,10,23]]}
[]
[null,null,null,null,null,null,null,null,null,null,null,"COMPOSIÇÕES"]
[]
[]
[]
[]
[]
[null,null,null,null,null,null,null,null,null,null,null,"Referências"]
[]
[]
[null,null,null,null,null,null,null,null,null,null,null,"Composições"]
[null,null,null,null,null,null,null,null,null,null,null,"NÍVEL","CÓDIGO","DESCRIÇÃO",null,null,null,null,null,null,"UNIDADE","QUANTIDADE","VALOR","TOTAL",null,"DIFERENÇA\nVALOR","DIFERENÇA PERCENTUAL","REFERÊNCIA"]

{"sheet":"MsA5","index":24,"n_rows":20,"n_cols":21,"rows_kept":20,"cut":false,"hidden":false,"merged":[[1,11,3,20]]}
[]
[null,null,null,null,null,null,null,null,null,null,null,"COTAÇÕES"]
[]
[]
[]
[]
[]
[]
[]
[]
[]
[null,null,null,null,null,null,null,null,null,null,null,"Índices de Retroação"]
[null,null,null,null,null,null,null,null,null,null,null,"NOME","DESCRIÇÃO",null,null,null,"DATA BASE","ÍNDICE DT BASE","DT COTAÇÃO","ÍNDICE DT COT","COEFICIENTE"]
[]
[]
[null,null,null,null,null,null,null,null,null,null,null,"Empresas Fornecedoras"]
[null,null,null,null,null,null,null,null,null,null,null,"CNPJ","NOME",null,null,null,null,"TELEFONE",null,"CONTATO"]
[]
[]
[null,null,null,null,null,null,null,null,null,null,null,"Cotações"]

{"sheet":"MsA6","index":25,"n_rows":12,"n_cols":33,"rows_kept":12,"cut":false,"hidden":false,"merged":[[11,11,11,18],[7,30,7,31],[7,32,7,33],[7,28,7,29],[8,28,8,29],[9,28,9,29],[8,30,8,31],[9,30,9,31],[8,32,8,33],[10,30,10,31],[7,27,9,27],[11,28,11,29],[11,30,11,31],[11,32,11,33],[10,28,10,29],[10,32,10,33],[9,32,9,33],[1,11,3,25],[7,11,9,11],[7,12,9,15],[7,16,9,18],[7,19,7,21],[7,22,7,23],[7,24,7,25]]}
[]
[null,null,null,null,null,null,null,null,null,null,null,"LOCALIZAÇÃO"]
[]
[]
[]
[]
[]
[null,null,null,null,null,null,null,null,null,null,null,"Item","Rua / Avenida / Trecho",null,null,null,"Bairro",null,null,"Pavimentação",null,null,"Rede de Drenagem",null,"Rede de Saneamento",null,null,"Medição","Pavimentação",null,"Rede de Drenagem",null,"Rede de Saneamento"]
[null,null,null,null,null,null,null,null,null,null,null,null,null,null,null,null,null,null,null,"Comprimento","Largura","Área","Comprimento","Diâmetro","Comprimento","Diâmetro",null,null,"Acumulado",null,"Acumulado",null,"Acumulado"]
[null,null,null,null,null,null,null,null,null,null,null,null,null,null,null,null,null,null,null,"(m)","(m)","(m2)","(m)","(mm)","(m)","(mm)",null,null,"Área (m2)",null,"Comprimento (m)",null,"Comprimento (m)"]
[]
[null,null,null,null,null,null,null,null,null,null,null,"Total"]

{"sheet":"Composições","index":26,"n_rows":26,"n_cols":15,"rows_kept":26,"cut":false,"hidden":false,"merged":[[1,0,3,7]]}
[]
["Importar Dados de Composições"]
[]
[]
[]
[]
["N1","N2","N3","CÓDIGO","DESCRIÇÃO","UNIDADE","QUANTIDADE","VALOR UNITÁRIO",null,"OBSERVAÇÕES","DESCRIÇÃO","UNIDADE","VALOR","TOTAL","NÍVEL"]
[1,null,null,null,"FABRICAÇÃO E FORNECIMENTO DAS TRANSVERSINAS, CONTRAVENTAMENTOS, CHAPAS DE LIGAÇÃO E CONECTORES DE LIGAÇÃO AO TABULEIRO","KG",null,null,"","","","",null,27.370190000000001,"1"]
[null,null,null,"E9686-CP","CAMINHÃO CARROCERIA COM GUINDAUTO COM CAPACIDADE DE 20 T.M - 136 KW (CUSTO PRODUTIVO)","H",3.2000000000000001E-2,318.54000000000002,"","DNIT 01_2023","CAMINHÃO CARROCERIA COM GUINDAUTO COM CAPACIDADE DE 20 T.M - 136 KW (CUSTO PRODUTIVO)","H",318.54180000000002,10.193280000000001,"1.1"]
[null,null,null,"ED-50366","AJUDANTE ESPECIALIZADO COM ENCARGOS COMPLEMENTARES","HORA",2.9000000000000001E-2,21.76,"","SEINFRA SUL 01_2023","AJUDANTE ESPECIALIZADO COM ENCARGOS COMPLEMENTARES","HORA",21.76,0.63104000000000005,"1.2"]
[null,null,null,"ED-50380","MONTADOR COM ENCARGOS COMPLEMENTARES","HORA",2.9000000000000001E-2,25.03,"","SEINFRA SUL 01_2023","MONTADOR COM ENCARGOS COMPLEMENTARES","HORA",25.03,0.72587000000000002,"1.3"]
[null,null,null,1330,"CHAPA DE ACO GROSSA, ASTM A36, E = 1/4 \" (6,35 MM) 49,79 KG/M2","KG",1.1000000000000001,10.31,"","SINAPI 05_2023","CHAPA DE ACO GROSSA, ASTM A36, E = 1/4 \" (6,35 MM) 49,79 KG/M2","KG",10.31,11.341000000000001,"1.4"]
[null,null,null,1408173,"CORTE DE PERFIS METÁLICOS COM MAÇARICO OXIACETILENO","CM²",1,0.04,"","DNIT 01_2023","CORTE DE PERFIS METÁLICOS COM MAÇARICO OXIACETILENO","CM²",0.04,0.04,"1.5"]
[null,null,null,1408028,"SOLDA ELÉTRICA MANUAL DE PERFIS METÁLICOS E CHAPAS DE AÇO COM ELETRODO E70XX PARA BENEFICIAMENTO DE AÇO NAVAL","KG",0.02,221.95,"","DNIT 01_2023","SOLDA ELÉTRICA MANUAL DE PERFIS METÁLICOS E CHAPAS DE AÇO COM ELETRODO E70XX PARA BENEFICIAMENTO DE AÇO NAVAL","KG",221.95,4.4390000000000001,"1.6"]
[2,null,null,null,"TABULEIRO EM ESTRUTURA METÁLICA AUTPORTANTE (ASSOALHO EM STEEL DECK 1,25MM)","M²",null,null,"","","","",null,378.04442100000006,"2"]
[null,null,null,43125,"CHAPA EM ACO GALVANIZADO PARA STEEL DECK, COM NERVURAS TRAPEZOIDAIS, LARGURA UTIL DE 915 MM E ESPESSURA DE 1,25 MM","M2",1.0929,141.49,"","SINAPI 05_2023","CHAPA EM ACO GALVANIZADO PARA STEEL DECK, COM NERVURAS TRAPEZOIDAIS, LARGURA UTIL DE 915 MM E ESPESSURA DE 1,25 MM","M2",141.49,154.634421,"2.1"]
[null,null,null,88240,"AJUDANTE DE ESTRUTURA METÁLICA COM ENCARGOS COMPLEMENTARES","H",3,19.170000000000002,"","SINAPI 05_2023","AJUDANTE DE ESTRUTURA METÁLICA COM ENCARGOS COMPLEMENTARES","H",19.170000000000002,57.510000000000005,"2.2"]
[null,null,null,88245,"ARMADOR COM ENCARGOS COMPLEMENTARES","H",3,27.23,"","SINAPI 05_2023","ARMADOR COM ENCARGOS COMPLEMENTARES","H",27.23,81.69,"2.3"]
[null,null,null,88317,"SOLDADOR COM ENCARGOS COMPLEMENTARES","H",3,28.07,"","SINAPI 05_2023","SOLDADOR COM ENCARGOS COMPLEMENTARES","H",28.07,84.210000000000008,"2.4"]
[3,null,null,null,"FABRICAÇÃO E FORNECIMENTO DOS PERFIS METÁLICOS SOLDADOS AÇO ASTM A-36 DIM. (1200X12,7X390X22,4X390X25,4)MM X 2500MM X 261,0KG/M","KG",null,null,"","","","",null,29.290995000000002,"3"]
[null,null,null,"E9686-CP","CAMINHÃO CARROCERIA COM GUINDAUTO COM CAPACIDADE DE 20 T.M - 136 KW (CUSTO PRODUTIVO)","H",3.5000000000000003E-2,318.54000000000002,"","DNIT 01_2023","CAMINHÃO CARROCERIA COM GUINDAUTO COM CAPACIDADE DE 20 T.M - 136 KW (CUSTO PRODUTIVO)","H",318.54180000000002,11.148900000000001,"3.1"]
[null,null,null,"ED-50366","AJUDANTE ESPECIALIZADO COM ENCARGOS COMPLEMENTARES","HORA",3.7999999999999999E-2,21.76,"","SEINFRA SUL 01_2023","AJUDANTE ESPECIALIZADO COM ENCARGOS COMPLEMENTARES","HORA",21.76,0.82688000000000006,"3.2"]
[null,null,null,"ED-50380","MONTADOR COM ENCARGOS COMPLEMENTARES","HORA",3.7999999999999999E-2,25.03,"","SEINFRA SUL 01_2023","MONTADOR COM ENCARGOS COMPLEMENTARES","HORA",25.03,0.95113999999999999,"3.3"]
[null,null,null,1330,"CHAPA DE ACO GROSSA, ASTM A36, E = 1/4 \" (6,35 MM) 49,79 KG/M2","KG",1.1000000000000001,10.31,"","SINAPI 05_2023","CHAPA DE ACO GROSSA, ASTM A36, E = 1/4 \" (6,35 MM) 49,79 KG/M2","KG",10.31,11.341000000000001,"3.4"]
[null,null,null,1408173,"CORTE DE PERFIS METÁLICOS COM MAÇARICO OXIACETILENO","CM²",0.73,0.04,"","DNIT 01_2023","CORTE DE PERFIS METÁLICOS COM MAÇARICO OXIACETILENO","CM²",0.04,2.92E-2,"3.5"]
[null,null,null,1408028,"SOLDA ELÉTRICA MANUAL DE PERFIS METÁLICOS E CHAPAS DE AÇO COM ELETRODO E70XX PARA BENEFICIAMENTO DE AÇO NAVAL","KG",2.2499999999999999E-2,221.95,"","DNIT 01_2023","SOLDA ELÉTRICA MANUAL DE PERFIS METÁLICOS E CHAPAS DE AÇO COM ELETRODO E70XX PARA BENEFICIAMENTO DE AÇO NAVAL","KG",221.95,4.9938749999999992,"3.6"]

{"sheet":"Composições - Aditivo","index":27,"n_rows":7,"n_cols":15,"rows_kept":7,"cut":false,"hidden":false,"merged":[[1,0,3,7]]}
[]
["Importar Dados de Composições - Aditivo"]
[]
[]
[]
[]
["N1","N2","N3","CÓDIGO","DESCRIÇÃO","UNIDADE","QUANTIDADE","VALOR UNITÁRIO",null,"OBSERVAÇÕES","DESCRIÇÃO","UNIDADE","VALOR","TOTAL","NÍVEL"]

{"sheet":"Orçamento","index":28,"n_rows":64,"n_cols":18,"rows_kept":64,"cut":false,"hidden":false,"merged":[[1,0,3,8]]}
[]
["Importar Dados do Orçamento"]
[]
[]
[]
[]
["N1","N2","N3","CÓDIGO","DESCRIÇÃO","UNIDADE","QUANTIDADE","VALOR UNITÁRIO","BDI",null,"OBSERVAÇÕES","DESCRIÇÃO","UNIDADE","VALOR","TOTAL","NÍVEL","VALORBDI","TOTALBDI"]
[1,null,null,null,"CONSTRUÇÃO DA PONTE",null,null,null,null,"","","","",null,1133067.6099999999,"1",null,1412609.13]
[null,1,null,null,"SERVIÇOS PRELIMINARES",null,null,null,null,"","","","",null,62551.029999999992,"1.1",null,77937.91]
[null,null,null,"ED-28427","FORNECIMENTO E COLOCAÇÃO DE PLACA DE OBRA EM CHAPA GALVANIZADA #26, ESP. 0,45MM, DIMENSÃO (3X1,5)M, PLOTADA COM ADESIVO VINÍLICO, AFIXADA COM REBITES 4,8X40MM, EM ESTRUTURA METÁLICA DE METALON 20X20MM, ESP. 1,25MM, INCLUSIVE SUPORTE EM EUCALIPTO AUTOCLAVADO PINTADO COM TINTA PVA DUAS (2) DEMÃOS","UN",1,1419.25,"BDI1","","SEINFRA SUL 01_2023","FORNECIMENTO E COLOCAÇÃO DE PLACA DE OBRA EM CHAPA GALVANIZADA #26, ESP. 0,45MM, DIMENSÃO (3X1,5)M, PLOTADA COM ADESIVO VINÍLICO, AFIXADA COM REBITES 4,8X40MM, EM ESTRUTURA METÁLICA DE METALON 20X20MM, ESP. 1,25MM, INCLUSIVE SUPORTE EM EUCALIPTO AUTOCLAVADO PINTADO COM TINTA PVA DUAS (2) DEMÃOS","UN",1419.25,1419.25,"1.1.1",1769.3789749999999,1769.38]
[null,null,null,"CO-28390","MOBILIZAÇÃO E DESMOBILIZAÇÃO DE EQUIPAMENTO DE SONDAGEM A PERCUSSÃO COM ENSAIO DE PENETRAÇÃO PADRÃO (SPT) - (CUSTO FIXO)","UN",1,693.08,"BDI1","","SEINFRA SUL 01_2023","MOBILIZAÇÃO E DESMOBILIZAÇÃO DE EQUIPAMENTO DE SONDAGEM A PERCUSSÃO COM ENSAIO DE PENETRAÇÃO PADRÃO (SPT) - (CUSTO FIXO)","UN",693.08,693.08,"1.1.2",864.06283599999995,864.06]
[null,null,null,"CO-28388","SONDAGEM A PERCUSSÃO COM ENSAIO DE PENETRAÇÃO PADRÃO (SPT), DIÂMETRO 2.1/2\", EXCLUSIVE MOBILIZAÇÃO E DESMOBILIZAÇÃO","M",40,72.5,"BDI1","","SEINFRA SUL 01_2023","SONDAGEM A PERCUSSÃO COM ENSAIO DE PENETRAÇÃO PADRÃO (SPT), DIÂMETRO 2.1/2\", EXCLUSIVE MOBILIZAÇÃO E DESMOBILIZAÇÃO","M",72.5,2900,"1.1.3",90.385749999999987,3615.6]
[null,null,null,"ED-50393","MOBILIZAÇÃO E DESMOBILIZAÇÃO DE OBRA EM CENTRO URBANO OU REGIÃO LIMÍTROFE COM VALOR ENTRE 1.000.000,01 E 3.000.000,00","%",11146.28,0.3,"BDI1","","SEINFRA SUL 01_2023","MOBILIZAÇÃO E DESMOBILIZAÇÃO DE OBRA EM CENTRO URBANO OU REGIÃO LIMÍTROFE COM VALOR ENTRE 1.000.000,01 E 3.000.000,00","%",0.3,3343.88,"1.1.4",0.37400999999999995,4124.12]
[null,null,null,"ED-50137","MOBILIZAÇÃO E DESMOBILIZAÇÃO DE CONTAINER, INCLUSIVE CARGA, DESCARGA E TRANSPORTE EM CAMINHÃO CARROCERIA COM GUINDAUTO (MUNCK), EXCLUSIVE LOCAÇÃO DO CONTAINER","UN",2,649.44000000000005,"BDI1","","SEINFRA SUL 01_2023","MOBILIZAÇÃO E DESMOBILIZAÇÃO DE CONTAINER, INCLUSIVE CARGA, DESCARGA E TRANSPORTE EM CAMINHÃO CARROCERIA COM GUINDAUTO (MUNCK), EXCLUSIVE LOCAÇÃO DO CONTAINER","UN",649.44000000000005,1298.8800000000001,"1.1.5",809.65684799999997,1619.32]
[null,null,null,"ED-16349","LOCAÇÃO DE CONTAINER COM ISOLAMENTO TÉRMICO, TIPO 2, PARA ESCRITÓRIO DE OBRA COM SANITÁRIO CONTENDO UM (1) VASO SANITÁRIO E UM (1) LAVATÓRIO, COM MEDIDAS REFERENCIAIS DE (6) METROS COMPRIMENTO, (2,3) METROS LARGURA E (2,5) METROS ALTURA ÚTIL INTERNA, INCLUSIVE AR CONDICIONADO E LIGAÇÕES ELÉTRICAS E HIDROSSANITÁRIAS INTERNAS, EXCLUSIVE MOBILIZAÇÃO/DESMOBILIZAÇÃO E LIGAÇÕES PROVISÓRIAS EXTERNAS","MÊS",3,953.49,"BDI1","","SEINFRA SUL 01_2023","LOCAÇÃO DE CONTAINER COM ISOLAMENTO TÉRMICO, TIPO 2, PARA ESCRITÓRIO DE OBRA COM SANITÁRIO CONTENDO UM (1) VASO SANITÁRIO E UM (1) LAVATÓRIO, COM MEDIDAS REFERENCIAIS DE (6) METROS COMPRIMENTO, (2,3) METROS LARGURA E (2,5) METROS ALTURA ÚTIL INTERNA, INCLUSIVE AR CONDICIONADO E LIGAÇÕES ELÉTRICAS E HIDROSSANITÁRIAS INTERNAS, EXCLUSIVE MOBILIZAÇÃO/DESMOBILIZAÇÃO E LIGAÇÕES PROVISÓRIAS EXTERNAS","MÊS",953.49,2860.47,"1.1.6",1188.7159829999998,3566.16]
[null,null,null,"ED-16357","LIGAÇÕES PROVISÓRIAS PARA CONTAINER TIPO 2 (CORRESPONDENTE AO CÓDIGO ED-16349)","UN",3,658.91,"BDI1","","SEINFRA SUL 01_2023","LIGAÇÕES PROVISÓRIAS PARA CONTAINER TIPO 2 (CORRESPONDENTE AO CÓDIGO ED-16349)","UN",658.91,1976.73,"1.1.7",821.46309699999995,2464.38]
[null,null,null,"ED-16350","LOCAÇÃO DE CONTAINER COM ISOLAMENTO TÉRMICO, TIPO 3, PARA DEPÓSITO/FERRAMENTARIA DE OBRA, COM MEDIDAS REFERENCIAIS DE (6) METROS COMPRIMENTO, (2,3) METROS LARGURA E (2,5) METROS ALTURA ÚTIL INTERNA, INCLUSIVE LIGAÇÕES ELÉTRICAS INTERNAS, EXCLUSIVE MOBILIZAÇÃO/DESMOBILIZAÇÃO E LIGAÇÕES PROVISÓRIAS EXTERNAS","MÊS",3,689.47,"BDI1","","SEINFRA SUL 01_2023","LOCAÇÃO DE CONTAINER COM ISOLAMENTO TÉRMICO, TIPO 3, PARA DEPÓSITO/FERRAMENTARIA DE OBRA, COM MEDIDAS REFERENCIAIS DE (6) METROS COMPRIMENTO, (2,3) METROS LARGURA E (2,5) METROS ALTURA ÚTIL INTERNA, INCLUSIVE LIGAÇÕES ELÉTRICAS INTERNAS, EXCLUSIVE MOBILIZAÇÃO/DESMOBILIZAÇÃO E LIGAÇÕES PROVISÓRIAS EXTERNAS","MÊS",689.47,2068.41,"1.1.8",859.56224899999995,2578.6799999999998]
[null,null,null,"ED-16358","LIGAÇÕES PROVISÓRIAS PARA CONTAINER TIPO 3 (CORRESPONDENTE AO CÓDIGO ED-16350)","UN",1,340.69,"BDI1","","SEINFRA SUL 01_2023","LIGAÇÕES PROVISÓRIAS PARA CONTAINER TIPO 3 (CORRESPONDENTE AO CÓDIGO ED-16350)","UN",340.69,340.69,"1.1.9",424.73822299999995,424.74]
[null,null,null,"ED-50274","LOCAÇÃO TOPOGRÁFICA PARA ATÉ VINTE (20) PONTOS REFERENCIAIS, INCLUSIVE ESTACA (PIQUETE) DE MARCAÇÃO","UN",20,81.8,"BDI1","","SEINFRA SUL 01_2023","LOCAÇÃO TOPOGRÁFICA PARA ATÉ VINTE (20) PONTOS REFERENCIAIS, INCLUSIVE ESTACA (PIQUETE) DE MARCAÇÃO","UN",81.8,1636,"1.1.10",101.98005999999999,2039.6]
[null,null,null,"ED-17989","LOCAÇÃO DE OBRA COM GABARITO DE TÁBUAS CORRIDAS PONTALETADAS A CADA 2,00M, REAPROVEITAMENTO (2X), INCLUSIVE ACOMPANHAMENTO DE EQUIPE TOPOGRÁFICA PARA MARCAÇÃO DE PONTO TOPOGRÁFICO","M",70.02,52.95,"BDI1","","SEINFRA SUL 01_2023","LOCAÇÃO DE OBRA COM GABARITO DE TÁBUAS CORRIDAS PONTALETADAS A CADA 2,00M, REAPROVEITAMENTO (2X), INCLUSIVE ACOMPANHAMENTO DE EQUIPE TOPOGRÁFICA PARA MARCAÇÃO DE PONTO TOPOGRÁFICO","M",52.95,3707.56,"1.1.11",66.012765000000002,4622.0200000000004]
[null,null,null,"ED-50423","ENSECADEIRA INCLUSIVE RETIRADA DO MADEIRAMENTO , PAREDE DUPLA","M2",22.86,394.48,"BDI1","","SEINFRA SUL 01_2023","ENSECADEIRA INCLUSIVE RETIRADA DO MADEIRAMENTO , PAREDE DUPLA","M2",394.48,9017.81,"1.1.12",491.79821599999997,11242.55]
[null,null,null,"ED-51107","ESCAVAÇÃO MANUAL DE VALA COM PROFUNDIDADE MENOR OU IGUAL A 1,5M, INCLUSIVE DESCARGA LATERAL","M3",22.58,67.39,"BDI1","","SEINFRA SUL 01_2023","ESCAVAÇÃO MANUAL DE VALA COM PROFUNDIDADE MENOR OU IGUAL A 1,5M, INCLUSIVE DESCARGA LATERAL","M3",67.39,1521.67,"1.1.13",84.015112999999999,1897.17]
[null,null,null,"ED-51123","REGULARIZAÇÃO MANUAL E COMPACTAÇÃO MECANIZADA DE TERRENO COM PLACA VIBRATÓRIA, EXCLUSIVE DESMATAMENTO, DESTOCAMENTO, LIMPEZA/ROÇADA DO TERRENO","M2",28.22,4.71,"BDI1","","SEINFRA SUL 01_2023","REGULARIZAÇÃO MANUAL E COMPACTAÇÃO MECANIZADA DE TERRENO COM PLACA VIBRATÓRIA, EXCLUSIVE DESMATAMENTO, DESTOCAMENTO, LIMPEZA/ROÇADA DO TERRENO","M2",4.71,132.91999999999999,"1.1.14",5.8719569999999992,165.65]
[null,null,null,104482,"ESGOTAMENTO DE VALA COM BOMBA SUBMERSÍVEL. AF_12/2022","H",320,28.78,"BDI1","","SINAPI 05_2023","ESGOTAMENTO DE VALA COM BOMBA SUBMERSÍVEL. AF_12/2022","H",28.78,9209.6,"1.1.15",35.880026000000001,11481.6]
[null,null,null,"ED-50151","LIGAÇÃO PROVISÓRIA COM ENTRADA DE ENERGIA AÉREA, PADRÃO CEMIG, CARGA INSTALADA DE 15,1KVA ATÉ 30KVA, TRIFÁSICO, COM SAÍDA SUBTERRÂNEA, INCLUSIVE POSTE, CAIXA PARA MEDIDOR, DISJUNTOR, BARRAMENTO, ATERRAMENTO E ACESSÓRIOS","UN",1,1201.96,"BDI1","","SEINFRA SUL 01_2023","LIGAÇÃO PROVISÓRIA COM ENTRADA DE ENERGIA AÉREA, PADRÃO CEMIG, CARGA INSTALADA DE 15,1KVA ATÉ 30KVA, TRIFÁSICO, COM SAÍDA SUBTERRÂNEA, INCLUSIVE POSTE, CAIXA PARA MEDIDOR, DISJUNTOR, BARRAMENTO, ATERRAMENTO E ACESSÓRIOS","UN",1201.96,1201.96,"1.1.16",1498.483532,1498.48]
[null,null,null,"ED-49812","LASTRO DE CONCRETO MAGRO, INCLUSIVE TRANSPORTE, LANÇAMENTO E ADENSAMENTO","M3",2.82,533.78,"BDI1","","SEINFRA SUL 01_2023","LASTRO DE CONCRETO MAGRO, INCLUSIVE TRANSPORTE, LANÇAMENTO E ADENSAMENTO","M3",533.78,1505.26,"1.1.17",665.46352599999989,1876.6]
[null,null,null,98459,"TAPUME COM TELHA METÁLICA. AF_05/2018","M2",117.72,150.5,"BDI1","","SINAPI 05_2023","TAPUME COM TELHA METÁLICA. AF_05/2018","M2",150.5,17716.86,"1.1.18",187.62834999999998,22087.8]
[null,2,null,null,"INFRA ESTRUTURA / FUNDAÇÃO PROFUNDA",null,null,null,null,"","","","",null,216507.39999999997,"1.2",null,269924.96999999997]
[null,null,null,"ED-29819","MOBILIZAÇÃO E DESMOBILIZAÇÃO DE EQUIPAMENTO PARA ESTACA TIPO CRAVADA (CUSTO FIXO), INCLUSIVE CARGA E DESCARGA, EXCLUSIVE TRANSPORTE EM QUILÔMETRO RODADO (CUSTO VARIÁVEL)","UN",1,9509.7999999999993,"BDI1","","SEINFRA SUL 01_2023","MOBILIZAÇÃO E DESMOBILIZAÇÃO DE EQUIPAMENTO PARA ESTACA TIPO CRAVADA (CUSTO FIXO), INCLUSIVE CARGA E DESCARGA, EXCLUSIVE TRANSPORTE EM QUILÔMETRO RODADO (CUSTO VARIÁVEL)","UN",9509.7999999999993,9509.7999999999993,"1.2.1",11855.867659999998,11855.87]
[null,null,null,"ED-29820","MOBILIZAÇÃO E DESMOBILIZAÇÃO DE EQUIPAMENTO PARA ESTACA TIPO CRAVADA (CUSTO VARIÁVEL), EXCLUSIVE CUSTO FIXO DE TRANSPORTE","KM",120,24.98,"BDI1","","SEINFRA SUL 01_2023","MOBILIZAÇÃO E DESMOBILIZAÇÃO DE EQUIPAMENTO PARA ESTACA TIPO CRAVADA (CUSTO VARIÁVEL), EXCLUSIVE CUSTO FIXO DE TRANSPORTE","KM",24.98,2997.6,"1.2.2",31.142565999999999,3736.8]
[null,null,null,100658,"ESTACA PRÉ-MOLDADA DE CONCRETO CENTRIFUGADO, SEÇÃO CIRCULAR, CAPACIDADE DE 100 TONELADAS, INCLUSO EMENDA (EXCLUSIVE MOBILIZAÇÃO E DESMOBILIZAÇÃO). AF_12/2019","M",512,327.22000000000003,"BDI1","","SINAPI 05_2023","ESTACA PRÉ-MOLDADA DE CONCRETO CENTRIFUGADO, SEÇÃO CIRCULAR, CAPACIDADE DE 100 TONELADAS, INCLUSO EMENDA (EXCLUSIVE MOBILIZAÇÃO E DESMOBILIZAÇÃO). AF_12/2019","M",327.22000000000003,167536.64000000001,"1.2.3",407.94517400000001,208870.39999999999]
[null,null,null,"ED-29686","CORTE E PREPARO DE CABEÇA/ARRASAMENTO MECANIZADO  DE ESTACA PARA BLOCO DE COROAMENTO, INCLUSIVE AFASTAMENTO E EMPILHAMENTO, EXCLUSIVE TRANSPORTE E RETIRADA DO MATERIAL DEMOLIDO","M3",5.47,153.46,"BDI1","","SEINFRA SUL 01_2023","CORTE E PREPARO DE CABEÇA/ARRASAMENTO MECANIZADO  DE ESTACA PARA BLOCO DE COROAMENTO, INCLUSIVE AFASTAMENTO E EMPILHAMENTO, EXCLUSIVE TRANSPORTE E RETIRADA DO MATERIAL DEMOLIDO","M3",153.46,839.43,"1.2.4",191.31858199999999,1046.52]
[null,null,null,"ED-8571","FÔRMA E DESFORMA DE COMPENSADO PLASTIFICADO, ESP. 12MM, REAPROVEITAMENTO (3X) (FUNDAÇÃO)","M2",36.46,76.099999999999994,"BDI1","","SEINFRA SUL 01_2023","FÔRMA E DESFORMA DE COMPENSADO PLASTIFICADO, ESP. 12MM, REAPROVEITAMENTO (3X) (FUNDAÇÃO)","M2",76.099999999999994,2774.61,"1.2.5",94.873869999999982,3458.96]
[null,null,null,"ED-48295","CORTE, DOBRA E MONTAGEM DE AÇO CA-50, DIÂMETRO (6,3MM A 12,5MM), INCLUSIVE ESPAÇADOR","KG",1044.79,13.81,"BDI1","","SEINFRA SUL 01_2023","CORTE, DOBRA E MONTAGEM DE AÇO CA-50, DIÂMETRO (6,3MM A 12,5MM), INCLUSIVE ESPAÇADOR","KG",13.81,14428.55,"1.2.6",17.216926999999998,17991.28]
[null,null,null,"ED-49639","FORNECIMENTO DE CONCRETO ESTRUTURAL, USINADO BOMBEADO, COM FCK 30MPA, INCLUSIVE LANÇAMENTO, ADENSAMENTO E ACABAMENTO","M3",22.58,754.07,"BDI1","","SEINFRA SUL 01_2023","FORNECIMENTO DE CONCRETO ESTRUTURAL, USINADO BOMBEADO, COM FCK 30MPA, INCLUSIVE LANÇAMENTO, ADENSAMENTO E ACABAMENTO","M3",754.07,17026.900000000001,"1.2.7",940.09906899999999,21227.46]
[null,null,null,"RO-41544","CIMBRAMENTO: ESCORAMENTO EM MADEIRA (EXECUÇÃO, INCLUINDO O FORNECIMENTO E TRANSPORTE DE TODOS OS MATERIAIS)","M3",18.23,76.459999999999994,"BDI1","","SEINFRA SUL 01_2023","CIMBRAMENTO: ESCORAMENTO EM MADEIRA (EXECUÇÃO, INCLUINDO O FORNECIMENTO E TRANSPORTE DE TODOS OS MATERIAIS)","M3",76.459999999999994,1393.87,"1.2.8",95.322681999999986,1737.68]
[null,3,null,null,"SUPRA ESTRUTURA / MESOESTRUUTURA",null,null,null,null,"","","","",null,774136.04,"1.3",null,965168.33000000007]
[null,null,null,"ED-8398","FÔRMA E DESFORMA DE COMPENSADO PLASTIFICADO, ESP. 12MM, REAPROVEITAMENTO (3X), EXCLUSIVE ESCORAMENTO","M2",304.55,78.02,"BDI1","","SEINFRA SUL 01_2023","FÔRMA E DESFORMA DE COMPENSADO PLASTIFICADO, ESP. 12MM, REAPROVEITAMENTO (3X), EXCLUSIVE ESCORAMENTO","M2",78.02,23760.99,"1.3.1",97.267533999999984,29623.58]
[null,null,null,"RO-41544","CIMBRAMENTO: ESCORAMENTO EM MADEIRA (EXECUÇÃO, INCLUINDO O FORNECIMENTO E TRANSPORTE DE TODOS OS MATERIAIS)","M3",152.27000000000001,76.459999999999994,"BDI1","","SEINFRA SUL 01_2023","CIMBRAMENTO: ESCORAMENTO EM MADEIRA (EXECUÇÃO, INCLUINDO O FORNECIMENTO E TRANSPORTE DE TODOS OS MATERIAIS)","M3",76.459999999999994,11642.56,"1.3.2",95.322681999999986,14514.38]
[null,null,null,"ED-48295","CORTE, DOBRA E MONTAGEM DE AÇO CA-50, DIÂMETRO (6,3MM A 12,5MM), INCLUSIVE ESPAÇADOR","KG",2602.7600000000002,13.81,"BDI1","","SEINFRA SUL 01_2023","CORTE, DOBRA E MONTAGEM DE AÇO CA-50, DIÂMETRO (6,3MM A 12,5MM), INCLUSIVE ESPAÇADOR","KG",13.81,35944.120000000003,"1.3.3",17.216926999999998,44819.53]
[null,null,null,"CPU-001","REF","REF",4891.71,null,"BDI1","","COMPOSIÇÕES","FABRICAÇÃO E FORNECIMENTO DAS TRANSVERSINAS, CONTRAVENTAMENTOS, CHAPAS DE LIGAÇÃO E CONECTORES DE LIGAÇÃO AO TABULEIRO","KG",27.370190000000001,133886.1,"1.3.4",34.122178999999996,166905.15]
[null,null,null,100716,"JATEAMENTO ABRASIVO COM GRANALHA DE AÇO EM PERFIL METÁLICO EM FÁBRICA. AF_01/2020","M2",408,27.06,"BDI1","","SINAPI 05_2023","JATEAMENTO ABRASIVO COM GRANALHA DE AÇO EM PERFIL METÁLICO EM FÁBRICA. AF_01/2020","M2",27.06,11040.48,"1.3.5",33.735701999999996,13765.92]
[null,null,null,"ED-29091","TRANSPORTE DE VIGA OU TABULEIRO PARA PONTE (CUSTO FIXO), INCLUSIVE CARGA, EXCLUSIVE FORNECIMENTO , DESCARGA E TRANSPORTE EM QUILÔMETRO RODADO (CUSTO VARIÁVEL)","UN",1,2479.19,"BDI1","","SEINFRA SUL 01_2023","TRANSPORTE DE VIGA OU TABULEIRO PARA PONTE (CUSTO FIXO), INCLUSIVE CARGA, EXCLUSIVE FORNECIMENTO , DESCARGA E TRANSPORTE EM QUILÔMETRO RODADO (CUSTO VARIÁVEL)","UN",2479.19,2479.19,"1.3.6",3090.8061729999999,3090.81]
[null,null,null,"ED-29092","TRANSPORTE DE VIGA OU TABULEIRO PARA PONTE (CUSTO VARIÁVEL), EXCLUSIVE FORNECIMENTO , DESCARGA E CUSTO FIXO DE TRANSPORTE","TXKM",17508.740000000002,0.76,"BDI1","","SEINFRA SUL 01_2023","TRANSPORTE DE VIGA OU TABULEIRO PARA PONTE (CUSTO VARIÁVEL), EXCLUSIVE FORNECIMENTO , DESCARGA E CUSTO FIXO DE TRANSPORTE","TXKM",0.76,13306.64,"1.3.7",0.947492,16633.3]
[null,null,null,"ED-29090","DESCARGA DE CAMINHÃO, PARA ELEMENTOS DE VIGA OU TABULEIRO PARA PONTE, INCLUSIVE DESCARGA DE PERFIS LONGARINAS, TRANSVERSINAS, CHAPAS E ACESSÓRIOS, EXCLUSIVE FORNECIMENTO E TRANSPORTE","UN",1,3892.7,"BDI1","","SEINFRA SUL 01_2023","DESCARGA DE CAMINHÃO, PARA ELEMENTOS DE VIGA OU TABULEIRO PARA PONTE, INCLUSIVE DESCARGA DE PERFIS LONGARINAS, TRANSVERSINAS, CHAPAS E ACESSÓRIOS, EXCLUSIVE FORNECIMENTO E TRANSPORTE","UN",3892.7,3892.7,"1.3.8",4853.0290899999991,4853.03]
[null,null,null,"ED-50428","LANÇAMENTO DE VIGA PARA PONTE, EXCLUSIVE FORNECIMENTO, DESCARGA E TRANSPORTE - PROJETO PADRÃO SEINFRA-MG","KG",19454.16,1.47,"BDI1","","SEINFRA SUL 01_2023","LANÇAMENTO DE VIGA PARA PONTE, EXCLUSIVE FORNECIMENTO, DESCARGA E TRANSPORTE - PROJETO PADRÃO SEINFRA-MG","KG",1.47,28597.62,"1.3.9",1.8326489999999998,35601.11]
[null,null,null,"ED-49639","FORNECIMENTO DE CONCRETO ESTRUTURAL, USINADO BOMBEADO, COM FCK 30MPA, INCLUSIVE LANÇAMENTO, ADENSAMENTO E ACABAMENTO","M3",66.86,754.07,"BDI1","","SEINFRA SUL 01_2023","FORNECIMENTO DE CONCRETO ESTRUTURAL, USINADO BOMBEADO, COM FCK 30MPA, INCLUSIVE LANÇAMENTO, ADENSAMENTO E ACABAMENTO","M3",754.07,50417.120000000003,"1.3.10",940.09906899999999,62855.09]
[null,null,null,"ED-49641","FORNECIMENTO DE CONCRETO ESTRUTURAL, USINADO BOMBEADO, COM FCK 40MPA, INCLUSIVE LANÇAMENTO, ADENSAMENTO E ACABAMENTO","M3",21,804.15,"BDI1","","SEINFRA SUL 01_2023","FORNECIMENTO DE CONCRETO ESTRUTURAL, USINADO BOMBEADO, COM FCK 40MPA, INCLUSIVE LANÇAMENTO, ADENSAMENTO E ACABAMENTO","M3",804.15,16887.150000000001,"1.3.11",1002.5338049999999,21053.13]
[null,null,null,"RO-41582","APARELHOS DE APOIO EM NEOPRENE FRETADO (EXECUÇÃO, INCLUINDO A APLICAÇÃO, FORNECIMENTO E TRANSPORTE DOS MATERIAIS)","DM3",9.3000000000000007,106.39,"BDI1","","SEINFRA SUL 01_2023","APARELHOS DE APOIO EM NEOPRENE FRETADO (EXECUÇÃO, INCLUINDO A APLICAÇÃO, FORNECIMENTO E TRANSPORTE DOS MATERIAIS)","DM3",106.39,989.43,"1.3.12",132.636413,1233.55]
[null,null,null,"CPU-002","REF","REF",105,null,"BDI1","","COMPOSIÇÕES","TABULEIRO EM ESTRUTURA METÁLICA AUTPORTANTE (ASSOALHO EM STEEL DECK 1,25MM)","M²",378.04442100000006,39694.199999999997,"1.3.13",471.30246799999998,49486.5]
[null,null,null,"ED-48295","CORTE, DOBRA E MONTAGEM DE AÇO CA-50, DIÂMETRO (6,3MM A 12,5MM), INCLUSIVE ESPAÇADOR","KG",196.71,13.81,"BDI1","","SEINFRA SUL 01_2023","CORTE, DOBRA E MONTAGEM DE AÇO CA-50, DIÂMETRO (6,3MM A 12,5MM), INCLUSIVE ESPAÇADOR","KG",13.81,2716.57,"1.3.14",17.216926999999998,3387.35]
[null,null,null,42407,"TRELICA NERVURADA (ESPACADOR), ALTURA = 120,0 MM, DIAMETRO DOS BANZOS INFERIORES E SUPERIOR = 6,0 MM, DIAMETRO DA DIAGONAL = 4,2 MM","M",211.65,7.4,"BDI1","","SINAPI 05_2023","TRELICA NERVURADA (ESPACADOR), ALTURA = 120,0 MM, DIAMETRO DOS BANZOS INFERIORES E SUPERIOR = 6,0 MM, DIAMETRO DA DIAGONAL = 4,2 MM","M",7.4,1566.21,"1.3.15",9.225579999999999,1953.53]
[null,null,null,"0408067","TELA DE AÇO ELETROSSOLDADA - FORNECIMENTO, PREPARO E COLOCAÇÃO","KG",1263.02,11.94,"BDI1","","DNIT 01_2023","TELA DE AÇO ELETROSSOLDADA - FORNECIMENTO, PREPARO E COLOCAÇÃO","KG",11.94,15080.46,"1.3.16",14.885597999999998,18806.37]
[null,null,null,"CPU-003","REF","REF",13050,null,"BDI1","","COMPOSIÇÕES","FABRICAÇÃO E FORNECIMENTO DOS PERFIS METÁLICOS SOLDADOS AÇO ASTM A-36 DIM. (1200X12,7X390X22,4X390X25,4)MM X 2500MM X 261,0KG/M","KG",29.290995000000002,382234.5,"1.3.17",36.515842999999997,476586]
[null,4,null,null,"SERVIÇOS COMPLEMENTARES",null,null,null,null,"","","","",null,79112.460000000006,"1.4",null,98629.22]
[null,null,null,"RO-42808","DRENO PROFUNDO COM AREIA, SEM SELO, COM 1,50X0,40 M E TUBO DE POLIETILENO DE ALTA DENSIDADE PERFURADO, DE 100MM ENVOLVIDO EM MANTA GEOTÊXTIL NÃO TECIDA, TIPO DR.DP-02 (EXECUÇÃO  INCLUINDO  ESCAVAÇÃO , FORNECIMENTO DE TODOS OS MATERIAIS, EXCETO TRANSPORTE DOS AGREGADOS)","M",76.16,100.25,"BDI1","","SEINFRA SUL 01_2023","DRENO PROFUNDO COM AREIA, SEM SELO, COM 1,50X0,40 M E TUBO DE POLIETILENO DE ALTA DENSIDADE PERFURADO, DE 100MM ENVOLVIDO EM MANTA GEOTÊXTIL NÃO TECIDA, TIPO DR.DP-02 (EXECUÇÃO  INCLUINDO  ESCAVAÇÃO , FORNECIMENTO DE TODOS OS MATERIAIS, EXCETO TRANSPORTE DOS AGREGADOS)","M",100.25,7635.04,"1.4.1",124.981675,9518.48]
[null,null,null,"ED-50671","BUZINOTE PARA LAJES - DRENO COM TUBO DE 2\" EMBUTIDO NO CONCRETO","M",17,37.18,"BDI1","","SEINFRA SUL 01_2023","BUZINOTE PARA LAJES - DRENO COM TUBO DE 2\" EMBUTIDO NO CONCRETO","M",37.18,632.05999999999995,"1.4.2",46.352305999999999,787.95]
[null,null,null,4777,"CANTONEIRA ACO ABAS IGUAIS (QUALQUER BITOLA), ESPESSURA ENTRE 1/8\" E 1/4\"","KG",21.03,8.2200000000000006,"BDI1","","SINAPI 05_2023","CANTONEIRA ACO ABAS IGUAIS (QUALQUER BITOLA), ESPESSURA ENTRE 1/8\" E 1/4\"","KG",8.2200000000000006,172.87,"1.4.3",10.247873999999999,215.56]
[null,null,null,"ED-50174","PINTURA COM EMULSÃO ASFÁLTICA, DUAS (2) DEMÃOS","M2",213.98,25.26,"BDI1","","SEINFRA SUL 01_2023","PINTURA COM EMULSÃO ASFÁLTICA, DUAS (2) DEMÃOS","M2",25.26,5405.13,"1.4.4",31.491641999999999,6738.23]
[null,null,null,"ED-49810","FÔRMA E DESFORMA DE TÁBUA E SARRAFO, REAPROVEITAMENTO (3X) (FUNDAÇÃO)","M2",10.55,60.61,"BDI1","","SEINFRA SUL 01_2023","FÔRMA E DESFORMA DE TÁBUA E SARRAFO, REAPROVEITAMENTO (3X) (FUNDAÇÃO)","M2",60.61,639.44000000000005,"1.4.5",75.56248699999999,797.16]
[null,null,null,100727,"PINTURA COM TINTA EPOXÍDICA DE FUNDO PULVERIZADA SOBRE PERFIL METÁLICO EXECUTADO EM FÁBRICA (POR DEMÃO). AF_01/2020_PE","M2",1671.6,30,"BDI1","","SINAPI 05_2023","PINTURA COM TINTA EPOXÍDICA DE FUNDO PULVERIZADA SOBRE PERFIL METÁLICO EXECUTADO EM FÁBRICA (POR DEMÃO). AF_01/2020_PE","M2",30,50148,"1.4.6",37.400999999999996,62517.84]
[null,null,null,"ED-50497","PINTURA ESMALTE EM ESTRUTURA METÁLICA, DUAS (2) DEMÃOS, INCLUSIVE UMA (1) DEMÃO FUNDO ANTICORROSIVO","M2",408,35.49,"BDI1","","SEINFRA SUL 01_2023","PINTURA ESMALTE EM ESTRUTURA METÁLICA, DUAS (2) DEMÃOS, INCLUSIVE UMA (1) DEMÃO FUNDO ANTICORROSIVO","M2",35.49,14479.92,"1.4.7",44.245382999999997,18054]
[null,5,null,null,"SERVIÇOS FINAIS",null,null,null,null,"","","","",null,760.68,"1.5",null,948.7]
[null,null,null,"ED-50266","LIMPEZA FINAL PARA ENTREGA DA OBRA","M2",107.44,7.08,"BDI1","","SEINFRA SUL 01_2023","LIMPEZA FINAL PARA ENTREGA DA OBRA","M2",7.08,760.68,"1.5.1",8.8266359999999988,948.7]

{"sheet":"Orçamento - Aditivo","index":29,"n_rows":7,"n_cols":18,"rows_kept":7,"cut":false,"hidden":false,"merged":[[1,0,3,8]]}
[]
["Importar Novos Itens do Orçamento - Aditivo"]
[]
[]
[]
[]
["N1","N2","N3","CÓDIGO","DESCRIÇÃO","UNIDADE","QUANTIDADE","VALOR UNITÁRIO","BDI",null,"OBSERVAÇÕES","DESCRIÇÃO","UNIDADE","VALOR","TOTAL","NÍVEL","VALORBDI","TOTALBDI"]

{"sheet":"Orçamento - Licitação","index":30,"n_rows":7,"n_cols":12,"rows_kept":7,"cut":false,"hidden":false,"merged":[[1,0,3,6]]}
[]
["Importar Dados do Orçamento - Licitação"]
[]
[]
[]
[]
["N1","N2","N3","DESCRIÇÃO","UNIDADE","QUANTIDADE","VALOR UNITÁRIO",null,"OBSERVAÇÕES","NÍVEL","SOMA","FÓRMULA"]

{"sheet":"MsA2X","index":31,"n_rows":12,"n_cols":32,"rows_kept":12,"cut":false,"hidden":false,"merged":[[1,11,3,26],[6,23,6,24],[6,25,6,26]]}
[]
[null,null,null,null,null,null,null,null,null,null,null,"ORÇAMENTO ADITIVO AUXILIAR"]
[]
[]
[null,null,null,null,null,null,null,null,null,null,null,null,null,null,null,null,null,null,null,null,null,null,null,null,null,null,"BDI1 = 24,00"]
[null,null,null,null,null,null,null,null,null,null,null,"Itens do Orçamento",null,null,null,null,null,null,null,null,null,null,null,null,null,null,"BDI2 = 22,49",null,"BDI1 = 24,00","BDI2 = 22,49"]
[null,null,null,null,null,null,null,null,null,null,null,"ITEM","CÓDIGO","DESCRIÇÃO",null,null,null,null,null,null,"UNIDADE","QUANTIDADE","BDI","PREÇO (R$) SEM BDI",null,"PREÇO (R$) COM BDI",null,null,"DIFERENÇA ","VALOR","DIFERENÇA EM "]
[null,null,null,null,null,null,null,null,null,null,null,null,null,null,null,null,null,null,null,null,null,null,null,"VALOR UNIT.","TOTAL","VALOR UNIT.","TOTAL",null,"DE VALOR","UNIT. REF.","PERCENTUAL","REFERÊNCIA"]
[null,null,null,null,null,null,null,null,null,null,null,13,"","NOVOS ITENS 1",null,null,null,null,null,null,"",null,null,null,861,null,1060.69,"","BDI1 = 24,00","BDI2 = 22,49",null,""]
[null,null,null,null,null,null,null,null,null,null,null,"13.1","IIO-PLA-005","FORNECIMENTO E COLOCAÇÃO DE PLACA DE OBRA EM CHAPA GALVANIZADA (3,00 X 1,5 0 M) - EM CHAPA GALVANIZADA 0,26 AFIXADAS COM REBITES 540 E PARAFUSOS 3/8, EM ESTRUTURA METÁLICA VIGA U 2\" ENRIJECIDA COM METALON 20 X 20, SUPORTE EM EUCALIPTO AUTOCLAVADO PINTADAS",null,null,null,null,null,null,"U",1,"BDI1",401,401,497.24,497.24,"SETOP Sul 08_2019",-689.22,1090.22,-63.22,"SETOP Sul 08_2019"]
[null,null,null,null,null,null,null,null,null,null,null,14,"","NOVOS ITENS 2",null,null,null,null,null,null,"",null,null,null,460,null,563.45000000000005,"",null,null,null,""]
[null,null,null,null,null,null,null,null,null,null,null,"14.1","74209/1","PLACA DE OBRA EM CHAPA DE ACO GALVANIZADO",null,null,null,null,null,null,"M2",2,"BDI2",230,460,281.73,563.45000000000005,"SINAPI 11_2019",-141.63999999999999,300.82,-23.54,"SINAPI 11_2019"]

{"sheet":"MsA2XADT","index":32,"n_rows":0,"n_cols":0,"rows_kept":0,"cut":false,"hidden":false,"merged":[]}

{"sheet":"MsA3X","index":33,"n_rows":0,"n_cols":0,"rows_kept":0,"cut":false,"hidden":false,"merged":[]}

{"sheet":"Impressão - BDI1","index":34,"n_rows":43,"n_cols":11,"rows_kept":43,"cut":false,"hidden":false,"merged":[[21,1,21,8],[25,1,25,8],[27,1,27,10],[29,3,29,8],[31,3,32,3],[31,4,31,7],[31,8,32,8],[32,4,32,7],[16,1,16,8],[17,1,17,8],[18,1,18,8],[19,1,19,8],[20,1,20,8],[1,1,1,10],[2,1,2,10],[12,1,12,10],[13,1,13,10],[15,1,15,8],[35,1,36,10],[38,1,39,10],[42,1,42,10],[43,1,58,10],[22,1,22,8],[23,1,23,8],[24,1,24,8]]}
[]
[null,"BDI 1"]
[null,"INFORMAÇÕES GERAIS"]
[null,"Município: Ouro Fino"]
[null,"Projeto: CONSTRUÇÃO DE PONTE MISTA DE 25,0M SOBREO RIO MOJI GUAÇU"]
[null,"Responsável Técnico: VANESSA FARIA GRISOLIA"]
[null,"Nº CREA/CAU: 119171/D"]
[null,"Data: 14/07/2023"]
[]
[null,"Conforme legislação tributária municipal, definir estimativa de percentual da base de cálculo para o ISS:  ",null,null,null,null,null,null,null,null,100]
[null,"Sobre a base de cálculo, definir a respectiva alíquota do ISS (entre 2% e 5%):  ",null,null,null,null,null,null,null,null,5]
[]
[null,"Tipo de Obra"]
[null,"Construção de Praças Urbanas, Rodovias, Ferrovias e recapeamento e pavimentação de vias urbanas"]
[]
[null,"Itens",null,null,null,null,null,null,null,"Siglas","% Adotado"]
[null,"Administração Central",null,null,null,null,null,null,null,"AC",4.01]
[null,"Seguro e Garantia",null,null,null,null,null,null,null,"SG",0.4]
[null,"Risco",null,null,null,null,null,null,null,"R",0.56000000000000005]
[null,"Despesas Financeiras",null,null,null,null,null,null,null,"DF",1.1100000000000001]
[null,"Lucro",null,null,null,null,null,null,null,"L",7.3]
[null,"Tributos (impostos COFINS 3%, e  PIS 0,65%)",null,null,null,null,null,null,null,"CP",3.65]
[null,"Tributos (ISS, variável de acordo com o município)",null,null,null,null,null,null,null,"ISS",5]
[null,"Tributos (Contribuição Previdenciária sobre a Receita Bruta - 0% ou 4,5% - Desoneração)",null,null,null,null,null,null,null,"CPRB",0]
[null,"BDI SEM desoneração (Fórmula Acórdão TCU)",null,null,null,null,null,null,null,"BDI PAD",24.67]
[]
[]
[null,"Anexo: Relatório Técnico Circunstanciado justificando a adoção do percentual de cada parcela do BDI."]
[]
[null,null,null,"Os valores de BDI foram calculados com o emprego da fórmula:"]
[]
[null,null,null,"BDI =","(1 + AC + SG + R) * (1 + DF) * (1 + L)",null,null,null,-1]
[null,null,null,null,"(1-CP-ISS-CPRB)"]
[]
[]
[null,"Declaro para os devidos fins que, conforme legislação tributária municipal, a base de cálculo deste tipo de obra corresponde a 100%, com a respectiva alíquota de 5%."]
[]
[]
[null,"Declaro para os devidos fins que o regime de Contribuição Previdenciária sobre a Receita Bruta adotado para elaboração do orçamento foi SEM DESONERAÇÃO, e que esta é a alternativa mais adequada para a Administração Pública."]
[]
[]
[]
[null,"Observações"]

{"sheet":"Impressão - BDI2","index":35,"n_rows":43,"n_cols":11,"rows_kept":43,"cut":false,"hidden":false,"merged":[[31,8,32,8],[32,4,32,7],[38,1,39,10],[42,1,42,10],[43,1,58,10],[35,1,36,10],[31,3,32,3],[31,4,31,7],[23,1,23,8],[24,1,24,8],[25,1,25,8],[27,1,27,10],[29,3,29,8],[22,1,22,8],[1,1,1,10],[2,1,2,10],[12,1,12,10],[13,1,13,10],[15,1,15,8],[16,1,16,8],[17,1,17,8],[18,1,18,8],[19,1,19,8],[20,1,20,8],[21,1,21,8]]}
[]
[null,"BDI 2"]
[null,"INFORMAÇÕES GERAIS"]
[null,"Município: Ouro Fino"]
[null,"Projeto: CONSTRUÇÃO DE PONTE MISTA DE 25,0M SOBREO RIO MOJI GUAÇU"]
[null,"Responsável Técnico: VANESSA FARIA GRISOLIA"]
[null,"Nº CREA/CAU: 119171/D"]
[null,"Data: 14/07/2023"]
[]
[null,"Conforme legislação tributária municipal, definir estimativa de percentual da base de cálculo para o ISS:  ",null,null,null,null,null,null,null,null,100]
[null,"Sobre a base de cálculo, definir a respectiva alíquota do ISS (entre 2% e 5%):  ",null,null,null,null,null,null,null,null,5]
[]
[null,"Tipo de Obra"]
[null,"Estudos e Projetos, Planos e Gerenciamento e outros correlatos"]
[]
[null,"Itens",null,null,null,null,null,null,null,"Siglas","% Adotado"]
[null,"Encargos Sociais incidentes sobre a mão de obra",null,null,null,null,null,null,null,"K1",0]
[null,"Administração Central da empresa ou consultoria - overhead",null,null,null,null,null,null,null,"K2",0]
[]
[]
[null,"Margem bruta da empresa de consultoria",null,null,null,null,null,null,null,"K3",12]
[null,"Tributos (impostos COFINS 3%, e  PIS 0,65%)",null,null,null,null,null,null,null,"CP",3.65]
[null,"Tributos (ISS, variável de acordo com o município)",null,null,null,null,null,null,null,"ISS",5]
[null,"Tributos (Contribuição Previdenciária sobre a Receita Bruta - 0% ou 4,5% - Desoneração)",null,null,null,null,null,null,null,"CPRB",0]
[null,"BDI SEM desoneração (Fórmula Acórdão TCU)",null,null,null,null,null,null,null,"BDI PAD",22.61]
[]
[]
[null,"Anexo: Relatório Técnico Circunstanciado justificando a adoção do percentual de cada parcela do BDI."]
[]
[null,null,null,"Os valores de BDI foram calculados com o emprego da fórmula:"]
[]
[null,null,null,"BDI =","(1 + K1 + K2) * (1 + K3)",null,null,null,-1]
[null,null,null,null,"(1-CP-ISS-CPRB)"]
[]
[]
[null,"Declaro para os devidos fins que, conforme legislação tributária municipal, a base de cálculo deste tipo de obra corresponde a 100%, com a respectiva alíquota de 5%."]
[]
[]
[null,"Declaro para os devidos fins que o regime de Contribuição Previdenciária sobre a Receita Bruta adotado para elaboração do orçamento foi SEM DESONERAÇÃO, e que esta é a alternativa mais adequada para a Administração Pública."]
[]
[]
[]
[null,"Observações"]

{"sheet":"Impressão - COT1","index":36,"n_rows":18,"n_cols":8,"rows_kept":18,"cut":false,"hidden":false,"merged":[[1,1,1,7],[2,1,2,7],[9,1,9,7],[12,1,12,7],[13,2,13,4],[13,6,13,7],[16,2,16,4],[16,6,16,7],[17,2,17,4],[17,6,17,7],[14,2,14,4],[14,6,14,7],[15,2,15,4],[15,6,15,7]]}
[]
[null,"COTAÇÕES"]
[null,"INFORMAÇÕES GERAIS"]
[null,"Município: Belo Horizonte"]
[null,"Projeto: Pavimentação do Bairro Horto"]
[null,"Responsável Técnico: Deiwid Breno Gonçalves da Silva"]
[null,"Nº CREA/CAU: 12.345"]
[null,"Data: 16/05/2020"]
[]
[null,"Índices de Retroação"]
[null,"Nome","Descrição","Data Base","Índice\nData Base","Data da Cotação","Índice\nData Cotação","Coeficiente"]
[]
[null,"Empresas Fornecedoras"]
[null,"CNPJ","Nome",null,null,"Telefone","Contato"]
[null,"11.111.111/1111-11","Empresa A",null,null,"(11)1111-1111","Atendente 1"]
[null,"22.222.222/2222-22","Empresa B",null,null,"(22)2222-2222","Atendente 2"]
[null,"33.333.333/3333-33","Empresa C",null,null,"(33)3333-3333","Atendente 3"]
[null,"44.444.444/4444-44","Empresa D",null,null,"(44)4444-4444","Atendente 4"]

{"sheet":"Impressão - COT1 Aditivo","index":37,"n_rows":26,"n_cols":8,"rows_kept":26,"cut":false,"hidden":false,"merged":[[17,2,17,4],[17,6,17,7],[1,1,1,7],[2,1,2,7],[10,1,10,7],[15,1,15,7],[16,2,16,4],[16,6,16,7],[18,2,18,4],[18,6,18,7],[19,2,19,4],[19,6,19,7],[20,2,20,4],[20,6,20,7],[24,2,24,4],[24,6,24,7],[25,2,25,4],[25,6,25,7],[21,2,21,4],[21,6,21,7],[22,2,22,4],[22,6,22,7],[23,2,23,4],[23,6,23,7]]}
[]
[null,"COTAÇÕES"]
[null,"INFORMAÇÕES GERAIS"]
[null,"Município: Belo Horizonte",null,null,"Empresa Executora: Empresa de Pavimentações"]
[null,"Obra: Pavimentação da Avenida Teresa Cristina",null,null,"Nº do Contrato Licitado: 12345"]
[null,"Responsável Técnico Fiscal: Breno Oliveira Pierre de Souza",null,null,"Responsável Técnico Executor: Alan Pereira Neto Filho"]
[null,"Nº CREA/CAU: 123456-7",null,null,"Nº CREA/CAU: 789456-1"]
[null,"Contrato BDMG Nº: 256.563",null,null,"Nº do Termo Aditivo: 1"]
[null,"Data: 13/04/2020",null,null,"Tipo de Aditivo: Adição e/ou Supressão de Quantitativos, Prazo e Reajuste"]
[]
[null,"Índices de Retroação"]
[null,"Nome","Descrição","Data Base","Índice\nData Base","Data da Cotação","Índice\nData Cotação","Coeficiente"]
[null,"INPC","ÍNCIDE NACIONAL DE PREÇOS AO CONSUMIDOR","01/03/2020",1.07,"01/02/2020",1.05,1.02]
[null,"IPCA","ÍNDICE DE PREÇOS AO CONSUMIDOR AMPLO","01/03/2020",1.21,"01/02/2020",0,1.21]
[]
[null,"Empresas Fornecedoras"]
[null,"CNPJ","Nome",null,null,"Telefone","Contato"]
[null,"09.111.318/0001-14","Ibilux",null,null,"(19)3813-8800","Mônica"]
[null,"08.761.664/0001-85","Pavers",null,null,"(31)3324-3415","Rodolfo Dutra"]
[null,"26.909.869/0001-47","Pollo Fundidos",null,null,"(37)9812-9590","Arnaldo Antunes"]
[null,"13.661.778/0001-93","Solar Livre",null,null,"(35)3474-0880","Amanda Ferreira"]
[null,"00.860.887/0001-98","Blojaf",null,null,"(31)3514-1200","Robert Vieira"]
[null,"18.947.568/0001-80","Portal Solar",null,null,"(11)5090-5560","Ronaldo Vera"]
[null,"20.303.040/0001-10","Lasled",null,null,"(19)2121-9060","Roberta Antonine"]
[null,"08.821.528/0001-33","World Clean",null,null,"(11)2317-9739","Laura Pontes"]
[null,"02.846.286/0001-56","Metalurgica Dragão",null,null,"(37)3381-1750","Thais Oliveira"]

{"sheet":"Impressão - COT2","index":38,"n_rows":39,"n_cols":6,"rows_kept":39,"cut":false,"hidden":false,"merged":[[32,2,32,3],[24,2,24,3],[25,2,25,3],[26,2,26,3],[29,2,29,3],[31,2,31,3],[1,1,1,5],[2,1,2,5],[30,2,30,3],[38,2,38,3],[37,2,37,3],[35,2,35,3],[36,2,36,3],[11,2,11,3],[12,2,12,3],[13,2,13,3],[14,2,14,3],[17,2,17,3],[18,2,18,3],[19,2,19,3],[20,2,20,3],[23,2,23,3]]}
[]
[null,"COTAÇÕES"]
[null,"INFORMAÇÕES GERAIS"]
[null,"Município: Belo Horizonte"]
[null,"Projeto: Pavimentação do Bairro Horto"]
[null,"Responsável Técnico: Deiwid Breno Gonçalves da Silva"]
[null,"Nº CREA/CAU: 12.345"]
[null,"Data: 16/05/2020"]
[null,"Código","Descrição","Unidade","Média / Mediana","Índice Retro"]
[]
[null,"COT-001","FORNECIMENTO E IMPLANTAÇÃO DE PLACA DE REGULAMENTAÇÃO EM AÇO","UN",225.34]
[null,"CNPJ","Empresa",null,"Valor (R$)","Data da Cotação"]
[null,"11.111.111/1111-11","Empresa A",null,275.26,"14/05/2020"]
[null,"22.222.222/2222-22","Empresa B",null,225.34,"14/05/2020"]
[null,"33.333.333/3333-33","Empresa C",null,218.2,"14/05/2020"]
[]
[null,"COT-002","FORNECIMENTO E IMPLANTAÇÃO DE SUPORTE METÁLICO GALVANIZADO","UN",198.61]
[null,"CNPJ","Empresa",null,"Valor (R$)","Data da Cotação"]
[null,"22.222.222/2222-22","Empresa B",null,198.61,"14/05/2020"]
[null,"33.333.333/3333-33","Empresa C",null,156.01,"14/05/2020"]
[null,"44.444.444/4444-44","Empresa D",null,200,"14/05/2020"]
[]
[null,"COT-003","PLACA DE ALUMÍNIO ANODIZADO 25 X 25 CM PARA IDENTIFICAÇÃO","UN",35.299999999999997]
[null,"CNPJ","Empresa",null,"Valor (R$)","Data da Cotação"]
[null,"11.111.111/1111-11","Empresa A",null,37,"14/05/2020"]
[null,"33.333.333/3333-33","Empresa C",null,34.15,"14/05/2020"]
[null,"44.444.444/4444-44","Empresa D",null,35.299999999999997,"14/05/2020"]
[]
[null,"COT-004","PLACA DE INAUGURAÇÃO EM ALUMÍNIO FUNDIDO 85 X 50 CM","UN",718.13]
[null,"CNPJ","Empresa",null,"Valor (R$)","Data da Cotação"]
[null,"11.111.111/1111-11","Empresa A",null,718.13,"14/05/2020"]
[null,"22.222.222/2222-22","Empresa B",null,998.09,"14/05/2020"]
[null,"44.444.444/4444-44","Empresa D",null,670.11,"14/05/2020"]
[]
[null,"COT-005","ALUGUEL PICKUP","H",4.17]
[null,"CNPJ","Empresa",null,"Valor (R$)","Data da Cotação"]
[null,"22.222.222/2222-22","Empresa B",null,4.17,"14/05/2020"]
[null,"33.333.333/3333-33","Empresa C",null,3.5,"14/05/2020"]
[null,"44.444.444/4444-44","Empresa D",null,5.18,"14/05/2020"]

{"sheet":"Impressão - COT2 Aditivo","index":39,"n_rows":52,"n_cols":7,"rows_kept":52,"cut":false,"hidden":false,"merged":[[50,2,50,4],[51,2,51,4],[18,2,18,4],[19,2,19,4],[20,2,20,4],[39,2,39,4],[42,2,42,4],[43,2,43,4],[46,2,46,4],[47,2,47,4],[30,2,30,4],[31,2,31,4],[34,2,34,4],[35,2,35,4],[38,2,38,4],[21,2,21,4],[24,2,24,4],[25,2,25,4],[26,2,26,4],[27,2,27,4],[1,1,1,6],[2,1,2,6],[15,2,15,4],[12,2,12,4],[13,2,13,4],[14,2,14,4],[9,2,9,3]]}
[]
[null,"COTAÇÕES"]
[null,"INFORMAÇÕES GERAIS"]
[null,"Município: Belo Horizonte",null,"Empresa Executora: Empresa de Pavimentações"]
[null,"Obra: Pavimentação da Avenida Teresa Cristina",null,"Nº do Contrato Licitado: 12345"]
[null,"Responsável Técnico Fiscal: Breno Oliveira Pierre de Souza",null,"Responsável Técnico Executor: Alan Pereira Neto Filho"]
[null,"Nº CREA/CAU: 123456-7",null,"Nº CREA/CAU: 789456-1"]
[null,"Contrato BDMG Nº: 256.563",null,"Nº do Termo Aditivo: 1"]
[null,"Data: 13/04/2020",null,"Tipo de Aditivo: Adição e/ou Supressão de Quantitativos, Prazo e Reajuste"]
[null,"Código","Descrição",null,"Unidade","Média / Mediana","Índice Retro"]
[]
[null,"COT-001","POSTE SOLAR GERADOR ENERGIA AUTONOMO COM LUMINÁRIA 12V",null,"un",2600]
[null,"CNPJ","Empresa",null,null,"Valor (R$)","Data da Cotação"]
[null,"09.111.318/0001-14","Ibilux",null,null,2600,"14/11/2019"]
[null,"13.661.778/0001-93","Solar Livre",null,null,2480,"14/11/2019"]
[null,"18.947.568/0001-80","Portal Solar",null,null,2642,"14/11/2019"]
[]
[null,"COT-002","PISO INTERTRAVADO TIPO TANGRAM",null,"m2",1.7]
[null,"CNPJ","Empresa",null,null,"Valor (R$)","Data da Cotação"]
[null,"08.761.664/0001-85","Pavers",null,null,1.83,"14/11/2019"]
[null,"00.860.887/0001-98","Blojaf",null,null,1.7,"14/11/2019"]
[null,"20.303.040/0001-10","Lasled",null,null,1.7,"14/11/2019"]
[]
[null,"COT-003","LIXEIRA REDONDA EM TELA MOEDA - FORNECIMENTO E INSTALAÇÃO",null,"un",200]
[null,"CNPJ","Empresa",null,null,"Valor (R$)","Data da Cotação"]
[null,"26.909.869/0001-47","Pollo Fundidos",null,null,178,"14/11/2019"]
[null,"02.846.286/0001-56","Metalurgica Dragão",null,null,200,"14/11/2019"]
[null,"08.821.528/0001-33","World Clean",null,null,215,"14/11/2019"]
[]
[null,"COT-004","INSTALAÇÕES HIDRÁULICAS",null,"un",1000]
[null,"CNPJ","Empresa",null,null,"Valor (R$)","Data da Cotação"]
[null,"09.111.318/0001-14","Ibilux",null,null,1000,"14/11/2019"]
[]
[null,"COT-005","BICO GEISER",null,"un",1000]
[null,"CNPJ","Empresa",null,null,"Valor (R$)","Data da Cotação"]
[null,"09.111.318/0001-14","Ibilux",null,null,1000,"14/11/2019"]
[]
[null,"COT-006","BICO ARTICULADO",null,"un",400]
[null,"CNPJ","Empresa",null,null,"Valor (R$)","Data da Cotação"]
[null,"09.111.318/0001-14","Ibilux",null,null,400,"14/11/2019"]
[]
[null,"COT-007","CASA DE MÁQUINAS (1,20X1,50X0,50)",null,"un",1000]
[null,"CNPJ","Empresa",null,null,"Valor (R$)","Data da Cotação"]
[null,"09.111.318/0001-14","Ibilux",null,null,1000,"14/11/2019"]
[]
[null,"COT-008","JARDINAGEM E PAISAGISMO",null,"m2",80]
[null,"CNPJ","Empresa",null,null,"Valor (R$)","Data da Cotação"]
[null,"09.111.318/0001-14","Ibilux",null,null,80,"14/11/2019"]
[]
[null,"COT-009","COTAÇÃO TESTE",null,"M2",1.2545999999999999,"INPC"]
[null,"CNPJ","Empresa",null,null,"Valor (R$)","Data da Cotação"]
[null,"09.111.318/0001-14","Ibilux",null,null,1.23,"01/03/2020"]

{"sheet":"Impressão - CRO","index":40,"n_rows":14,"n_cols":179,"rows_kept":14,"cut":false,"hidden":false,"merged":[[12,1,12,2],[13,1,13,2],[8,131,8,132],[8,133,8,134],[3,22,3,23],[8,19,9,19],[8,21,8,22],[8,49,8,50],[8,51,8,52],[8,55,9,55],[8,57,8,58],[8,59,8,60],[8,61,8,62],[8,37,9,37],[8,39,8,40],[8,41,8,42],[8,43,8,44],[8,45,8,46],[8,47,8,48],[8,63,8,64],[8,65,8,66],[8,67,8,68],[8,25,8,26],[8,27,8,28],[8,29,8,30],[8,31,8,32],[8,123,8,124],[8,127,9,127],[8,129,8,130],[8,1,9,1],[8,3,8,4],[8,5,8,6],[8,7,8,8],[8,9,8,10],[8,11,8,12],[8,13,8,14],[8,15,8,16],[8,23,8,24],[8,69,8,70],[8,109,9,109],[8,111,8,112],[8,113,8,114],[8,115,8,116],[8,117,8,118],[8,119,8,120],[8,33,8,34],[8,121,8,122],[1,37,1,52],[1,55,1,70],[2,37,2,52],[2,55,2,70],[3,40,3,41],[3,58,3,59],[1,1,1,16],[2,1,2,16],[2,19,2,34],[1,19,1,34],[1,73,1,88],[1,91,1,106],[2,73,2,88],[2,91,2,106],[3,76,3,77],[3,94,3,95],[8,85,8,86],[8,87,8,88],[8,91,9,91],[8,93,8,94],[8,95,8,96],[8,97,8,98],[8,73,9,73],[8,75,8,76],[8,77,8,78],[8,79,8,80],[8,81,8,82],[8,83,8,84],[8,99,8,100],[8,101,8,102],[8,103,8,104],[8,105,8,106],[1,145,1,160],[1,163,1,178],[2,145,2,160],[2,163,2,178],[3,148,3,149],[3,166,3,167],[1,109,1,124],[1,127,1,142],[2,109,2,124],[2,127,2,142],[3,112,3,113],[3,130,3,131],[8,171,8,172],[8,173,8,174],[8,175,8,176],[8,177,8,178],[8,157,8,158],[8,159,8,160],[8,163,9,163],[8,165,8,166],[8,167,8,168],[8,169,8,170],[8,145,9,145],[8,147,8,148],[8,149,8,150],[8,151,8,152],[8,153,8,154],[8,155,8,156],[8,135,8,136],[8,137,8,138],[8,139,8,140],[8,141,8,142]]}
[]
[null,"CRONOGRAMA FÍSICO E FINANCEIRO",null,null,null,null,null,null,null,null,null,null,null,null,null,null,null,null,null,"CRONOGRAMA FÍSICO E FINANCEIRO",null,null,null,null,null,null,null,null,null,null,null,null,null,null,null,null,null,"CRONOGRAMA FÍSICO E FINANCEIRO",null,null,null,null,null,null,null,null,null,null,null,null,null,null,null,null,null,"CRONOGRAMA FÍSICO E FINANCEIRO",null,null,null,null,null,null,null,null,null,null,null,null,null,null,null,null,null,"CRONOGRAMA FÍSICO E FINANCEIRO",null,null,null,null,null,null,null,null,null,null,null,null,null,null,null,null,null,"CRONOGRAMA FÍSICO E FINANCEIRO",null,null,null,null,null,null,null,null,null,null,null,null,null,null,null,null,null,"CRONOGRAMA FÍSICO E FINANCEIRO",null,null,null,null,null,null,null,null,null,null,null,null,null,null,null,null,null,"CRONOGRAMA FÍSICO E FINANCEIRO",null,null,null,null,null,null,null,null,null,null,null,null,null,null,null,null,null,"CRONOGRAMA FÍSICO E FINANCEIRO",null,null,null,null,null,null,null,null,null,null,null,null,null,null,null,null,null,"CRONOGRAMA FÍSICO E FINANCEIRO"]
[null,"INFORMAÇÕES GERAIS",null,null,null,null,null,null,null,null,null,null,null,null,null,null,null,null,null,"INFORMAÇÕES GERAIS",null,null,null,null,null,null,null,null,null,null,null,null,null,null,null,null,null,"INFORMAÇÕES GERAIS",null,null,null,null,null,null,null,null,null,null,null,null,null,null,null,null,null,"INFORMAÇÕES GERAIS",null,null,null,null,null,null,null,null,null,null,null,null,null,null,null,null,null,"INFORMAÇÕES GERAIS",null,null,null,null,null,null,null,null,null,null,null,null,null,null,null,null,null,"INFORMAÇÕES GERAIS",null,null,null,null,null,null,null,null,null,null,null,null,null,null,null,null,null,"INFORMAÇÕES GERAIS",null,null,null,null,null,null,null,null,null,null,null,null,null,null,null,null,null,"INFORMAÇÕES GERAIS",null,null,null,null,null,null,null,null,null,null,null,null,null,null,null,null,null,"INFORMAÇÕES GERAIS",null,null,null,null,null,null,null,null,null,null,null,null,null,null,null,null,null,"INFORMAÇÕES GERAIS"]
[null,"Município: Ouro Fino",null,null,null,null,null,null,null,null,null,null,null,null,null,null,null,null,null,"Município: Abadia dos Dourados"]
[null,"Projeto: CONSTRUÇÃO DE PONTE MISTA DE 25,0M SOBREO RIO MOJI GUAÇU",null,null,null,null,null,null,null,null,null,null,null,null,null,null,null,null,null,"Projeto: Construção do Cemitério Municipal"]
[null,"Responsável Técnico: VANESSA FARIA GRISOLIA",null,null,null,null,null,null,null,null,null,null,null,null,null,null,null,null,null,"Responsável Técnico: Zeca Diabo"]
[null,"Nº CREA/CAU: 119171/D",null,null,null,null,null,null,null,null,null,null,null,null,null,null,null,null,null,"Nº CREA/CAU: 123.666-01"]
[null,"Data: 14/07/2023",null,null,null,null,null,null,null,null,null,null,null,null,null,null,null,null,null,"Data: 04/12/2019"]
[null,"Item","Descrição","Valor dos Serviços",null,"MÊS 1",null,"MÊS 2",null,"MÊS 3",null,"MÊS 4",null,"MÊS 5",null,"MÊS 6",null,null,null,"Item","Descrição","Valor dos Serviços",null,"MÊS 7",null,"MÊS 8",null,"MÊS 9",null,"MÊS 10",null,"MÊS 11",null,"MÊS 12",null,null,null,"Item","Descrição","Valor dos Serviços",null,"MÊS 13",null,"MÊS 14",null,"MÊS 15",null,"MÊS 16",null,"MÊS 17",null,"MÊS 18",null,null,null,"Item","Descrição","Valor dos Serviços",null,"MÊS 19",null,"MÊS 20",null,"MÊS 21",null,"MÊS 22",null,"MÊS 23",null,"MÊS 24",null,null,null,"Item","Descrição","Valor dos Serviços",null,"MÊS 25",null,"MÊS 26",null,"MÊS 27",null,"MÊS 28",null,"MÊS 29",null,"MÊS 30",null,null,null,"Item","Descrição","Valor dos Serviços",null,"MÊS 31",null,"MÊS 32",null,"MÊS 33",null,"MÊS 34",null,"MÊS 35",null,"MÊS 36",null,null,null,"Item","Descrição","Valor dos Serviços",null,"MÊS 37",null,"MÊS 38",null,"MÊS 39",null,"MÊS 40",null,"MÊS 41",null,"MÊS 42",null,null,null,"Item","Descrição","Valor dos Serviços",null,"MÊS 43",null,"MÊS 44",null,"MÊS 45",null,"MÊS 46",null,"MÊS 47",null,"MÊS 48",null,null,null,"Item","Descrição","Valor dos Serviços",null,"MÊS 49",null,"MÊS 50",null,"MÊS 51",null,"MÊS 52",null,"MÊS 53",null,"MÊS 54",null,null,null,"Item","Descrição","Valor dos Serviços",null,"MÊS 55",null,"MÊS 56",null,"MÊS 57",null,"MÊS 58",null,"MÊS 59",null,"MÊS 60"]
[null,null,"Grandes Itens (Etapas da obra)","R$","Peso %","R$","Peso %","R$","Peso %","R$","Peso %","R$","Peso %","R$","Peso %","R$","Peso %",null,null,null,"Grandes Itens (Etapas da obra)","R$","Peso %","R$","Peso %","R$","Peso %","R$","Peso %","R$","Peso %","R$","Peso %","R$","Peso %",null,null,null,"Grandes Itens (Etapas da obra)","R$","Peso %","R$","Peso %","R$","Peso %","R$","Peso %","R$","Peso %","R$","Peso %","R$","Peso %",null,null,null,"Grandes Itens (Etapas da obra)","R$","Peso %","R$","Peso %","R$","Peso %","R$","Peso %","R$","Peso %","R$","Peso %","R$","Peso %",null,null,null,"Grandes Itens (Etapas da obra)","R$","Peso %","R$","Peso %","R$","Peso %","R$","Peso %","R$","Peso %","R$","Peso %","R$","Peso %",null,null,null,"Grandes Itens (Etapas da obra)","R$","Peso %","R$","Peso %","R$","Peso %","R$","Peso %","R$","Peso %","R$","Peso %","R$","Peso %",null,null,null,"Grandes Itens (Etapas da obra)","R$","Peso %","R$","Peso %","R$","Peso %","R$","Peso %","R$","Peso %","R$","Peso %","R$","Peso %",null,null,null,"Grandes Itens (Etapas da obra)","R$","Peso %","R$","Peso %","R$","Peso %","R$","Peso %","R$","Peso %","R$","Peso %","R$","Peso %",null,null,null,"Grandes Itens (Etapas da obra)","R$","Peso %","R$","Peso %","R$","Peso %","R$","Peso %","R$","Peso %","R$","Peso %","R$","Peso %",null,null,null,"Grandes Itens (Etapas da obra)","R$","Peso %","R$","Peso %","R$","Peso %","R$","Peso %","R$","Peso %","R$","Peso %","R$","Peso %"]
[null,"1","CONSTRUÇÃO DA PONTE",1412609.13,100,480287.10419999994,34,480287.10419999994,34,452034.92159999994,32]
[]
[null,"TOTAL",null,1412609.13,100,480287.10419999994,34,480287.10419999994,34,452034.92159999994,32]
[null,"TOTAL ACUMULADO",null,1412609.13,100,480287.10419999994,34,960574.20839999989,68,1412609.13,100]

{"sheet":"Impressão - CRO Aditivo","index":41,"n_rows":28,"n_cols":179,"rows_kept":28,"cut":false,"hidden":false,"merged":[[9,137,9,138],[9,139,9,140],[9,141,9,142],[9,145,10,145],[9,147,9,148],[9,149,9,150],[9,123,9,124],[9,127,10,127],[9,129,9,130],[9,131,9,132],[9,133,9,134],[9,135,9,136],[9,177,9,178],[9,165,9,166],[9,167,9,168],[9,169,9,170],[9,171,9,172],[9,173,9,174],[9,175,9,176],[9,151,9,152],[9,153,9,154],[9,155,9,156],[9,157,9,158],[9,159,9,160],[9,163,10,163],[9,111,9,112],[9,113,9,114],[9,115,9,116],[9,117,9,118],[9,119,9,120],[9,121,9,122],[9,97,9,98],[9,99,9,100],[9,101,9,102],[9,103,9,104],[9,105,9,106],[9,109,10,109],[9,49,9,50],[9,51,9,52],[9,55,10,55],[9,83,9,84],[9,85,9,86],[9,87,9,88],[9,91,10,91],[9,93,9,94],[9,95,9,96],[9,69,9,70],[9,73,10,73],[9,75,9,76],[9,77,9,78],[9,79,9,80],[9,81,9,82],[9,29,9,30],[9,31,9,32],[9,33,9,34],[9,37,10,37],[9,39,9,40],[9,41,9,42],[2,163,2,178],[3,22,3,23],[3,40,3,41],[3,58,3,59],[3,76,3,77],[3,94,3,95],[3,112,3,113],[3,130,3,131],[3,148,3,149],[3,166,3,167],[9,57,9,58],[9,59,9,60],[9,61,9,62],[9,63,9,64],[9,65,9,66],[9,67,9,68],[9,45,9,46],[9,47,9,48],[1,109,1,124],[1,127,1,142],[1,145,1,160],[1,163,1,178],[2,19,2,34],[2,37,2,52],[2,55,2,70],[2,73,2,88],[2,91,2,106],[2,109,2,124],[2,127,2,142],[1,1,1,16],[1,19,1,34],[1,37,1,52],[1,55,1,70],[1,73,1,88],[1,91,1,106],[26,1,26,2],[27,1,27,2],[2,145,2,160],[9,1,10,1],[9,3,9,4],[9,5,9,6],[9,7,9,8],[9,9,9,10],[9,11,9,12],[9,13,9,14],[2,1,2,16],[9,15,9,16],[9,19,10,19],[9,21,9,22],[9,23,9,24],[9,25,9,26],[9,27,9,28],[9,43,9,44]]}
[]
[null,"CRONOGRAMA FÍSICO E FINANCEIRO",null,null,null,null,null,null,null,null,null,null,null,null,null,null,null,null,null,"CRONOGRAMA FÍSICO E FINANCEIRO",null,null,null,null,null,null,null,null,null,null,null,null,null,null,null,null,null,"CRONOGRAMA FÍSICO E FINANCEIRO",null,null,null,null,null,null,null,null,null,null,null,null,null,null,null,null,null,"CRONOGRAMA FÍSICO E FINANCEIRO",null,null,null,null,null,null,null,null,null,null,null,null,null,null,null,null,null,"CRONOGRAMA FÍSICO E FINANCEIRO",null,null,null,null,null,null,null,null,null,null,null,null,null,null,null,null,null,"CRONOGRAMA FÍSICO E FINANCEIRO",null,null,null,null,null,null,null,null,null,null,null,null,null,null,null,null,null,"CRONOGRAMA FÍSICO E FINANCEIRO",null,null,null,null,null,null,null,null,null,null,null,null,null,null,null,null,null,"CRONOGRAMA FÍSICO E FINANCEIRO",null,null,null,null,null,null,null,null,null,null,null,null,null,null,null,null,null,"CRONOGRAMA FÍSICO E FINANCEIRO",null,null,null,null,null,null,null,null,null,null,null,null,null,null,null,null,null,"CRONOGRAMA FÍSICO E FINANCEIRO"]
[null,"INFORMAÇÕES GERAIS",null,null,null,null,null,null,null,null,null,null,null,null,null,null,null,null,null,"INFORMAÇÕES GERAIS",null,null,null,null,null,null,null,null,null,null,null,null,null,null,null,null,null,"INFORMAÇÕES GERAIS",null,null,null,null,null,null,null,null,null,null,null,null,null,null,null,null,null,"INFORMAÇÕES GERAIS",null,null,null,null,null,null,null,null,null,null,null,null,null,null,null,null,null,"INFORMAÇÕES GERAIS",null,null,null,null,null,null,null,null,null,null,null,null,null,null,null,null,null,"INFORMAÇÕES GERAIS",null,null,null,null,null,null,null,null,null,null,null,null,null,null,null,null,null,"INFORMAÇÕES GERAIS",null,null,null,null,null,null,null,null,null,null,null,null,null,null,null,null,null,"INFORMAÇÕES GERAIS",null,null,null,null,null,null,null,null,null,null,null,null,null,null,null,null,null,"INFORMAÇÕES GERAIS",null,null,null,null,null,null,null,null,null,null,null,null,null,null,null,null,null,"INFORMAÇÕES GERAIS"]
[null,"Município: Belo Horizonte",null,null,null,null,"Empresa Executora: Empresa de Pavimentações",null,null,null,null,null,null,null,null,null,null,null,null,"Município: Abadia dos Dourados"]
[null,"Obra: Pavimentação da Avenida Teresa Cristina",null,null,null,null,"Nº do Contrato Licitado: 12345",null,null,null,null,null,null,null,null,null,null,null,null,"Projeto: Construção do Cemitério Municipal"]
[null,"Responsável Técnico Fiscal: Breno Oliveira Pierre de Souza",null,null,null,null,"Responsável Técnico Executor: Alan Pereira Neto Filho",null,null,null,null,null,null,null,null,null,null,null,null,"Responsável Técnico: Zeca Diabo"]
[null,"Nº CREA/CAU: 123456-7",null,null,null,null,"Nº CREA/CAU: 789456-1"]
[null,"Contrato BDMG Nº: 256.563",null,null,null,null,"Nº do Termo Aditivo: 1",null,null,null,null,null,null,null,null,null,null,null,null,"Nº CREA/CAU: 123.666-01"]
[null,"Data: 13/04/2020",null,null,null,null,"Tipo de Aditivo: Adição e/ou Supressão de Quantitativos, Prazo e Reajuste",null,null,null,null,null,null,null,null,null,null,null,null,"Data: 04/12/2019"]
[null,"Item","Descrição","Valor dos Serviços",null,"MÊS 1",null,"MÊS 2",null,"MÊS 3",null,"MÊS 4",null,"MÊS 5",null,"MÊS 6",null,null,null,"Item","Descrição","Valor dos Serviços",null,"MÊS 7",null,"MÊS 8",null,"MÊS 9",null,"MÊS 10",null,"MÊS 11",null,"MÊS 12",null,null,null,"Item","Descrição","Valor dos Serviços",null,"MÊS 13",null,"MÊS 14",null,"MÊS 15",null,"MÊS 16",null,"MÊS 17",null,"MÊS 18",null,null,null,"Item","Descrição","Valor dos Serviços",null,"MÊS 19",null,"MÊS 20",null,"MÊS 21",null,"MÊS 22",null,"MÊS 23",null,"MÊS 24",null,null,null,"Item","Descrição","Valor dos Serviços",null,"MÊS 25",null,"MÊS 26",null,"MÊS 27",null,"MÊS 28",null,"MÊS 29",null,"MÊS 30",null,null,null,"Item","Descrição","Valor dos Serviços",null,"MÊS 31",null,"MÊS 32",null,"MÊS 33",null,"MÊS 34",null,"MÊS 35",null,"MÊS 36",null,null,null,"Item","Descrição","Valor dos Serviços",null,"MÊS 37",null,"MÊS 38",null,"MÊS 39",null,"MÊS 40",null,"MÊS 41",null,"MÊS 42",null,null,null,"Item","Descrição","Valor dos Serviços",null,"MÊS 43",null,"MÊS 44",null,"MÊS 45",null,"MÊS 46",null,"MÊS 47",null,"MÊS 48",null,null,null,"Item","Descrição","Valor dos Serviços",null,"MÊS 49",null,"MÊS 50",null,"MÊS 51",null,"MÊS 52",null,"MÊS 53",null,"MÊS 54",null,null,null,"Item","Descrição","Valor dos Serviços",null,"MÊS 55",null,"MÊS 56",null,"MÊS 57",null,"MÊS 58",null,"MÊS 59",null,"MÊS 60"]
[null,null,"Grandes Itens (Etapas da obra)","R$","Peso %","R$","Peso %","R$","Peso %","R$","Peso %","R$","Peso %","R$","Peso %","R$","Peso %",null,null,null,"Grandes Itens (Etapas da obra)","R$","Peso %","R$","Peso %","R$","Peso %","R$","Peso %","R$","Peso %","R$","Peso %","R$","Peso %",null,null,null,"Grandes Itens (Etapas da obra)","R$","Peso %","R$","Peso %","R$","Peso %","R$","Peso %","R$","Peso %","R$","Peso %","R$","Peso %",null,null,null,"Grandes Itens (Etapas da obra)","R$","Peso %","R$","Peso %","R$","Peso %","R$","Peso %","R$","Peso %","R$","Peso %","R$","Peso %",null,null,null,"Grandes Itens (Etapas da obra)","R$","Peso %","R$","Peso %","R$","Peso %","R$","Peso %","R$","Peso %","R$","Peso %","R$","Peso %",null,null,null,"Grandes Itens (Etapas da obra)","R$","Peso %","R$","Peso %","R$","Peso %","R$","Peso %","R$","Peso %","R$","Peso %","R$","Peso %",null,null,null,"Grandes Itens (Etapas da obra)","R$","Peso %","R$","Peso %","R$","Peso %","R$","Peso %","R$","Peso %","R$","Peso %","R$","Peso %",null,null,null,"Grandes Itens (Etapas da obra)","R$","Peso %","R$","Peso %","R$","Peso %","R$","Peso %","R$","Peso %","R$","Peso %","R$","Peso %",null,null,null,"Grandes Itens (Etapas da obra)","R$","Peso %","R$","Peso %","R$","Peso %","R$","Peso %","R$","Peso %","R$","Peso %","R$","Peso %",null,null,null,"Grandes Itens (Etapas da obra)","R$","Peso %","R$","Peso %","R$","Peso %","R$","Peso %","R$","Peso %","R$","Peso %","R$","Peso %"]
[null,1,"SERVIÇOS PRELIMINARES",83919.251200000013,3.7263566552487282,13771.149121920003,16.41,5505.1028787200003,6.56,2752.5514393600001,3.28,61890.447760000003,73.75]
[null,2,"SINALIZAÇÃO HORIZONTAL",112115.26334000002,4.978374469837652,0,0,0,0,0,0,112115.26334000002,100]
[null,3,"SINALIZAÇÃO VERTICAL",72322.621799999994,3.2114190631561153,0,0,0,0,0,0,72322.621799999994,100]
[null,4,"PAVIMENTAÇÃO",963945.67080000008,42.803115069784837,0,0,0,0,0,0,963945.67080000008,100]
[null,5,"DRENAGEM",73201.400000000009,3.2504403955349428,0,0,0,0,0,0,73201.400000000009,100]
[null,6,"PASSEIO / ACESSIBILIDADE ",253688.29252316253,11.264793759293847,0,0,0,0,0,0,253688.29252316253,100]
[null,7,"CALÇAMENTO",399515.95037500001,17.740135895753816,0,0,0,0,0,0,399515.95037500001,100]
[null,8,"FONTE LUMINOSA",65203.455664000001,2.8952990819675204,0,0,0,0,0,0,65203.455664000001,100]
[null,9,"EDIFICAÇÃO PALCO",87590.218720000004,3.8893625693119112,0,0,0,0,0,0,87590.218720000019,100]
[null,10,"INSTALAÇÕES ELÉTRICAS",82710.240000000005,3.6726716322418702,0,0,0,0,0,0,82710.240000000005,100]
[null,11,"URBANIZAÇÃO",40868.902399999999,1.8147457737438759,0,0,0,0,0,0,40868.902399999999,100]
[null,12,"SERVIÇOS FINAIS",15903.636,0.70618623264423575,0,0,0,0,0,0,15903.636,100]
[null,13,"NOVOS ITENS 1",497.24,2.2079481844278867E-2,0,0,0,0,0,0,497.24,100]
[null,14,"NOVOS ITENS 2",563.46,2.5019919636347376E-2,0,0,0,0,0,0,563.46,100]
[]
[null,"TOTAL",null,2252045.6028221631,100,13771.149121920003,0.61149512712631637,5505.1028787200003,0.24444899658431651,2752.5514393600001,0.12222449829215826,2230016.7993821627,99.021831377997188]
[null,"TOTAL ACUMULADO",null,2252045.6028221631,100,13771.149121920003,0.61149512712631637,19276.252000640005,0.85594412371063289,22028.803440000003,0.97816862200279098,2252045.6028221627,99.999999999999972]

{"sheet":"Impressão - CRO Licitação","index":42,"n_rows":19,"n_cols":179,"rows_kept":19,"cut":false,"hidden":false,"merged":[[17,1,17,2],[18,1,18,2],[1,109,1,124],[1,127,1,142],[1,145,1,160],[1,163,1,178],[2,1,2,16],[2,19,2,34],[2,37,2,52],[2,55,2,70],[2,73,2,88],[2,91,2,106],[1,1,1,16],[1,19,1,34],[1,37,1,52],[1,55,1,70],[1,73,1,88],[1,91,1,106],[2,163,2,178],[8,1,9,1],[8,3,8,4],[8,5,8,6],[8,7,8,8],[8,9,8,10],[2,145,2,160],[8,13,8,14],[8,15,8,16],[8,19,9,19],[8,21,8,22],[8,23,8,24],[8,25,8,26],[8,41,8,42],[8,43,8,44],[8,45,8,46],[8,47,8,48],[8,49,8,50],[8,51,8,52],[8,27,8,28],[8,29,8,30],[8,31,8,32],[8,33,8,34],[8,37,9,37],[8,39,8,40],[8,67,8,68],[8,69,8,70],[8,55,9,55],[8,57,8,58],[8,59,8,60],[8,11,8,12],[2,109,2,124],[2,127,2,142],[8,81,8,82],[8,83,8,84],[8,85,8,86],[8,87,8,88],[8,91,9,91],[8,93,8,94],[8,73,9,73],[8,75,8,76],[8,77,8,78],[8,79,8,80],[8,109,9,109],[8,111,8,112],[8,113,8,114],[8,115,8,116],[8,117,8,118],[8,119,8,120],[8,95,8,96],[8,97,8,98],[8,135,8,136],[8,137,8,138],[8,139,8,140],[8,175,8,176],[8,177,8,178],[8,163,9,163],[8,165,8,166],[8,167,8,168],[8,169,8,170],[8,171,8,172],[8,173,8,174],[8,149,8,150],[8,151,8,152],[8,153,8,154],[8,155,8,156],[8,157,8,158],[8,159,8,160],[8,101,8,102],[8,103,8,104],[8,105,8,106],[8,141,8,142],[8,145,9,145],[8,147,8,148],[8,61,8,62],[8,63,8,64],[8,65,8,66],[8,121,8,122],[8,123,8,124],[8,127,9,127],[8,129,8,130],[8,131,8,132],[8,133,8,134],[8,99,8,100]]}
[]
[null,"CRONOGRAMA FÍSICO E FINANCEIRO",null,null,null,null,null,null,null,null,null,null,null,null,null,null,null,null,null,"CRONOGRAMA FÍSICO E FINANCEIRO",null,null,null,null,null,null,null,null,null,null,null,null,null,null,null,null,null,"CRONOGRAMA FÍSICO E FINANCEIRO",null,null,null,null,null,null,null,null,null,null,null,null,null,null,null,null,null,"CRONOGRAMA FÍSICO E FINANCEIRO",null,null,null,null,null,null,null,null,null,null,null,null,null,null,null,null,null,"CRONOGRAMA FÍSICO E FINANCEIRO",null,null,null,null,null,null,null,null,null,null,null,null,null,null,null,null,null,"CRONOGRAMA FÍSICO E FINANCEIRO",null,null,null,null,null,null,null,null,null,null,null,null,null,null,null,null,null,"CRONOGRAMA FÍSICO E FINANCEIRO",null,null,null,null,null,null,null,null,null,null,null,null,null,null,null,null,null,"CRONOGRAMA FÍSICO E FINANCEIRO",null,null,null,null,null,null,null,null,null,null,null,null,null,null,null,null,null,"CRONOGRAMA FÍSICO E FINANCEIRO",null,null,null,null,null,null,null,null,null,null,null,null,null,null,null,null,null,"CRONOGRAMA FÍSICO E FINANCEIRO"]
[null,"INFORMAÇÕES GERAIS",null,null,null,null,null,null,null,null,null,null,null,null,null,null,null,null,null,"INFORMAÇÕES GERAIS",null,null,null,null,null,null,null,null,null,null,null,null,null,null,null,null,null,"INFORMAÇÕES GERAIS",null,null,null,null,null,null,null,null,null,null,null,null,null,null,null,null,null,"INFORMAÇÕES GERAIS",null,null,null,null,null,null,null,null,null,null,null,null,null,null,null,null,null,"INFORMAÇÕES GERAIS",null,null,null,null,null,null,null,null,null,null,null,null,null,null,null,null,null,"INFORMAÇÕES GERAIS",null,null,null,null,null,null,null,null,null,null,null,null,null,null,null,null,null,"INFORMAÇÕES GERAIS",null,null,null,null,null,null,null,null,null,null,null,null,null,null,null,null,null,"INFORMAÇÕES GERAIS",null,null,null,null,null,null,null,null,null,null,null,null,null,null,null,null,null,"INFORMAÇÕES GERAIS",null,null,null,null,null,null,null,null,null,null,null,null,null,null,null,null,null,"INFORMAÇÕES GERAIS"]
[null,"Município: Belo Horizonte",null,null,null,null,"Empresa Vencedora: Empresa que venceu",null,null,null,null,null,null,null,null,null,null,null,null,"Município: Belo Horizonte",null,null,null,null,"Empresa Vencedora: Engesolo"]
[null,"Obra: Pavimentação do Bairro Horto",null,null,null,null,"Nº do Contrato Licitado: 123456",null,null,null,null,null,null,null,null,null,null,null,null,"Obra: Pavimentação da Avenida Teresa Cristina",null,null,null,null,"Nº do Contrato Licitado: 15/2019"]
[null,"Data: 16/05/2020",null,null,null,null,"Representante da Empresa: Fulano de Tal",null,null,null,null,null,null,null,null,null,null,null,null,"Data: 06/03/2020",null,null,null,null,"Representante da Empresa: Wagner Alves Faria"]
[null,"Representante do Município: Alexandre Kalil",null,null,null,null,"BDI1: 14,87%",null,null,null,null,null,null,null,null,null,null,null,null,"Representante do Município: Alexandre Kaliu",null,null,null,null,"BDI1: 99,99%"]
[]
[null,"Item","Descrição","Valor dos Serviços",null,"MÊS 1",null,"MÊS 2",null,"MÊS 3",null,"MÊS 4",null,"MÊS 5",null,"MÊS 6",null,null,null,"Item","Descrição","Valor dos Serviços",null,"MÊS 7",null,"MÊS 8",null,"MÊS 9",null,"MÊS 10",null,"MÊS 11",null,"MÊS 12",null,null,null,"Item","Descrição","Valor dos Serviços",null,"MÊS 13",null,"MÊS 14",null,"MÊS 15",null,"MÊS 16",null,"MÊS 17",null,"MÊS 18",null,null,null,"Item","Descrição","Valor dos Serviços",null,"MÊS 19",null,"MÊS 20",null,"MÊS 21",null,"MÊS 22",null,"MÊS 23",null,"MÊS 24",null,null,null,"Item","Descrição","Valor dos Serviços",null,"MÊS 25",null,"MÊS 26",null,"MÊS 27",null,"MÊS 28",null,"MÊS 29",null,"MÊS 30",null,null,null,"Item","Descrição","Valor dos Serviços",null,"MÊS 31",null,"MÊS 32",null,"MÊS 33",null,"MÊS 34",null,"MÊS 35",null,"MÊS 36",null,null,null,"Item","Descrição","Valor dos Serviços",null,"MÊS 37",null,"MÊS 38",null,"MÊS 39",null,"MÊS 40",null,"MÊS 41",null,"MÊS 42",null,null,null,"Item","Descrição","Valor dos Serviços",null,"MÊS 43",null,"MÊS 44",null,"MÊS 45",null,"MÊS 46",null,"MÊS 47",null,"MÊS 48",null,null,null,"Item","Descrição","Valor dos Serviços",null,"MÊS 49",null,"MÊS 50",null,"MÊS 51",null,"MÊS 52",null,"MÊS 53",null,"MÊS 54",null,null,null,"Item","Descrição","Valor dos Serviços",null,"MÊS 55",null,"MÊS 56",null,"MÊS 57",null,"MÊS 58",null,"MÊS 59",null,"MÊS 60"]
[null,null,"Grandes Itens (Etapas da obra)","R$","Peso %","R$","Peso %","R$","Peso %","R$","Peso %","R$","Peso %","R$","Peso %","R$","Peso %",null,null,null,"Grandes Itens (Etapas da obra)","R$","Peso %","R$","Peso %","R$","Peso %","R$","Peso %","R$","Peso %","R$","Peso %","R$","Peso %",null,null,null,"Grandes Itens (Etapas da obra)","R$","Peso %","R$","Peso %","R$","Peso %","R$","Peso %","R$","Peso %","R$","Peso %","R$","Peso %",null,null,null,"Grandes Itens (Etapas da obra)","R$","Peso %","R$","Peso %","R$","Peso %","R$","Peso %","R$","Peso %","R$","Peso %","R$","Peso %",null,null,null,"Grandes Itens (Etapas da obra)","R$","Peso %","R$","Peso %","R$","Peso %","R$","Peso %","R$","Peso %","R$","Peso %","R$","Peso %",null,null,null,"Grandes Itens (Etapas da obra)","R$","Peso %","R$","Peso %","R$","Peso %","R$","Peso %","R$","Peso %","R$","Peso %","R$","Peso %",null,null,null,"Grandes Itens (Etapas da obra)","R$","Peso %","R$","Peso %","R$","Peso %","R$","Peso %","R$","Peso %","R$","Peso %","R$","Peso %",null,null,null,"Grandes Itens (Etapas da obra)","R$","Peso %","R$","Peso %","R$","Peso %","R$","Peso %","R$","Peso %","R$","Peso %","R$","Peso %",null,null,null,"Grandes Itens (Etapas da obra)","R$","Peso %","R$","Peso %","R$","Peso %","R$","Peso %","R$","Peso %","R$","Peso %","R$","Peso %",null,null,null,"Grandes Itens (Etapas da obra)","R$","Peso %","R$","Peso %","R$","Peso %","R$","Peso %","R$","Peso %","R$","Peso %","R$","Peso %"]
[null,1,"SERVIÇOS PRELIMINARES ",11943.115,0.83858247697599986,1194.3115,10,2388.623,20,3582.9345000000003,30,4777.2460000000001,40]
[null,2,"ADMINISTRAÇÃO",81569.040000000008,5.7273473133059856,8156.9040000000014,10,16313.808000000003,20,24470.712000000003,30,32627.616000000005,40]
[null,3,"PAVIMENTAÇÃO",719508.66929999995,50.520099832187796,71950.866930000004,10,143901.73386000001,20,215852.60079,30,287803.46772000002,40]
[null,4,"DRENAGEM ",499643.71950000006,35.082343919807499,49964.371950000001,10,99928.743900000001,20,149893.11585000003,30,199857.4878,40]
[null,5,"CONTENÇÃO",99608.992199999993,6.9940175078410496,9960.8992199999993,10,19921.798439999999,20,29882.697659999998,30,39843.596879999997,40]
[null,6,"SINALIZAÇÃO",11929.25,0.83760894988166368,1192.925,10,2385.85,20,3578.7750000000001,30,4771.7,40]
[]
[null,"TOTAL",null,1424202.7860000001,100,142420.27859999999,10,284840.55719999998,20,427260.83580000006,30.000000000000004,569681.11439999996,40]
[null,"TOTAL ACUMULADO",null,1424202.7860000001,100,142420.27859999999,10,427260.8358,30,854521.6716,60,1424202.7859999998,99.999999999999986]

{"sheet":"Impressão - CPU","index":43,"n_rows":31,"n_cols":8,"rows_kept":31,"cut":false,"hidden":false,"merged":[[1,1,1,7],[2,1,2,7],[3,6,3,7],[9,1,10,1],[9,2,10,2],[9,3,10,3],[9,4,10,4],[9,5,10,5],[9,6,9,7]]}
[]
[null,"COMPOSIÇÃO DE PREÇOS UNITÁRIOS - CPU"]
[null,"INFORMAÇÕES GERAIS"]
[null,"Município: Ouro Fino",null,null,null,null,"Referências de Preços"]
[null,"Projeto: CONSTRUÇÃO DE PONTE MISTA DE 25,0M SOBREO RIO MOJI GUAÇU",null,null,null,1,"SINAPI 05_2023"]
[null,"Responsável Técnico: VANESSA FARIA GRISOLIA",null,null,null,2,"SEINFRA SUL 01_2023"]
[null,"Nº CREA/CAU: 119171/D",null,null,null,3,"DNIT 01_2023"]
[null,"Data: 14/07/2023"]
[]
[null,"Item","Código","Descrição","Unid.","Quantidade Prevista","Preço (R$)"]
[null,null,null,null,null,null,"Unitário","Total"]
[null,null,null,"CONSTRUÇÃO DE PONTE MISTA DE 25,0M SOBREO RIO MOJI GUAÇU"]
[null,"1","CPU-001","FABRICAÇÃO E FORNECIMENTO DAS TRANSVERSINAS, CONTRAVENTAMENTOS, CHAPAS DE LIGAÇÃO E CONECTORES DE LIGAÇÃO AO TABULEIRO","KG",null,null,27.370190000000001]
[null,"1.1","E9686-CP","CAMINHÃO CARROCERIA COM GUINDAUTO COM CAPACIDADE DE 20 T.M - 136 KW (CUSTO PRODUTIVO)","H",3.2000000000000001E-2,318.54000000000002,10.193280000000001]
[null,"1.2","ED-50366","AJUDANTE ESPECIALIZADO COM ENCARGOS COMPLEMENTARES","HORA",2.9000000000000001E-2,21.76,0.63104000000000005]
[null,"1.3","ED-50380","MONTADOR COM ENCARGOS COMPLEMENTARES","HORA",2.9000000000000001E-2,25.03,0.72587000000000002]
[null,"1.4",1330,"CHAPA DE ACO GROSSA, ASTM A36, E = 1/4 \" (6,35 MM) 49,79 KG/M2","KG",1.1000000000000001,10.31,11.341000000000001]
[null,"1.5",1408173,"CORTE DE PERFIS METÁLICOS COM MAÇARICO OXIACETILENO","CM²",1,0.04,0.04]
[null,"1.6",1408028,"SOLDA ELÉTRICA MANUAL DE PERFIS METÁLICOS E CHAPAS DE AÇO COM ELETRODO E70XX PARA BENEFICIAMENTO DE AÇO NAVAL","KG",0.02,221.95,4.4390000000000001]
[null,"2","CPU-002","TABULEIRO EM ESTRUTURA METÁLICA AUTPORTANTE (ASSOALHO EM STEEL DECK 1,25MM)","M²",null,null,378.04442100000006]
[null,"2.1",43125,"CHAPA EM ACO GALVANIZADO PARA STEEL DECK, COM NERVURAS TRAPEZOIDAIS, LARGURA UTIL DE 915 MM E ESPESSURA DE 1,25 MM","M2",1.0929,141.49,154.634421]
[null,"2.2",88240,"AJUDANTE DE ESTRUTURA METÁLICA COM ENCARGOS COMPLEMENTARES","H",3,19.170000000000002,57.510000000000005]
[null,"2.3",88245,"ARMADOR COM ENCARGOS COMPLEMENTARES","H",3,27.23,81.69]
[null,"2.4",88317,"SOLDADOR COM ENCARGOS COMPLEMENTARES","H",3,28.07,84.210000000000008]
[null,"3","CPU-003","FABRICAÇÃO E FORNECIMENTO DOS PERFIS METÁLICOS SOLDADOS AÇO ASTM A-36 DIM. (1200X12,7X390X22,4X390X25,4)MM X 2500MM X 261,0KG/M","KG",null,null,29.290995000000002]
[null,"3.1","E9686-CP","CAMINHÃO CARROCERIA COM GUINDAUTO COM CAPACIDADE DE 20 T.M - 136 KW (CUSTO PRODUTIVO)","H",3.5000000000000003E-2,318.54000000000002,11.148900000000001]
[null,"3.2","ED-50366","AJUDANTE ESPECIALIZADO COM ENCARGOS COMPLEMENTARES","HORA",3.7999999999999999E-2,21.76,0.82688000000000006]
[null,"3.3","ED-50380","MONTADOR COM ENCARGOS COMPLEMENTARES","HORA",3.7999999999999999E-2,25.03,0.95113999999999999]
[null,"3.4",1330,"CHAPA DE ACO GROSSA, ASTM A36, E = 1/4 \" (6,35 MM) 49,79 KG/M2","KG",1.1000000000000001,10.31,11.341000000000001]
[null,"3.5",1408173,"CORTE DE PERFIS METÁLICOS COM MAÇARICO OXIACETILENO","CM²",0.73,0.04,2.92E-2]
[null,"3.6",1408028,"SOLDA ELÉTRICA MANUAL DE PERFIS METÁLICOS E CHAPAS DE AÇO COM ELETRODO E70XX PARA BENEFICIAMENTO DE AÇO NAVAL","KG",2.2499999999999999E-2,221.95,4.9938749999999992]

{"sheet":"Impressão - CPU Aditivo","index":44,"n_rows":27,"n_cols":8,"rows_kept":27,"cut":false,"hidden":false,"merged":[[1,1,1,7],[2,1,2,7],[15,1,16,1],[15,2,16,2],[15,3,16,3],[15,4,16,4],[15,5,16,5],[15,6,15,7]]}
[]
[null,"COMPOSIÇÃO DE PREÇOS UNITÁRIOS - CPU"]
[null,"INFORMAÇÕES GERAIS"]
[null,"Município: Belo Horizonte",null,null,null,null,"Referências de Preços"]
[null,"Obra: Pavimentação da Avenida Teresa Cristina"]
[null,"Responsável Técnico Fiscal: Breno Oliveira Pierre de Souza"]
[null,"Nº CREA/CAU: 123456-7"]
[null,"Contrato BDMG Nº: 256.563"]
[null,"Data: 13/04/2020"]
[null,"Empresa Executora: Empresa de Pavimentações"]
[null,"Nº do Contrato Licitado: 12345",null,"Pavimentação da Avenida Teresa Cristina"]
[null,"Responsável Técnico Executor: Alan Pereira Neto Filho"]
[null,"Nº CREA/CAU: 789456-1"]
[null,"Nº do Termo Aditivo: 1"]
[null,"Tipo de Aditivo: Adição e/ou Supressão de Quantitativos, Prazo e Reajuste"]
[null,"Item","Código","Descrição","Unid.","Quantidade Prevista","Preço (R$)"]
[null,null,null,null,null,null,"Unitário","Total"]
[]
[null,1,"CPU-001","SERVIÇOS PRELIMINARES","um",null,null,15508.063599999998]
[null,"1.1","TER-REG-010","REGULARIZAÇÃO E COMPACTAÇÃO DE TERRENO COM PLACA VIBRATÓRIA","M2",1235.96,2.59,3201.1363999999999]
[null,"1.2","DEM-PIS-065","DEMOLIÇÃO DE PAVIMENTO PARALELEPÍPEDO REJUNTADOS COM AREIA INCLUSIVE AFASTAMENTO E EMPILHAMENTO","M2",828.56,11.87,9835.0071999999982]
[null,"1.3","TRA-CAÇ-015","TRANSPORTE DE MATERIAL DEMOLIDO EM CAÇAMBA","M3",123.596,20,2471.92]
[null,2,"CPU-002","ITEM DOIS","M2",null,null,30129.333999999999]
[null,"2.1","IIO-PLA-005","FORNECIMENTO E COLOCAÇÃO DE PLACA DE OBRA EM CHAPA GALVANIZADA (3,00 X 1,5 0 M) - EM CHAPA GALVANIZADA 0,26 AFIXADAS COM REBITES 540 E PARAFUSOS 3/8, EM ESTRUTURA METÁLICA VIGA U 2\" ENRIJECIDA COM METALON 20 X 20, SUPORTE EM EUCALIPTO AUTOCLAVADO PINTADAS","U",21,1110.6500000000001,23323.65]
[null,"2.2","DEM-PIS-040","DEMOLIÇÃO DE PASSEIO OU LAJE DE CONCRETO COM EQUIPAMENTO PNEUMÁTICO, INCLUSIVE AFASTAMENTO","M2",407.4,7.46,3039.2039999999997]
[null,"2.3","74209/1","PLACA DE OBRA EM CHAPA DE ACO GALVANIZADO","M2",5,306.17,1530.8500000000001]
[null,"2.4","IIO-CON-045","CONTAINER (6,0X2,3X2,5M) COM ISOLAMENTO TÉRMICO - DEPÓSITO E FERRAMENTARIA COM LAVATÓRIO","MÊS",3,745.21,2235.63]

{"sheet":"Impressão - LOC","index":45,"n_rows":12,"n_cols":11,"rows_kept":12,"cut":false,"hidden":false,"merged":[[10,4,10,6],[11,4,11,6],[1,1,1,10],[2,1,2,10],[8,9,8,10],[8,1,9,1],[8,2,9,2],[8,3,9,3],[8,4,8,6],[8,7,8,8],[9,4,9,6]]}
[]
[null,"LOCALIZAÇÃO DAS OBRAS"]
[null,"INFORMAÇÕES GERAIS"]
[null,"Município: Ouro Fino"]
[null,"Projeto: CONSTRUÇÃO DE PONTE MISTA DE 25,0M SOBREO RIO MOJI GUAÇU"]
[null,"Responsável Técnico: VANESSA FARIA GRISOLIA"]
[null,"Nº CREA/CAU: 119171/D"]
[null,"Data: 14/07/2023"]
[null,"Item","Rua/Avenida/Trecho","Bairro","Pavimentação",null,null,"Rede de Drenagem",null,"Rede de Saneamento"]
[null,null,null,null,"Área\n(m²)",null,null,"Comprimento\n(m)","Diâmetro\n(mm)","Comprimento\n(m)","Diâmetro\n(mm)"]
[null,null,"CONSTRUÇÃO DE PONTE MISTA DE 25,0M SOBREO RIO MOJI GUAÇU",null,70000,null,null,2000,null,2000]
[null,1,"Estrada dos Pedrosos","Peitudos",70000,null,null,2000,400,2000,400]

{"sheet":"Impressão - LOC Aditivo","index":46,"n_rows":18,"n_cols":11,"rows_kept":18,"cut":false,"hidden":false,"merged":[[17,4,17,6],[16,4,16,6],[12,4,12,6],[13,4,13,6],[14,4,14,6],[15,4,15,6],[11,4,11,6],[1,1,1,10],[2,1,2,10],[9,1,10,1],[9,2,10,2],[9,3,10,3],[9,4,9,6],[9,7,9,8],[9,9,9,10],[10,4,10,6]]}
[]
[null,"LOCALIZAÇÃO DAS OBRAS"]
[null,"INFORMAÇÕES GERAIS"]
[null,"Município: Belo Horizonte",null,null,null,null,"Empresa Executora: Empresa de Pavimentações"]
[null,"Obra: Pavimentação da Avenida Teresa Cristina",null,null,null,null,"Nº do Contrato Licitado: 12345"]
[null,"Responsável Técnico Fiscal: Breno Oliveira Pierre de Souza",null,null,null,null,"Responsável Técnico Executor: Alan Pereira Neto Filho"]
[null,"Nº CREA/CAU: 123456-7",null,null,null,null,"Nº CREA/CAU: 789456-1"]
[null,"Contrato BDMG Nº: 256.563",null,null,null,null,"Nº do Termo Aditivo: 1"]
[null,"Data: 13/04/2020",null,null,null,null,"Tipo de Aditivo: Adição e/ou Supressão de Quantitativos, Prazo e Reajuste"]
[null,"Item","Rua/Avenida/Trecho","Bairro","Pavimentação",null,null,"Rede de Drenagem",null,"Rede de Saneamento"]
[null,null,null,null,"Área\n(m²)",null,null,"Comprimento\n(m)","Diâmetro\n(mm)","Comprimento\n(m)","Diâmetro\n(mm)"]
[null,null,"Pavimentação da Avenida Teresa Cristina",null,38050,null,null,3220,null,3230]
[null,1,"Avenida Tereza Cristina","Salgado Filho",12000,null,null,800,200,800,300]
[null,2,"Avenida Tereza Cristina","Betânia",14700,null,null,700,200,700,300]
[null,3,"Avenida Tereza Cristina","Nova Gameleira",null,null,null,900,240]
[null,4,"Avenida Tereza Cristina","Barreiro",null,null,null,null,null,900,150]
[null,5,"Avenida Afonso Pena","Centro",10650,null,null,720,200,730,300]
[null,6,"Teste Aditivo","Bairro do Aditivo",700,null,null,100,200,100,300]

{"sheet":"Impressão - LOC Licitação","index":47,"n_rows":19,"n_cols":11,"rows_kept":19,"cut":false,"hidden":false,"merged":[[16,4,16,6],[10,4,10,6],[11,4,11,6],[12,4,12,6],[13,4,13,6],[14,4,14,6],[1,1,1,10],[2,1,2,10],[8,1,9,1],[8,2,9,2],[8,3,9,3],[8,4,8,6],[8,7,8,8],[8,9,8,10],[9,4,9,6]]}
[]
[null,"LOCALIZAÇÃO DAS OBRAS"]
[null,"INFORMAÇÕES GERAIS"]
[null,"Município: Belo Horizonte",null,null,null,null,"Empresa Vencedora: Empresa que venceu"]
[null,"Obra: Pavimentação do Bairro Horto",null,null,null,null,"Nº do Contrato Licitado: 123456"]
[null,"Data: 16/05/2020",null,null,null,null,"Representante da Empresa: Fulano de Tal"]
[null,"Representante do Município: Alexandre Kalil",null,null,null,null,"BDI1: 14,87%"]
[]
[null,"Item","Rua/Avenida/Trecho","Bairro","Pavimentação",null,null,"Rede de Drenagem",null,"Rede de Saneamento"]
[null,null,null,null,"Área\n(m²)",null,null,"Comprimento\n(m)","Diâmetro\n(mm)","Comprimento\n(m)","Diâmetro\n(mm)"]
[null,null,"c2",null,32000,null,null,4000,null,5000]
[null,1,"Rua A","Lourdes",7000,null,null,1000,150,1000,200]
[null,2,"Rua B","Lourdes",10000,null,null,1000,200]
[null,3,"Rua C","Funcionários",8000,null,null,null,null,1000,200]
[null,4,"Rua D","Funcioários",null,null,null,1000,200,1000,150]
[null,5,"Rua E","Horto",null,null,null,null,null,1000,200]
[null,6,"Rua F","Horto",7000]
[null,7,"Rua G","Centro",null,null,null,1000,200]
[null,8,"Rua H","Centro",null,null,null,null,null,1000,250]

{"sheet":"Impressão - LOC PAV Medição","index":48,"n_rows":15,"n_cols":10,"rows_kept":15,"cut":false,"hidden":false,"merged":[[10,4,10,6],[11,4,11,6],[12,4,12,6],[13,4,13,6],[14,4,14,6],[1,1,1,9],[2,1,2,9],[8,1,9,1],[8,2,9,2],[8,3,9,3],[8,4,8,6],[8,7,8,8],[9,4,9,6]]}
[]
[null,"LOCALIZAÇÃO DAS OBRAS POR MEDIÇÃO - PAVIMENTAÇÃO"]
[null,"INFORMAÇÕES GERAIS"]
[null,"Município: Belo Horizonte",null,"                    Empresa Executora: Empresa de Pavimentações",null,null,null,null,"Medição Nº: 4"]
[null,"Obra: Pavimentação da Avenida Teresa Cristina",null,"                    Nº do Contrato Licitado: 12345",null,null,null,null,"Período: 02/03/2020 A 01/04/2020"]
[null,"Responsável Técnico Fiscal: Breno Oliveira Pierre de Souza",null,"                    Responsável Técnico Executor: Alan Pereira Neto Filho",null,null,null,null,"Data: 07/04/2020"]
[null,"Nº CREA/CAU: 123456-7",null,"                    Nº CREA/CAU: 789456-1"]
[null,"Contrato BDMG Nº: 256.563"]
[null,"Item","Rua/Avenida/Trecho","Bairro","Pavimentação",null,null,"Total Acumulado",null,"Última Medição"]
[null,null,null,null,"Área\n(m²)",null,null,"Área\n(m²)","%\nProjeto","Área\n(m²)"]
[null,null,"Pavimentação da Avenida Teresa Cristina",null,38050,null,null,600,25.97402597402597,0]
[null,1,"Avenida Tereza Cristina","Salgado Filho",12000,null,null,100,12.5,0]
[null,2,"Avenida Tereza Cristina","Betânia",14700,null,null,200,28.571428571428569,0]
[null,5,"Avenida Afonso Pena","Centro",10650,null,null,300,42.25352112676056,0]
[null,6,"Teste Aditivo","Bairro do Aditivo",700,null,null,0,0,0]

{"sheet":"Impressão - LOC DRE Medição","index":49,"n_rows":16,"n_cols":9,"rows_kept":16,"cut":false,"hidden":false,"merged":[[1,1,1,8],[2,1,2,8],[7,4,7,7],[8,1,9,1],[8,2,9,2],[8,3,9,3],[8,4,8,5],[8,6,8,7]]}
[]
[null,"LOCALIZAÇÃO DAS OBRAS POR MEDIÇÃO - DRENAGEM"]
[null,"INFORMAÇÕES GERAIS"]
[null,"Município: Belo Horizonte",null,"                    Empresa Executora: Empresa de Pavimentações",null,null,null,"Medição Nº: 4"]
[null,"Obra: Pavimentação da Avenida Teresa Cristina",null,"                    Nº do Contrato Licitado: 12345",null,null,null,"Período: 02/03/2020 A 01/04/2020"]
[null,"Responsável Técnico Fiscal: Breno Oliveira Pierre de Souza",null,"                    Responsável Técnico Executor: Alan Pereira Neto Filho",null,null,null,"Data: 07/04/2020"]
[null,"Nº CREA/CAU: 123456-7",null,"                    Nº CREA/CAU: 789456-1"]
[null,"Contrato BDMG Nº: 256.563"]
[null,"Item","Rua/Avenida/Trecho","Bairro","Drenagem",null,"Total Acumulado",null,"Última Medição"]
[null,null,null,null,"Comprimento\n(m)","Diâmetro\n(mm)","Comprimento\n(m)","%\nProjeto","Comprimento\n(m)"]
[null,null,"Pavimentação da Avenida Teresa Cristina",null,3220,null,1500,46.58385093167702,0]
[null,1,"Avenida Tereza Cristina","Salgado Filho",800,200,400,50,0]
[null,2,"Avenida Tereza Cristina","Betânia",700,200,0,0,0]
[null,3,"Avenida Tereza Cristina","Nova Gameleira",900,240,500,55.555555555555557,0]
[null,5,"Avenida Afonso Pena","Centro",720,200,600,83.333333333333343,0]
[null,6,"Teste Aditivo","Bairro do Aditivo",100,200,0,0,0]

{"sheet":"Impressão - LOC SAN Medição","index":50,"n_rows":16,"n_cols":9,"rows_kept":16,"cut":false,"hidden":false,"merged":[[1,1,1,8],[2,1,2,8],[7,4,7,7],[8,1,9,1],[8,2,9,2],[8,3,9,3],[8,4,8,5],[8,6,8,7]]}
[]
[null,"LOCALIZAÇÃO DAS OBRAS POR MEDIÇÃO - SANEAMENTO"]
[null,"INFORMAÇÕES GERAIS"]
[null,"Município: Belo Horizonte",null,"                    Empresa Executora: Empresa de Pavimentações",null,null,null,"Medição Nº: 4"]
[null,"Obra: Pavimentação da Avenida Teresa Cristina",null,"                    Nº do Contrato Licitado: 12345",null,null,null,"Período: 02/03/2020 A 01/04/2020"]
[null,"Responsável Técnico Fiscal: Breno Oliveira Pierre de Souza",null,"                    Responsável Técnico Executor: Alan Pereira Neto Filho",null,null,null,"Data: 07/04/2020"]
[null,"Nº CREA/CAU: 123456-7",null,"                    Nº CREA/CAU: 789456-1"]
[null,"Contrato BDMG Nº: 256.563"]
[null,"Item","Rua/Avenida/Trecho","Bairro","Saneamento",null,"Total Acumulado",null,"Última Medição"]
[null,null,null,null,"Comprimento\n(m)","Diâmetro\n(mm)","Comprimento\n(m)","%\nProjeto","Comprimento\n(m)"]
[null,null,"Pavimentação da Avenida Teresa Cristina",null,3230,null,1590,49.226006191950468,0]
[null,1,"Avenida Tereza Cristina","Salgado Filho",800,300,700,87.5,0]
[null,2,"Avenida Tereza Cristina","Betânia",700,300,0,0,0]
[null,4,"Avenida Tereza Cristina","Barreiro",900,150,800,88.888888888888886,0]
[null,5,"Avenida Afonso Pena","Centro",730,300,90,12.328767123287671,0]
[null,6,"Teste Aditivo","Bairro do Aditivo",100,300,0,0,0]

{"sheet":"Impressão - MDC","index":51,"n_rows":66,"n_cols":7,"rows_kept":66,"cut":false,"hidden":false,"merged":[[1,1,1,6],[2,1,2,6]]}
[]
[null,"MEMÓRIA DE CÁLCULO"]
[null,"INFORMAÇÕES GERAIS"]
[null,"Município: Ouro Fino"]
[null,"Projeto: CONSTRUÇÃO DE PONTE MISTA DE 25,0M SOBREO RIO MOJI GUAÇU"]
[null,"Responsável Técnico: VANESSA FARIA GRISOLIA"]
[null,"Nº CREA/CAU: 119171/D"]
[null,"Data: 14/07/2023"]
[null,"Item","Código","Descrição","Unid.","Qtde Prevista","Memória de Cálculo"]
[null,"1","","CONSTRUÇÃO DA PONTE",""]
[null,"1.1","","SERVIÇOS PRELIMINARES",""]
[null,"1.1.1","ED-28427","FORNECIMENTO E COLOCAÇÃO DE PLACA DE OBRA EM CHAPA GALVANIZADA #26, ESP. 0,45MM, DIMENSÃO (3X1,5)M, PLOTADA COM ADESIVO VINÍLICO, AFIXADA COM REBITES 4,8X40MM, EM ESTRUTURA METÁLICA DE METALON 20X20MM, ESP. 1,25MM, INCLUSIVE SUPORTE EM EUCALIPTO AUTOCLAVADO PINTADO COM TINTA PVA DUAS (2) DEMÃOS","UN",1,"1 UNIDADE"]
[null,"1.1.2","CO-28390","MOBILIZAÇÃO E DESMOBILIZAÇÃO DE EQUIPAMENTO DE SONDAGEM A PERCUSSÃO COM ENSAIO DE PENETRAÇÃO PADRÃO (SPT) - (CUSTO FIXO)","UN",1,"1 UNIDADE"]
[null,"1.1.3","CO-28388","SONDAGEM A PERCUSSÃO COM ENSAIO DE PENETRAÇÃO PADRÃO (SPT), DIÂMETRO 2.1/2\", EXCLUSIVE MOBILIZAÇÃO E DESMOBILIZAÇÃO","M",40,"40,00 = 2 FUROS DE 20,00M (1 EM CADA MARGEM)"]
[null,"1.1.4","ED-50393","MOBILIZAÇÃO E DESMOBILIZAÇÃO DE OBRA EM CENTRO URBANO OU REGIÃO LIMÍTROFE COM VALOR ENTRE 1.000.000,01 E 3.000.000,00","%",11146.28,"0,30"]
[null,"1.1.5","ED-50137","MOBILIZAÇÃO E DESMOBILIZAÇÃO DE CONTAINER, INCLUSIVE CARGA, DESCARGA E TRANSPORTE EM CAMINHÃO CARROCERIA COM GUINDAUTO (MUNCK), EXCLUSIVE LOCAÇÃO DO CONTAINER","UN",2,"2 UNIDADES"]
[null,"1.1.6","ED-16349","LOCAÇÃO DE CONTAINER COM ISOLAMENTO TÉRMICO, TIPO 2, PARA ESCRITÓRIO DE OBRA COM SANITÁRIO CONTENDO UM (1) VASO SANITÁRIO E UM (1) LAVATÓRIO, COM MEDIDAS REFERENCIAIS DE (6) METROS COMPRIMENTO, (2,3) METROS LARGURA E (2,5) METROS ALTURA ÚTIL INTERNA, INCLUSIVE AR CONDICIONADO E LIGAÇÕES ELÉTRICAS E HIDROSSANITÁRIAS INTERNAS, EXCLUSIVE MOBILIZAÇÃO/DESMOBILIZAÇÃO E LIGAÇÕES PROVISÓRIAS EXTERNAS","MÊS",3,"3 MESES"]
[null,"1.1.7","ED-16357","LIGAÇÕES PROVISÓRIAS PARA CONTAINER TIPO 2 (CORRESPONDENTE AO CÓDIGO ED-16349)","UN",3,"1 UNIDADE"]
[null,"1.1.8","ED-16350","LOCAÇÃO DE CONTAINER COM ISOLAMENTO TÉRMICO, TIPO 3, PARA DEPÓSITO/FERRAMENTARIA DE OBRA, COM MEDIDAS REFERENCIAIS DE (6) METROS COMPRIMENTO, (2,3) METROS LARGURA E (2,5) METROS ALTURA ÚTIL INTERNA, INCLUSIVE LIGAÇÕES ELÉTRICAS INTERNAS, EXCLUSIVE MOBILIZAÇÃO/DESMOBILIZAÇÃO E LIGAÇÕES PROVISÓRIAS EXTERNAS","MÊS",3,"3 MESES"]
[null,"1.1.9","ED-16358","LIGAÇÕES PROVISÓRIAS PARA CONTAINER TIPO 3 (CORRESPONDENTE AO CÓDIGO ED-16350)","UN",1,"1 UNIDADE"]
[null,"1.1.10","ED-50274","LOCAÇÃO TOPOGRÁFICA PARA ATÉ VINTE (20) PONTOS REFERENCIAIS, INCLUSIVE ESTACA (PIQUETE) DE MARCAÇÃO","UN",20,"20 (10 PONTOS EM CADA MARGEM)"]
[null,"1.1.11","ED-17989","LOCAÇÃO DE OBRA COM GABARITO DE TÁBUAS CORRIDAS PONTALETADAS A CADA 2,00M, REAPROVEITAMENTO (2X), INCLUSIVE ACOMPANHAMENTO DE EQUIPE TOPOGRÁFICA PARA MARCAÇÃO DE PONTO TOPOGRÁFICO","M",70.02,"(2,32+4,79+2,32+25,58)*2 = 70,02"]
[null,"1.1.12","ED-50423","ENSECADEIRA INCLUSIVE RETIRADA DO MADEIRAMENTO , PAREDE DUPLA","M2",22.86,"(1+2,32+4,79+2,32+1)*1*2 = 22,86"]
[null,"1.1.13","ED-51107","ESCAVAÇÃO MANUAL DE VALA COM PROFUNDIDADE MENOR OU IGUAL A 1,5M, INCLUSIVE DESCARGA LATERAL","M3",22.58,"14,11*0,8*2 = 22,58 (área do fundo do bloco de coroamento x 2 margens)"]
[null,"1.1.14","ED-51123","REGULARIZAÇÃO MANUAL E COMPACTAÇÃO MECANIZADA DE TERRENO COM PLACA VIBRATÓRIA, EXCLUSIVE DESMATAMENTO, DESTOCAMENTO, LIMPEZA/ROÇADA DO TERRENO","M2",28.22,"14,11*2 = 28,22 (área do fundo do bloco de coroamento x 2 margens)"]
[null,"1.1.15",104482,"ESGOTAMENTO DE VALA COM BOMBA SUBMERSÍVEL. AF_12/2022","H",320,"2 meses x 20 dias x 8 horas = 320"]
[null,"1.1.16","ED-50151","LIGAÇÃO PROVISÓRIA COM ENTRADA DE ENERGIA AÉREA, PADRÃO CEMIG, CARGA INSTALADA DE 15,1KVA ATÉ 30KVA, TRIFÁSICO, COM SAÍDA SUBTERRÂNEA, INCLUSIVE POSTE, CAIXA PARA MEDIDOR, DISJUNTOR, BARRAMENTO, ATERRAMENTO E ACESSÓRIOS","UN",1,"1 UNIDADE"]
[null,"1.1.17","ED-49812","LASTRO DE CONCRETO MAGRO, INCLUSIVE TRANSPORTE, LANÇAMENTO E ADENSAMENTO","M3",2.82,"14,11*0,1*2 = 2,82 (área do fundo do bloco de coroamento x espessura x 2 lados)"]
[null,"1.1.18",98459,"TAPUME COM TELHA METÁLICA. AF_05/2018","M2",117.72,"(5+5+2,32+4,79+2,32+5+5)*2*2 = 117,72 (perímetro x altura x 2 lados)"]
[null,"1.2","","INFRA ESTRUTURA / FUNDAÇÃO PROFUNDA",""]
[null,"1.2.1","ED-29819","MOBILIZAÇÃO E DESMOBILIZAÇÃO DE EQUIPAMENTO PARA ESTACA TIPO CRAVADA (CUSTO FIXO), INCLUSIVE CARGA E DESCARGA, EXCLUSIVE TRANSPORTE EM QUILÔMETRO RODADO (CUSTO VARIÁVEL)","UN",1,"1,00 UNIDADE"]
[null,"1.2.2","ED-29820","MOBILIZAÇÃO E DESMOBILIZAÇÃO DE EQUIPAMENTO PARA ESTACA TIPO CRAVADA (CUSTO VARIÁVEL), EXCLUSIVE CUSTO FIXO DE TRANSPORTE","KM",120,"60,00 + 60,00 = 120,00Km"]
[null,"1.2.3",100658,"ESTACA PRÉ-MOLDADA DE CONCRETO CENTRIFUGADO, SEÇÃO CIRCULAR, CAPACIDADE DE 100 TONELADAS, INCLUSO EMENDA (EXCLUSIVE MOBILIZAÇÃO E DESMOBILIZAÇÃO). AF_12/2019","M",512,"16,00*16,00*2 = 512,00 (qtde de estacas x profundidade x margens)"]
[null,"1.2.4","ED-29686","CORTE E PREPARO DE CABEÇA/ARRASAMENTO MECANIZADO  DE ESTACA PARA BLOCO DE COROAMENTO, INCLUSIVE AFASTAMENTO E EMPILHAMENTO, EXCLUSIVE TRANSPORTE E RETIRADA DO MATERIAL DEMOLIDO","M3",5.47,"2*16*(3,141592*(0,33^2)/4)*2,00 = 5,47 (margens x qtde. de estacas x área da estaca x altura)"]
[null,"1.2.5","ED-8571","FÔRMA E DESFORMA DE COMPENSADO PLASTIFICADO, ESP. 12MM, REAPROVEITAMENTO (3X) (FUNDAÇÃO)","M2",36.46,"22,79*0,8*2 = 36,46 (perímetro do bloco de cororamento x altura x margens)"]
[null,"1.2.6","ED-48295","CORTE, DOBRA E MONTAGEM DE AÇO CA-50, DIÂMETRO (6,3MM A 12,5MM), INCLUSIVE ESPAÇADOR","KG",1044.79,"somatório do N1 ao N8 do resumo de aço = (113,76 + 505,77 + 128,61 + 133,13 + 52,00 + 29,76 + 52,00) = 1.044,79"]
[null,"1.2.7","ED-49639","FORNECIMENTO DE CONCRETO ESTRUTURAL, USINADO BOMBEADO, COM FCK 30MPA, INCLUSIVE LANÇAMENTO, ADENSAMENTO E ACABAMENTO","M3",22.58,"14,11*0,8*2 = 22,58 (área da base do bloco de coroamento x altura x margens)"]
[null,"1.2.8","RO-41544","CIMBRAMENTO: ESCORAMENTO EM MADEIRA (EXECUÇÃO, INCLUINDO O FORNECIMENTO E TRANSPORTE DE TODOS OS MATERIAIS)","M3",18.23,"36,46*50% = 18,23 (item 2.2.6 x 50%)"]
[null,"1.3","","SUPRA ESTRUTURA / MESOESTRUUTURA",""]
[null,"1.3.1","ED-8398","FÔRMA E DESFORMA DE COMPENSADO PLASTIFICADO, ESP. 12MM, REAPROVEITAMENTO (3X), EXCLUSIVE ESCORAMENTO","M2",304.55,"(21,34*3,55)+9,23\\81,45)+(28,82*1,45)+(7,36*2*1,45))*2) = 304,55 (perímetro da cortina x altura) + (perímetro da viga de contenção x altura) + (perímetro das abas laterais x altura ) x margens"]
[null,"1.3.2","RO-41544","CIMBRAMENTO: ESCORAMENTO EM MADEIRA (EXECUÇÃO, INCLUINDO O FORNECIMENTO E TRANSPORTE DE TODOS OS MATERIAIS)","M3",152.27000000000001,"304,55*50% = 152,27 (item 2.3.1 x 50%)"]
[null,"1.3.3","ED-48295","CORTE, DOBRA E MONTAGEM DE AÇO CA-50, DIÂMETRO (6,3MM A 12,5MM), INCLUSIVE ESPAÇADOR","KG",2602.7600000000002,"somatório do N16 do resumo de aço = (179,98 + 1.295,43 + 471,48 + 528,80 + 43,90 + 24,27 + 26,54 + 32,36) = 2.602,76"]
[null,"1.3.4","CPU-001","FABRICAÇÃO E FORNECIMENTO DAS TRANSVERSINAS, CONTRAVENTAMENTOS, CHAPAS DE LIGAÇÃO E CONECTORES DE LIGAÇÃO AO TABULEIRO","KG",4891.71,"(80,70 + 1.167,45 + 140,60 + 3.152,03 + 350,93) = 4.891,71 (conforme tabela de resumo de aço da estrutura metálica)"]
[null,"1.3.5",100716,"JATEAMENTO ABRASIVO COM GRANALHA DE AÇO EM PERFIL METÁLICO EM FÁBRICA. AF_01/2020","M2",408,"((1,2 + 0,39 + 0,39)*2*25*2) + (4,20*25*2) = 408,00 (perímetro do perfil metálico x comprimento x qtde. ) + (área do tabuleiro x 2 lados)"]
[null,"1.3.6","ED-29091","TRANSPORTE DE VIGA OU TABULEIRO PARA PONTE (CUSTO FIXO), INCLUSIVE CARGA, EXCLUSIVE FORNECIMENTO , DESCARGA E TRANSPORTE EM QUILÔMETRO RODADO (CUSTO VARIÁVEL)","UN",1,"1 UNIDADE"]
[null,"1.3.7","ED-29092","TRANSPORTE DE VIGA OU TABULEIRO PARA PONTE (CUSTO VARIÁVEL), EXCLUSIVE FORNECIMENTO , DESCARGA E CUSTO FIXO DE TRANSPORTE","TXKM",17508.740000000002,"(item 2.3.9 / 1000)x900 km = 17.508,74"]
[null,"1.3.8","ED-29090","DESCARGA DE CAMINHÃO, PARA ELEMENTOS DE VIGA OU TABULEIRO PARA PONTE, INCLUSIVE DESCARGA DE PERFIS LONGARINAS, TRANSVERSINAS, CHAPAS E ACESSÓRIOS, EXCLUSIVE FORNECIMENTO E TRANSPORTE","UN",1,"1 UNIDADE"]
[null,"1.3.9","ED-50428","LANÇAMENTO DE VIGA PARA PONTE, EXCLUSIVE FORNECIMENTO, DESCARGA E TRANSPORTE - PROJETO PADRÃO SEINFRA-MG","KG",19454.16,"17.941,71 + 1.512,45 = 19.454,16 (total de aço da estrutura metálica + steel deck)"]
[null,"1.3.10","ED-49639","FORNECIMENTO DE CONCRETO ESTRUTURAL, USINADO BOMBEADO, COM FCK 30MPA, INCLUSIVE LANÇAMENTO, ADENSAMENTO E ACABAMENTO","M3",66.86,"((7,15*3,55)+(1,09*1,45)+(2,23*1,45*2))*2 = 66,86 ((área da cortina x altura) + (área da viga de contenção x altura) + (área das abas laterais x altura)) x margens"]
[null,"1.3.11","ED-49641","FORNECIMENTO DE CONCRETO ESTRUTURAL, USINADO BOMBEADO, COM FCK 40MPA, INCLUSIVE LANÇAMENTO, ADENSAMENTO E ACABAMENTO","M3",21,"25*4,20*0,20 = 21,00 (área do tabuleiro x espessura)"]
[null,"1.3.12","RO-41582","APARELHOS DE APOIO EM NEOPRENE FRETADO (EXECUÇÃO, INCLUINDO A APLICAÇÃO, FORNECIMENTO E TRANSPORTE DOS MATERIAIS)","DM3",9.3000000000000007,"4*3*2,5*0,31 = 9,30 (qtde. x larg. x comp. x esp.)"]
[null,"1.3.13","CPU-002","TABULEIRO EM ESTRUTURA METÁLICA AUTPORTANTE (ASSOALHO EM STEEL DECK 1,25MM)","M²",105,"25*4,20 = 105,00 (largura x comprimento)"]
[null,"1.3.14","ED-48295","CORTE, DOBRA E MONTAGEM DE AÇO CA-50, DIÂMETRO (6,3MM A 12,5MM), INCLUSIVE ESPAÇADOR","KG",196.71,"N1 (resumo de aço do tabuleiro) = 196,71"]
[null,"1.3.15",42407,"TRELICA NERVURADA (ESPACADOR), ALTURA = 120,0 MM, DIAMETRO DOS BANZOS INFERIORES E SUPERIOR = 6,0 MM, DIAMETRO DA DIAGONAL = 4,2 MM","M",211.65,"N2 (resumo de aço do tabuleiro) = 211,65"]
[null,"1.3.16","0408067","TELA DE AÇO ELETROSSOLDADA - FORNECIMENTO, PREPARO E COLOCAÇÃO","KG",1263.02,"N3 (resumo de aço do tabuleiro) = 1.263,02"]
[null,"1.3.17","CPU-003","FABRICAÇÃO E FORNECIMENTO DOS PERFIS METÁLICOS SOLDADOS AÇO ASTM A-36 DIM. (1200X12,7X390X22,4X390X25,4)MM X 2500MM X 261,0KG/M","KG",13050,"25,00*261*2 = 13.050,00 (comprimento x peso/m x qtde.)"]
[null,"1.4","","SERVIÇOS COMPLEMENTARES",""]
[null,"1.4.1","RO-42808","DRENO PROFUNDO COM AREIA, SEM SELO, COM 1,50X0,40 M E TUBO DE POLIETILENO DE ALTA DENSIDADE PERFURADO, DE 100MM ENVOLVIDO EM MANTA GEOTÊXTIL NÃO TECIDA, TIPO DR.DP-02 (EXECUÇÃO  INCLUINDO  ESCAVAÇÃO , FORNECIMENTO DE TODOS OS MATERIAIS, EXCETO TRANSPORTE DOS AGREGADOS)","M",76.16,"((2,59+4,34+2,59)*4)*2 - 76,16 (medidas da cortina no lado do aterro x qtde.) x margens"]
[null,"1.4.2","ED-50671","BUZINOTE PARA LAJES - DRENO COM TUBO DE 2\" EMBUTIDO NO CONCRETO","M",17,"(25,58m/1,5m) = 17,05 vãos inteiros = 17 buzinotes + 0,50m x 2"]
[null,"1.4.3",4777,"CANTONEIRA ACO ABAS IGUAIS (QUALQUER BITOLA), ESPESSURA ENTRE 1/8\" E 1/4\"","KG",21.03,"2,504kg/m x 4,20m x 2 = 21,03 (peso/m x comprimento x lados)"]
[null,"1.4.4","ED-50174","PINTURA COM EMULSÃO ASFÁLTICA, DUAS (2) DEMÃOS","M2",213.98,"((4,32 + 2,59 + 0,3 + 2,94 + 5,05 + 2,94 + 0,3 + 2,59)*5,00*2) + ((0,6 + 0,6)*1,45*2)) = 213,98 (perímetro da cortina x altura média (cortina + viga contenção) x margens) + (lateral interna viga de contenção x altura x margens)"]
[null,"1.4.5","ED-49810","FÔRMA E DESFORMA DE TÁBUA E SARRAFO, REAPROVEITAMENTO (3X) (FUNDAÇÃO)","M2",10.55,"(25,5*0,1*2*2)+(0,8*0,1*2*2) = 10,55 (comprimento x altura x 2 lados do passeio x qtde. passeios) + (comprimento x altura x 2 (início + fim) x qtde. passeios)"]
[null,"1.4.6",100727,"PINTURA COM TINTA EPOXÍDICA DE FUNDO PULVERIZADA SOBRE PERFIL METÁLICO EXECUTADO EM FÁBRICA (POR DEMÃO). AF_01/2020_PE","M2",1671.6,"((1,2+0,39+0,39)*2*30*7) + (14*30*2) = 1.671,60 (perímetro do perfil metálico x comprimento x qtde.) + (área do tabuleiro x 2 lados)"]
[null,"1.4.7","ED-50497","PINTURA ESMALTE EM ESTRUTURA METÁLICA, DUAS (2) DEMÃOS, INCLUSIVE UMA (1) DEMÃO FUNDO ANTICORROSIVO","M2",408,"((1,2+0,39+0,39)*2*25*2) + (4,2*25*2) = 408,00 (perímetro do perfil metálico x comprimento x qtde.) + (área do tabuleiro x 2 lados)"]
[null,"1.5","","SERVIÇOS FINAIS",""]
[null,"1.5.1","ED-50266","LIMPEZA FINAL PARA ENTREGA DA OBRA","M2",107.44,"4,2*25,58 = 107,44 (comprimento x largura)"]

{"sheet":"Impressão - MDC Aditivo","index":52,"n_rows":102,"n_cols":7,"rows_kept":102,"cut":false,"hidden":false,"merged":[[1,1,1,6],[2,1,2,6]]}
[]
[null,"MEMÓRIA DE CÁLCULO"]
[null,"INFORMAÇÕES GERAIS"]
[null,"Município: Belo Horizonte",null,null,"Empresa Executora: Empresa de Pavimentações"]
[null,"Obra: Pavimentação da Avenida Teresa Cristina",null,null,"Nº do Contrato Licitado: 12345"]
[null,"Responsável Técnico Fiscal: Breno Oliveira Pierre de Souza",null,null,"Responsável Técnico Executor: Alan Pereira Neto Filho"]
[null,"Nº CREA/CAU: 123456-7",null,null,"Nº CREA/CAU: 789456-1"]
[null,"Contrato BDMG Nº: 256.563",null,null,"Nº do Termo Aditivo: 1"]
[null,"Data: 22/04/2020",null,null,"Tipo de Aditivo: Adição e/ou Supressão de Quantitativos, Prazo e Reajuste"]
[null,"Item","Código","Descrição","Unid.","Qtde Prevista","Memória de Cálculo"]
[null,1,null,"SERVIÇOS PRELIMINARES"]
[null,"1.1",null,"FORNECIMENTO E COLOCAÇÃO DE PLACA DE OBRA EM CHAPA GALVANIZADA (3,00 X 1,5 0 M) - EM CHAPA GALVANIZADA 0,26 AFIXADAS COM REBITES 540 E PARAFUSOS 3/8, EM ESTRUTURA METÁLICA VIGA U 2\" ENRIJECIDA COM METALON 20 X 20, SUPORTE EM EUCALIPTO AUTOCLAVADO PINTADAS","U",11,"A"]
[null,"1.2",null,"PLACA DE OBRA EM CHAPA DE ACO GALVANIZADO","M2",15,"A"]
[null,"1.3",null,"CONTAINER (6,0X2,3X2,5M) COM ISOLAMENTO TÉRMICO - DEPÓSITO E FERRAMENTARIA COM LAVATÓRIO","MÊS",4,"A"]
[null,"1.4",null,"DEMOLIÇÃO DE PASSEIO OU LAJE DE CONCRETO COM EQUIPAMENTO PNEUMÁTICO, INCLUSIVE AFASTAMENTO","M2",407.4,"A"]
[null,"1.5",null,"REGULARIZAÇÃO E COMPACTAÇÃO DE TERRENO COM PLACA VIBRATÓRIA","M2",1235.96,"A"]
[null,"1.6",null,"DEMOLIÇÃO DE PAVIMENTO PARALELEPÍPEDO REJUNTADOS COM AREIA INCLUSIVE AFASTAMENTO E EMPILHAMENTO","M2",828.56,"A"]
[null,"1.7",null,"TRANSPORTE DE MATERIAL DEMOLIDO EM CAÇAMBA","M3",123.596,"A"]
[null,2,null,"SINALIZAÇÃO HORIZONTAL"]
[null,"2.1",null,"SINALIZACAO HORIZONTAL COM TINTA RETRORREFLETIVA A BASE DE RESINA ACRILICA COM MICROESFERAS DE VIDRO","M2",877.67400000000009,"A"]
[null,"2.2",null,"SINALIZACAO HORIZONTAL COM TINTA RETRORREFLETIVA A BASE DE RESINA ACRILICA COM MICROESFERAS DE VIDRO","M2",285.69749999999999,"A"]
[null,"2.3",null,"SINALIZACAO HORIZONTAL COM TINTA RETRORREFLETIVA A BASE DE RESINA ACRILICA COM MICROESFERAS DE VIDRO","M2",1799.2,"A"]
[null,"2.4",null,"SINALIZACAO HORIZONTAL COM TINTA RETRORREFLETIVA A BASE DE RESINA ACRILICA COM MICROESFERAS DE VIDRO","M2",162.86400000000003,"A"]
[null,"2.5",null,"SINALIZACAO HORIZONTAL COM TINTA RETRORREFLETIVA A BASE DE RESINA ACRILICA COM MICROESFERAS DE VIDRO","M2",6.2880000000000003,"A"]
[null,3,null,"SINALIZAÇÃO VERTICAL"]
[null,"3.1",null,"ESCAVAÇÃO MANUAL DE VALAS H <= 1,50 M","M3",7.7399999999999993,"A"]
[null,"3.2",null,"ESCAVAÇÃO MANUAL DE VALAS H <= 1,50 M","M3",2.0699999999999998,"A"]
[null,"3.3",null,"APILOAMENTO DO FUNDO DE VALAS COM SOQUETE","M2",15.479999999999999,"A"]
[null,"3.4",null,"APILOAMENTO DO FUNDO DE VALAS COM SOQUETE","M2",4.1399999999999997,"A"]
[null,"3.5",null,"FORNECIMENTO DE CONCRETO ESTRUTURAL, PREPARADO EM OBRA, COM FCK 20 MPA, INCLUSIVE LANÇAMENTO, ADENSAMENTO E ACABAMENTO","M3",7.7399999999999993,"A"]
[null,"3.6",null,"FORNECIMENTO DE CONCRETO ESTRUTURAL, PREPARADO EM OBRA, COM FCK 20 MPA, INCLUSIVE LANÇAMENTO, ADENSAMENTO E ACABAMENTO","M3",2.0699999999999998,"A"]
[null,"3.7",null,"PLACA DE AÇO CARBONO COM PELÍCULA REFLETIVA GRAU TÉCNICO TIPO I DA ABNT - PLACA QUADRADA (EXECUÇÃO, INCLUINDO FORNECIMENTO E TRANSPORTE DE TODOS OS MATERIAIS, INCLUSIVE POSTE DE SUSTENTAÇÃO)","M2",39.75,"A"]
[null,"3.8",null,"PLACA DE AÇO CARBONO COM PELÍCULA REFLETIVA GRAU TÉCNICO TIPO I DA ABNT - PLACA QUADRADA (EXECUÇÃO, INCLUINDO FORNECIMENTO E TRANSPORTE DE TODOS OS MATERIAIS, INCLUSIVE POSTE DE SUSTENTAÇÃO)","M2",7.5,"A"]
[null,"3.9",null,"PLACA DE AÇO CARBONO COM PELÍCULA REFLETIVA GRAU TÉCNICO TIPO I DA ABNT - PLACA RETANGULAR (EXECUÇÃO, INCLUINDO FORNECIMENTO E TRANSPORTE DE TODOS OS MATERIAIS, INCLUSIVE POSTE DE SUSTENTAÇÃO)","M2",6.240000000000002,"A"]
[null,"3.10",null,"PLACA DE AÇO CARBONO COM PELÍCULA REFLETIVA GRAU TÉCNICO TIPO I DA ABNT - PLACA RETANGULAR (EXECUÇÃO, INCLUINDO FORNECIMENTO E TRANSPORTE DE TODOS OS MATERIAIS, INCLUSIVE POSTE DE SUSTENTAÇÃO)","M2",2.88,"A"]
[null,"3.11",null,"PLACA DE AÇO CARBONO COM PELÍCULA REFLETIVA GRAU TÉCNICO TIPO I DA ABNT - PLACA CIRCULAR (EXECUÇÃO, INCLUINDO FORNECIMENTO E TRANSPORTE DE TODOS OS MATERIAIS, INCLUSIVE POSTE DE SUSTENTAÇÃO)","M2",4.8,"A"]
[null,"3.12",null,"COLOCAÇÃO DE PLACAS","M2",45.99,"A"]
[null,"3.13",null,"COLOCAÇÃO DE PLACAS","M2",15.18,"A"]
[null,4,null,"PAVIMENTAÇÃO"]
[null,"4.1",null,"EXECUÇÃO DE CALÇAMENTO EM BLOQUETE - E = 8 CM - FCK = 35 MPA, INCLUINDO FORNECIMENTO E TRANSPORTE DE TODOS OS MATERIAIS, COLCHÃO DE ASSENTAMENTO E = 6 CM","M2",6869.0519999999997,"A"]
[null,"4.2",null,"MEIO-FIO COM SARJETA, EXECUTADO C/EXTRUSORA (SARJETA 30X8CM MEIO-FIO 15X10CM X H=23CM), INCLUI ESCAVAÇÃO E ACERTO FAIXA 0,45M","M",2370.9499999999998,"A"]
[null,5,null,"DRENAGEM"]
[null,"5.1",null,"GUIA (MEIO-FIO) E SARJETA CONJUGADOS DE CONCRETO, MOLDADA  IN LOCO  EM TRECHO RETO COM EXTRUSORA, 45 CM BASE (15 CM BASE DA GUIA + 30 CM BASE DA SARJETA) X 22 CM ALTURA. AF_06/2016","M",926.6,"A"]
[null,6,null,"PASSEIO / ACESSIBILIDADE "]
[null,"6.1",null,"EXECUÇÃO DE PASSEIO (CALÇADA) OU PISO DE CONCRETO COM CONCRETO MOLDADO IN LOCO, FEITO EM OBRA, ACABAMENTO CONVENCIONAL, NÃO ARMADO. AF_07/2016","M3",66.715199999999996,"A"]
[null,"6.2",null,"PISO PODOTÁTIL DE CONCRETO, DIRECIONAL, APLICADO EM PISO (40X40CM) COM JUNTA SECA, COR VERMELHO/AMARELO, ASSENTAMENTO COM ARGAMASSA INDUSTRIALIZADA, INCLUSIVE FORNECIMENTO E INSTALAÇÃO","M2",366.16,"A"]
[null,"6.3",null,"PISO PODOTÁTIL DE CONCRETO, ALERTA, APLICADO EM PISO (40X40CM) COM JUNTA SECA, COR VERMELHO/AMARELO, ASSENTAMENTO COM ARGAMASSA INDUSTRIALIZADA, INCLUSIVE FORNECIMENTO E INSTALAÇÃO","M2",4.4800000000000004,"A"]
[null,"6.4",null,"RAMPA PARA ACESSO DE DEFICIENTE, EM CONCRETO SIMPLES FCK = 25 MPA, DESEMPENADA, COM PINTURA INDICATIVA, 02 DEMÃOS","U",4,"A"]
[null,"6.5",null,"PISO INTERTRAVADO TIPO TANGRAM","m2",500.04025288211767,"A"]
[null,"6.6",null,"PISO DE CONCRETO PRÉ-MOLDADO INTERTRAVADO E = 8 CM - FCK = 35 MPA, INCLUINDO FORNECIMENTO E TRANSPORTE DE TODOS OS MATERIAIS, COLCHÃO DE ASSENTAMENTO E = 6 CM","M2",607,"A"]
[null,"6.7",null,"PISO PODOTÁTIL DE CONCRETO, DIRECIONAL, APLICADO EM PISO (40X40CM) COM JUNTA SECA, COR VERMELHO/AMARELO, ASSENTAMENTO COM ARGAMASSA INDUSTRIALIZADA, INCLUSIVE FORNECIMENTO E INSTALAÇÃO","M2",64.232000000000014,"A"]
[null,"6.8",null,"PISO PODOTÁTIL DE CONCRETO, ALERTA, APLICADO EM PISO (40X40CM) COM JUNTA SECA, COR VERMELHO/AMARELO, ASSENTAMENTO COM ARGAMASSA INDUSTRIALIZADA, INCLUSIVE FORNECIMENTO E INSTALAÇÃO","M2",2.5920000000000005,"A"]
[null,7,null,"CALÇAMENTO"]
[null,"7.1",null,"REGULARIZAÇÃO E COMPACTAÇÃO DE SUBLEITO DE SOLO  PREDOMINANTEMENTE ARGILOSO. AF_11/2019","M2",2845.28125,"A"]
[null,"7.2",null,"EXECUÇÃO DE VIA EM PISO INTERTRAVADO, COM BLOCO RETANGULAR DE 20 X 10 CM, ESPESSURA 10 CM. AF_12/2015","M2",2489.32125,"A"]
[null,8,null,"FONTE LUMINOSA"]
[null,"8.1",null,"ALVENARIA DE VEDAÇÃO COM BLOCO DE CONCRETO, ESP. 14CM, PARA REVESTIMENTO, INCLUSIVE ARGAMASSA PARA ASSENTAMENTO","M2",15.7,"A"]
[null,"8.2",null,"CHAPISCO COM ARGAMASSA, TRAÇO 1:3 (CIMENTO E AREIA), ESP. 5MM, APLICADO EM ALVENARIA COM PENEIRA, PREPARO MECÂNICO","M2",15.7,"A"]
[null,"8.3",null,"REBOCO COM ARGAMASSA, TRAÇO 1:2:8 (CIMENTO, CAL E AREIA), ESP. 20MM, APLICAÇÃO MANUAL, PREPARO MECÂNICO","M2",15.7,"A"]
[null,"8.4",null,"PINTURA ACRÍLICA EM PAREDE, DUAS (2) DEMÃOS, INCLUSIVE UMA (1) DEMÃO DE MASSA CORRIDA (PVA), EXCLUSIVE SELADOR ACRÍLICO","M2",9.42,"A"]
[null,"8.5",null,"JARDINAGEM E PAISAGISMO","m2",28.24,"A"]
[null,"8.6",null,"FORNECIMENTO DE CONCRETO NÃO ESTRUTURAL, PREPARADO EM OBRA COM BETONEIRA, COM FCK 9 MPA, INCLUSIVE LANÇAMENTO, ADENSAMENTO E ACABAMENTO","M3",12.56,"A"]
[null,"8.7",null,"CAMADA DE REGULARIZAÇÃO COM ARGAMASSA, TRAÇO 1:3 (CIMENTO E AREIA), ESP. 30MM, APLICAÇÃO MANUAL, PREPARO MECÂNICO","M2",0.37680000000000002,"A"]
[null,"8.8",null,"IMPERMEABILIZAÇÃO COM MANTA ASFÁLTICA PRÉ-FABRICADA, E = 4 MM","M2",18.84,"A"]
[null,"8.9",null,"PROTEÇÃO MECÂNICA COM ARGAMASSA, TRAÇO 1:3 (CIMENTO E AREIA), ESP. 15MM, APLICAÇÃO MANUAL, PREPARO MECÂNICO","M2",12.56,"A"]
[null,"8.10",null,"REVESTIMENTO COM PASTILHA DE VIDRO (VIDROTIL), ASSENTADO COM ARGAMASSA PRÉ-FABRICADA, INCLUSIVE REJUNTAMENTO","M2",18.84,"A"]
[null,"8.11",null,"MOTO-BOMBA 0,5 CV VM = 5M3/H 1 1/2\" R = 1 1/2\", TRIFÁSICA","U",2,"A"]
[null,"8.12",null,"QUADRO DE COMANDO PARA BOMBA P = 0,5 CV, RECALQUE","U",1,"A"]
[null,"8.13",null,"INSTALAÇÕES HIDRÁULICAS","un",1,"A"]
[null,"8.14",null,"BICO GEISER","un",2,"A"]
[null,"8.15",null,"BICO ARTICULADO","un",10,"A"]
[null,"8.16",null,"CASA DE MÁQUINAS (1,20X1,50X0,50)","un",1,"A"]
[null,9,null,"EDIFICAÇÃO PALCO"]
[null,"9.1",null,"LOCAÇÃO DA OBRA (GABARITO)","M2",86.61999999999999,"A"]
[null,"9.2",null,"ESCAVAÇÃO MANUAL DE VALAS H <= 1,50 M","M3",2.472,"A"]
[null,"9.3",null,"FORMA E DESFORMA DE TÁBUA E SARRAFO, REAPROVEITAMENTO (3X), EXCLUSIVE ESCORAMENTO","M2",21.63,"A"]
[null,"9.4",null,"CORTE, DOBRA E MONTAGEM DE AÇO CA-50 DIÂMETRO (6,3MM A 12,5MM)","KG",433.6,"AA"]
[null,"9.5",null,"PILAR EM CONCRETO APARENTE 20 MPA, INCLUSIVE ARMAÇÃO, FORMA PLASTIFICADA E DESFORMA","M3",0.48000000000000009,"A"]
[null,"9.6",null,"LAJE PRÉ-MOLDADA, A REVESTIR, INCLUSIVE CAPEAMENTO E = 4 CM, SC = 300 KG/M2, L = 5,00 M","M2",53.55,"A"]
[null,"9.7",null,"ARMADURA DE TELA DE AÇO CA-60 B SOLDADA TIPO Q-138 (DIÂMETRO DO FIO: 4,20 MM / DIMENSÕES DA TRAMA: 100 X 100 MM / TIPO DA MALHA: QUADRANGULAR )","KG",79.25,"A"]
[null,"9.8",null,"FORNECIMENTO DE CONCRETO ESTRUTURAL, PREPARADO EM OBRA, COM FCK 25 MPA, INCLUSIVE LANÇAMENTO, ADENSAMENTO E ACABAMENTO","M3",5.42,"A"]
[null,"9.9",null,"ALVENARIA DE VEDAÇÃO COM BLOCO DE CONCRETO, ESP. 9CM, PARA REVESTIMENTO, INCLUSIVE ARGAMASSA PARA ASSENTAMENTO","M2",61.8,"A"]
[null,"9.10",null,"CHAPISCO COM ARGAMASSA, TRAÇO 1:3 (CIMENTO E AREIA), ESP. 5MM, APLICADO EM ALVENARIA COM PENEIRA, PREPARO MECÂNICO","M2",61.8,"A"]
[null,"9.11",null,"REBOCO COM ARGAMASSA, TRAÇO 1:2:8 (CIMENTO, CAL E AREIA), ESP. 20MM, APLICAÇÃO MANUAL, PREPARO MECÂNICO","M2",61.8,"A"]
[null,"9.12",null,"PINTURA ACRÍLICA EM PAREDE, DUAS (2) DEMÃOS, INCLUSIVE UMA (1) DEMÃO DE MASSA CORRIDA (PVA), EXCLUSIVE SELADOR ACRÍLICO","M2",61.8,"A"]
[null,"9.13",null,"PISO EM CONCRETO, USINADO CONVENCIONAL, FCK 15MPA, COM TELA SOLDADA NERVURADA TIPO Q-138, ACABAMENTO POLÍDO EM NÍVEL ZERO, ESP. 10CM, INCLUSIVE FORNECIMENTO, LANÇAMENTO, ADENSAMENTO, EXCLUSIVE JUNTA DE DILATAÇÃO","M2",53.55,"A"]
[null,"9.14",null,"ESTRUTURA DE AÇO PARA COBERTURA EM ARCO , ESPAÇAMENTO ENTRE ARCOS 4 M, VÃO 15 M","M2",45.14,"A"]
[null,"9.15",null,"COBERTURA EM TELHA METÁLICA GALVANIZADA TRAPEZOIDAL, TIPO DUPLA TERMOACÚSTICA COM DUAS FACES TRAPEZOIDAIS, ESP. 0,43MM, PREENCHIMENTO EM POLIESTIRENO EXPANDIDO/ISOPOR COM ESP. 30MM, ACABAMENTO NATURAL, INCLUSIVE ACESSÓRIOS PARA FIXAÇÃO, FORNECIMENTO E INSTALAÇÃO","M2",45.14,"A"]
[null,10,null,"INSTALAÇÕES ELÉTRICAS"]
[null,"10.1",null,"PONTO DE LUZ EMBUTIDO, INCLUINDO ELETRODUTO DE PVC RÍGIDO E CAIXA COM ESPELHO (POR UNIDADE)","U",12,"A"]
[null,"10.2",null,"POSTE SOLAR GERADOR ENERGIA AUTONOMO COM LUMINÁRIA 12V","un",12,"A"]
[null,11,null,"URBANIZAÇÃO"]
[null,"11.1",null,"PLANTIO DE GRAMA ESMERALDA EM PLACAS, INCLUSIVE TERRA VEGETAL E CONSERVAÇÃO POR 30 DIAS","M2",28.24,"A"]
[null,"11.2",null,"CONJUNTO DE MESA E BANCOS DE CONCRETO PARA JOGOS (02 BANCOS EM ARCO COM D INTERNO = 130 CM E H = 43 CM E MESA COM D = 80 CM, E = 8 CM E H = 75 CM)","CJ",12,"A"]
[null,"11.3",null,"BANCO DE JARDIM EM CONCRETO APARENTE, ACABAMENTO EM VERNIZ, E = 8 CM, 200 X 40 X 55 CM, SEM ENCOSTO","U",22,"A"]
[null,"11.4",null,"LIXEIRA REDONDA EM TELA MOEDA - FORNECIMENTO E INSTALAÇÃO","un",19,"A"]
[null,12,null,"SERVIÇOS FINAIS"]
[null,"12.1",null,"LIMPEZA FINAL PARA ENTREGA DA OBRA","M2",1264.2,"A"]
[null,13,null,"NOVOS ITENS 1"]
[null,"13.1","IIO-PLA-005","FORNECIMENTO E COLOCAÇÃO DE PLACA DE OBRA EM CHAPA GALVANIZADA (3,00 X 1,5 0 M) - EM CHAPA GALVANIZADA 0,26 AFIXADAS COM REBITES 540 E PARAFUSOS 3/8, EM ESTRUTURA METÁLICA VIGA U 2\" ENRIJECIDA COM METALON 20 X 20, SUPORTE EM EUCALIPTO AUTOCLAVADO PINTADAS","U",1,"A"]
[null,14,null,"NOVOS ITENS 2"]
[null,"14.1","74209/1","PLACA DE OBRA EM CHAPA DE ACO GALVANIZADO","M2",2,"A"]

{"sheet":"Impressão - ORC","index":53,"n_rows":71,"n_cols":11,"rows_kept":71,"cut":false,"hidden":false,"merged":[[10,7,10,8],[10,9,10,10],[11,7,11,8],[11,9,11,10],[1,1,1,10],[2,1,2,10],[10,1,12,1],[10,2,12,2],[10,3,12,3],[10,4,12,4],[10,5,12,5],[10,6,12,6],[3,9,3,10]]}
[]
[null,"PLANILHA ORÇAMENTÁRIA"]
[null,"INFORMAÇÕES GERAIS"]
[null,"Município: Ouro Fino",null,null,null,null,null,null,null,"Referências de Preços"]
[null,"Projeto: CONSTRUÇÃO DE PONTE MISTA DE 25,0M SOBREO RIO MOJI GUAÇU",null,null,null,null,null,null,1,"SINAPI 05_2023"]
[null,"Responsável Técnico: VANESSA FARIA GRISOLIA",null,null,null,null,null,null,2,"SEINFRA SUL 01_2023"]
[null,"Nº CREA/CAU: 119171/D",null,null,null,null,null,null,3,"DNIT 01_2023"]
[null,"BDI1: 24,67% - Construção de Praças Urbanas, Rodovias, Ferrovias e recapeamento e pavimentação de vias urbanas"]
[null,"BDI2: 22,61% - Estudos e Projetos, Planos e Gerenciamento e outros correlatos"]
[null,"Data: 14/07/2023"]
[null,"Item","Código","Descrição","Unid.","BDI\nREF.","Quantidade Prevista","Preço (R$)",null,"Preço (R$)"]
[null,null,null,null,null,null,null,"Sem BDI",null,"Com BDI"]
[null,null,null,null,null,null,null,"Unitário","Total","Unitário","Total"]
[null,null,null,"CONSTRUÇÃO DE PONTE MISTA DE 25,0M SOBREO RIO MOJI GUAÇU",null,null,null,null,1133067.6099999999,null,1412609.13]
[null,"1","","CONSTRUÇÃO DA PONTE","",null,null,null,1133067.6099999999,null,1412609.13]
[null,"1.1","","SERVIÇOS PRELIMINARES","",null,null,null,62551.029999999992,null,77937.91]
[null,"1.1.1","ED-28427","FORNECIMENTO E COLOCAÇÃO DE PLACA DE OBRA EM CHAPA GALVANIZADA #26, ESP. 0,45MM, DIMENSÃO (3X1,5)M, PLOTADA COM ADESIVO VINÍLICO, AFIXADA COM REBITES 4,8X40MM, EM ESTRUTURA METÁLICA DE METALON 20X20MM, ESP. 1,25MM, INCLUSIVE SUPORTE EM EUCALIPTO AUTOCLAVADO PINTADO COM TINTA PVA DUAS (2) DEMÃOS","UN","BDI1",1,1419.25,1419.25,1769.38,1769.38]
[null,"1.1.2","CO-28390","MOBILIZAÇÃO E DESMOBILIZAÇÃO DE EQUIPAMENTO DE SONDAGEM A PERCUSSÃO COM ENSAIO DE PENETRAÇÃO PADRÃO (SPT) - (CUSTO FIXO)","UN","BDI1",1,693.08,693.08,864.06,864.06]
[null,"1.1.3","CO-28388","SONDAGEM A PERCUSSÃO COM ENSAIO DE PENETRAÇÃO PADRÃO (SPT), DIÂMETRO 2.1/2\", EXCLUSIVE MOBILIZAÇÃO E DESMOBILIZAÇÃO","M","BDI1",40,72.5,2900,90.39,3615.6]
[null,"1.1.4","ED-50393","MOBILIZAÇÃO E DESMOBILIZAÇÃO DE OBRA EM CENTRO URBANO OU REGIÃO LIMÍTROFE COM VALOR ENTRE 1.000.000,01 E 3.000.000,00","%","BDI1",11146.28,0.3,3343.88,0.37,4124.12]
[null,"1.1.5","ED-50137","MOBILIZAÇÃO E DESMOBILIZAÇÃO DE CONTAINER, INCLUSIVE CARGA, DESCARGA E TRANSPORTE EM CAMINHÃO CARROCERIA COM GUINDAUTO (MUNCK), EXCLUSIVE LOCAÇÃO DO CONTAINER","UN","BDI1",2,649.44000000000005,1298.8800000000001,809.66,1619.32]
[null,"1.1.6","ED-16349","LOCAÇÃO DE CONTAINER COM ISOLAMENTO TÉRMICO, TIPO 2, PARA ESCRITÓRIO DE OBRA COM SANITÁRIO CONTENDO UM (1) VASO SANITÁRIO E UM (1) LAVATÓRIO, COM MEDIDAS REFERENCIAIS DE (6) METROS COMPRIMENTO, (2,3) METROS LARGURA E (2,5) METROS ALTURA ÚTIL INTERNA, INCLUSIVE AR CONDICIONADO E LIGAÇÕES ELÉTRICAS E HIDROSSANITÁRIAS INTERNAS, EXCLUSIVE MOBILIZAÇÃO/DESMOBILIZAÇÃO E LIGAÇÕES PROVISÓRIAS EXTERNAS","MÊS","BDI1",3,953.49,2860.47,1188.72,3566.16]
[null,"1.1.7","ED-16357","LIGAÇÕES PROVISÓRIAS PARA CONTAINER TIPO 2 (CORRESPONDENTE AO CÓDIGO ED-16349)","UN","BDI1",3,658.91,1976.73,821.46,2464.38]
[null,"1.1.8","ED-16350","LOCAÇÃO DE CONTAINER COM ISOLAMENTO TÉRMICO, TIPO 3, PARA DEPÓSITO/FERRAMENTARIA DE OBRA, COM MEDIDAS REFERENCIAIS DE (6) METROS COMPRIMENTO, (2,3) METROS LARGURA E (2,5) METROS ALTURA ÚTIL INTERNA, INCLUSIVE LIGAÇÕES ELÉTRICAS INTERNAS, EXCLUSIVE MOBILIZAÇÃO/DESMOBILIZAÇÃO E LIGAÇÕES PROVISÓRIAS EXTERNAS","MÊS","BDI1",3,689.47,2068.41,859.56,2578.6799999999998]
[null,"1.1.9","ED-16358","LIGAÇÕES PROVISÓRIAS PARA CONTAINER TIPO 3 (CORRESPONDENTE AO CÓDIGO ED-16350)","UN","BDI1",1,340.69,340.69,424.74,424.74]
[null,"1.1.10","ED-50274","LOCAÇÃO TOPOGRÁFICA PARA ATÉ VINTE (20) PONTOS REFERENCIAIS, INCLUSIVE ESTACA (PIQUETE) DE MARCAÇÃO","UN","BDI1",20,81.8,1636,101.98,2039.6]
[null,"1.1.11","ED-17989","LOCAÇÃO DE OBRA COM GABARITO DE TÁBUAS CORRIDAS PONTALETADAS A CADA 2,00M, REAPROVEITAMENTO (2X), INCLUSIVE ACOMPANHAMENTO DE EQUIPE TOPOGRÁFICA PARA MARCAÇÃO DE PONTO TOPOGRÁFICO","M","BDI1",70.02,52.95,3707.56,66.010000000000005,4622.0200000000004]
[null,"1.1.12","ED-50423","ENSECADEIRA INCLUSIVE RETIRADA DO MADEIRAMENTO , PAREDE DUPLA","M2","BDI1",22.86,394.48,9017.81,491.8,11242.55]
[null,"1.1.13","ED-51107","ESCAVAÇÃO MANUAL DE VALA COM PROFUNDIDADE MENOR OU IGUAL A 1,5M, INCLUSIVE DESCARGA LATERAL","M3","BDI1",22.58,67.39,1521.67,84.02,1897.17]
[null,"1.1.14","ED-51123","REGULARIZAÇÃO MANUAL E COMPACTAÇÃO MECANIZADA DE TERRENO COM PLACA VIBRATÓRIA, EXCLUSIVE DESMATAMENTO, DESTOCAMENTO, LIMPEZA/ROÇADA DO TERRENO","M2","BDI1",28.22,4.71,132.91999999999999,5.87,165.65]
[null,"1.1.15",104482,"ESGOTAMENTO DE VALA COM BOMBA SUBMERSÍVEL. AF_12/2022","H","BDI1",320,28.78,9209.6,35.880000000000003,11481.6]
[null,"1.1.16","ED-50151","LIGAÇÃO PROVISÓRIA COM ENTRADA DE ENERGIA AÉREA, PADRÃO CEMIG, CARGA INSTALADA DE 15,1KVA ATÉ 30KVA, TRIFÁSICO, COM SAÍDA SUBTERRÂNEA, INCLUSIVE POSTE, CAIXA PARA MEDIDOR, DISJUNTOR, BARRAMENTO, ATERRAMENTO E ACESSÓRIOS","UN","BDI1",1,1201.96,1201.96,1498.48,1498.48]
[null,"1.1.17","ED-49812","LASTRO DE CONCRETO MAGRO, INCLUSIVE TRANSPORTE, LANÇAMENTO E ADENSAMENTO","M3","BDI1",2.82,533.78,1505.26,665.46,1876.6]
[null,"1.1.18",98459,"TAPUME COM TELHA METÁLICA. AF_05/2018","M2","BDI1",117.72,150.5,17716.86,187.63,22087.8]
[null,"1.2","","INFRA ESTRUTURA / FUNDAÇÃO PROFUNDA","",null,null,null,216507.39999999997,null,269924.96999999997]
[null,"1.2.1","ED-29819","MOBILIZAÇÃO E DESMOBILIZAÇÃO DE EQUIPAMENTO PARA ESTACA TIPO CRAVADA (CUSTO FIXO), INCLUSIVE CARGA E DESCARGA, EXCLUSIVE TRANSPORTE EM QUILÔMETRO RODADO (CUSTO VARIÁVEL)","UN","BDI1",1,9509.7999999999993,9509.7999999999993,11855.87,11855.87]
[null,"1.2.2","ED-29820","MOBILIZAÇÃO E DESMOBILIZAÇÃO DE EQUIPAMENTO PARA ESTACA TIPO CRAVADA (CUSTO VARIÁVEL), EXCLUSIVE CUSTO FIXO DE TRANSPORTE","KM","BDI1",120,24.98,2997.6,31.14,3736.8]
[null,"1.2.3",100658,"ESTACA PRÉ-MOLDADA DE CONCRETO CENTRIFUGADO, SEÇÃO CIRCULAR, CAPACIDADE DE 100 TONELADAS, INCLUSO EMENDA (EXCLUSIVE MOBILIZAÇÃO E DESMOBILIZAÇÃO). AF_12/2019","M","BDI1",512,327.22000000000003,167536.64000000001,407.95,208870.39999999999]
[null,"1.2.4","ED-29686","CORTE E PREPARO DE CABEÇA/ARRASAMENTO MECANIZADO  DE ESTACA PARA BLOCO DE COROAMENTO, INCLUSIVE AFASTAMENTO E EMPILHAMENTO, EXCLUSIVE TRANSPORTE E RETIRADA DO MATERIAL DEMOLIDO","M3","BDI1",5.47,153.46,839.43,191.32,1046.52]
[null,"1.2.5","ED-8571","FÔRMA E DESFORMA DE COMPENSADO PLASTIFICADO, ESP. 12MM, REAPROVEITAMENTO (3X) (FUNDAÇÃO)","M2","BDI1",36.46,76.099999999999994,2774.61,94.87,3458.96]
[null,"1.2.6","ED-48295","CORTE, DOBRA E MONTAGEM DE AÇO CA-50, DIÂMETRO (6,3MM A 12,5MM), INCLUSIVE ESPAÇADOR","KG","BDI1",1044.79,13.81,14428.55,17.22,17991.28]
[null,"1.2.7","ED-49639","FORNECIMENTO DE CONCRETO ESTRUTURAL, USINADO BOMBEADO, COM FCK 30MPA, INCLUSIVE LANÇAMENTO, ADENSAMENTO E ACABAMENTO","M3","BDI1",22.58,754.07,17026.900000000001,940.1,21227.46]
[null,"1.2.8","RO-41544","CIMBRAMENTO: ESCORAMENTO EM MADEIRA (EXECUÇÃO, INCLUINDO O FORNECIMENTO E TRANSPORTE DE TODOS OS MATERIAIS)","M3","BDI1",18.23,76.459999999999994,1393.87,95.32,1737.68]
[null,"1.3","","SUPRA ESTRUTURA / MESOESTRUUTURA","",null,null,null,774136.04,null,965168.33000000007]
[null,"1.3.1","ED-8398","FÔRMA E DESFORMA DE COMPENSADO PLASTIFICADO, ESP. 12MM, REAPROVEITAMENTO (3X), EXCLUSIVE ESCORAMENTO","M2","BDI1",304.55,78.02,23760.99,97.27,29623.58]
[null,"1.3.2","RO-41544","CIMBRAMENTO: ESCORAMENTO EM MADEIRA (EXECUÇÃO, INCLUINDO O FORNECIMENTO E TRANSPORTE DE TODOS OS MATERIAIS)","M3","BDI1",152.27000000000001,76.459999999999994,11642.56,95.32,14514.38]
[null,"1.3.3","ED-48295","CORTE, DOBRA E MONTAGEM DE AÇO CA-50, DIÂMETRO (6,3MM A 12,5MM), INCLUSIVE ESPAÇADOR","KG","BDI1",2602.7600000000002,13.81,35944.120000000003,17.22,44819.53]
[null,"1.3.4","CPU-001","FABRICAÇÃO E FORNECIMENTO DAS TRANSVERSINAS, CONTRAVENTAMENTOS, CHAPAS DE LIGAÇÃO E CONECTORES DE LIGAÇÃO AO TABULEIRO","KG","BDI1",4891.71,27.370190000000001,133886.1,34.119999999999997,166905.15]
[null,"1.3.5",100716,"JATEAMENTO ABRASIVO COM GRANALHA DE AÇO EM PERFIL METÁLICO EM FÁBRICA. AF_01/2020","M2","BDI1",408,27.06,11040.48,33.74,13765.92]
[null,"1.3.6","ED-29091","TRANSPORTE DE VIGA OU TABULEIRO PARA PONTE (CUSTO FIXO), INCLUSIVE CARGA, EXCLUSIVE FORNECIMENTO , DESCARGA E TRANSPORTE EM QUILÔMETRO RODADO (CUSTO VARIÁVEL)","UN","BDI1",1,2479.19,2479.19,3090.81,3090.81]
[null,"1.3.7","ED-29092","TRANSPORTE DE VIGA OU TABULEIRO PARA PONTE (CUSTO VARIÁVEL), EXCLUSIVE FORNECIMENTO , DESCARGA E CUSTO FIXO DE TRANSPORTE","TXKM","BDI1",17508.740000000002,0.76,13306.64,0.95,16633.3]
[null,"1.3.8","ED-29090","DESCARGA DE CAMINHÃO, PARA ELEMENTOS DE VIGA OU TABULEIRO PARA PONTE, INCLUSIVE DESCARGA DE PERFIS LONGARINAS, TRANSVERSINAS, CHAPAS E ACESSÓRIOS, EXCLUSIVE FORNECIMENTO E TRANSPORTE","UN","BDI1",1,3892.7,3892.7,4853.03,4853.03]
[null,"1.3.9","ED-50428","LANÇAMENTO DE VIGA PARA PONTE, EXCLUSIVE FORNECIMENTO, DESCARGA E TRANSPORTE - PROJETO PADRÃO SEINFRA-MG","KG","BDI1",19454.16,1.47,28597.62,1.83,35601.11]
[null,"1.3.10","ED-49639","FORNECIMENTO DE CONCRETO ESTRUTURAL, USINADO BOMBEADO, COM FCK 30MPA, INCLUSIVE LANÇAMENTO, ADENSAMENTO E ACABAMENTO","M3","BDI1",66.86,754.07,50417.120000000003,940.1,62855.09]
[null,"1.3.11","ED-49641","FORNECIMENTO DE CONCRETO ESTRUTURAL, USINADO BOMBEADO, COM FCK 40MPA, INCLUSIVE LANÇAMENTO, ADENSAMENTO E ACABAMENTO","M3","BDI1",21,804.15,16887.150000000001,1002.53,21053.13]
[null,"1.3.12","RO-41582","APARELHOS DE APOIO EM NEOPRENE FRETADO (EXECUÇÃO, INCLUINDO A APLICAÇÃO, FORNECIMENTO E TRANSPORTE DOS MATERIAIS)","DM3","BDI1",9.3000000000000007,106.39,989.43,132.63999999999999,1233.55]
[null,"1.3.13","CPU-002","TABULEIRO EM ESTRUTURA METÁLICA AUTPORTANTE (ASSOALHO EM STEEL DECK 1,25MM)","M²","BDI1",105,378.04442100000006,39694.199999999997,471.3,49486.5]
[null,"1.3.14","ED-48295","CORTE, DOBRA E MONTAGEM DE AÇO CA-50, DIÂMETRO (6,3MM A 12,5MM), INCLUSIVE ESPAÇADOR","KG","BDI1",196.71,13.81,2716.57,17.22,3387.35]
[null,"1.3.15",42407,"TRELICA NERVURADA (ESPACADOR), ALTURA = 120,0 MM, DIAMETRO DOS BANZOS INFERIORES E SUPERIOR = 6,0 MM, DIAMETRO DA DIAGONAL = 4,2 MM","M","BDI1",211.65,7.4,1566.21,9.23,1953.53]
[null,"1.3.16","0408067","TELA DE AÇO ELETROSSOLDADA - FORNECIMENTO, PREPARO E COLOCAÇÃO","KG","BDI1",1263.02,11.94,15080.46,14.89,18806.37]
[null,"1.3.17","CPU-003","FABRICAÇÃO E FORNECIMENTO DOS PERFIS METÁLICOS SOLDADOS AÇO ASTM A-36 DIM. (1200X12,7X390X22,4X390X25,4)MM X 2500MM X 261,0KG/M","KG","BDI1",13050,29.290995000000002,382234.5,36.520000000000003,476586]
[null,"1.4","","SERVIÇOS COMPLEMENTARES","",null,null,null,79112.460000000006,null,98629.22]
[null,"1.4.1","RO-42808","DRENO PROFUNDO COM AREIA, SEM SELO, COM 1,50X0,40 M E TUBO DE POLIETILENO DE ALTA DENSIDADE PERFURADO, DE 100MM ENVOLVIDO EM MANTA GEOTÊXTIL NÃO TECIDA, TIPO DR.DP-02 (EXECUÇÃO  INCLUINDO  ESCAVAÇÃO , FORNECIMENTO DE TODOS OS MATERIAIS, EXCETO TRANSPORTE DOS AGREGADOS)","M","BDI1",76.16,100.25,7635.04,124.98,9518.48]
[null,"1.4.2","ED-50671","BUZINOTE PARA LAJES - DRENO COM TUBO DE 2\" EMBUTIDO NO CONCRETO","M","BDI1",17,37.18,632.05999999999995,46.35,787.95]
[null,"1.4.3",4777,"CANTONEIRA ACO ABAS IGUAIS (QUALQUER BITOLA), ESPESSURA ENTRE 1/8\" E 1/4\"","KG","BDI1",21.03,8.2200000000000006,172.87,10.25,215.56]
[null,"1.4.4","ED-50174","PINTURA COM EMULSÃO ASFÁLTICA, DUAS (2) DEMÃOS","M2","BDI1",213.98,25.26,5405.13,31.49,6738.23]
[null,"1.4.5","ED-49810","FÔRMA E DESFORMA DE TÁBUA E SARRAFO, REAPROVEITAMENTO (3X) (FUNDAÇÃO)","M2","BDI1",10.55,60.61,639.44000000000005,75.56,797.16]
[null,"1.4.6",100727,"PINTURA COM TINTA EPOXÍDICA DE FUNDO PULVERIZADA SOBRE PERFIL METÁLICO EXECUTADO EM FÁBRICA (POR DEMÃO). AF_01/2020_PE","M2","BDI1",1671.6,30,50148,37.4,62517.84]
[null,"1.4.7","ED-50497","PINTURA ESMALTE EM ESTRUTURA METÁLICA, DUAS (2) DEMÃOS, INCLUSIVE UMA (1) DEMÃO FUNDO ANTICORROSIVO","M2","BDI1",408,35.49,14479.92,44.25,18054]
[null,"1.5","","SERVIÇOS FINAIS","",null,null,null,760.68,null,948.7]
[null,"1.5.1","ED-50266","LIMPEZA FINAL PARA ENTREGA DA OBRA","M2","BDI1",107.44,7.08,760.68,8.83,948.7]

{"sheet":"Impressão - ORC Aditivo","index":54,"n_rows":103,"n_cols":15,"rows_kept":103,"cut":false,"hidden":false,"merged":[[1,1,1,14],[2,1,2,14]]}
[]
[null,"PLANILHA ORÇAMENTÁRIA"]
[null,"INFORMAÇÕES GERAIS"]
[null,"Município: Belo Horizonte",null,null,null,null,"Empresa Executora: Empresa de Pavimentações",null,null,null,null,null,"BDIs Utilizados:",null,"BDI1 = 24,00%"]
[null,"Obra: Pavimentação da Avenida Teresa Cristina",null,null,null,null,"Nº do Contrato Licitado: 12345",null,null,null,null,null,"(BDIs utilizados na planilha licitada)",null,"BDI2 = 22,49%"]
[null,"Responsável Técnico Fiscal: Breno Oliveira Pierre de Souza",null,null,null,null,"Responsável Técnico Executor: Alan Pereira Neto Filho"]
[null,"Nº CREA/CAU: 123456-7",null,null,null,null,"Nº CREA/CAU: 789456-1",null,null,null,null,null,"Índice de Reajuste:",null,"100,00%"]
[null,"Contrato BDMG Nº: 256.563",null,null,null,null,"Nº do Termo Aditivo: 1",null,null,null,null,null,"(Somente quando houver)"]
[null,"Data: 13/04/2020",null,null,null,null,"Tipo de Aditivo: Adição e/ou Supressão de Quantitativos, Prazo e Reajuste"]
[null,"Item","Código","Discriminação\nConforme Planilha Orçamentária Licitada e suas alterações","Unid.","Quantidade\nPrevista\nAnterior\nA","Quantidade\nAdicionada / \nSuprimida\nB","Quantidade\nPrevista\nTotal\nC","Quantidade\nExecutada\n\nD","Quantidade\na Executar\n\nE","Valor Unitário\nsem BDI (R$)\n\nF","Valor Unitário\ncom BDI (R$)\n\nG","Valor Unitário\ncom Reajuste\n(R$)\nH","Valor Total\nPrevisto\nAnterior (R$)\nI","Valor Total\nPrevisto\nAtual (R$)\nJ"]
[null,null,null,"Pavimentação da Avenida Teresa Cristina",null,null,null,null,null,null,null,null,null,1132061.9914110813,2252045.6028221631]
[null,1,null,"SERVIÇOS PRELIMINARES",null,null,null,null,null,null,null,null,null,47468.465600000003,83919.251200000013]
[null,"1.1",null,"FORNECIMENTO E COLOCAÇÃO DE PLACA DE OBRA EM CHAPA GALVANIZADA (3,00 X 1,5 0 M) - EM CHAPA GALVANIZADA 0,26 AFIXADAS COM REBITES 540 E PARAFUSOS 3/8, EM ESTRUTURA METÁLICA VIGA U 2\" ENRIJECIDA COM METALON 20 X 20, SUPORTE EM EUCALIPTO AUTOCLAVADO PINTADAS","U",11,0,11,8,3,null,1377.21,2754.42,15149.310000000001,19280.940000000002]
[null,"1.2",null,"PLACA DE OBRA EM CHAPA DE ACO GALVANIZADO","M2",15,0,15,0,15,null,375.03,750.06,5625.45,11250.9]
[null,"1.3",null,"CONTAINER (6,0X2,3X2,5M) COM ISOLAMENTO TÉRMICO - DEPÓSITO E FERRAMENTARIA COM LAVATÓRIO","MÊS",4,0,4,0,4,null,924.06,1848.12,3696.24,7392.48]
[null,"1.4",null,"DEMOLIÇÃO DE PASSEIO OU LAJE DE CONCRETO COM EQUIPAMENTO PNEUMÁTICO, INCLUSIVE AFASTAMENTO","M2",407.4,0,407.4,0,407.4,null,9.25,18.5,3768.45,7536.9]
[null,"1.5",null,"REGULARIZAÇÃO E COMPACTAÇÃO DE TERRENO COM PLACA VIBRATÓRIA","M2",1235.96,0,1235.96,0,1235.96,null,3.21,6.42,3967.4315999999999,7934.8631999999998]
[null,"1.6",null,"DEMOLIÇÃO DE PAVIMENTO PARALELEPÍPEDO REJUNTADOS COM AREIA INCLUSIVE AFASTAMENTO E EMPILHAMENTO","M2",828.56,0,828.56,0,828.56,null,14.72,29.44,12196.403199999999,24392.806399999998]
[null,"1.7",null,"TRANSPORTE DE MATERIAL DEMOLIDO EM CAÇAMBA","M3",123.596,0,123.596,0,123.596,null,24.8,49.6,3065.1808000000001,6130.3616000000002]
[null,2,null,"SINALIZAÇÃO HORIZONTAL",null,null,null,null,null,null,null,null,null,56057.63167000001,112115.26334000002]
[null,"2.1",null,"SINALIZACAO HORIZONTAL COM TINTA RETRORREFLETIVA A BASE DE RESINA ACRILICA COM MICROESFERAS DE VIDRO","M2",877.67400000000009,0,877.67400000000009,0,877.67400000000009,null,17.920000000000002,35.840000000000003,15727.918080000003,31455.836160000006]
[null,"2.2",null,"SINALIZACAO HORIZONTAL COM TINTA RETRORREFLETIVA A BASE DE RESINA ACRILICA COM MICROESFERAS DE VIDRO","M2",285.69749999999999,0,285.69749999999999,0,285.69749999999999,null,17.7,35.4,5056.8457499999995,10113.691499999999]
[null,"2.3",null,"SINALIZACAO HORIZONTAL COM TINTA RETRORREFLETIVA A BASE DE RESINA ACRILICA COM MICROESFERAS DE VIDRO","M2",1799.2,0,1799.2,0,1799.2,null,17.920000000000002,35.840000000000003,32241.664000000004,64483.328000000009]
[null,"2.4",null,"SINALIZACAO HORIZONTAL COM TINTA RETRORREFLETIVA A BASE DE RESINA ACRILICA COM MICROESFERAS DE VIDRO","M2",162.86400000000003,0,162.86400000000003,0,162.86400000000003,null,17.920000000000002,35.840000000000003,2918.5228800000009,5837.0457600000018]
[null,"2.5",null,"SINALIZACAO HORIZONTAL COM TINTA RETRORREFLETIVA A BASE DE RESINA ACRILICA COM MICROESFERAS DE VIDRO","M2",6.2880000000000003,0,6.2880000000000003,0,6.2880000000000003,null,17.920000000000002,35.840000000000003,112.68096000000001,225.36192000000003]
[null,3,null,"SINALIZAÇÃO VERTICAL",null,null,null,null,null,null,null,null,null,36161.310899999997,72322.621799999994]
[null,"3.1",null,"ESCAVAÇÃO MANUAL DE VALAS H <= 1,50 M","M3",7.7399999999999993,0,7.7399999999999993,0,7.7399999999999993,null,62.73,125.46,485.53019999999992,971.06039999999985]
[null,"3.2",null,"ESCAVAÇÃO MANUAL DE VALAS H <= 1,50 M","M3",2.0699999999999998,0,2.0699999999999998,0,2.0699999999999998,null,61.97,123.94,128.27789999999999,256.55579999999998]
[null,"3.3",null,"APILOAMENTO DO FUNDO DE VALAS COM SOQUETE","M2",15.479999999999999,0,15.479999999999999,0,15.479999999999999,null,21.22,42.44,328.48559999999998,656.97119999999995]
[null,"3.4",null,"APILOAMENTO DO FUNDO DE VALAS COM SOQUETE","M2",4.1399999999999997,0,4.1399999999999997,0,4.1399999999999997,null,20.96,41.92,86.7744,173.5488]
[null,"3.5",null,"FORNECIMENTO DE CONCRETO ESTRUTURAL, PREPARADO EM OBRA, COM FCK 20 MPA, INCLUSIVE LANÇAMENTO, ADENSAMENTO E ACABAMENTO","M3",7.7399999999999993,0,7.7399999999999993,0,7.7399999999999993,null,542.25,1084.5,4197.0149999999994,8394.0299999999988]
[null,"3.6",null,"FORNECIMENTO DE CONCRETO ESTRUTURAL, PREPARADO EM OBRA, COM FCK 20 MPA, INCLUSIVE LANÇAMENTO, ADENSAMENTO E ACABAMENTO","M3",2.0699999999999998,0,2.0699999999999998,0,2.0699999999999998,null,535.65,1071.3,1108.7954999999999,2217.5909999999999]
[null,"3.7",null,"PLACA DE AÇO CARBONO COM PELÍCULA REFLETIVA GRAU TÉCNICO TIPO I DA ABNT - PLACA QUADRADA (EXECUÇÃO, INCLUINDO FORNECIMENTO E TRANSPORTE DE TODOS OS MATERIAIS, INCLUSIVE POSTE DE SUSTENTAÇÃO)","M2",39.75,0,39.75,0,39.75,null,405.16,810.32,16105.11,32210.22]
[null,"3.8",null,"PLACA DE AÇO CARBONO COM PELÍCULA REFLETIVA GRAU TÉCNICO TIPO I DA ABNT - PLACA QUADRADA (EXECUÇÃO, INCLUINDO FORNECIMENTO E TRANSPORTE DE TODOS OS MATERIAIS, INCLUSIVE POSTE DE SUSTENTAÇÃO)","M2",7.5,0,7.5,0,7.5,null,400.22,800.44,3001.65,6003.3]
[null,"3.9",null,"PLACA DE AÇO CARBONO COM PELÍCULA REFLETIVA GRAU TÉCNICO TIPO I DA ABNT - PLACA RETANGULAR (EXECUÇÃO, INCLUINDO FORNECIMENTO E TRANSPORTE DE TODOS OS MATERIAIS, INCLUSIVE POSTE DE SUSTENTAÇÃO)","M2",6.240000000000002,0,6.240000000000002,0,6.240000000000002,null,428.49,856.98,2673.7776000000008,5347.5552000000016]
[null,"3.10",null,"PLACA DE AÇO CARBONO COM PELÍCULA REFLETIVA GRAU TÉCNICO TIPO I DA ABNT - PLACA RETANGULAR (EXECUÇÃO, INCLUINDO FORNECIMENTO E TRANSPORTE DE TODOS OS MATERIAIS, INCLUSIVE POSTE DE SUSTENTAÇÃO)","M2",2.88,0,2.88,0,2.88,null,423.28,846.56,1219.0463999999999,2438.0927999999999]
[null,"3.11",null,"PLACA DE AÇO CARBONO COM PELÍCULA REFLETIVA GRAU TÉCNICO TIPO I DA ABNT - PLACA CIRCULAR (EXECUÇÃO, INCLUINDO FORNECIMENTO E TRANSPORTE DE TODOS OS MATERIAIS, INCLUSIVE POSTE DE SUSTENTAÇÃO)","M2",4.8,0,4.8,0,4.8,null,413.06,826.12,1982.6879999999999,3965.3759999999997]
[null,"3.12",null,"COLOCAÇÃO DE PLACAS","M2",45.99,0,45.99,0,45.99,null,79.430000000000007,158.86000000000001,3652.9857000000006,7305.9714000000013]
[null,"3.13",null,"COLOCAÇÃO DE PLACAS","M2",15.18,0,15.18,0,15.18,null,78.47,156.94,1191.1746000000001,2382.3492000000001]
[null,4,null,"PAVIMENTAÇÃO",null,null,null,null,null,null,null,null,null,481972.83540000004,963945.67080000008]
[null,"4.1",null,"EXECUÇÃO DE CALÇAMENTO EM BLOQUETE - E = 8 CM - FCK = 35 MPA, INCLUINDO FORNECIMENTO E TRANSPORTE DE TODOS OS MATERIAIS, COLCHÃO DE ASSENTAMENTO E = 6 CM","M2",6869.0519999999997,0,6869.0519999999997,0,6869.0519999999997,null,57.45,114.9,394627.03740000003,789254.07480000006]
[null,"4.2",null,"MEIO-FIO COM SARJETA, EXECUTADO C/EXTRUSORA (SARJETA 30X8CM MEIO-FIO 15X10CM X H=23CM), INCLUI ESCAVAÇÃO E ACERTO FAIXA 0,45M","M",2370.9499999999998,0,2370.9499999999998,0,2370.9499999999998,null,36.840000000000003,73.680000000000007,87345.797999999995,174691.59599999999]
[null,5,null,"DRENAGEM",null,null,null,null,null,null,null,null,null,36600.700000000004,73201.400000000009]
[null,"5.1",null,"GUIA (MEIO-FIO) E SARJETA CONJUGADOS DE CONCRETO, MOLDADA  IN LOCO  EM TRECHO RETO COM EXTRUSORA, 45 CM BASE (15 CM BASE DA GUIA + 30 CM BASE DA SARJETA) X 22 CM ALTURA. AF_06/2016","M",926.6,0,926.6,0,926.6,null,39.5,79,36600.700000000004,73201.400000000009]
[null,6,null,"PASSEIO / ACESSIBILIDADE ",null,null,null,null,null,null,null,null,null,126844.14626158126,253688.29252316253]
[null,"6.1",null,"EXECUÇÃO DE PASSEIO (CALÇADA) OU PISO DE CONCRETO COM CONCRETO MOLDADO IN LOCO, FEITO EM OBRA, ACABAMENTO CONVENCIONAL, NÃO ARMADO. AF_07/2016","M3",66.715199999999996,0,66.715199999999996,0,66.715199999999996,null,624.39,1248.78,41656.303727999999,83312.607455999998]
[null,"6.2",null,"PISO PODOTÁTIL DE CONCRETO, DIRECIONAL, APLICADO EM PISO (40X40CM) COM JUNTA SECA, COR VERMELHO/AMARELO, ASSENTAMENTO COM ARGAMASSA INDUSTRIALIZADA, INCLUSIVE FORNECIMENTO E INSTALAÇÃO","M2",366.16,0,366.16,0,366.16,null,85.35,170.7,31251.756000000001,62503.512000000002]
[null,"6.3",null,"PISO PODOTÁTIL DE CONCRETO, ALERTA, APLICADO EM PISO (40X40CM) COM JUNTA SECA, COR VERMELHO/AMARELO, ASSENTAMENTO COM ARGAMASSA INDUSTRIALIZADA, INCLUSIVE FORNECIMENTO E INSTALAÇÃO","M2",4.4800000000000004,0,4.4800000000000004,0,4.4800000000000004,null,85.35,170.7,382.36799999999999,764.73599999999999]
[null,"6.4",null,"RAMPA PARA ACESSO DE DEFICIENTE, EM CONCRETO SIMPLES FCK = 25 MPA, DESEMPENADA, COM PINTURA INDICATIVA, 02 DEMÃOS","U",4,0,4,0,4,null,354.64,709.28,1418.56,2837.12]
[null,"6.5",null,"PISO INTERTRAVADO TIPO TANGRAM","m2",500.04025288211767,0,500.04025288211767,0,500.04025288211767,null,2.11,4.22,1055.0849335812682,2110.1698671625363]
[null,"6.6",null,"PISO DE CONCRETO PRÉ-MOLDADO INTERTRAVADO E = 8 CM - FCK = 35 MPA, INCLUINDO FORNECIMENTO E TRANSPORTE DE TODOS OS MATERIAIS, COLCHÃO DE ASSENTAMENTO E = 6 CM","M2",607,0,607,0,607,null,74.64,149.28,45306.48,90612.96]
[null,"6.7",null,"PISO PODOTÁTIL DE CONCRETO, DIRECIONAL, APLICADO EM PISO (40X40CM) COM JUNTA SECA, COR VERMELHO/AMARELO, ASSENTAMENTO COM ARGAMASSA INDUSTRIALIZADA, INCLUSIVE FORNECIMENTO E INSTALAÇÃO","M2",64.232000000000014,0,64.232000000000014,0,64.232000000000014,null,86.4,172.8,5549.6448000000019,11099.289600000004]
[null,"6.8",null,"PISO PODOTÁTIL DE CONCRETO, ALERTA, APLICADO EM PISO (40X40CM) COM JUNTA SECA, COR VERMELHO/AMARELO, ASSENTAMENTO COM ARGAMASSA INDUSTRIALIZADA, INCLUSIVE FORNECIMENTO E INSTALAÇÃO","M2",2.5920000000000005,0,2.5920000000000005,0,2.5920000000000005,null,86.4,172.8,223.94880000000006,447.89760000000012]
[null,7,null,"CALÇAMENTO",null,null,null,null,null,null,null,null,null,199757.97518750001,399515.95037500001]
[null,"7.1",null,"REGULARIZAÇÃO E COMPACTAÇÃO DE SUBLEITO DE SOLO  PREDOMINANTEMENTE ARGILOSO. AF_11/2019","M2",2845.28125,0,2845.28125,0,2845.28125,null,1.79,3.58,5093.0534374999997,10186.106874999999]
[null,"7.2",null,"EXECUÇÃO DE VIA EM PISO INTERTRAVADO, COM BLOCO RETANGULAR DE 20 X 10 CM, ESPESSURA 10 CM. AF_12/2015","M2",2489.32125,0,2489.32125,0,2489.32125,null,78.2,156.4,194664.92175000001,389329.84350000002]
[null,8,null,"FONTE LUMINOSA",null,null,null,null,null,null,null,null,null,32601.727832,65203.455664000001]
[null,"8.1",null,"ALVENARIA DE VEDAÇÃO COM BLOCO DE CONCRETO, ESP. 14CM, PARA REVESTIMENTO, INCLUSIVE ARGAMASSA PARA ASSENTAMENTO","M2",15.7,0,15.7,0,15.7,null,51.05,102.1,801.4849999999999,1602.9699999999998]
[null,"8.2",null,"CHAPISCO COM ARGAMASSA, TRAÇO 1:3 (CIMENTO E AREIA), ESP. 5MM, APLICADO EM ALVENARIA COM PENEIRA, PREPARO MECÂNICO","M2",15.7,0,15.7,0,15.7,null,11.21,22.42,175.99700000000001,351.99400000000003]
[null,"8.3",null,"REBOCO COM ARGAMASSA, TRAÇO 1:2:8 (CIMENTO, CAL E AREIA), ESP. 20MM, APLICAÇÃO MANUAL, PREPARO MECÂNICO","M2",15.7,0,15.7,0,15.7,null,29.65,59.3,465.50499999999994,931.00999999999988]
[null,"8.4",null,"PINTURA ACRÍLICA EM PAREDE, DUAS (2) DEMÃOS, INCLUSIVE UMA (1) DEMÃO DE MASSA CORRIDA (PVA), EXCLUSIVE SELADOR ACRÍLICO","M2",9.42,0,9.42,0,9.42,null,24.66,49.32,232.2972,464.59440000000001]
[null,"8.5",null,"JARDINAGEM E PAISAGISMO","m2",28.24,0,28.24,0,28.24,null,99.2,198.4,2801.4079999999999,5602.8159999999998]
[null,"8.6",null,"FORNECIMENTO DE CONCRETO NÃO ESTRUTURAL, PREPARADO EM OBRA COM BETONEIRA, COM FCK 9 MPA, INCLUSIVE LANÇAMENTO, ADENSAMENTO E ACABAMENTO","M3",12.56,0,12.56,0,12.56,null,512.08000000000004,1024.1600000000001,6431.7248000000009,12863.449600000002]
[null,"8.7",null,"CAMADA DE REGULARIZAÇÃO COM ARGAMASSA, TRAÇO 1:3 (CIMENTO E AREIA), ESP. 30MM, APLICAÇÃO MANUAL, PREPARO MECÂNICO","M2",0.37680000000000002,0,0.37680000000000002,0,0.37680000000000002,null,35.24,70.48,13.278432000000002,26.556864000000004]
[null,"8.8",null,"IMPERMEABILIZAÇÃO COM MANTA ASFÁLTICA PRÉ-FABRICADA, E = 4 MM","M2",18.84,0,18.84,0,18.84,null,71.75,143.5,1351.77,2703.54]
[null,"8.9",null,"PROTEÇÃO MECÂNICA COM ARGAMASSA, TRAÇO 1:3 (CIMENTO E AREIA), ESP. 15MM, APLICAÇÃO MANUAL, PREPARO MECÂNICO","M2",12.56,0,12.56,0,12.56,null,21.13,42.26,265.39280000000002,530.78560000000004]
[null,"8.10",null,"REVESTIMENTO COM PASTILHA DE VIDRO (VIDROTIL), ASSENTADO COM ARGAMASSA PRÉ-FABRICADA, INCLUSIVE REJUNTAMENTO","M2",18.84,0,18.84,0,18.84,null,358.19,716.38,6748.2996000000003,13496.599200000001]
[null,"8.11",null,"MOTO-BOMBA 0,5 CV VM = 5M3/H 1 1/2\" R = 1 1/2\", TRIFÁSICA","U",2,0,2,0,2,null,1565.74,3131.48,3131.48,6262.96]
[null,"8.12",null,"QUADRO DE COMANDO PARA BOMBA P = 0,5 CV, RECALQUE","U",1,0,1,0,1,null,263.08999999999997,526.17999999999995,263.08999999999997,526.17999999999995]
[null,"8.13",null,"INSTALAÇÕES HIDRÁULICAS","un",1,0,1,0,1,null,1240,2480,1240,2480]
[null,"8.14",null,"BICO GEISER","un",2,0,2,0,2,null,1240,2480,2480,4960]
[null,"8.15",null,"BICO ARTICULADO","un",10,0,10,0,10,null,496,992,4960,9920]
[null,"8.16",null,"CASA DE MÁQUINAS (1,20X1,50X0,50)","un",1,0,1,0,1,null,1240,2480,1240,2480]
[null,9,null,"EDIFICAÇÃO PALCO",null,null,null,null,null,null,null,null,null,43795.109360000002,87590.218720000004]
[null,"9.1",null,"LOCAÇÃO DA OBRA (GABARITO)","M2",86.61999999999999,0,86.61999999999999,0,86.61999999999999,null,8.83,17.66,764.85459999999989,1529.7091999999998]
[null,"9.2",null,"ESCAVAÇÃO MANUAL DE VALAS H <= 1,50 M","M3",2.472,0,2.472,0,2.472,null,62.73,125.46,155.06855999999999,310.13711999999998]
[null,"9.3",null,"FORMA E DESFORMA DE TÁBUA E SARRAFO, REAPROVEITAMENTO (3X), EXCLUSIVE ESCORAMENTO","M2",21.63,0,21.63,0,21.63,null,52.48,104.96,1135.1424,2270.2847999999999]
[null,"9.4",null,"CORTE, DOBRA E MONTAGEM DE AÇO CA-50 DIÂMETRO (6,3MM A 12,5MM)","KG",433.6,0,433.6,0,433.6,null,9.57,19.14,4149.5520000000006,8299.1040000000012]
[null,"9.5",null,"PILAR EM CONCRETO APARENTE 20 MPA, INCLUSIVE ARMAÇÃO, FORMA PLASTIFICADA E DESFORMA","M3",0.48000000000000009,0,0.48000000000000009,0,0.48000000000000009,null,2274.1799999999998,4548.3599999999997,1091.6064000000001,2183.2128000000002]
[null,"9.6",null,"LAJE PRÉ-MOLDADA, A REVESTIR, INCLUSIVE CAPEAMENTO E = 4 CM, SC = 300 KG/M2, L = 5,00 M","M2",53.55,0,53.55,0,53.55,null,119.81,239.62,6415.8254999999999,12831.651]
[null,"9.7",null,"ARMADURA DE TELA DE AÇO CA-60 B SOLDADA TIPO Q-138 (DIÂMETRO DO FIO: 4,20 MM / DIMENSÕES DA TRAMA: 100 X 100 MM / TIPO DA MALHA: QUADRANGULAR )","KG",79.25,0,79.25,0,79.25,null,11.66,23.32,924.05500000000006,1848.1100000000001]
[null,"9.8",null,"FORNECIMENTO DE CONCRETO ESTRUTURAL, PREPARADO EM OBRA, COM FCK 25 MPA, INCLUSIVE LANÇAMENTO, ADENSAMENTO E ACABAMENTO","M3",5.42,0,5.42,0,5.42,null,559.24,1118.48,3031.0808000000002,6062.1616000000004]
[null,"9.9",null,"ALVENARIA DE VEDAÇÃO COM BLOCO DE CONCRETO, ESP. 9CM, PARA REVESTIMENTO, INCLUSIVE ARGAMASSA PARA ASSENTAMENTO","M2",61.8,0,61.8,0,61.8,null,43.6,87.2,2694.48,5388.96]
[null,"9.10",null,"CHAPISCO COM ARGAMASSA, TRAÇO 1:3 (CIMENTO E AREIA), ESP. 5MM, APLICADO EM ALVENARIA COM PENEIRA, PREPARO MECÂNICO","M2",61.8,0,61.8,0,61.8,null,11.21,22.42,692.77800000000002,1385.556]
[null,"9.11",null,"REBOCO COM ARGAMASSA, TRAÇO 1:2:8 (CIMENTO, CAL E AREIA), ESP. 20MM, APLICAÇÃO MANUAL, PREPARO MECÂNICO","M2",61.8,0,61.8,0,61.8,null,29.65,59.3,1832.37,3664.74]
[null,"9.12",null,"PINTURA ACRÍLICA EM PAREDE, DUAS (2) DEMÃOS, INCLUSIVE UMA (1) DEMÃO DE MASSA CORRIDA (PVA), EXCLUSIVE SELADOR ACRÍLICO","M2",61.8,0,61.8,0,61.8,null,24.66,49.32,1523.9879999999998,3047.9759999999997]
[null,"9.13",null,"PISO EM CONCRETO, USINADO CONVENCIONAL, FCK 15MPA, COM TELA SOLDADA NERVURADA TIPO Q-138, ACABAMENTO POLÍDO EM NÍVEL ZERO, ESP. 10CM, INCLUSIVE FORNECIMENTO, LANÇAMENTO, ADENSAMENTO, EXCLUSIVE JUNTA DE DILATAÇÃO","M2",53.55,0,53.55,0,53.55,null,96.97,193.94,5192.7434999999996,10385.486999999999]
[null,"9.14",null,"ESTRUTURA DE AÇO PARA COBERTURA EM ARCO , ESPAÇAMENTO ENTRE ARCOS 4 M, VÃO 15 M","M2",45.14,0,45.14,0,45.14,null,168.39,336.78,7601.1245999999992,15202.249199999998]
[null,"9.15",null,"COBERTURA EM TELHA METÁLICA GALVANIZADA TRAPEZOIDAL, TIPO DUPLA TERMOACÚSTICA COM DUAS FACES TRAPEZOIDAIS, ESP. 0,43MM, PREENCHIMENTO EM POLIESTIRENO EXPANDIDO/ISOPOR COM ESP. 30MM, ACABAMENTO NATURAL, INCLUSIVE ACESSÓRIOS PARA FIXAÇÃO, FORNECIMENTO E INSTALAÇÃO","M2",45.14,0,45.14,0,45.14,null,146,292,6590.4400000000005,13180.880000000001]
[null,10,null,"INSTALAÇÕES ELÉTRICAS",null,null,null,null,null,null,null,null,null,41355.120000000003,82710.240000000005]
[null,"10.1",null,"PONTO DE LUZ EMBUTIDO, INCLUINDO ELETRODUTO DE PVC RÍGIDO E CAIXA COM ESPELHO (POR UNIDADE)","U",12,0,12,0,12,null,222.26,444.52,2667.12,5334.24]
[null,"10.2",null,"POSTE SOLAR GERADOR ENERGIA AUTONOMO COM LUMINÁRIA 12V","un",12,0,12,0,12,null,3224,6448,38688,77376]
[null,11,null,"URBANIZAÇÃO",null,null,null,null,null,null,null,null,null,20434.4512,40868.902399999999]
[null,"11.1",null,"PLANTIO DE GRAMA ESMERALDA EM PLACAS, INCLUSIVE TERRA VEGETAL E CONSERVAÇÃO POR 30 DIAS","M2",28.24,0,28.24,0,28.24,null,21.63,43.26,610.83119999999997,1221.6623999999999]
[null,"11.2",null,"CONJUNTO DE MESA E BANCOS DE CONCRETO PARA JOGOS (02 BANCOS EM ARCO COM D INTERNO = 130 CM E H = 43 CM E MESA COM D = 80 CM, E = 8 CM E H = 75 CM)","CJ",12,0,12,0,12,null,890.93,1781.86,10691.16,21382.32]
[null,"11.3",null,"BANCO DE JARDIM EM CONCRETO APARENTE, ACABAMENTO EM VERNIZ, E = 8 CM, 200 X 40 X 55 CM, SEM ENCOSTO","U",22,0,22,0,22,null,200.93,401.86,4420.46,8840.92]
[null,"11.4",null,"LIXEIRA REDONDA EM TELA MOEDA - FORNECIMENTO E INSTALAÇÃO","un",19,0,19,0,19,null,248,496,4712,9424]
[null,12,null,"SERVIÇOS FINAIS",null,null,null,null,null,null,null,null,null,7951.8180000000002,15903.636]
[null,"12.1",null,"LIMPEZA FINAL PARA ENTREGA DA OBRA","M2",1264.2,0,1264.2,0,1264.2,null,6.29,12.58,7951.8180000000002,15903.636]
[null,13,null,"NOVOS ITENS 1",null,null,null,null,null,null,null,null,null,497.24,497.24]
[null,"13.1","IIO-PLA-005","FORNECIMENTO E COLOCAÇÃO DE PLACA DE OBRA EM CHAPA GALVANIZADA (3,00 X 1,5 0 M) - EM CHAPA GALVANIZADA 0,26 AFIXADAS COM REBITES 540 E PARAFUSOS 3/8, EM ESTRUTURA METÁLICA VIGA U 2\" ENRIJECIDA COM METALON 20 X 20, SUPORTE EM EUCALIPTO AUTOCLAVADO PINTADAS","U",1,0,1,0,1,401,497.24,497.24,497.24,497.24]
[null,14,null,"NOVOS ITENS 2",null,null,null,null,null,null,null,null,null,563.46,563.46]
[null,"14.1","74209/1","PLACA DE OBRA EM CHAPA DE ACO GALVANIZADO","M2",2,0,2,0,2,230,281.73,281.73,563.46,563.46]

{"sheet":"Impressão - ORC Licitação","index":55,"n_rows":63,"n_cols":7,"rows_kept":63,"cut":false,"hidden":false,"merged":[[7,5,7,6],[8,5,8,6],[1,1,1,6],[2,1,2,6],[7,1,9,1],[7,2,9,2],[7,3,9,3],[7,4,9,4]]}
[]
[null,"PLANILHA ORÇAMENTÁRIA"]
[null,"INFORMAÇÕES GERAIS"]
[null,"Município: Belo Horizonte",null,"Empresa Vencedora: Empresa que venceu"]
[null,"Obra: Pavimentação do Bairro Horto",null,"Nº do Contrato Licitado: 123456"]
[null,"Data: 16/05/2020",null,"Representante da Empresa: Fulano de Tal"]
[null,"Representante do Município: Alexandre Kalil",null,"BDI1: 14,87%"]
[null,"Item","Descrição","Unid.","Quantidade","Preço (R$)"]
[null,null,null,null,null,"Com BDI"]
[null,null,null,null,null,"Unitário","Total"]
[null,null,"c2",null,null,null,1424202.7860000001]
[null,1,"SERVIÇOS PRELIMINARES ","",null,null,11943.115]
[null,"1.1","PLACA DE OBRA EM CHAPA DE ACO GALVANIZADO","M2",4.5,381.91,1718.595]
[null,"1.2","BARRACÃO DE OBRA PARA DEPÓSITO E FERRAMENTARIA TIPO-I, ÁREA INTERNA 14,52M2, EM CHAPA DE COMPENSADO RESINADO, INCLUSIVE MOBILIÁRIO (OBRA DE PEQUENO PORTE, EFETIVO ATÉ 30 HOMENS), PADRÃO DEER-MG","UN",1,6508.18,6508.18]
[null,"1.3","BANHEIRO QUÍMICO 110 X 120 X 230 CM COM MANUTENÇÃO","MÊS",6,619.39,3716.34]
[null,2,"ADMINISTRAÇÃO","",null,null,81569.040000000008]
[null,"2.1"," ADMINISTRAÇÃO LOCAL","MÊS",6,13594.84,81569.040000000008]
[null,3,"PAVIMENTAÇÃO","",null,null,719508.66929999995]
[null,"3.1","REGULARIZAÇÃO E COMPACTAÇÃO DE SUBLEITO DE SOLO  PREDOMINANTEMENTE ARGILOSO. AF_11/2019","M2",10609.19,1.68,17823.439200000001]
[null,"3.2","ASSENTAMENTO DE GUIA (MEIO-FIO) EM TRECHO RETO, CONFECCIONADA EM CONCRETO PRÉ-FABRICADO, DIMENSÕES 100X15X13X30 CM (COMPRIMENTO X BASE INFERIOR X BASE SUPERIOR X ALTURA), PARA VIAS URBANAS (USO VIÁRIO). AF_06/2016","M",3286.62,42.32,139089.75839999999]
[null,"3.3","EXECUÇÃO DE PAVIMENTO EM PISO INTERTRAVADO, COM BLOCO SEXTAVADO DE 25 X 25 CM, ESPESSURA 8 CM. AF_12/2015","M2",9346.08,56.6,528988.12800000003]
[null,"3.4","CALÇAMENTO EM BLOQUETE, RETIRADA E REASSENTAMENTO SOBRE COXIM DE AREIA","M2",1116.23,29.23,32627.402900000001]
[null,"3.5","ALVENARIA POLIÉDRICA, RETIRADA E REASSENTAMENTO SOBRE COXIM DE AREIA","M2",40.36,24.28,979.94080000000008]
[null,4,"DRENAGEM ","",null,null,499643.71950000006]
[null,"4.1","EXECUÇÃO DE SARJETA DE CONCRETO USINADO, MOLDADA  IN LOCO  EM TRECHO RETO, 30 CM BASE X 15 CM ALTURA. AF_06/2016","M",2923.8,41.04,119992.75200000001]
[null,"4.2","ESCAVAÇÃO MECANIZADA DE VALA COM PROFUNDIDADE MAIOR QUE 1,5 M ATÉ 3,0 M (MÉDIA ENTRE MONTANTE E JUSANTE/UMA COMPOSIÇÃO POR TRECHO) COM RETROESCAVADEIRA (CAPACIDADE DA CAÇAMBA DA RETRO: 0,26 M3 / POTÊNCIA: 88 HP), LARGURA DE 0,8 M A 1,5 M, EM SOLO DE 1A CATEGORIA, LOCAIS COM BAIXO NÍVEL DE INTERFERÊNCIA. AF_01/2015","M3",1192.5999999999999,5.42,6463.8919999999998]
[null,"4.3","CONCRETO MAGRO PARA LASTRO, TRAÇO 1:4,5:4,5 (CIMENTO/ AREIA MÉDIA/ BRITA 1)  - PREPARO MECÂNICO COM BETONEIRA 600 L. AF_07/2016","M3",47.32,279.95999999999998,13247.707199999999]
[null,"4.4","ASSENTAMENTO E FORNECIMENTO DE TUBO DE CONCRETO PARA REDES COLETORAS DE ÁGUAS PLUVIAIS, DIÂMETRO DE 400 MM, JUNTA RÍGIDA, INSTALADO EM LOCAL COM ALTO NÍVEL DE INTERFERÊNCIAS","M",769.84,112.46,86576.206399999995]
[null,"4.5","ASSENTAMENTO E FORNECIMENTO DE TUBO DE CONCRETO PARA REDES COLETORAS DE ÁGUAS PLUVIAIS, DIÂMETRO DE 600 MM, JUNTA RÍGIDA, INSTALADO EM LOCAL COM ALTO NÍVEL DE INTERFERÊNCIAS","M",349.09,171.61,59907.334900000002]
[null,"4.6","ASSENTAMENTO E FORNECIMENTO DE TUBO DE CONCRETO PARA REDES COLETORAS DE ÁGUAS PLUVIAIS, DIÂMETRO DE 800 MM, JUNTA RÍGIDA, INSTALADO EM LOCAL COM ALTO NÍVEL DE INTERFERÊNCIAS","M",100.83,267.97000000000003,27019.415100000002]
[null,"4.7","REATERRO MECANIZADO DE VALA COM RETROESCAVADEIRA (CAPACIDADE DA CAÇAMBA DA RETRO: 0,26 M³ / POTÊNCIA: 88 HP), LARGURA DE 0,8 A 1,5 M, PROFUNDIDADE DE 1,5 A 3,0 M, COM SOLO (SEM SUBSTITUIÇÃO) DE 1ª CATEGORIA EM LOCAIS COM BAIXO NÍVEL DE INTERFERÊNCIA. AF_04/2016","M3",758.77,8.2899999999999991,6290.2032999999992]
[null,"4.8","COMPACTACAO MECANICA, SEM CONTROLE DO GC (C/COMPACTADOR PLACA 400 KG)","M3",758.77,5.62,4264.2874000000002]
[null,"4.9","BOCA DE LOBO EM ALVENARIA TIJOLO MACICO, REVESTIDA C/ ARGAMASSA DE CIMENTO E AREIA 1:3, SOBRE LASTRO DE CONCRETO 10CM E TAMPA DE CONCRETO ARMADO","UN",79,850.89,67220.31]
[null,"4.10","POCO DE VISITA PARA DRENAGEM PLUVIAL, EM CONCRETO ESTRUTURAL, DIMENSOES INTERNAS DE 90X150X80CM (LARGXCOMPXALT), PARA REDE DE 600 MM, EXCLUSOS TAMPAO E CHAMINE.","UN",28,1570.59,43976.52]
[null,"4.11","CHAMINÉ CIRCULAR PARA POÇO DE VISITA PARA DRENAGEM, EM CONCRETO PRÉ-MOLDADO, DIÂMETRO INTERNO = 0,6 M. AF_05/2018","M",33.85,188.26,6372.6009999999997]
[null,"4.12","TAMPAO FOFO ARTICULADO, CLASSE B125 CARGA MAX 12,5 T, REDONDO TAMPA 600 MM, REDE PLUVIAL/ESGOTO, P = CHAMINE CX AREIA / POCO VISITA ASSENTADO COM ARG CIM/AREIA 1:4, FORNECIMENTO E ASSENTAMENTO","UN",28,454.89,12736.92]
[null,"4.13","CAIXA DE ESGOTO DE INSPEÇÃO/PASSAGEM EM ALVENARIA (60X60X100CM), REVESTIMENTO EM ARGAMASSA COM ADITIVO IMPERMEABILIZANTE, COM TAMPA DE CONCRETO, INCLUSIVE ESCAVAÇÃO, REATERRO E TRANSPORTE E RETIRADA DO MATERIAL ESCAVADO (EM CAÇAMBA)","UN",4,443.19,1772.76]
[null,"4.14","PERFURAÇÃO DE ESTACA BROCA A TRADO MANUAL D = 200 MM","M",34,26.12,888.08]
[null,"4.15","ESCAVAÇÃO MANUAL DE VALAS H <= 1,50 M","M3",26.36,59.21,1560.7755999999999]
[null,"4.16","CORTE, DOBRA E MONTAGEM DE AÇO CA-50 DIÂMETRO (6,3MM A 12,5MM)","KG",564.73,9.1999999999999993,5195.5159999999996]
[null,"4.17","FORNECIMENTO DE CONCRETO ESTRUTURAL, PREPARADO EM OBRA COM BETONEIRA, COM FCK 20 MPA, INCLUSIVE LANÇAMENTO, ADENSAMENTO E ACABAMENTO (FUNDAÇÃO)","M3",10.16,467.27,4747.4632000000001]
[null,"4.18","ALVENARIA DE BLOCO DE CONCRETO CHEIO SEM ARMAÇÃO, EM CONCRETO COM FCK DE 20MPA , ESP. 9CM, PARA REVESTIMENTO, INCLUSIVE ARGAMASSA PARA ASSENTAMENTO (DETALHE D - CADERNO SEDS)","M2",93.2,65.37,6092.4840000000004]
[null,"4.19","CHAPISCO COM ARGAMASSA, TRAÇO 1:3 (CIMENTO E AREIA), ESP. 5MM, APLICADO EM ALVENARIA/ESTRUTURA DE CONCRETO COM COLHER, PREPARO MECÂNICO","M2",93.2,7.23,673.83600000000001]
[null,"4.20","EMBOÇO COM ARGAMASSA, TRAÇO 1:6 (CIMENTO E AREIA), ESP. 20MM, APLICAÇÃO MANUAL, PREPARO MECÂNICO","M2",93.2,27.04,2520.1280000000002]
[null,"4.21","FORMA E DESFORMA DE COMPENSADO RESINADO, ESP. 12MM, REAPROVEITAMENTO (3X), EXCLUSIVE ESCORAMENTO","M2",15.3,49.49,757.19700000000012]
[null,"4.22","SARJETA DE CONCRETO URBANO (SCU), TIPO 1, COM FCK 15 MPA, LARGURA DE 50CM COM INCLINAÇÃO DE 3%, ESP. 7CM, PADRÃO DEER-MG, EXCLUSIVE MEIO-FIO, INCLUSIVE ESCAVAÇÃO, APILAOMENTO E TRANSPORTE COM RETIRADA DO MATERIAL ESCAVADO (EM CAÇAMBA)","M",432.94,26.66,11542.180399999999]
[null,"4.23","CORTE, DOBRA E MONTAGEM DE AÇO CA-50 DIÂMETRO (16,0MM A 25,0MM)","KG",1155.9000000000001,8.5,9825.1500000000015]
[null,5,"CONTENÇÃO","",null,null,99608.992199999993]
[null,"5.1","ESCAVAÇÃO MECANIZADA DE VALA COM PROFUNDIDADE MAIOR QUE 1,5 M ATÉ 3,0 M (MÉDIA ENTRE MONTANTE E JUSANTE/UMA COMPOSIÇÃO POR TRECHO) COM RETROESCAVADEIRA (CAPACIDADE DA CAÇAMBA DA RETRO: 0,26 M3 / POTÊNCIA: 88 HP), LARGURA DE 0,8 M A 1,5 M, EM SOLO DE 1A CATEGORIA, LOCAIS COM BAIXO NÍVEL DE INTERFERÊNCIA. AF_01/2015","M3",78.75,5.42,426.82499999999999]
[null,"5.2","ESCAVAÇÃO MANUAL DE VALAS H <= 1,50 M","M3",34.92,59.21,2067.6132000000002]
[null,"5.3","FORMA E DESFORMA DE COMPENSADO RESINADO, ESP. 12MM, REAPROVEITAMENTO (3X), EXCLUSIVE ESCORAMENTO","M2",250.2,49.49,12382.397999999999]
[null,"5.4","CORTE, DOBRA E MONTAGEM DE AÇO CA-50 DIÂMETRO (6,3MM A 12,5MM)","KG",5006.4400000000005,9.1999999999999993,46059.248]
[null,"5.5","FORNECIMENTO DE CONCRETO ESTRUTURAL, PREPARADO EM OBRA, COM FCK 20 MPA, INCLUSIVE LANÇAMENTO, ADENSAMENTO E ACABAMENTO","M3",65.94,491.06,32380.4964]
[null,"5.6","BUZINOTE PARA LAJES - DRENO COM TUBO DE 2\" EMBUTIDO NO CONCRETO","M",41.6,22.88,951.80799999999999]
[null,"5.7","FORNECIMENTO E LANÇAMENTO DE AREIA EM DRENO E PÁTIO","M3",12.51,114.94,1437.8994]
[null,"5.8","FORNECIMENTO E LANÇAMENTO DE BRITA EM DRENO E PÁTIO","M3",12.51,107.82,1348.8281999999999]
[null,"5.9","REATERRO MECANIZADO DE VALA COM RETROESCAVADEIRA (CAPACIDADE DA CAÇAMBA DA RETRO: 0,26 M³ / POTÊNCIA: 88 HP), LARGURA DE 0,8 A 1,5 M, PROFUNDIDADE DE 1,5 A 3,0 M, COM SOLO (SEM SUBSTITUIÇÃO) DE 1ª CATEGORIA EM LOCAIS COM BAIXO NÍVEL DE INTERFERÊNCIA. AF_04/2016","M3",183.6,8.2899999999999991,1522.0439999999999]
[null,"5.10","COMPACTACAO MECANICA, SEM CONTROLE DO GC (C/COMPACTADOR PLACA 400 KG)","M3",183.6,5.62,1031.8319999999999]
[null,6,"SINALIZAÇÃO","",null,null,11929.25]
[null,"6.1","FORNECIMENTO E IMPLANTAÇÃO DE PLACA DE REGULAMENTAÇÃO EM AÇO","UN",13,271.02,3523.2599999999998]
[null,"6.2","FORNECIMENTO E IMPLANTAÇÃO DE SUPORTE METÁLICO GALVANIZADO","UN",27,238.87,6449.49]
[null,"6.3","PLACA DE ALUMÍNIO ANODIZADO 25 X 25 CM PARA IDENTIFICAÇÃO","UN",28,40.47,1133.1599999999999]
[null,"6.4","PLACA DE INAUGURAÇÃO EM ALUMÍNIO FUNDIDO 85 X 50 CM","UN",1,823.34,823.34]

{"sheet":"Impressão - ORC Medição","index":56,"n_rows":98,"n_cols":11,"rows_kept":98,"cut":false,"hidden":false,"merged":[[1,1,1,10],[2,1,2,8]]}
[]
[null,"PLANILHA DE MEDIÇÃO"]
[null,"INFORMAÇÕES GERAIS"]
[null,"Município: Belo Horizonte",null,null,"Empresa Executora: Engesolo Engenharia LTDA",null,null,null,null,"Medição Nº : 1"]
[null,"Obra: Pavimentação da Avenida Cristina",null,null,"Nº do Contrato Licitado: 001/2020",null,null,null,null,"Período: 01/01/2020 A 01/02/2020"]
[null,"Responsável Técnico Fiscal: Breno Oliveira Pierre de Souza",null,null,"Responsável Técnico Executor: Alan Pereira Neto Filho",null,null,null,null,"Data: 10/03/2020"]
[null,"Nº CREA/CAU: 123456-7",null,null,"Nº CREA/CAU: 789456-1"]
[null,"Contrato BDMG Nº: 256.563",null,null,"Quantidade de Aditivos Realizados: 03",null,null,null,null,"Venc. do Contrato: 01/12/2020"]
[null,"Item","Discriminação\nConforme Planilha Orçamentária Licitada e suas alterações","Unid.","Preço\nUnitário\n\nA","Quantidade\nPrevista\nTotal\nB","Quantidade\nExecutada\nNesta Medição\nC","Quantidade\nExecutada\nAcumulada\nD","Valor (R$)\nPrevisto\nTotal\nAxB","Valor (R$)\nExecutado\nNesta Medição\nAxC","Valor (R$)\nExecutado\nAcumulado\nAxD"]
[null,null,"Pavimentação da Avenida Cristina",null,null,null,null,null,1146662.0564110815,63125.530599999998,63125.530599999998]
[null,1,"SERVIÇOS PRELIMINARES",null,null,null,null,null,63129.230599999995,63125.530599999998,63125.530599999998]
[null,"1.1","FORNECIMENTO E COLOCAÇÃO DE PLACA DE OBRA EM CHAPA GALVANIZADA (3,00 X 1,5 0 M) - EM CHAPA GALVANIZADA 0,26 AFIXADAS COM REBITES 540 E PARAFUSOS 3/8, EM ESTRUTURA METÁLICA VIGA U 2\" ENRIJECIDA COM METALON 20 X 20, SUPORTE EM EUCALIPTO AUTOCLAVADO PINTADAS","U",1377.21,21,21,21,28921.41,28921.41,28921.41]
[null,"1.2","PLACA DE OBRA EM CHAPA DE ACO GALVANIZADO","M2",375.03,22.5,22.5,22.5,8438.1749999999993,8438.1749999999993,8438.1749999999993]
[null,"1.3","CONTAINER (6,0X2,3X2,5M) COM ISOLAMENTO TÉRMICO - DEPÓSITO E FERRAMENTARIA COM LAVATÓRIO","MÊS",924.06,3,3,3,2772.18,2772.18,2772.18]
[null,"1.4","DEMOLIÇÃO DE PASSEIO OU LAJE DE CONCRETO COM EQUIPAMENTO PNEUMÁTICO, INCLUSIVE AFASTAMENTO","M2",9.25,407.4,407,407,3768.45,3764.75,3764.75]
[null,"1.5","REGULARIZAÇÃO E COMPACTAÇÃO DE TERRENO COM PLACA VIBRATÓRIA","M2",3.21,1235.96,1235.96,1235.96,3967.4315999999999,3967.4315999999999,3967.4315999999999]
[null,"1.6","DEMOLIÇÃO DE PAVIMENTO PARALELEPÍPEDO REJUNTADOS COM AREIA INCLUSIVE AFASTAMENTO E EMPILHAMENTO","M2",14.72,828.56,828.56,828.56,12196.403199999999,12196.403199999999,12196.403199999999]
[null,"1.7","TRANSPORTE DE MATERIAL DEMOLIDO EM CAÇAMBA","M3",24.8,123.596,123.596,123.596,3065.1808000000001,3065.1808000000001,3065.1808000000001]
[null,2,"SINALIZAÇÃO HORIZONTAL",null,null,null,null,null,56057.63167000001,0,0]
[null,"2.1","SINALIZACAO HORIZONTAL COM TINTA RETRORREFLETIVA A BASE DE RESINA ACRILICA COM MICROESFERAS DE VIDRO","M2",17.920000000000002,877.67400000000009,0,0,15727.918080000003,0,0]
[null,"2.2","SINALIZACAO HORIZONTAL COM TINTA RETRORREFLETIVA A BASE DE RESINA ACRILICA COM MICROESFERAS DE VIDRO","M2",17.7,285.69749999999999,0,0,5056.8457499999995,0,0]
[null,"2.3","SINALIZACAO HORIZONTAL COM TINTA RETRORREFLETIVA A BASE DE RESINA ACRILICA COM MICROESFERAS DE VIDRO","M2",17.920000000000002,1799.2,0,0,32241.664000000004,0,0]
[null,"2.4","SINALIZACAO HORIZONTAL COM TINTA RETRORREFLETIVA A BASE DE RESINA ACRILICA COM MICROESFERAS DE VIDRO","M2",17.920000000000002,162.86400000000003,0,0,2918.5228800000009,0,0]
[null,"2.5","SINALIZACAO HORIZONTAL COM TINTA RETRORREFLETIVA A BASE DE RESINA ACRILICA COM MICROESFERAS DE VIDRO","M2",17.920000000000002,6.2880000000000003,0,0,112.68096000000001,0,0]
[null,3,"SINALIZAÇÃO VERTICAL",null,null,null,null,null,36161.310899999997,0,0]
[null,"3.1","ESCAVAÇÃO MANUAL DE VALAS H <= 1,50 M","M3",62.73,7.7399999999999993,0,0,485.53019999999992,0,0]
[null,"3.2","ESCAVAÇÃO MANUAL DE VALAS H <= 1,50 M","M3",61.97,2.0699999999999998,0,0,128.27789999999999,0,0]
[null,"3.3","APILOAMENTO DO FUNDO DE VALAS COM SOQUETE","M2",21.22,15.479999999999999,0,0,328.48559999999998,0,0]
[null,"3.4","APILOAMENTO DO FUNDO DE VALAS COM SOQUETE","M2",20.96,4.1399999999999997,0,0,86.7744,0,0]
[null,"3.5","FORNECIMENTO DE CONCRETO ESTRUTURAL, PREPARADO EM OBRA, COM FCK 20 MPA, INCLUSIVE LANÇAMENTO, ADENSAMENTO E ACABAMENTO","M3",542.25,7.7399999999999993,0,0,4197.0149999999994,0,0]
[null,"3.6","FORNECIMENTO DE CONCRETO ESTRUTURAL, PREPARADO EM OBRA, COM FCK 20 MPA, INCLUSIVE LANÇAMENTO, ADENSAMENTO E ACABAMENTO","M3",535.65,2.0699999999999998,0,0,1108.7954999999999,0,0]
[null,"3.7","PLACA DE AÇO CARBONO COM PELÍCULA REFLETIVA GRAU TÉCNICO TIPO I DA ABNT - PLACA QUADRADA (EXECUÇÃO, INCLUINDO FORNECIMENTO E TRANSPORTE DE TODOS OS MATERIAIS, INCLUSIVE POSTE DE SUSTENTAÇÃO)","M2",405.16,39.75,0,0,16105.11,0,0]
[null,"3.8","PLACA DE AÇO CARBONO COM PELÍCULA REFLETIVA GRAU TÉCNICO TIPO I DA ABNT - PLACA QUADRADA (EXECUÇÃO, INCLUINDO FORNECIMENTO E TRANSPORTE DE TODOS OS MATERIAIS, INCLUSIVE POSTE DE SUSTENTAÇÃO)","M2",400.22,7.5,0,0,3001.65,0,0]
[null,"3.9","PLACA DE AÇO CARBONO COM PELÍCULA REFLETIVA GRAU TÉCNICO TIPO I DA ABNT - PLACA RETANGULAR (EXECUÇÃO, INCLUINDO FORNECIMENTO E TRANSPORTE DE TODOS OS MATERIAIS, INCLUSIVE POSTE DE SUSTENTAÇÃO)","M2",428.49,6.240000000000002,0,0,2673.7776000000008,0,0]
[null,"3.10","PLACA DE AÇO CARBONO COM PELÍCULA REFLETIVA GRAU TÉCNICO TIPO I DA ABNT - PLACA RETANGULAR (EXECUÇÃO, INCLUINDO FORNECIMENTO E TRANSPORTE DE TODOS OS MATERIAIS, INCLUSIVE POSTE DE SUSTENTAÇÃO)","M2",423.28,2.88,0,0,1219.0463999999999,0,0]
[null,"3.11","PLACA DE AÇO CARBONO COM PELÍCULA REFLETIVA GRAU TÉCNICO TIPO I DA ABNT - PLACA CIRCULAR (EXECUÇÃO, INCLUINDO FORNECIMENTO E TRANSPORTE DE TODOS OS MATERIAIS, INCLUSIVE POSTE DE SUSTENTAÇÃO)","M2",413.06,4.8,0,0,1982.6879999999999,0,0]
[null,"3.12","COLOCAÇÃO DE PLACAS","M2",79.430000000000007,45.99,0,0,3652.9857000000006,0,0]
[null,"3.13","COLOCAÇÃO DE PLACAS","M2",78.47,15.18,0,0,1191.1746000000001,0,0]
[null,4,"PAVIMENTAÇÃO",null,null,null,null,null,481972.83540000004,0,0]
[null,"4.1","EXECUÇÃO DE CALÇAMENTO EM BLOQUETE - E = 8 CM - FCK = 35 MPA, INCLUINDO FORNECIMENTO E TRANSPORTE DE TODOS OS MATERIAIS, COLCHÃO DE ASSENTAMENTO E = 6 CM","M2",57.45,6869.0519999999997,0,0,394627.03740000003,0,0]
[null,"4.2","MEIO-FIO COM SARJETA, EXECUTADO C/EXTRUSORA (SARJETA 30X8CM MEIO-FIO 15X10CM X H=23CM), INCLUI ESCAVAÇÃO E ACERTO FAIXA 0,45M","M",36.840000000000003,2370.9499999999998,0,0,87345.797999999995,0,0]
[null,5,"DRENAGEM",null,null,null,null,null,36600.700000000004,0,0]
[null,"5.1","GUIA (MEIO-FIO) E SARJETA CONJUGADOS DE CONCRETO, MOLDADA  IN LOCO  EM TRECHO RETO COM EXTRUSORA, 45 CM BASE (15 CM BASE DA GUIA + 30 CM BASE DA SARJETA) X 22 CM ALTURA. AF_06/2016","M",39.5,926.6,0,0,36600.700000000004,0,0]
[null,6,"PASSEIO / ACESSIBILIDADE ",null,null,null,null,null,126844.14626158126,0,0]
[null,"6.1","EXECUÇÃO DE PASSEIO (CALÇADA) OU PISO DE CONCRETO COM CONCRETO MOLDADO IN LOCO, FEITO EM OBRA, ACABAMENTO CONVENCIONAL, NÃO ARMADO. AF_07/2016","M3",624.39,66.715199999999996,0,0,41656.303727999999,0,0]
[null,"6.2","PISO PODOTÁTIL DE CONCRETO, DIRECIONAL, APLICADO EM PISO (40X40CM) COM JUNTA SECA, COR VERMELHO/AMARELO, ASSENTAMENTO COM ARGAMASSA INDUSTRIALIZADA, INCLUSIVE FORNECIMENTO E INSTALAÇÃO","M2",85.35,366.16,0,0,31251.756000000001,0,0]
[null,"6.3","PISO PODOTÁTIL DE CONCRETO, ALERTA, APLICADO EM PISO (40X40CM) COM JUNTA SECA, COR VERMELHO/AMARELO, ASSENTAMENTO COM ARGAMASSA INDUSTRIALIZADA, INCLUSIVE FORNECIMENTO E INSTALAÇÃO","M2",85.35,4.4800000000000004,0,0,382.36799999999999,0,0]
[null,"6.4","RAMPA PARA ACESSO DE DEFICIENTE, EM CONCRETO SIMPLES FCK = 25 MPA, DESEMPENADA, COM PINTURA INDICATIVA, 02 DEMÃOS","U",354.64,4,0,0,1418.56,0,0]
[null,"6.5","PISO INTERTRAVADO TIPO TANGRAM","m2",2.11,500.04025288211767,0,0,1055.0849335812682,0,0]
[null,"6.6","PISO DE CONCRETO PRÉ-MOLDADO INTERTRAVADO E = 8 CM - FCK = 35 MPA, INCLUINDO FORNECIMENTO E TRANSPORTE DE TODOS OS MATERIAIS, COLCHÃO DE ASSENTAMENTO E = 6 CM","M2",74.64,607,0,0,45306.48,0,0]
[null,"6.7","PISO PODOTÁTIL DE CONCRETO, DIRECIONAL, APLICADO EM PISO (40X40CM) COM JUNTA SECA, COR VERMELHO/AMARELO, ASSENTAMENTO COM ARGAMASSA INDUSTRIALIZADA, INCLUSIVE FORNECIMENTO E INSTALAÇÃO","M2",86.4,64.232000000000014,0,0,5549.6448000000019,0,0]
[null,"6.8","PISO PODOTÁTIL DE CONCRETO, ALERTA, APLICADO EM PISO (40X40CM) COM JUNTA SECA, COR VERMELHO/AMARELO, ASSENTAMENTO COM ARGAMASSA INDUSTRIALIZADA, INCLUSIVE FORNECIMENTO E INSTALAÇÃO","M2",86.4,2.5920000000000005,0,0,223.94880000000006,0,0]
[null,7,"CALÇAMENTO",null,null,null,null,null,199757.97518750001,0,0]
[null,"7.1","REGULARIZAÇÃO E COMPACTAÇÃO DE SUBLEITO DE SOLO  PREDOMINANTEMENTE ARGILOSO. AF_11/2019","M2",1.79,2845.28125,0,0,5093.0534374999997,0,0]
[null,"7.2","EXECUÇÃO DE VIA EM PISO INTERTRAVADO, COM BLOCO RETANGULAR DE 20 X 10 CM, ESPESSURA 10 CM. AF_12/2015","M2",78.2,2489.32125,0,0,194664.92175000001,0,0]
[null,8,"FONTE LUMINOSA",null,null,null,null,null,32601.727832,0,0]
[null,"8.1","ALVENARIA DE VEDAÇÃO COM BLOCO DE CONCRETO, ESP. 14CM, PARA REVESTIMENTO, INCLUSIVE ARGAMASSA PARA ASSENTAMENTO","M2",51.05,15.7,0,0,801.4849999999999,0,0]
[null,"8.2","CHAPISCO COM ARGAMASSA, TRAÇO 1:3 (CIMENTO E AREIA), ESP. 5MM, APLICADO EM ALVENARIA COM PENEIRA, PREPARO MECÂNICO","M2",11.21,15.7,0,0,175.99700000000001,0,0]
[null,"8.3","REBOCO COM ARGAMASSA, TRAÇO 1:2:8 (CIMENTO, CAL E AREIA), ESP. 20MM, APLICAÇÃO MANUAL, PREPARO MECÂNICO","M2",29.65,15.7,0,0,465.50499999999994,0,0]
[null,"8.4","PINTURA ACRÍLICA EM PAREDE, DUAS (2) DEMÃOS, INCLUSIVE UMA (1) DEMÃO DE MASSA CORRIDA (PVA), EXCLUSIVE SELADOR ACRÍLICO","M2",24.66,9.42,0,0,232.2972,0,0]
[null,"8.5","JARDINAGEM E PAISAGISMO","m2",99.2,28.24,0,0,2801.4079999999999,0,0]
[null,"8.6","FORNECIMENTO DE CONCRETO NÃO ESTRUTURAL, PREPARADO EM OBRA COM BETONEIRA, COM FCK 9 MPA, INCLUSIVE LANÇAMENTO, ADENSAMENTO E ACABAMENTO","M3",512.08000000000004,12.56,0,0,6431.7248000000009,0,0]
[null,"8.7","CAMADA DE REGULARIZAÇÃO COM ARGAMASSA, TRAÇO 1:3 (CIMENTO E AREIA), ESP. 30MM, APLICAÇÃO MANUAL, PREPARO MECÂNICO","M2",35.24,0.37680000000000002,0,0,13.278432000000002,0,0]
[null,"8.8","IMPERMEABILIZAÇÃO COM MANTA ASFÁLTICA PRÉ-FABRICADA, E = 4 MM","M2",71.75,18.84,0,0,1351.77,0,0]
[null,"8.9","PROTEÇÃO MECÂNICA COM ARGAMASSA, TRAÇO 1:3 (CIMENTO E AREIA), ESP. 15MM, APLICAÇÃO MANUAL, PREPARO MECÂNICO","M2",21.13,12.56,0,0,265.39280000000002,0,0]
[null,"8.10","REVESTIMENTO COM PASTILHA DE VIDRO (VIDROTIL), ASSENTADO COM ARGAMASSA PRÉ-FABRICADA, INCLUSIVE REJUNTAMENTO","M2",358.19,18.84,0,0,6748.2996000000003,0,0]
[null,"8.11","MOTO-BOMBA 0,5 CV VM = 5M3/H 1 1/2\" R = 1 1/2\", TRIFÁSICA","U",1565.74,2,0,0,3131.48,0,0]
[null,"8.12","QUADRO DE COMANDO PARA BOMBA P = 0,5 CV, RECALQUE","U",263.08999999999997,1,0,0,263.08999999999997,0,0]
[null,"8.13","INSTALAÇÕES HIDRÁULICAS","un",1240,1,0,0,1240,0,0]
[null,"8.14","BICO GEISER","un",1240,2,0,0,2480,0,0]
[null,"8.15","BICO ARTICULADO","un",496,10,0,0,4960,0,0]
[null,"8.16","CASA DE MÁQUINAS (1,20X1,50X0,50)","un",1240,1,0,0,1240,0,0]
[null,9,"EDIFICAÇÃO PALCO",null,null,null,null,null,43795.109360000002,0,0]
[null,"9.1","LOCAÇÃO DA OBRA (GABARITO)","M2",8.83,86.61999999999999,0,0,764.85459999999989,0,0]
[null,"9.2","ESCAVAÇÃO MANUAL DE VALAS H <= 1,50 M","M3",62.73,2.472,0,0,155.06855999999999,0,0]
[null,"9.3","FORMA E DESFORMA DE TÁBUA E SARRAFO, REAPROVEITAMENTO (3X), EXCLUSIVE ESCORAMENTO","M2",52.48,21.63,0,0,1135.1424,0,0]
[null,"9.4","CORTE, DOBRA E MONTAGEM DE AÇO CA-50 DIÂMETRO (6,3MM A 12,5MM)","KG",9.57,433.6,0,0,4149.5520000000006,0,0]
[null,"9.5","PILAR EM CONCRETO APARENTE 20 MPA, INCLUSIVE ARMAÇÃO, FORMA PLASTIFICADA E DESFORMA","M3",2274.1799999999998,0.48000000000000009,0,0,1091.6064000000001,0,0]
[null,"9.6","LAJE PRÉ-MOLDADA, A REVESTIR, INCLUSIVE CAPEAMENTO E = 4 CM, SC = 300 KG/M2, L = 5,00 M","M2",119.81,53.55,0,0,6415.8254999999999,0,0]
[null,"9.7","ARMADURA DE TELA DE AÇO CA-60 B SOLDADA TIPO Q-138 (DIÂMETRO DO FIO: 4,20 MM / DIMENSÕES DA TRAMA: 100 X 100 MM / TIPO DA MALHA: QUADRANGULAR )","KG",11.66,79.25,0,0,924.05500000000006,0,0]
[null,"9.8","FORNECIMENTO DE CONCRETO ESTRUTURAL, PREPARADO EM OBRA, COM FCK 25 MPA, INCLUSIVE LANÇAMENTO, ADENSAMENTO E ACABAMENTO","M3",559.24,5.42,0,0,3031.0808000000002,0,0]
[null,"9.9","ALVENARIA DE VEDAÇÃO COM BLOCO DE CONCRETO, ESP. 9CM, PARA REVESTIMENTO, INCLUSIVE ARGAMASSA PARA ASSENTAMENTO","M2",43.6,61.8,0,0,2694.48,0,0]
[null,"9.10","CHAPISCO COM ARGAMASSA, TRAÇO 1:3 (CIMENTO E AREIA), ESP. 5MM, APLICADO EM ALVENARIA COM PENEIRA, PREPARO MECÂNICO","M2",11.21,61.8,0,0,692.77800000000002,0,0]
[null,"9.11","REBOCO COM ARGAMASSA, TRAÇO 1:2:8 (CIMENTO, CAL E AREIA), ESP. 20MM, APLICAÇÃO MANUAL, PREPARO MECÂNICO","M2",29.65,61.8,0,0,1832.37,0,0]
[null,"9.12","PINTURA ACRÍLICA EM PAREDE, DUAS (2) DEMÃOS, INCLUSIVE UMA (1) DEMÃO DE MASSA CORRIDA (PVA), EXCLUSIVE SELADOR ACRÍLICO","M2",24.66,61.8,0,0,1523.9879999999998,0,0]
[null,"9.13","PISO EM CONCRETO, USINADO CONVENCIONAL, FCK 15MPA, COM TELA SOLDADA NERVURADA TIPO Q-138, ACABAMENTO POLÍDO EM NÍVEL ZERO, ESP. 10CM, INCLUSIVE FORNECIMENTO, LANÇAMENTO, ADENSAMENTO, EXCLUSIVE JUNTA DE DILATAÇÃO","M2",96.97,53.55,0,0,5192.7434999999996,0,0]
[null,"9.14","ESTRUTURA DE AÇO PARA COBERTURA EM ARCO , ESPAÇAMENTO ENTRE ARCOS 4 M, VÃO 15 M","M2",168.39,45.14,0,0,7601.1245999999992,0,0]
[null,"9.15","COBERTURA EM TELHA METÁLICA GALVANIZADA TRAPEZOIDAL, TIPO DUPLA TERMOACÚSTICA COM DUAS FACES TRAPEZOIDAIS, ESP. 0,43MM, PREENCHIMENTO EM POLIESTIRENO EXPANDIDO/ISOPOR COM ESP. 30MM, ACABAMENTO NATURAL, INCLUSIVE ACESSÓRIOS PARA FIXAÇÃO, FORNECIMENTO E INSTALAÇÃO","M2",146,45.14,0,0,6590.4400000000005,0,0]
[null,10,"INSTALAÇÕES ELÉTRICAS",null,null,null,null,null,41355.120000000003,0,0]
[null,"10.1","PONTO DE LUZ EMBUTIDO, INCLUINDO ELETRODUTO DE PVC RÍGIDO E CAIXA COM ESPELHO (POR UNIDADE)","U",222.26,12,0,0,2667.12,0,0]
[null,"10.2","POSTE SOLAR GERADOR ENERGIA AUTONOMO COM LUMINÁRIA 12V","un",3224,12,0,0,38688,0,0]
[null,11,"URBANIZAÇÃO",null,null,null,null,null,20434.4512,0,0]
[null,"11.1","PLANTIO DE GRAMA ESMERALDA EM PLACAS, INCLUSIVE TERRA VEGETAL E CONSERVAÇÃO POR 30 DIAS","M2",21.63,28.24,0,0,610.83119999999997,0,0]
[null,"11.2","CONJUNTO DE MESA E BANCOS DE CONCRETO PARA JOGOS (02 BANCOS EM ARCO COM D INTERNO = 130 CM E H = 43 CM E MESA COM D = 80 CM, E = 8 CM E H = 75 CM)","CJ",890.93,12,0,0,10691.16,0,0]
[null,"11.3","BANCO DE JARDIM EM CONCRETO APARENTE, ACABAMENTO EM VERNIZ, E = 8 CM, 200 X 40 X 55 CM, SEM ENCOSTO","U",200.93,22,0,0,4420.46,0,0]
[null,"11.4","LIXEIRA REDONDA EM TELA MOEDA - FORNECIMENTO E INSTALAÇÃO","un",248,19,0,0,4712,0,0]
[null,12,"SERVIÇOS FINAIS",null,null,null,null,null,7951.8180000000002,0,0]
[null,"12.1","LIMPEZA FINAL PARA ENTREGA DA OBRA","M2",6.29,1264.2,0,0,7951.8180000000002,0,0]

{"sheet":"Controle","index":57,"n_rows":1048576,"n_cols":12,"rows_kept":4500,"cut":true,"hidden":false,"merged":[],"bounds":{"rows_first":2000,"rows_last":500,"rows_between":2000,"halvings":0}}
["Modos","Modo Ativo:","P",null,"Versão:","2.3.4","Data Vencimento Contrato Licitado:"]
["P - Projeto"]
["L - Licitação"]
["M - Medição"]
[]
["Medição","De","Até",null,"Aditivo","Data","Tipo","Reajuste","Prazo",null,null,"Tipos de Aditivos"]
[null,null,null,null,null,null,null,null,null,null,0,"Adição e/ou Supressão de Quantitativos, Prazo e Reajuste"]
[null,null,null,null,null,null,null,null,null,null,1,"Adição e/ou Supressão de Quantitativos e Prazo"]
[null,null,null,null,null,null,null,null,null,null,2,"Adição e/ou Supressão de Quantitativos e Reajuste"]
[null,null,null,null,null,null,null,null,null,null,3,"Adição e/ou Supressão de Quantitativos"]
[null,null,null,null,null,null,null,null,null,null,4,"Prazo e Reajuste"]
[null,null,null,null,null,null,null,null,null,null,5,"Prazo"]
[null,null,null,null,null,null,null,null,null,null,6,"Reajuste"]
[null,null,null,null,null,null,null,null,null,null,7,"Outros"]
[]
[]
[]
[]
[]
[]
[]
[]
[]
[]
[]
[]
[]
[]
[]
[]
[]
[]
[]
[]
[]
[]
[]
[]
[]
[]
[]
[]
[]
[]
[]
[]
[]
[]
[]
[]
[]
[]
[]
[]
[]
[]
[]
[]
[]
[]
[]
[]
[]
[]
[]
[]
[]
[]
[]
[]
[]
[]
[]
[]
[]
[]
[]
[]
[]
[]
[]
[]
[]
[]
[]
[]
[]
[]
[]
[]
[]
[]
[]
[]
[]
[]
[]
[]
[]
[]
[]
[]
[]
[]
[]
[]
[]
[]
[]
[]
[]
[]
[]
[]
[]
[]
[]
[]
[]
[]
[]
[]
[]
[]
[]
[]
[]
[]
[]
[]
[]
[]
[]
[]
[]
[]
[]
[]
[]
[]
[]
[]
[]
[]
[]
[]
[]
[]
[]
[]
[]
[]
[]
[]
[]
[]
[]
[]
[]
[]
[]
[]
[]
[]
[]
[]
[]
[]
[]
[]
[]
[]
[]
[]
[]
[]
[]
[]
[]
[]
[]
[]
[]
[]
[]
[]
[]
[]
[]
[]
[]
[]
[]
[]
[]
[]
[]
[]
[]
[]
[]
[]
[]
[]
[]
[]
[]
[]
[]
[]
[]
[]
[]
[]
[]
[]
[]
[]
[]
[]
[]
[]
[]
[]
[]
[]
[]
[]
[]
[]
[]
[]
[]
[]
[]
[]
[]
[]
[]
[]
[]
[]
[]
[]
[]
[]
[]
[]
[]
[]
[]
[]
[]
[]
[]
[]
[]
[]
[]
[]
[]
[]
[]
[]
[]
[]
[]
[]
[]
[]
[]
[]
[]
[]
[]
[]
[]
[]
[]
[]
[]
[]
[]
[]
[]
[]
[]
[]
[]
[]
[]
[]
[]
[]
[]
[]
[]
[]
[]
[]
[]
[]
[]
[]
[]
[]
[]
[]
[]
[]
[]
[]
[]
[]
[]
[]
[]
[]
[]
[]
[]
[]
[]
[]
[]
[]
[]
[]
[]
[]
[]
[]
[]
[]
[]
[]
[]
[]
[]
[]
[]
[]
[]
[]
[]
[]
[]
[]
[]
[]
[]
[]
[]
[]
[]
[]
[]
[]
[]
[]
[]
[]
[]
[]
[]
[]
[]
[]
[]
[]
[]
[]
[]
[]
[]
[]
[]
[]
[]
[]
[]
[]
[]
[]
[]
[]
[]
[]
[]
[]
[]
[]
[]
[]
[]
[]
[]
[]
[]
[]
[]
[]
[]
[]
[]
[]
[]
[]
[]
[]
[]
[]
[]
[]
[]
[]
[]
[]
[]
[]
[]
[]
[]
[]
[]
[]
[]
[]
[]
[]
[]
[]
[]
[]
[]
[]
[]
[]
[]
[]
[]
[]
[]
[]
[]
[]
[]
[]
[]
[]
[]
[]
[]
[]
[]
[]
[]
[]
[]
[]
[]
[]
[]
[]
[]
[]
[]
[]
[]
[]
[]
[]
[]
[]
[]
[]
[]
[]
[]
[]
[]
[]
[]
[]
[]
[]
[]
[]
[]
[]
[]
[]
[]
[]
[]
[]
[]
[]
[]
[]
[]
[]
[]
[]
[]
[]
[]
[]
[]
[]
[]
[]
[]
[]
[]
[]
[]
[]
[]
[]
[]
[]
[]
[]
[]
[]
[]
[]
[]
[]
[]
[]
[]
[]
[]
[]
[]
[]
[]
[]
[]
[]
[]
[]
[]
[]
[]
[]
[]
[]
[]
[]
[]
[]
[]
[]
[]
[]
[]
[]
[]
[]
[]
[]
[]
[]
[]
[]
[]
[]
[]
[]
[]
[]
[]
[]
[]
[]
[]
[]
[]
[]
[]
[]
[]
[]
[]
[]
[]
[]
[]
[]
[]
[]
[]
[]
[]
[]
[]
[]
[]
[]
[]
[]
[]
[]
[]
[]
[]
[]
[]
[]
[]
[]
[]
[]
[]
[]
[]
[]
[]
[]
[]
[]
[]
[]
[]
[]
[]
[]
[]
[]
[]
[]
[]
[]
[]
[]
[]
[]
[]
[]
[]
[]
[]
[]
[]
[]
[]
[]
[]
[]
[]
[]
[]
[]
[]
[]
[]
[]
[]
[]
[]
[]
[]
[]
[]
[]
[]
[]
[]
[]
[]
[]
[]
[]
[]
[]
[]
[]
[]
[]
[]
[]
[]
[]
[]
[]
[]
[]
[]
[]
[]
[]
[]
[]
[]
[]
[]
[]
[]
[]
[]
[]
[]
[]
[]
[]
[]
[]
[]
[]
[]
[]
[]
[]
[]
[]
[]
[]
[]
[]
[]
[]
[]
[]
[]
[]
[]
[]
[]
[]
[]
[]
[]
[]
[]
[]
[]
[]
[]
[]
[]
[]
[]
[]
[]
[]
[]
[]
[]
[]
[]
[]
[]
[]
[]
[]
[]
[]
[]
[]
[]
[]
[]
[]
[]
[]
[]
[]
[]
[]
[]
[]
[]
[]
[]
[]
[]
[]
[]
[]
[]
[]
[]
[]
[]
[]
[]
[]
[]
[]
[]
[]
[]
[]
[]
[]
[]
[]
[]
[]
[]
[]
[]
[]
[]
[]
[]
[]
[]
[]
[]
[]
[]
[]
[]
[]
[]
[]
[]
[]
[]
[]
[]
[]
[]
[]
[]
[]
[]
[]
[]
[]
[]
[]
[]
[]
[]
[]
[]
[]
[]
[]
[]
[]
[]
[]
[]
[]
[]
[]
[]
[]
[]
[]
[]
[]
[]
[]
[]
[]
[]
[]
[]
[]
[]
[]
[]
[]
[]
[]
[]
[]
[]
[]
[]
[]
[]
[]
[]
[]
[]
[]
[]
[]
[]
[]
[]
[]
[]
[]
[]
[]
[]
[]
[]
[]
[]
[]
[]
[]
[]
[]
[]
[]
[]
[]
[]
[]
[]
[]
[]
[]
[]
[]
[]
[]
[]
[]
[]
[]
[]
[]
[]
[]
[]
[]
[]
[]
[]
[]
[]
[]
[]
[]
[]
[]
[]
[]
[]
[]
[]
[]
[]
[]
[]
[]
[]
[]
[]
[]
[]
[]
[]
[]
[]
[]
[]
[]
[]
[]
[]
[]
[]
[]
[]
[]
[]
[]
[]
[]
[]
[]
[]
[]
[]
[]
[]
[]
[]
[]
[]
[]
[]
[]
[]
[]
[]
[]
[]
[]
[]
[]
[]
[]
[]
[]
[]
[]
[]
[]
[]
[]
[]
[]
[]
[]
[]
[]
[]
[]
[]
[]
[]
[]
[]
[]
[]
[]
[]
[]
[]
[]
[]
[]
[]
[]
[]
[]
[]
[]
[]
[]
[]
[]
[]
[]
[]
[]
[]
[]
[]
[]
[]
[]
[]
[]
[]
[]
[]
[]
[]
[]
[]
[]
[]
[]
[]
[]
[]
[]
[]
[]
[]
[]
[]
[]
[]
[]
[]
[]
[]
[]
[]
[]
[]
[]
[]
[]
[]
[]
[]
[]
[]
[]
[]
[]
[]
[]
[]
[]
[]
[]
[]
[]
[]
[]
[]
[]
[]
[]
[]
[]
[]
[]
[]
[]
[]
[]
[]
[]
[]
[]
[]
[]
[]
[]
[]
[]
[]
[]
[]
[]
[]
[]
[]
[]
[]
[]
[]
[]
[]
[]
[]
[]
[]
[]
[]
[]
[]
[]
[]
[]
[]
[]
[]
[]
[]
[]
[]
[]
[]
[]
[]
[]
[]
[]
[]
[]
[]
[]
[]
[]
[]
[]
[]
[]
[]
[]
[]
[]
[]
[]
[]
[]
[]
[]
[]
[]
[]
[]
[]
[]
[]
[]
[]
[]
[]
[]
[]
[]
[]
[]
[]
[]
[]
[]
[]
[]
[]
[]
[]
[]
[]
[]
[]
[]
[]
[]
[]
[]
[]
[]
[]
[]
[]
[]
[]
[]
[]
[]
[]
[]
[]
[]
[]
[]
[]
[]
[]
[]
[]
[]
[]
[]
[]
[]
[]
[]
[]
[]
[]
[]
[]
[]
[]
[]
[]
[]
[]
[]
[]
[]
[]
[]
[]
[]
[]
[]
[]
[]
[]
[]
[]
[]
[]
[]
[]
[]
[]
[]
[]
[]
[]
[]
[]
[]
[]
[]
[]
[]
[]
[]
[]
[]
[]
[]
[]
[]
[]
[]
[]
[]
[]
[]
[]
[]
[]
[]
[]
[]
[]
[]
[]
[]
[]
[]
[]
[]
[]
[]
[]
[]
[]
[]
[]
[]
[]
[]
[]
[]
[]
[]
[]
[]
[]
[]
[]
[]
[]
[]
[]
[]
[]
[]
[]
[]
[]
[]
[]
[]
[]
[]
[]
[]
[]
[]
[]
[]
[]
[]
[]
[]
[]
[]
[]
[]
[]
[]
[]
[]
[]
[]
[]
[]
[]
[]
[]
[]
[]
[]
[]
[]
[]
[]
[]
[]
[]
[]
[]
[]
[]
[]
[]
[]
[]
[]
[]
[]
[]
[]
[]
[]
[]
[]
[]
[]
[]
[]
[]
[]
[]
[]
[]
[]
[]
[]
[]
[]
[]
[]
[]
[]
[]
[]
[]
[]
[]
[]
[]
[]
[]
[]
[]
[]
[]
[]
[]
[]
[]
[]
[]
[]
[]
[]
[]
[]
[]
[]
[]
[]
[]
[]
[]
[]
[]
[]
[]
[]
[]
[]
[]
[]
[]
[]
[]
[]
[]
[]
[]
[]
[]
[]
[]
[]
[]
[]
[]
[]
[]
[]
[]
[]
[]
[]
[]
[]
[]
[]
[]
[]
[]
[]
[]
[]
[]
[]
[]
[]
[]
[]
[]
[]
[]
[]
[]
[]
[]
[]
[]
[]
[]
[]
[]
[]
[]
[]
[]
[]
[]
[]
[]
[]
[]
[]
[]
[]
[]
[]
[]
[]
[]
[]
[]
[]
[]
[]
[]
[]
[]
[]
[]
[]
[]
[]
[]
[]
[]
[]
[]
[]
[]
[]
[]
[]
[]
[]
[]
[]
[]
[]
[]
[]
[]
[]
[]
[]
[]
[]
[]
[]
[]
[]
[]
[]
[]
[]
[]
[]
[]
[]
[]
[]
[]
[]
[]
[]
[]
[]
[]
[]
[]
[]
[]
[]
[]
[]
[]
[]
[]
[]
[]
[]
[]
[]
[]
[]
[]
[]
[]
[]
[]
[]
[]
[]
[]
[]
[]
[]
[]
[]
[]
[]
[]
[]
[]
[]
[]
[]
[]
[]
[]
[]
[]
[]
[]
[]
[]
[]
[]
[]
[]
[]
[]
[]
[]
[]
[]
[]
[]
[]
[]
[]
[]
[]
[]
[]
[]
[]
[]
[]
[]
[]
[]
[]
[]
[]
[]
[]
[]
[]
[]
[]
[]
[]
[]
[]
[]
[]
[]
[]
[]
[]
[]
[]
[]
[]
[]
[]
[]
[]
[]
[]
[]
[]
[]
[]
[]
[]
[]
[]
[]
[]
[]
[]
[]
[]
[]
[]
[]
[]
[]
[]
[]
[]
[]
[]
[]
[]
[]
[]
[]
[]
[]
[]
[]
[]
[]
[]
[]
[]
[]
[]
[]
[]
[]
[]
[]
[]
[]
[]
[]
[]
[]
[]
[]
[]
[]
[]
[]
[]
[]
[]
[]
[]
[]
[]
[]
[]
[]
[]
[]
[]
[]
[]
[]
[]
[]
[]
[]
[]
[]
[]
[]
[]
[]
[]
[]
[]
[]
[]
[]
[]
[]
[]
[]
[]
[]
[]
[]
[]
[]
[]
[]
[]
[]
[]
[]
[]
[]
[]
[]
[]
[]
[]
[]
[]
[]
[]
[]
[]
[]
[]
[]
[]
[]
[]
[]
[]
[]
[]
[]
[]
[]
[]
[]
[]
[]
[]
[]
[]
[]
[]
[]
[]
[]
[]
[]
[]
[]
[]
[]
[]
[]
[]
[]
[]
[]
[]
[]
[]
[]
[]
[]
[]
[]
[]
[]
[]
[]
[]
[]
[]
[]
[]
[]
[]
[]
[]
[]
[]
[]
[]
[]
[]
[]
[]
[]
[]
[]
[]
[]
[]
[]
[]
[]
[]
[]
[]
[]
[]
[]
[]
[]
[]
[]
[]
[]
[]
[]
[]
[]
[]
[]
[]
[]
[]
[]
[]
[]
[]
[]
[]
[]
[]
[]
[]
[]
[]
[]
[]
[]
[]
[]
[]
[]
[]
[]
[]
[]
[]
[]
[]
[]
[]
[]
[]
[]
[]
[]
[]
[]
[]
[]
[]
[]
[]
[]
[]
[]
[]
[]
[]
[]
[]
[]
[]
[]
[]
[]
[]
[]
[]
[]
[]
[]
[]
[]
[]
[]
[]
[]
[]
[]
[]
[]
[]
[]
[]
[]
[]
[]
[]
[]
[]
[]
[]
[]
[]
[]
[]
[]
[]
[]
[]
[]
[]
[]
[]
[]
[]
[]
[]
[]
[]
[]
[]
[]
[]
[]
[]
[]
[]
[]
[]
[]
[]
[]
[]
[]
[]
[]
[]
[]
[]
[]
[]
[]
[]
[]
[]
[]
[]
[]
[]
[]
[]
[]
[]
[]
[]
[]
[]
[]
[]
[]
[]
[]
[]
[]
[]
[]
[]
[]
[]
[]
[]
[]
[]
[]
[]
[]
[]
[]
[]
[]
[]
[]
[]
[]
[]
[]
[]
[]
[]
[]
[]
[]
[]
[]
[]
[]
[]
[]
[]
[]
[]
[]
[]
[]
[]
[]
[]
[]
[]
[]
[]
[]
[]
[]
[]
[]
[]
[]
[]
[]
[]
[]
[]
[]
[]
[]
[]
[]
[]
[]
[]
[]
[]
[]
[]
[]
[]
[]
[]
[]
[]
[]
[]
[]
[]
[]
[]
[]
[]
[]
[]
[]
[]
[]
[]
[]
[]
[]
[]
[]
[]
[]
[]
[]
[]
[]
[]
[]
[]
[]
[]
[]
[]
[]
[]
[]
[]
[]
[]
[]
[]
[]
[]
[]
[]
[]
[]
[]
[]
[]
[]
[]
[]
[]
[]
[]
[]
[]
[]
[]
[]
[]
[]
[]
[]
[]
[]
[]
[]
[]
[]
[]
[]
[]
[]
[]
[]
[]
[]
[]
[]
[]
[]
[]
[]
[]
[]
[]
[]
[]
[]
[]
[]
[]
[]
[]
[]
[]
[]
[]
[]
[]
[]
[]
[]
[]
[]
[]
[]
[]
[]
[]
[]
[]
[]
[]
[]
[]
[]
[]
[]
[]
[]
[]
[]
[]
[]
[]
[]
[]
[]
[]
[]
[]
[]
[]
[]
[]
[]
[]
[]
[]
[]
[]
[]
[]
[]
[]
[]
[]
[]
[]
[]
[]
[]
[]
[]
[]
[]
[]
[]
[]
[]
[]
[]
[]
[]
[]
[]
[]
[]
[]
[]
[]
[]
[]
[]
[]
[]
[]
[]
[]
[]
[]
[]
[]
[]
[]
[]
[]
[]
[]
[]
[]
[]
[]
[]
[]
[]
[]
[]
[]
[]
[]
[]
[]
[]
[]
[]
[]
[]
[]
[]
[]
[]
[]
[]
[]
[]
[]
[]
[]
[]
[]
[]
[]
[]
[]
[]
[]
[]
[]
[]
[]
[]
[]
[]
[]
[]
[]
[]
[]
[]
[]
[]
[]
[]
[]
[]
[]
[]
[]
[]
[]
[]
[]
[]
[]
[]
[]
[]
[]
[]
[]
[]
[]
[]
[]
[]
[]
[]
[]
[]
[]
[]
[]
[]
[]
[]
[]
[]
[]
[]
[]
[]
[]
[]
[]
[]
[]
[]
[]
[]
[]
[]
[]
[]
[]
[]
[]
[]
[]
[]
[]
[]
[]
[]
[]
[]
[]
[]
[]
[]
[]
[]
[]
[]
[]
[]
[]
[]
[]
[]
[]
[]
[]
[]
[]
[]
[]
[]
[]
[]
[]
[]
[]
[]
[]
[]
[]
[]
[]
[]
[]
[]
[]
[]
[]
[]
[]
[]
[]
[]
[]
[]
[]
[]
[]
[]
[]
[]
[]
[]
[]
[]
[]
[]
[]
[]
[]
[]
[]
[]
[]
[]
[]
[]
[]
[]
[]
[]
[]
[]
[]
[]
[]
[]
[]
[]
[]
[]
[]
[]
[]
[]
[]
[]
[]
[]
[]
[]
[]
[]
[]
[]
[]
[]
[]
[]
[]
[]
[]
[]
[]
[]
[]
[]
[]
[]
[]
[]
[]
[]
[]
[]
[]
[]
[]
[]
[]
[]
[]
[]
[]
[]
[]
[]
[]
[]
[]
[]
[]
[]
[]
[]
[]
[]
[]
[]
[]
[]
[]
[]
[]
[]
[]
[]
[]
[]
[]
[]
[]
[]
[]
[]
[]
[]
[]
[]
[]
[]
[]
[]
[]
[]
[]
[]
[]
[]
[]
[]
[]
[]
[]
[]
[]
[]
[]
[]
[]
[]
[]
[]
[]
[]
[]
[]
[]
[]
[]
[]
[]
[]
[]
[]
[]
[]
[]
[]
[]
[]
[]
[]
[]
[]
[]
[]
[]
[]
[]
[]
[]
[]
[]
[]
[]
[]
[]
[]
[]
[]
[]
[]
[]
[]
[]
[]
[]
[]
[]
[]
[]
[]
[]
[]
[]
[]
[]
[]
[]
[]
[]
[]
[]
[]
[]
[]
[]
[]
[]
[]
[]
[]
[]
[]
[]
[]
[]
[]
[]
[]
[]
[]
[]
[]
[]
[]
[]
[]
[]
[]
[]
[]
[]
[]
[]
[]
[]
[]
[]
[]
[]
[]
[]
[]
[]
[]
[]
[]
[]
[]
[]
[]
[]
[]
[]
[]
[]
[]
[]
[]
[]
[]
[]
[]
[]
[]
[]
[]
[]
[]
[]
[]
[]
[]
[]
[]
[]
[]
[]
[]
[]
[]
[]
[]
[]
[]
[]
[]
[]
[]
[]
[]
[]
[]
[]
[]
[]
[]
[]
[]
[]
[]
[]
[]
[]
[]
[]
[]
[]
[]
[]
[]
[]
[]
[]
[]
[]
[]
[]
[]
[]
[]
[]
[]
[]
[]
[]
[]
[]
[]
[]
[]
[]
[]
[]
[]
[]
[]
[]
[]
[]
[]
[]
[]
[]
[]
[]
[]
[]
[]
[]
[]
[]
[]
[]
[]
[]
[]
[]
[]
[]
[]
[]
[]
[]
[]
[]
[]
[]
[]
[]
[]
[]
[]
[]
[]
[]
[]
[]
[]
[]
[]
[]
[]
[]
[]
[]
[]
[]
[]
[]
[]
[]
[]
[]
[]
[]
[]
[]
[]
[]
[]
[]
[]
[]
[]
[]
[]
[]
[]
[]
[]
[]
[]
[]
[]
[]
[]
[]
[]
[]
[]
[]
[]
[]
[]
[]
[]
[]
[]
[]
[]
[]
[]
[]
[]
[]
[]
[]
[]
[]
[]
[]
[]
[]
[]
[]
[]
[]
[]
[]
[]
[]
[]
[]
[]
[]
[]
[]
[]
[]
[]
[]
[]
[]
[]
[]
[]
[]
[]
[]
[]
[]
[]
[]
[]
[]
[]
[]
[]
[]
[]
[]
[]
[]
[]
[]
[]
[]
[]
[]
[]
[]
[]
[]
[]
[]
[]
[]
[]
[]
[]
[]
[]
[]
[]
[]
[]
[]
[]
[]
[]
[]
[]
[]
[]
[]
[]
[]
[]
[]
[]
[]
[]
[]
[]
[]
[]
[]
[]
[]
[]
[]
[]
[]
[]
[]
[]
[]
[]
[]
[]
[]
[]
[]
[]
[]
[]
[]
[]
[]
[]
[]
[]
[]
[]
[]
[]
[]
[]
[]
[]
[]
[]
[]
[]
[]
[]
[]
[]
[]
[]
[]
[]
[]
[]
[]
[]
[]
[]
[]
[]
[]
[]
[]
[]
[]
[]
[]
[]
[]
[]
[]
[]
[]
[]
[]
[]
[]
[]
[]
[]
[]
[]
[]
[]
[]
[]
[]
[]
[]
[]
[]
[]
[]
[]
[]
[]
[]
[]
[]
[]
[]
[]
[]
[]
[]
[]
[]
[]
[]
[]
[]
[]
[]
[]
[]
[]
[]
[]
[]
[]
[]
[]
[]
[]
[]
[]
[]
[]
[]
[]
[]
[]
[]
[]
[]
[]
[]
[]
[]
[]
[]
[]
[]
[]
[]
[]
[]
[]
[]
[]
[]
[]
[]
[]
[]
[]
[]
[]
[]
[]
[]
[]
[]
[]
[]
[]
[]
[]
[]
[]
[]
[]
[]
[]
[]
[]
[]
[]
[]
[]
[]
[]
[]
[]
[]
[]
[]
[]
[]
[]
[]
[]
[]
[]
[]
[]
[]
[]
[]
[]
[]
[]
[]
[]
[]
[]
[]
[]
[]
[]
[]
[]
[]
[]
[]
[]
[]
[]
[]
[]
[]
[]
[]
[]
[]
[]
[]
[]
[]
[]
[]
[]
[]
[]
[]
[]
[]
[]
[]
[]
[]
[]
[]
[]
[]
[]
[]
[]
[]
[]
[]
[]
[]
[]
[]
[]
[]
[]
[]
[]
[]
[]
[]
[]
[]
[]
[]
[]
[]
[]
[]
[]
[]
[]
[]
[]
[]
[]
[]
[]
[]
[]
[]
[]
[]
[]
[]
[]
[]
[]
[]
[]
[]
[]
[]
[]
[]
[]
[]
[]
[]
[]
[]
[]
[]
[]
[]
[]
[]
[]
[]
[]
[]
[]
[]
[]
[]
[]
[]
[]
[]
[]
[]
[]
[]
[]
[]
[]
[]
[]
[]
[]
[]
[]
[]
[]
[]
[]
[]
[]
[]
[]
[]
[]
[]
[]
[]
[]
[]
[]
[]
[]
[]
[]
[]
[]
[]
[]
[]
[]
[]
[]
[]
[]
[]
[]
[]
[]
[]
[]
[]
[]
[]
[]
[]
[]
[]
[]
[]
[]
[]
[]
[]
[]
[]
[]
[]
[]
[]
[]
[]
[]
[]
[]
[]
[]
[]
[]
[]
[]
[]
[]
[]
[]
[]
[]
[]
[]
[]
[]
[]
[]
[]
[]
[]
[]
[]
[]
[]
[]
[]
[]
[]
[]
[]
[]
[]
[]
[]
[]
[]
[]
[]
[]
[]
[]
[]
[]
[]
[]
[]
[]
[]
[]
[]
[]
[]
[]
[]
[]
[]
[]
[]
[]
[]
[]
[]
[]
[]
[]
[]
[]
[]
[]
[]
[]
[]
[]
[]
[]
[]
[]
[]
[]
[]
[]
[]
[]
[]
[]
[]
[]
[]
[]
[]
[]
[]
[]
[]
[]
[]
[]
[]
[]
[]
[]
[]
[]
[]
[]
[]
[]
[]
[]
[]
[]
[]
[]
[]
[]
[]
[]
[]
[]
[]
[]
[]
[]
[]
[]
[]
[]
[]
[]
[]
[]
[]
[]
[]
[]
[]
[]
[]
[]
[]
[]
[]
[]
[]
[]
[]
[]
[]
[]
[]
[]
[]
[]
[]
[]
[]
[]
[]
[]
[]
[]
[]
[]
[]
[]
[]
[]
[]
[]
[]
[]
[]
[]
[]
[]
[]
[]
[]
[]
[]
[]
[]
[]
[]
[]
[]
[]
[]
[]
[]
[]
[]
[]
[]
[]
[]
[]
[]
[]
[]
[]
[]
[]
[]
[]
[]
[]
[]
[]
[]
[]
[]
[]
[]
[]
[]
[]
[]
[]
[]
[]
[]
[]
[]
[]
[]
[]
[]
[]
[]
[]
[]
[]
[]
[]
[]
[]
[]
[]
[]
[]
[]
[]
[]
[]
[]
[]
[]
[]
[]
[]
[]
[]
[]
[]
[]
[]
[]
[]
[]
[]
[]
[]
[]
[]
[]
[]
[]
[]
[]
[]
[]
[]
[]
[]
[]
[]
[]
[]
[]
[]
[]
[]
[]
[]
[]
[]
[]
[]
[]
[]
[]
[]
[]
[]
[]
[]
[]
[]
[]
[]
[]
[]
[]
[]
[]
[]
[]
[]
[]
[]
[]
[]
[]
[]
[]
[]
[]
[]
[]
[]
[]
[]
[]
[]
[]
[]
[]
[]
[]
[]
[]
[]
[]
[]
[]
[]
[]
[]
[]
[]
[]
[]
[]
[]
[]
[]
[]
[]
[]
[]
[]
[]
[]
[]
[]
[]
[]
[]
[]
[]
[]
[]
[]
[]
[]
[]
[]
[]
[]
[]
[]
[]
[]
[]
[]
[]
[]
[]
[]
[]
[]
[]
[]
[]
[]
[]
[]
[]
[]
[]
[]
[]
[]
[]
[]
[]
[]
[]
[]
[]
[]
[]
[]
[]
[]
[]
[]
[]
[]
[]
[]
[]
[]
[]
[]
[]
[]
[]
[]
[]
[]
[]
[]
[]
[]
[]
[]
[]
[]
[]
[]
[]
[]
[]
[]
[]
[]
[]
[]
[]
[]
[]
[]
[]
[]
[]
[]
[]
[]
[]
[]
[]
[]
[]
[]
[]
[]
[]
[]
[]
[]
[]
[]
[]
[]
[]
[]
[]
[]
[]
[]
[]
[]
[]
[]
[]
[]
[]
[]
[]
[]
[]
[]
[]
[]
[]
[]
[]
[]
[]
[]
[]
[]
[]
[]
[]
[]
[]
[]
[]
[]
[]
[]
[]
[]
[]
[]
[]
[]
[]
[]
[]
[]
[]
[]
[]
[]
[]
[]
[]
[]
[]
[]
[]
[]
[]
[]
[]
[]
[]
[]
[]
[]
[]
[]
[]
[]
[]
[]
[]
[]
[]
[]
[]
[]
[]
[]
[]
[]
[]
[]
[]
[]
[]
[]
[]
[]
[]
[]
[]
[]
[]
[]
[]
[]
[]
[]
[]
[]
[]
[]
[]
[]
[]
[]
[]
[]
[]
[]
[]
[]
[]
[]
[]
[]
[]
[]
[]
[]
[]
[]
[]
[]
[]
[]
[]
[]
[]
[]
[]
[]
[]
[]
[]
[]
[]
[]
[]
[]
[]
[]
[]
[]
[]
[]
[]
[]
[]
[]
[]
[]
[]
[]
[]
[]
[]
[]
[]
[]
[]
[]
[]
[]
[]
[]
[]
[]
[]
[]
[]
[]
[]
[]
[]
[]
[]
[]
[]
[]
[]
[]
[]
[]
[]
[]
[]
[]
[]
[]
[]
[]
[]
[]
[]
[]
[]
[]
[]
[]
[]
[]
[]
[]
[]
[]
[]
[]
[]
[]
[]
[]
[]
[]
[]
[]
[]
[]
[]
[]
[]
[]
[]
[]
[]
[]
[]
[]
[]
[]
[]
[]
[]
[]
[]
[]
[]
[]
[]
[]
[]
[]
[]
[]
[]
[]
[]
[]
[]
[]
[]
[]
[]
[]
[]
[]
[]
[]
[]
[]
[]
[]
[]
[]
[]
[]
[]
[]
[]
[]
[]
[]
[]
[]
[]
[]
[]
[]
[]
[]
[]
[]
[]
[]
[]
[]
[]
[]
[]
[]
[]
[]
[]
[]
[]
[]
[]
[]
[]
[]
[]
[]
[]
[]
[]
[]
[]
[]
[]
[]
[]
[]
[]
[]
[]
[]
[]
[]
[]
[]
[]
[]
[]
[]
[]
[]
[]
[]
[]
[]
[]
[]
[]
[]
[]
[]
[]
[]
[]
[]
[]
[]
[]
[]
[]
[]
[]
[]
[]
[]
[]
[]
[]
[]
[]
[]
[]
[]
[]
[]
[]
[]
[]
[]
[]
[]
[]
[]
[]
[]
[]
[]
[]
[]
[]
[]
[]
[]
[]
[]
[]
[]
[]
[]
[]
[]
[]
[]
[]
[]
[]
[]
[]
[]
[]
[]
[]
[]
[]
[]
[]
[]
[]
[]
[]
[]
[]
[]
[]
[]
[]
[]
[]
[]
[]
[]
[]
[]
[]
[]
[]
[]
[]
[]
[]
[]
[]
[]
[]
[]
[]
[]
[]
[]
[]
[]
[]
[]
[]
[]
[]
[]
[]
[]
[]
[]
[]
[]
[]
[]
[]
[]
[]
[]
[]
[]
[]
[]
[]
[]
[]
[]
[]
[]
[]
[]
[]
[]
[]
[]
[]
[]
[]
[]
[]
[]
[]
[]
[]
[]
[]
[]
[]
[]
[]
[]
[]
[]
[]
[]
[]
[]
[]
[]
[]
[]
[]
[]
[]
[]
[]
[]
[]
[]
[]
[]
[]
[]
[]
[]
[]
[]
[]
[]
[]
[]
[]
[]
[]
[]
[]
[]
[]
[]
[]
[]
[]
[]
[]
[]
[]
[]
[]
[]
[]
[]
[]
[]
[]
[]
[]
[]
[]
[]
[]
[]
[]
[]
[]
[]
[]
[]
[]
[]
[]
[]
[]
[]
[]
[]
[]
[]
[]
[]
[]
[]
[]
[]
[]
[]
[]
[]
[]
[]
[]
[]
[]
[]
[]
[]
[]
[]
[]
[]
[]
[]
[]
[]
[]
[]
[]
[]
[]
[]
[]
[]
[]
[]
[]
[]
[]
[]
[]
[]
[]
[]
[]
[]
[]
[]
[]
[]
[]
[]
[]
[]
[]
[]
[]
[]
[]
[]
[]
[]
[]
[]
[]
[]
[]
[]
[]
[]
[]
[]
[]
[]
[]
[]
[]
[]
[]
[]
[]
[]
["SPBDMGV2.0","ABC2022BDMG"]

{"sheet":"Municípios","index":58,"n_rows":855,"n_cols":15,"rows_kept":855,"cut":false,"hidden":false,"merged":[]}
["ITEM","MUNICÍPIO","ÁREA DO MUNICIPIO (KM2)","POPULAÇÃO EM 2010","CNPJ","IDH 2010","DINAMISMO","REGIÃO DE PLANEJAMENTO","MICRORREGIÃO","CÓDIGO","TERRITÓRIO","CND VÁLIDA ATÉ","SIAFI","CADIP","DATA CONSULTA"]
[1,"Abadia dos Dourados",894.52,6704,18593111000114,0.68899999999999995,{"$f":"IF(F2<0.668,\"BAIXO\",\"ALTO\")","v":"ALTO"},"Alto Paranaíba","Patrocínio",310010,"16 - Triângulo Norte","2018-02-20"]
[2,"Abaeté",1814.59,22700,18296632000100,0.69799999999999995,"ALTO","Central","Três Marias",310020,"06 - Central"]
[3,"Abre Campo",470.38,13311,18837278000183,0.65400000000000003,"BAIXO","Zona da Mata","Manhuaçu",310030,"11 - Caparaó","2019-08-24","Normal","Adimplente","2018-03-02"]
[4,"Acaiaca",102.27,3924,18295287000190,0.63,"BAIXO","Zona da Mata","Ponte Nova",310040,"11 - Caparaó"]
[5,"Açucena",811.59,10298,17005216000142,0.61,"BAIXO","Rio Doce","Ipatinga",310050,"08 - Vale do Aço","2019-10-26"]
[6,"Água Boa",1322.31,15193,18085563000195,0.57599999999999996,"BAIXO","Rio Doce","Peçanha",310060,"07 - Vale do Rio Doce"]
[7,"Água Comprida",492.57,2020,18428953000110,0.67500000000000004,"ALTO","Triângulo","Uberaba",310070,"17 - Triângulo Sul"]
[8,"Aguanil",232.61,4049,17888108000165,0.66300000000000003,"BAIXO","Centro Oeste de Minas","Campo Belo",310080,"10 - Oeste"]
[9,"Águas Formosas",817.93,18482,18404749000160,0.64500000000000002,"BAIXO","Jequitinhonha/Mucuri","Nanuque",310090,"04 - Mucuri"]
[10,"Águas Vermelhas",1258.04,12718,18414581000173,0.60099999999999998,"BAIXO","Norte de Minas","Salinas",310100,"03 - Médio e Baixo Jequitinhonha"]
[11,"Aimorés",1353.06,24969,18348094000150,0.68400000000000005,"ALTO","Rio Doce","Aimorés",310110,"07 - Vale do Rio Doce"]
[12,"Aiuruoca",649.49,6173,18008896000110,0.66800000000000004,"ALTO","Sul de Minas","Andrelândia",310120,"14 - Sul"]
[13,"Alagoa",161.96,2709,18186346000191,0.64900000000000002,"BAIXO","Sul de Minas","São Lourenço",310130,"14 - Sul"]
[14,"Albertina",58.06,2913,17912015000129,0.67300000000000004,"ALTO","Sul de Minas","Poços de Caldas",310140,"14 - Sul"]
[15,"Além Paraíba",509.98,34341,17709197000135,0.72599999999999998,"ALTO","Zona da Mata","Cataguases",310150,"12 - Mata","2018-07-03"]
[16,"Alfenas",851.33,79722,18243220000101,0.76100000000000001,"ALTO","Sul de Minas","Alfenas",310160,"14 - Sul","2019-11-30"]
[17,"Alfredo Vasconcelos",130.52000000000001,6078,26130617000115,0.67500000000000004,"ALTO","Central","Barbacena",310163,"13 - Vertentes"]
[18,"Almenara",2291.4,38779,18349894000195,0.64200000000000002,"BAIXO","Jequitinhonha/Mucuri","Almenara",310170,"03 - Médio e Baixo Jequitinhonha"]
[19,"Alpercata",166.79,7172,18332627000105,0.64600000000000002,"BAIXO","Rio Doce","Governador Valadares",310180,"07 - Vale do Rio Doce","2020-02-03"]
[20,"Alpinópolis",454.36,18490,18241752000100,0.72499999999999998,"ALTO","Sul de Minas","Passos",310190,"15 - Sudoeste"]
[21,"Alterosa",362.37,13714,18243238000103,0.66800000000000004,"ALTO","Sul de Minas","Alfenas",310200,"15 - Sudoeste","2018-05-21"]
[22,"Alto Caparaó",104.58,5297,1616270000194,0.66100000000000003,"BAIXO","Zona da Mata","Manhuaçu",310205,"11 - Caparaó"]
[23,"Alto Jequitibá",151.47,8323,18392506000159,0.66,"BAIXO","Zona da Mata","Manhuaçu",315350,"11 - Caparaó"]
[24,"Alto Rio Doce",517.09,12158,18094748000166,0.62,"BAIXO","Zona da Mata","Viçosa",310210,"13 - Vertentes"]
[25,"Alvarenga",296.06,4443,19770288000101,0.59199999999999997,"BAIXO","Rio Doce","Aimorés",310220,"07 - Vale do Rio Doce","2020-01-19","Normal","Adimplente","2019-07-26"]
[26,"Alvinópolis",599.79,15263,16725392000196,0.67600000000000005,"ALTO","Central","Itabira",310230,"11 - Caparaó","2020-01-06","Normal","Adimplente","2018-12-18"]
[27,"Alvorada de Minas",374.04,3548,18303164000153,0.57199999999999995,"BAIXO","Central","Conceição do Mato dentro",310240,"05 - Alto Jequitinhonha"]
[28,"Amparo do Serra",136.04,5052,18316174000123,0.64100000000000001,"BAIXO","Zona da Mata","Viçosa",310250,"11 - Caparaó"]
[29,"Andradas",467,37302,17884412000134,0.73399999999999999,"ALTO","Sul de Minas","Poços de Caldas",310260,"14 - Sul","2019-10-22","Normal","Normal","2018-05-15"]
[30,"Andrelândia",1005.16,12146,18682930000138,0.7,"ALTO","Sul de Minas","Andrelândia",310280,"12 - Mata"]
[31,"Angelândia",184.16,8003,1113937000136,0.59699999999999998,"BAIXO","Jequitinhonha/Mucuri","Capelinha",310285,"04 - Mucuri"]
[32,"Antônio Carlos",529.94000000000005,11112,18094763000104,0.68300000000000005,"ALTO","Central","Barbacena",310290,"13 - Vertentes"]
[33,"Antônio Dias",787.07,9573,16796575000100,0.64500000000000002,"BAIXO","Rio Doce","Ipatinga",310300,"08 - Vale do Aço"]
[34,"Antônio Prado de Minas",85.14,1673,17947631000115,0.68400000000000005,"ALTO","Zona da Mata","Muriaé",310310,"12 - Mata"]
[35,"Araçaí",185.38,2247,18116111000123,0.69499999999999995,"ALTO","Central","Sete Lagoas",310320,"09 - Metropolitana","2018-08-04","Normal","Adimplente","2018-03-02"]
[36,"Aracitaba",106.14,2057,17747940000141,0.66100000000000003,"BAIXO","Zona da Mata","Juiz de Fora",310330,"12 - Mata"]
[37,"Araçuaí",2229.16,36041,17963083000117,0.66300000000000003,"BAIXO","Jequitinhonha/Mucuri","Araçuaí",310340,"03 - Médio e Baixo Jequitinhonha","2018-10-31",null,null,"2018-06-06"]
[38,"Araguari",2745.85,109779,16829640000149,0.77300000000000002,"ALTO","Triângulo","Uberlândia",310350,"16 - Triângulo Norte","2020-03-30","Normal","Adimplente","2019-03-01"]
[39,"Arantina",89.54,2823,17952508000192,0.69699999999999995,"ALTO","Sul de Minas","Andrelândia",310360,"12 - Mata"]
[40,"Araponga",303.68,8165,18132167000171,0.53600000000000003,"BAIXO","Zona da Mata","Viçosa",310370,"11 - Caparaó"]
[41,"Araporã",295.12,6233,23098510000149,0.70799999999999996,"ALTO","Triângulo","Uberlândia",310375,"16 - Triângulo Norte"]
[42,"Arapuá",171.87,2772,19942895000101,0.72399999999999998,"ALTO","Alto Paranaíba","Patos de Minas",310380,"01 - Noroeste"]
[43,"Araújos",244.83,7884,18300996000116,0.69799999999999995,"ALTO","Centro Oeste de Minas","Bom despacho",310390,"10 - Oeste"]
[44,"Araxá",1166.96,93683,18140756000100,0.77200000000000002,"ALTO","Alto Paranaíba","Araxá",310400,"17 - Triângulo Sul"]
[45,"Arceburgo",162.13999999999999,9509,17899717000110,0.68300000000000005,"ALTO","Sul de Minas","São Sebastião do Paraíso",310410,"15 - Sudoeste","2019-11-30"]
[46,"Arcos",509.8,36582,18306662000150,0.749,"ALTO","Centro Oeste de Minas","Formiga",310420,"10 - Oeste","2020-03-09"]
[47,"Areado",281.62,13729,18243246000150,0.72699999999999998,"ALTO","Sul de Minas","Alfenas",310430,"14 - Sul"]
[48,"Argirita",159.63,2901,17730011000120,0.64300000000000002,"BAIXO","Zona da Mata","Cataguases",310440,"12 - Mata"]
[49,"Aricanduva",243.86,4770,1608511000153,0.58199999999999996,"BAIXO","Jequitinhonha/Mucuri","Capelinha",310445,"05 - Alto Jequitinhonha"]
[50,"Arinos",5273.47,17674,18125120000180,0.65600000000000003,"BAIXO","Noroeste de Minas","Unaí",310450,"01 - Noroeste"]
[51,"Astolfo Dutra",159.21,13049,17702507000190,0.69399999999999995,"ALTO","Zona da Mata","Ubá",310460,"12 - Mata"]
[52,"Ataléia",1833.43,14451,16971376000183,0.58799999999999997,"BAIXO","Jequitinhonha/Mucuri","Teófilo Otoni",310470,"04 - Mucuri"]
[53,"Augusto de Lima",1250.3499999999999,4962,17694845000127,0.65600000000000003,"BAIXO","Central","Curvelo",310480,"06 - Central"]
[54,"Baependi",751.05,18292,18008862000126,0.68100000000000005,"ALTO","Sul de Minas","São Lourenço",310490,"14 - Sul"]
[55,"Baldim",556.44000000000005,7917,18116129000125,0.67100000000000004,"ALTO","Central","Sete Lagoas",310500,"09 - Metropolitana"]
[56,"Bambuí",1453.99,22709,20920567000193,0.74099999999999999,"ALTO","Centro Oeste de Minas","Piuí",310510,"10 - Oeste"]
[57,"Bandeira",485.02,4988,18349902000101,0.59899999999999998,"BAIXO","Jequitinhonha/Mucuri","Almenara",310520,"03 - Médio e Baixo Jequitinhonha"]
[58,"Bandeira do Sul",47.07,5340,18175794000190,0.69199999999999995,"ALTO","Sul de Minas","Poços de Caldas",310530,"14 - Sul"]
[59,"Barão de Cocais",340.56,28432,18317685000160,0.72199999999999998,"ALTO","Central","Itabira",310540,"09 - Metropolitana","2020-01-14","Normal","Adimplente","2019-07-22"]
[60,"Barão de Monte Alto",199.23,5727,17947649000117,0.64900000000000002,"BAIXO","Zona da Mata","Muriaé",310550,"12 - Mata"]
[61,"Barbacena",758.37,126325,17095043000109,0.76900000000000002,"ALTO","Central","Barbacena",310560,"13 - Vertentes"]
[62,"Barra Longa",383.97,6147,18316182000170,0.624,"BAIXO","Zona da Mata","Ponte Nova",310570,"11 - Caparaó","2020-02-16"]
[63,"Barroso",82.33,19623,18094755000168,0.73399999999999999,"ALTO","Central","Barbacena",310590,"13 - Vertentes"]
[64,"Bela Vista de Minas",108.52,10012,18311043000153,0.67400000000000004,"ALTO","Central","Itabira",310600,"09 - Metropolitana","2018-12-01"]
[65,"Belmiro Braga",392.11,3404,18338129000170,0.66,{"$f":"IF(F66<0.668,\"BAIXO\",\"ALTO\")","v":"BAIXO"},"Zona da Mata","Juiz de Fora",310610,"12 - Mata"]
[66,"Belo Horizonte",330.23,2375444,18715383000140,0.81,"ALTO","Central","Belo Horizonte",310620,"09 - Metropolitana","2020-03-01"]
[67,"Belo Oriente",335.31,23397,17005653000166,0.68600000000000005,"ALTO","Rio Doce","Ipatinga",310630,"08 - Vale do Aço"]
[68,"Belo Vale",367.17,7536,18363937000197,0.65500000000000003,"BAIXO","Central","Itaguara",310640,"09 - Metropolitana"]
[69,"Berilo",584.85,12307,17700758000135,0.628,"BAIXO","Jequitinhonha/Mucuri","Capelinha",310650,"05 - Alto Jequitinhonha","2018-06-05","Normal","Adimplente","2018-03-02"]
[70,"Berizal",488.89,4371,1614602000100,0.60399999999999998,"BAIXO","Norte de Minas","Salinas",310665,"02 - Norte"]
[71,"Bertópolis",427.38,4498,18404897000184,0.59399999999999997,"BAIXO","Jequitinhonha/Mucuri","Nanuque",310660,"04 - Mucuri"]
[72,"Betim",346.26,377547,18715391000196,0.749,"ALTO","Central","Belo Horizonte",310670,"09 - Metropolitana"]
[73,"Bias Fortes",285.3,3796,18094771000150,0.62,"BAIXO","Zona da Mata","Juiz de Fora",310680,"12 - Mata"]
[74,"Bicas",139.69999999999999,13653,17722935000184,0.74399999999999999,"ALTO","Zona da Mata","Juiz de Fora",310690,"12 - Mata"]
[75,"Biquinhas",458.95,2634,18296640000156,0.68799999999999994,"ALTO","Central","Três Marias",310700,"06 - Central"]
[76,"Boa Esperança",861.09,38509,18239590000175,0.70399999999999996,"ALTO","Sul de Minas","Varginha",310710,"14 - Sul","2019-03-17"]
[77,"Bocaina de Minas",502.79,5000,18194076000160,0.64500000000000002,"BAIXO","Sul de Minas","Andrelândia",310720,"12 - Mata"]
[78,"Bocaiúva",3231.56,46595,18803072000132,0.7,"ALTO","Norte de Minas","Bocaiúva",310730,"02 - Norte","2019-11-13"]
[79,"Bom Despacho",1218.1199999999999,45626,18301002000186,0.75,"ALTO","Centro Oeste de Minas","Bom despacho",310740,"10 - Oeste"]
[80,"Bom Jardim de Minas",411.87,6513,18684217000123,0.67300000000000004,"ALTO","Sul de Minas","Andrelândia",310750,"12 - Mata"]
[81,"Bom Jesus da Penha",208.02,3882,18187815000197,0.73499999999999999,"ALTO","Sul de Minas","Passos",310760,"15 - Sudoeste"]
[82,"Bom Jesus do Amparo",195.16,5495,18317693000106,0.68300000000000005,"ALTO","Central","Itabira",310770,"09 - Metropolitana"]
[83,"Bom Jesus do Galho",593.12,15376,18334276000171,0.623,"BAIXO","Rio Doce","Caratinga",310780,"08 - Vale do Aço","2019-09-11"]
[84,"Bom Repouso",229.77,10457,18675892000196,0.65300000000000002,"BAIXO","Sul de Minas","Pouso Alegre",310790,"14 - Sul","2019-10-26"]
[85,"Bom Sucesso",705.02,17244,18244368000160,0.69199999999999995,"ALTO","Centro Oeste de Minas","Oliveira",310800,"10 - Oeste"]
[86,"Bonfim",301.63,6816,18363945000133,0.63700000000000001,"BAIXO","Central","Itaguara",310810,"09 - Metropolitana","2018-08-18"]
[87,"Bonfinópolis de Minas",1789.44,5867,18125138000182,0.67800000000000005,"ALTO","Noroeste de Minas","Unaí",310820,"01 - Noroeste","2020-03-09"]
[88,"Bonito de Minas",3911.42,9671,1612493000183,0.53700000000000003,"BAIXO","Norte de Minas","Januária",310825,"02 - Norte","2019-05-11"]
[89,"Borda da Mata",300,17129,17912023000175,0.73,"ALTO","Sul de Minas","Pouso Alegre",310830,"14 - Sul","2019-10-20"]
[90,"Botelhos",341.75,14935,17847641000189,0.70199999999999996,"ALTO","Sul de Minas","Poços de Caldas",310840,"14 - Sul"]
[91,"Botumirim",1569.17,6497,18017418000177,0.60199999999999998,"BAIXO","Norte de Minas","Grão Mogol",310850,"02 - Norte"]
[92,"Brás Pires",222.64,4650,18128272000137,0.625,"BAIXO","Zona da Mata","Viçosa",310870,"12 - Mata","2018-06-18","Normal","Adimplente","2018-03-02"]
[93,"Brasilândia de Minas",2512.4899999999998,14226,1602009000135,0.67400000000000004,"ALTO","Noroeste de Minas","Paracatu",310855,"01 - Noroeste"]
[94,"Brasília de Minas",1394.2,31221,18017442000106,0.65600000000000003,"BAIXO","Norte de Minas","Montes Claros",310860,"02 - Norte"]
[95,"Brasópolis",365.97,14663,18025890000151,0.69199999999999995,"ALTO","Sul de Minas","Itajubá",310890,"14 - Sul"]
[96,"Braúnas",376.23,5034,18307389000188,0.624,"BAIXO","Rio Doce","Guanhães",310880,"09 - Metropolitana"]
[97,"Brumadinho",640.08000000000004,34013,18363929000140,0.747,"ALTO","Central","Belo Horizonte",310900,"09 - Metropolitana"]
[98,"Bueno Brandão",355.45,10892,18940098000122,0.65800000000000003,"BAIXO","Sul de Minas","Pouso Alegre",310910,"14 - Sul","2019-12-03","Normal","Adimplente","2018-12-19"]
[99,"Buenópolis",1601.85,10291,17694852000129,0.66900000000000004,"ALTO","Central","Curvelo",310920,"06 - Central","2020-01-31"]
[100,"Bugre",161.62,3990,1613126000102,0.627,"BAIXO","Rio Doce","Caratinga",310925,"08 - Vale do Aço","2020-03-01","Normal","Adimplente","2018-12-12"]
[101,"Buritis",5219.91,22729,18125146000129,0.67200000000000004,"ALTO","Noroeste de Minas","Unaí",310930,"01 - Noroeste"]
[102,"Buritizeiro",7236.21,26921,18279067000172,0.624,"BAIXO","Norte de Minas","Pirapora",310940,"02 - Norte"]
[103,"Cabeceira Grande",1032.5,6453,1603707000155,0.64800000000000002,"BAIXO","Noroeste de Minas","Unaí",310945,"01 - Noroeste","2018-10-14"]
[104,"Cabo Verde",368.92,13823,17909599000183,0.67400000000000004,"ALTO","Sul de Minas","São Sebastião do Paraíso",310950,"14 - Sul"]
[105,"Cachoeira da Prata",60.39,3654,25004532000128,0.74099999999999999,"ALTO","Central","Sete Lagoas",310960,"09 - Metropolitana"]
[106,"Cachoeira de Minas",304.87,11034,18675959000192,0.70599999999999996,"ALTO","Sul de Minas","Santa Rita do Sapucaí",310970,"14 - Sul"]
[107,"Cachoeira de Pajeú",694.17,8962,18414599000175,0.57799999999999996,"BAIXO","Jequitinhonha/Mucuri","Pedra Azul",310270,"03 - Médio e Baixo Jequitinhonha"]
[108,"Cachoeira Dourada",202.83,2506,18457267000178,0.72599999999999998,"ALTO","Triângulo","Ituiutaba",310980,"16 - Triângulo Norte"]
[109,"Caetanópolis",155.79,10227,23221351000128,0.70599999999999996,"ALTO","Central","Sete Lagoas",310990,"09 - Metropolitana"]
[110,"Caeté",542.24,40786,18302299000102,0.72799999999999998,"ALTO","Central","Belo Horizonte",311000,"09 - Metropolitana"]
[111,"Caiana",107.07,4970,18114256000195,0.63300000000000001,"BAIXO","Zona da Mata","Muriaé",311010,"12 - Mata"]
[112,"Cajuri",83,4047,18132456000170,0.61699999999999999,"BAIXO","Zona da Mata","Viçosa",311020,"11 - Caparaó"]
[113,"Caldas",712.1,13630,18625129000150,0.68700000000000006,"ALTO","Sul de Minas","Poços de Caldas",311030,"14 - Sul","2020-04-12"]
[114,"Camacho",222.18,3154,18308726000151,0.69,"ALTO","Centro Oeste de Minas","Formiga",311040,"10 - Oeste"]
[115,"Camanducaia",527.96,21074,17935396000161,0.68899999999999995,"ALTO","Sul de Minas","Pouso Alegre",311050,"14 - Sul","2018-08-19","Normal","Adimplente","2018-03-02"]
[116,"Cambuí",244.01,26491,18675975000185,0.751,"ALTO","Sul de Minas","Pouso Alegre",311060,"14 - Sul","2019-03-25"]
[117,"Cambuquira",245.44,12658,17955386000198,0.69899999999999995,"ALTO","Sul de Minas","São Lourenço",311070,"14 - Sul","2019-02-24"]
[118,"Campanário",442.81,3559,18404905000192,0.61599999999999999,"BAIXO","Rio Doce","Governador Valadares",311080,"04 - Mucuri"]
[119,"Campanha",335.24,15435,18712174000142,0.70899999999999996,"ALTO","Sul de Minas","Varginha",311090,"14 - Sul","2019-10-06"]
[120,"Campestre",576.94000000000005,20701,18178400000157,0.69799999999999995,"ALTO","Sul de Minas","Poços de Caldas",311100,"14 - Sul","2018-08-18"]
[121,"Campina Verde",3652.37,19285,18457291000107,0.70399999999999996,"ALTO","Triângulo","Frutal",311110,"16 - Triângulo Norte","2018-10-17"]
[122,"Campo Azul",510.37,3685,1612551000179,0.621,"BAIXO","Norte de Minas","Montes Claros",311115,"02 - Norte"]
[123,"Campo Belo",527.9,51509,18659334000137,0.71099999999999997,"ALTO","Centro Oeste de Minas","Campo Belo",311120,"10 - Oeste"]
[124,"Campo do Meio",274.10000000000002,11518,18239582000129,0.68300000000000005,"ALTO","Sul de Minas","Varginha",311130,"14 - Sul","2019-08-05","Normal","Adimplente","2018-05-25"]
[125,"Campo Florido",1268.3900000000001,6870,18428862000185,0.70599999999999996,"ALTO","Triângulo","Uberaba",311140,"17 - Triângulo Sul","2020-10-03","Bloqueado","Adimplente","2018-03-02"]
[126,"Campos Altos",708.84,14213,18298190000130,0.70199999999999996,"ALTO","Alto Paranaíba","Araxá",311150,"17 - Triângulo Sul"]
[127,"Campos Gerais",770.3,27623,18245175000124,0.68200000000000005,"ALTO","Sul de Minas","Varginha",311160,"14 - Sul"]
[128,"Cana Verde",213.04,5589,18244426000156,0.65,"BAIXO","Centro Oeste de Minas","Campo Belo",311190,"10 - Oeste","2019-09-29","Normal","Adimplente","2018-12-03"]
[129,"Canaã",175.84,4631,18132712000120,0.64900000000000002,{"$f":"IF(F130<0.668,\"BAIXO\",\"ALTO\")","v":"BAIXO"},"Zona da Mata","Viçosa",311170,"11 - Caparaó","2020-01-15"]
[130,"Canápolis",844.17,11357,18457200000133,0.72199999999999998,"ALTO","Triângulo","Uberlândia",311180,"16 - Triângulo Norte"]
[131,"Candeias",720.67,14592,17888090000100,0.67800000000000005,"ALTO","Centro Oeste de Minas","Campo Belo",311200,"10 - Oeste"]
[132,"Cantagalo",141.88,4190,1617441000108,0.63100000000000001,"BAIXO","Rio Doce","Peçanha",311205,"07 - Vale do Rio Doce"]
[133,"Caparaó",130.72999999999999,5209,18114249000193,0.624,"BAIXO","Zona da Mata","Manhuaçu",311210,"11 - Caparaó"]
[134,"Capela Nova",110.8,4758,19259951000108,0.64800000000000002,"BAIXO","Central","Barbacena",311220,"13 - Vertentes","2019-10-07","Normal","Adimplente","2019-04-29"]
[135,"Capelinha",964.89,34796,19229921000159,0.65300000000000002,"BAIXO","Jequitinhonha/Mucuri","Capelinha",311230,"05 - Alto Jequitinhonha","2019-07-01"]
[136,"Capetinga",296.95,7089,17894031000136,0.67500000000000004,"ALTO","Sul de Minas","Passos",311240,"15 - Sudoeste","2019-02-18","Normal","Adimplente","2018-12-18"]
[137,"Capim Branco",94.72,8880,18314617000147,0.69499999999999995,"ALTO","Central","Sete Lagoas",311250,"09 - Metropolitana"]
[138,"Capinópolis",623.29,15297,18457234000128,0.72299999999999998,"ALTO","Triângulo","Ituiutaba",311260,"16 - Triângulo Norte"]
[139,"Capitão Andrade",279.27,4929,66229105000125,0.624,"BAIXO","Rio Doce","Governador Valadares",311265,"07 - Vale do Rio Doce"]
[140,"Capitão Enéas",972.92,14206,18017426000113,0.63900000000000001,"BAIXO","Norte de Minas","Montes Claros",311270,"02 - Norte"]
[141,"Capitólio",520.89,8185,16726028000140,0.71,"ALTO","Sul de Minas","Passos",311280,"15 - Sudoeste","2020-02-02","Normal","Adimplente","2018-05-28"]
[142,"Caputira",187.84,9033,18385138000111,0.61499999999999999,"BAIXO","Zona da Mata","Manhuaçu",311290,"11 - Caparaó"]
[143,"Caraí",1243.51,22343,18404848000141,0.55800000000000005,"BAIXO","Jequitinhonha/Mucuri","Araçuaí",311300,"03 - Médio e Baixo Jequitinhonha"]
[144,"Caranaíba",159.82,3288,18094789000152,0.63400000000000001,"BAIXO","Central","Barbacena",311310,"13 - Vertentes","2019-07-27"]
[145,"Carandaí",486.45,23341,18094797000107,0.69699999999999995,"ALTO","Central","Barbacena",311320,"13 - Vertentes"]
[146,"Carangola",353.44,32321,19279827000104,0.69499999999999995,"ALTO","Zona da Mata","Muriaé",311330,"12 - Mata","2019-08-27","Normal","Adimplente","2018-05-17"]
[147,"Caratinga",1258.69,85322,18334268000125,0.70599999999999996,"ALTO","Rio Doce","Caratinga",311340,"08 - Vale do Aço","2019-11-04"]
[148,"Carbonita",1457.59,9158,21154174000189,0.63800000000000001,"BAIXO","Jequitinhonha/Mucuri","Capelinha",311350,"05 - Alto Jequitinhonha"]
[149,"Careaçu",180.72,6302,17935388000115,0.68300000000000005,"ALTO","Sul de Minas","Santa Rita do Sapucaí",311360,"14 - Sul","2019-12-09","Normal","Adimplente","2018-11-28"]
[150,"Carlos Chagas",3199.5,20087,19388107000187,0.64800000000000002,"BAIXO","Jequitinhonha/Mucuri","Nanuque",311370,"04 - Mucuri"]
[151,"Carmésia",259.32,2460,18303172000108,0.65,"BAIXO","Rio Doce","Guanhães",311380,"09 - Metropolitana"]
[152,"Carmo da Cachoeira",506.89,11836,18240135000190,0.65500000000000003,"BAIXO","Sul de Minas","Varginha",311390,"14 - Sul"]
[153,"Carmo da Mata",359.1,10927,18312967000174,0.68899999999999995,"ALTO","Centro Oeste de Minas","Oliveira",311400,"10 - Oeste"]
[154,"Carmo de Minas",322.54000000000002,13752,18188243000160,0.68200000000000005,"ALTO","Sul de Minas","São Lourenço",311410,"14 - Sul"]
[155,"Carmo do Cajuru",454.77,20018,18291377000102,0.71,"ALTO","Centro Oeste de Minas","Divinópolis",311420,"10 - Oeste"]
[156,"Carmo do Paranaíba",1306.92,29752,18602029000109,0.70499999999999996,"ALTO","Alto Paranaíba","Patos de Minas",311430,"01 - Noroeste"]
[157,"Carmo do Rio Claro",1064.33,20426,18243287000146,0.73299999999999998,"ALTO","Sul de Minas","Alfenas",311440,"15 - Sudoeste","2019-02-18"]
[158,"Carmópolis de Minas",400.9,17050,18312983000167,0.7,"ALTO","Centro Oeste de Minas","Oliveira",311450,"10 - Oeste","2019-04-06"]
[159,"Carneirinho",2068.46,9467,26042515000148,0.74099999999999999,"ALTO","Triângulo","Frutal",311455,"17 - Triângulo Sul"]
[160,"Carrancas",728.5,3952,17953332000193,0.72499999999999998,"ALTO","Sul de Minas","Lavras",311460,"14 - Sul"]
[161,"Carvalhópolis",80.709999999999994,3350,18242800000184,0.72399999999999998,"ALTO","Sul de Minas","Alfenas",311470,"14 - Sul"]
[162,"Carvalhos",282.32,4555,18194217000145,0.64600000000000002,"BAIXO","Sul de Minas","Andrelândia",311480,"14 - Sul"]
[163,"Casa Grande",157.61000000000001,2242,18667477000190,0.65200000000000002,"BAIXO","Central","Conselheiro Lafaiete",311490,"13 - Vertentes"]
[164,"Cascalho Rico",368.1,2857,18259374000191,0.72099999999999997,"ALTO","Triângulo","Uberlândia",311500,"16 - Triângulo Norte"]
[165,"Cássia",666.67,17428,17894049000138,0.70399999999999996,"ALTO","Sul de Minas","Passos",311510,"15 - Sudoeste","2019-06-10","Normal","Adimplente","2018-12-12"]
[166,"Cataguases",491.36,69810,17702499000181,0.751,"ALTO","Zona da Mata","Cataguases",311530,"12 - Mata"]
[167,"Catas Altas",238.21,4839,1612370000142,0.68400000000000005,"ALTO","Central","Itabira",311535,"09 - Metropolitana"]
[168,"Catas Altas da Noruega",142.33000000000001,3462,19718378000153,0.6,"BAIXO","Central","Conselheiro Lafaiete",311540,"13 - Vertentes"]
[169,"Catuji",418.25,6705,26218636000106,0.54,"BAIXO","Jequitinhonha/Mucuri","Teófilo Otoni",311545,"04 - Mucuri","2019-12-02","Normal","Adimplente","2018-12-12"]
[170,"Catuti",286.55,5102,1612502000136,0.621,"BAIXO","Norte de Minas","Janaúba",311547,"02 - Norte","2020-03-16"]
[171,"Caxambu",101.06,21719,18008870000172,0.74299999999999999,"ALTO","Sul de Minas","São Lourenço",311550,"14 - Sul"]
[172,"Cedro do Abaeté",281.56,1212,18296657000103,0.67800000000000005,"ALTO","Central","Três Marias",311560,"06 - Central"]
[173,"Central de Minas",204.8,6774,17990714000197,0.66500000000000004,"BAIXO","Rio Doce","Mantena",311570,"07 - Vale do Rio Doce","2018-12-08","Normal","Adimplente","2018-03-02"]
[174,"Centralina",324.62,10270,18260497000142,0.67800000000000005,"ALTO","Triângulo","Uberlândia",311580,"16 - Triângulo Norte"]
[175,"Chácara",152.88,2792,18338137000116,0.66400000000000003,"BAIXO","Zona da Mata","Juiz de Fora",311590,"12 - Mata"]
[176,"Chalé",213.32,5647,18392548000190,0.65500000000000003,"BAIXO","Zona da Mata","Manhuaçu",311600,"11 - Caparaó"]
[177,"Chapada do Norte",829,15165,16886608000103,0.59799999999999998,"BAIXO","Jequitinhonha/Mucuri","Capelinha",311610,"05 - Alto Jequitinhonha","2018-08-15","Normal"]
[178,"Chapada Gaúcha",3252.63,10792,1563351000173,0.63500000000000001,"BAIXO","Norte de Minas","Januária",311615,"01 - Noroeste","2020-02-15","Bloqueado","Adimplente","2018-12-03"]
[179,"Chiador",252.64,2785,18338145000162,0.71099999999999997,"ALTO","Zona da Mata","Juiz de Fora",311620,"12 - Mata"]
[180,"Cipotânea",153.61000000000001,6547,18094805000107,0.57899999999999996,"BAIXO","Zona da Mata","Viçosa",311630,"13 - Vertentes","2018-06-16","Bloqueado","Adimplente","2018-03-02"]
[181,"Claraval",226.11,4544,17894056000130,0.69799999999999995,"ALTO","Sul de Minas","Passos",311640,"15 - Sudoeste"]
[182,"Claro dos Poções",720.23,7781,21498274000122,0.67,"ALTO","Norte de Minas","Montes Claros",311650,"02 - Norte"]
[183,"Cláudio",631.11,25777,18308775000194,0.70899999999999996,"ALTO","Centro Oeste de Minas","Divinópolis",311660,"10 - Oeste"]
[184,"Coimbra",106.54,7054,18132464000117,0.66900000000000004,"ALTO","Zona da Mata","Viçosa",311670,"12 - Mata","2019-10-26"]
[185,"Coluna",348.28,9024,18307397000124,0.58299999999999996,"BAIXO","Rio Doce","Guanhães",311680,"05 - Alto Jequitinhonha"]
[186,"Comendador Gomes",1040.31,2972,18449173000157,0.69699999999999995,"ALTO","Triângulo","Frutal",311690,"17 - Triângulo Sul","2020-01-26","Normal","Adimplente","2019-08-06"]
[187,"Comercinho",654.66,8309,18414615000120,0.59299999999999997,"BAIXO","Jequitinhonha/Mucuri","Pedra Azul",311700,"03 - Médio e Baixo Jequitinhonha"]
[188,"Conceição da Aparecida",352.4,9814,18243295000192,0.69099999999999995,"ALTO","Sul de Minas","Alfenas",311710,"15 - Sudoeste","2019-09-03","Normal","Adimplente","2018-07-05"]
[189,"Conceição da Barra de Minas",273.18,3961,18557587000108,0.68500000000000005,"ALTO","Central","São João del Rei",311520,"13 - Vertentes"]
[190,"Conceição das Alagoas",1335.34,23055,18428854000139,0.71199999999999997,"ALTO","Triângulo","Uberaba",311730,"17 - Triângulo Sul","2019-11-28"]
[191,"Conceição das Pedras",102.26,2749,18025908000115,0.66800000000000004,"ALTO","Sul de Minas","Santa Rita do Sapucaí",311720,"14 - Sul"]
[192,"Conceição de Ipanema",254.11,4467,18334300000172,0.67600000000000005,"ALTO","Rio Doce","Aimorés",311740,"11 - Caparaó"]
[193,"Conceição do Mato Dentro",1725.56,17914,18303156000107,0.63400000000000001,{"$f":"IF(F194<0.668,\"BAIXO\",\"ALTO\")","v":"BAIXO"},"Central","Conceição do Mato dentro",311750,"09 - Metropolitana"]
[194,"Conceição do Pará",247.28,5162,18315200000107,0.7,"ALTO","Centro Oeste de Minas","Divinópolis",311760,"10 - Oeste"]
[195,"Conceição do Rio Verde",370.34,12950,18008888000174,0.66500000000000004,"BAIXO","Sul de Minas","São Lourenço",311770,"14 - Sul"]
[196,"Conceição dos Ouros",183.43,10388,18677609000165,0.70299999999999996,"ALTO","Sul de Minas","Santa Rita do Sapucaí",311780,"14 - Sul"]
[197,"Cônego Marinho",1640.2,7089,1612492000139,0.621,"BAIXO","Norte de Minas","Januária",311783,"02 - Norte"]
[198,"Confins",41.67,5943,1006232000110,0.747,"ALTO","Central","Belo Horizonte",311787,"09 - Metropolitana"]
[199,"Congonhal",206.01,10480,18675967000139,0.71199999999999997,"ALTO","Sul de Minas","Pouso Alegre",311790,"14 - Sul"]
[200,"Congonhas",305.08999999999997,48550,16752446000102,0.753,"ALTO","Central","Conselheiro Lafaiete",311800,"13 - Vertentes"]
[201,"Congonhas do Norte",399.52,4947,18303180000146,0.56799999999999995,"BAIXO","Central","Conceição do Mato dentro",311810,"09 - Metropolitana"]
[202,"Conquista",618.36,6527,18428888000123,0.72899999999999998,"ALTO","Triângulo","Uberaba",311820,"17 - Triângulo Sul"]
[203,"Conselheiro Lafaiete",369.31,116527,19718360000151,0.76100000000000001,"ALTO","Central","Conselheiro Lafaiete",311830,"13 - Vertentes"]
[204,"Conselheiro Pena",1466.74,22232,19769660000160,0.66200000000000003,"BAIXO","Rio Doce","Aimorés",311840,"07 - Vale do Rio Doce","2019-12-02"]
[205,"Consolação",86.27,1727,18025916000161,0.67300000000000004,"ALTO","Sul de Minas","Itajubá",311850,"14 - Sul","2019-08-18"]
[206,"Contagem",194.38,603048,18715508000131,0.75600000000000001,"ALTO","Central","Belo Horizonte",311860,"09 - Metropolitana","2020-01-07","Normal","Adimplente","2019-07-18"]
[207,"Coqueiral",296.41000000000003,9287,18239624000121,0.69399999999999995,"ALTO","Sul de Minas","Varginha",311870,"14 - Sul"]
[208,"Coração de Jesus",2227.5100000000002,26035,22680672000128,0.64200000000000002,"BAIXO","Norte de Minas","Montes Claros",311880,"02 - Norte"]
[209,"Cordisburgo",822.65,8667,18116137000171,0.65600000000000003,"BAIXO","Central","Sete Lagoas",311890,"09 - Metropolitana"]
[210,"Cordislândia",179.6,3435,18712166000104,0.66,"BAIXO","Sul de Minas","Santa Rita do Sapucaí",311900,"14 - Sul","2018-10-17","Normal","Adimplente","2018-07-05"]
[211,"Corinto",2522.92,23901,17695016000169,0.68,"ALTO","Central","Curvelo",311910,"06 - Central"]
[212,"Coroaci",576.66,10274,18085647000129,0.626,"BAIXO","Rio Doce","Governador Valadares",311920,"07 - Vale do Rio Doce"]
[213,"Coromandel",3310.07,27551,18591149000158,0.70799999999999996,"ALTO","Alto Paranaíba","Patrocínio",311930,"16 - Triângulo Norte"]
[214,"Coronel Fabriciano",222.08,103797,19875046000182,0.755,"ALTO","Rio Doce","Ipatinga",311940,"08 - Vale do Aço","2019-11-06"]
[215,"Coronel Murta",814.4,9117,18348722000105,0.627,"BAIXO","Jequitinhonha/Mucuri","Araçuaí",311950,"03 - Médio e Baixo Jequitinhonha"]
[216,"Coronel Pacheco",131.12,2983,18338152000164,0.66900000000000004,"ALTO","Zona da Mata","Juiz de Fora",311960,"12 - Mata"]
[217,"Coronel Xavier Chaves",140.36000000000001,3301,18557546000103,0.67700000000000005,"ALTO","Central","São João del Rei",311970,"13 - Vertentes"]
[218,"Córrego Danta",656.88,3391,18298174000148,0.69199999999999995,"ALTO","Centro Oeste de Minas","Piuí",311980,"10 - Oeste"]
[219,"Córrego do Bom Jesus",123.32,3732,18677633000102,0.69199999999999995,"ALTO","Sul de Minas","Pouso Alegre",311990,"14 - Sul"]
[220,"Córrego Fundo",101.75,5821,1614862000177,0.67800000000000005,"ALTO","Centro Oeste de Minas","Formiga",311995,"10 - Oeste","2018-10-08","Normal","Adimplente","2018-03-02"]
[221,"Córrego Novo",206.45,3129,18334284000118,0.63200000000000001,"BAIXO","Rio Doce","Caratinga",312000,"08 - Vale do Aço","2020-02-03"]
[222,"Couto de Magalhães de Minas",485.96,4204,17754177000186,0.65900000000000003,"BAIXO","Central","Diamantina",312010,"05 - Alto Jequitinhonha"]
[223,"Crisólita",966.38,6040,1614283000124,0.58499999999999996,"BAIXO","Jequitinhonha/Mucuri","Nanuque",312015,"04 - Mucuri","2020-01-26","Normal","Adimplente","2019-07-30"]
[224,"Cristais",627.77,11301,17888082000155,0.69199999999999995,"ALTO","Centro Oeste de Minas","Campo Belo",312020,"10 - Oeste"]
[225,"Cristália",838.93,5760,18017434000160,0.58299999999999996,"BAIXO","Norte de Minas","Grão Mogol",312030,"02 - Norte"]
[226,"Cristiano Otoni",132.44,5007,19718402000154,0.69499999999999995,"ALTO","Central","Conselheiro Lafaiete",312040,"13 - Vertentes"]
[227,"Cristina",311.67,10214,18188250000162,0.66800000000000004,"ALTO","Sul de Minas","Itajubá",312050,"14 - Sul","2020-01-29","Normal","Adimplente","2018-12-03"]
[228,"Crucilândia",166.85,4749,18313007000129,0.65100000000000002,"BAIXO","Central","Itaguara",312060,"09 - Metropolitana"]
[229,"Cruzeiro da Fortaleza",187.92,3934,18468041000172,0.69599999999999995,"ALTO","Alto Paranaíba","Patrocínio",312070,"16 - Triângulo Norte","2018-07-30","Normal","Adimplente","2018-05-25"]
[230,"Cruzília",523.17999999999995,14596,18008904000129,0.69499999999999995,"ALTO","Sul de Minas","Andrelândia",312080,"14 - Sul"]
[231,"Cuparaque",228.88,4680,1615422000134,0.627,"BAIXO","Rio Doce","Aimorés",312083,"07 - Vale do Rio Doce"]
[232,"Curral de Dentro",569.99,6930,1613076000155,0.58499999999999996,"BAIXO","Norte de Minas","Salinas",312087,"02 - Norte"]
[233,"Curvelo",3295.85,74184,17695024000105,0.71299999999999997,"ALTO","Central","Curvelo",312090,"06 - Central","2019-10-12","Normal","Adimplente","2018-06-21"]
[234,"Datas",310.43,5210,17754193000179,0.61599999999999999,"BAIXO","Central","Diamantina",312100,"05 - Alto Jequitinhonha"]
[235,"Delfim Moreira",408.5,7971,18025924000108,0.66900000000000004,"ALTO","Sul de Minas","Itajubá",312110,"14 - Sul"]
[236,"Delfinópolis",1403.13,6830,17894064000186,0.74,"ALTO","Sul de Minas","Passos",312120,"15 - Sudoeste"]
[237,"Delta",102.14,8107,1020881000175,0.63900000000000001,"BAIXO","Triângulo","Uberaba",312125,"17 - Triângulo Sul"]
[238,"Descoberto",213.62,4757,18558098000162,0.68,"ALTO","Zona da Mata","Juiz de Fora",312130,"12 - Mata"]
[239,"Desterro de Entre Rios",376.97,7002,20356762000132,0.63900000000000001,"BAIXO","Central","Conselheiro Lafaiete",312140,"13 - Vertentes"]
[240,"Desterro do Melo",143.05000000000001,3009,18094813000153,0.63100000000000001,"BAIXO","Central","Barbacena",312150,"13 - Vertentes"]
[241,"Diamantina",3893.62,45884,17754136000190,0.71599999999999997,"ALTO","Central","Diamantina",312160,"05 - Alto Jequitinhonha","2020-04-08"]
[242,"Diogo de Vasconcelos",165.23,3848,18295311000190,0.60099999999999998,"BAIXO","Central","Ouro Preto",312170,"11 - Caparaó","2019-11-16","Normal","Adimplente","2018-12-27"]
[243,"Dionísio",345.33,8739,20126439000172,0.70199999999999996,"ALTO","Central","Itabira",312180,"09 - Metropolitana","2019-12-02","Normal","Adimplente","2019-09-02"]
[244,"Divinésia",117.35,3292,18128280000183,0.65700000000000003,"BAIXO","Zona da Mata","Ubá",312190,"12 - Mata"]
[245,"Divino",337.63,19131,18114272000188,0.60499999999999998,"BAIXO","Zona da Mata","Muriaé",312200,"12 - Mata","2018-07-17"]
[246,"Divino das Laranjeiras",341.13,4937,18357079000178,0.66100000000000003,"BAIXO","Rio Doce","Governador Valadares",312210,"07 - Vale do Rio Doce"]
[247,"Divinolândia de Minas",132,7036,18307405000132,0.623,"BAIXO","Rio Doce","Guanhães",312220,"09 - Metropolitana","2019-10-17","Normal","adimplente","2018-06-18"]
[248,"Divinópolis",709.73,213076,18291351000164,0.76400000000000001,"ALTO","Centro Oeste de Minas","Divinópolis",312230,"10 - Oeste","2020-03-09"]
[249,"Divisa Alegre",121.46,5884,1613073000111,0.60799999999999998,"BAIXO","Norte de Minas","Salinas",312235,"03 - Médio e Baixo Jequitinhonha"]
[250,"Divisa Nova",216.98,5760,18243279000108,0.67,"ALTO","Sul de Minas","Alfenas",312240,"14 - Sul"]
[251,"Divisópolis",565.88,8970,66234311000123,0.60899999999999999,"BAIXO","Jequitinhonha/Mucuri","Almenara",312245,"03 - Médio e Baixo Jequitinhonha"]
[252,"Dom Bosco",814.99,3817,1602782000100,0.67300000000000004,"ALTO","Noroeste de Minas","Unaí",312247,"01 - Noroeste"]
[253,"Dom Cavati",59.41,5210,18080283000194,0.68799999999999994,"ALTO","Rio Doce","Caratinga",312250,"08 - Vale do Aço","2019-09-09"]
[254,"Dom Joaquim",398.71,4535,18303198000148,0.622,"BAIXO","Central","Conceição do Mato dentro",312260,"09 - Metropolitana"]
[255,"Dom Silvério",195.34,5193,18297226000161,0.70899999999999996,"ALTO","Zona da Mata","Ponte Nova",312270,"11 - Caparaó"]
[256,"Dom Viçoso",114.08,2994,18188268000164,0.68700000000000006,"ALTO","Sul de Minas","Itajubá",312280,"14 - Sul","2019-09-04"]
[257,"Dona Euzébia",70.209999999999994,6001,17706656000127,0.70099999999999996,{"$f":"IF(F258<0.668,\"BAIXO\",\"ALTO\")","v":"ALTO"},"Zona da Mata","Cataguases",312290,"12 - Mata"]
[258,"Dores de Campos",124.62,9303,18094821000108,0.68600000000000005,"ALTO","Central","São João del Rei",312300,"13 - Vertentes"]
[259,"Dores de Guanhães",381.73,5223,18307413000189,0.63600000000000001,"BAIXO","Rio Doce","Guanhães",312310,"09 - Metropolitana"]
[260,"Dores do Indaiá",1116.1500000000001,13781,18301010000122,0.71899999999999997,"ALTO","Centro Oeste de Minas","Bom despacho",312320,"10 - Oeste","2020-01-13"]
[261,"Dores do Turvo",230.38,4439,18128249000142,0.629,"BAIXO","Zona da Mata","Ubá",312330,"12 - Mata"]
[262,"Doresópolis",153.49,1440,18306647000101,0.69199999999999995,"ALTO","Centro Oeste de Minas","Piuí",312340,"15 - Sudoeste"]
[263,"Douradoquara",315.42,1841,18158261000108,0.70599999999999996,"ALTO","Alto Paranaíba","Patrocínio",312350,"16 - Triângulo Norte","2019-12-09"]
[264,"Durandé",217.8,7402,66232547000120,0.64500000000000002,"BAIXO","Zona da Mata","Manhuaçu",312352,"11 - Caparaó"]
[265,"Elói Mendes",498.69,25266,20347225000126,0.68500000000000005,"ALTO","Sul de Minas","Varginha",312360,"14 - Sul","2019-10-08"]
[266,"Engenheiro Caldas",189.36,10276,18080655000182,0.64400000000000002,"BAIXO","Rio Doce","Governador Valadares",312370,"07 - Vale do Rio Doce"]
[267,"Engenheiro Navarro",606.45000000000005,7125,17697152000198,0.65500000000000003,"BAIXO","Norte de Minas","Bocaiúva",312380,"02 - Norte"]
[268,"Entre Folhas",86.47,5172,66229626000182,0.63400000000000001,"BAIXO","Rio Doce","Caratinga",312385,"08 - Vale do Aço","2019-02-26"]
[269,"Entre Rios de Minas",457.31,14262,20356747000194,0.67200000000000004,"ALTO","Central","Conselheiro Lafaiete",312390,"13 - Vertentes"]
[270,"Ervália",356.87,17958,18133306000181,0.625,"BAIXO","Zona da Mata","Viçosa",312400,"12 - Mata"]
[271,"Esmeraldas",909.98,60153,18715466000139,0.67100000000000004,"ALTO","Central","Belo Horizonte",312410,"09 - Metropolitana"]
[272,"Espera Feliz",325.60000000000002,22859,18114264000131,0.66300000000000003,"BAIXO","Zona da Mata","Muriaé",312420,"12 - Mata","2019-11-07","Normal","Adimplente","2019-05-10"]
[273,"Espinosa",1877.04,31113,18650952000116,0.627,"BAIXO","Norte de Minas","Janaúba",312430,"02 - Norte","2019-07-07"]
[274,"Espírito Santo do Dourado",264.39,4429,18675900000102,0.68500000000000005,"ALTO","Sul de Minas","Pouso Alegre",312440,"14 - Sul","2019-10-14"]
[275,"Estiva",243.61,10844,18675918000104,0.69099999999999995,"ALTO","Sul de Minas","Pouso Alegre",312450,"14 - Sul"]
[276,"Estrela Dalva",131.54,2470,18592162000121,0.71,"ALTO","Zona da Mata","Cataguases",312460,"12 - Mata"]
[277,"Estrela do Indaiá",637.19000000000005,3515,17710096000184,0.67600000000000005,"ALTO","Centro Oeste de Minas","Bom despacho",312470,"10 - Oeste"]
[278,"Estrela do Sul",818.67,7457,18301028000124,0.69599999999999995,"ALTO","Alto Paranaíba","Patrocínio",312480,"16 - Triângulo Norte"]
[279,"Eugenópolis",309.72000000000003,10541,17947656000119,0.67500000000000004,"ALTO","Zona da Mata","Muriaé",312490,"12 - Mata"]
[280,"Ewbank da Câmara",102.8,3752,17747932000103,0.67600000000000005,"ALTO","Zona da Mata","Juiz de Fora",312500,"12 - Mata"]
[281,"Extrema",241.9,28564,18677591000100,0.73199999999999998,"ALTO","Sul de Minas","Pouso Alegre",312510,"14 - Sul"]
[282,"Fama",86.79,2348,18243253000151,0.71699999999999997,"ALTO","Sul de Minas","Alfenas",312520,"14 - Sul"]
[283,"Faria Lemos",165.61,3377,18114280000124,0.68700000000000006,"ALTO","Zona da Mata","Muriaé",312530,"12 - Mata"]
[284,"Felício dos Santos",356.84,5137,17754201000187,0.60599999999999998,"BAIXO","Central","Diamantina",312540,"05 - Alto Jequitinhonha","2018-06-17"]
[285,"Felisburgo",596.52,6887,18083071000160,0.58299999999999996,"BAIXO","Jequitinhonha/Mucuri","Almenara",312560,"03 - Médio e Baixo Jequitinhonha"]
[286,"Felixlândia",1554.51,14121,17695032000151,0.64800000000000002,"BAIXO","Central","Curvelo",312570,"06 - Central"]
[287,"Fernandes Tourinho",151.13,3033,18080887000130,0.64600000000000002,"BAIXO","Rio Doce","Governador Valadares",312580,"07 - Vale do Rio Doce"]
[288,"Ferros",1094.24,10837,18299529000113,0.60299999999999998,"BAIXO","Central","Itabira",312590,"09 - Metropolitana"]
[289,"Fervedouro",357.52,10351,26139790000184,0.57999999999999996,"BAIXO","Zona da Mata","Muriaé",312595,"12 - Mata"]
[290,"Florestal",195.85,6603,18313833000178,0.72399999999999998,"ALTO","Central","Pará de Minas",312600,"09 - Metropolitana"]
[291,"Formiga",1501.02,65064,16784720000125,0.755,"ALTO","Centro Oeste de Minas","Formiga",312610,"10 - Oeste","2019-11-16","Normal","Adimplente","2019-06-06"]
[292,"Formoso",3880.85,8173,18125153000120,0.64,"BAIXO","Noroeste de Minas","Unaí",312620,"01 - Noroeste"]
[293,"Fortaleza de Minas",219.05,4098,18241760000156,0.67,"ALTO","Sul de Minas","Passos",312630,"15 - Sudoeste"]
[294,"Fortuna de Minas",196.08,2701,18116145000118,0.69599999999999995,"ALTO","Central","Sete Lagoas",312640,"09 - Metropolitana","2020-01-12"]
[295,"Francisco Badaró",459.75,10244,18051524000177,0.622,"BAIXO","Jequitinhonha/Mucuri","Capelinha",312650,"05 - Alto Jequitinhonha"]
[296,"Francisco Dumont",1589.37,4867,16885485000188,0.625,"BAIXO","Norte de Minas","Bocaiúva",312660,"02 - Norte","2019-06-11","Normal","adimplente","2018-12-13"]
[297,"Francisco Sá",2744.33,24918,22681423000157,0.65400000000000003,"BAIXO","Norte de Minas","Montes Claros",312670,"02 - Norte"]
[298,"Franciscópolis",712.7,5803,1613394000116,0.60299999999999998,"BAIXO","Jequitinhonha/Mucuri","Teófilo Otoni",312675,"04 - Mucuri"]
[299,"Frei Gaspar",626.28,5880,18404913000139,0.59,"BAIXO","Jequitinhonha/Mucuri","Teófilo Otoni",312680,"04 - Mucuri"]
[300,"Frei Inocêncio",469.64,8924,16945990000170,0.64800000000000002,"BAIXO","Rio Doce","Governador Valadares",312690,"07 - Vale do Rio Doce","2019-11-03"]
[301,"Frei Lagonegro",167.1,3329,1615008000125,0.54300000000000004,"BAIXO","Rio Doce","Peçanha",312695,"07 - Vale do Rio Doce"]
[302,"Fronteira",201.79,14047,18449140000107,0.68400000000000005,"ALTO","Triângulo","Frutal",312700,"17 - Triângulo Sul"]
[303,"Fronteira dos Vales",319.83,4687,18404954000125,0.59199999999999997,"BAIXO","Jequitinhonha/Mucuri","Nanuque",312705,"04 - Mucuri"]
[304,"Fruta de Leite",759.9,5940,1612483000148,0.54400000000000004,"BAIXO","Norte de Minas","Salinas",312707,"02 - Norte"]
[305,"Frutal",2418.69,53474,18449132000160,0.73,"ALTO","Triângulo","Frutal",312710,"17 - Triângulo Sul"]
[306,"Funilândia",200.66,3854,18062414000100,0.65500000000000003,"BAIXO","Central","Sete Lagoas",312720,"09 - Metropolitana","2019-07-29","Normal","Adimplente","2018-07-05"]
[307,"Galiléia",720.65,6966,17005000000187,0.65400000000000003,"BAIXO","Rio Doce","Governador Valadares",312730,"07 - Vale do Rio Doce","2019-10-22"]
[308,"Gameleiras",1735.8,5139,1612482000101,0.65,"BAIXO","Norte de Minas","Janaúba",312733,"02 - Norte","2020-02-22","Normal","Adimplente","2019-09-11"]
[309,"Glaucilândia",145.58000000000001,2964,1612496000117,0.67900000000000005,"ALTO","Norte de Minas","Montes Claros",312735,"02 - Norte"]
[310,"Goiabeira",112.46,3054,1615421000190,0.64700000000000002,"BAIXO","Rio Doce","Aimorés",312737,"07 - Vale do Rio Doce"]
[311,"Goianá",152.03,3659,1611137000145,0.71599999999999997,"ALTO","Zona da Mata","Juiz de Fora",312738,"12 - Mata"]
[312,"Gonçalves",189.37,4220,18025932000154,0.68300000000000005,"ALTO","Sul de Minas","Pouso Alegre",312740,"14 - Sul","2018-07-21","Normal","Adimplente","2018-06-20"]
[313,"Gonzaga",208.96,5919,18307421000125,0.60599999999999998,"BAIXO","Rio Doce","Guanhães",312750,"07 - Vale do Rio Doce","2019-11-04"]
[314,"Gouveia",864.77,11687,17754144000136,0.68100000000000005,"ALTO","Central","Diamantina",312760,"05 - Alto Jequitinhonha"]
[315,"Governador Valadares",2348.9,263594,20622890000180,0.72699999999999998,"ALTO","Rio Doce","Governador Valadares",312770,"07 - Vale do Rio Doce","2019-12-29"]
[316,"Grão Mogol",3888.59,15026,20716627000150,0.60399999999999998,"BAIXO","Norte de Minas","Grão Mogol",312780,"02 - Norte"]
[317,"Grupiara",193.2,1373,17827858000127,0.73099999999999998,"ALTO","Alto Paranaíba","Patrocínio",312790,"16 - Triângulo Norte"]
[318,"Guanhães",1076.82,31266,18307439000127,0.68600000000000005,"ALTO","Rio Doce","Guanhães",312800,"09 - Metropolitana","2018-12-16"]
[319,"Guapé",935.34,13838,18239616000185,0.67900000000000005,"ALTO","Sul de Minas","Varginha",312810,"14 - Sul","2019-12-24"]
[320,"Guaraciaba",348.66,10223,19382647000153,0.623,"BAIXO","Zona da Mata","Ponte Nova",312820,"11 - Caparaó","2018-10-21"]
[321,"Guaraciama",391.78,4719,1612549000108,0.67700000000000005,{"$f":"IF(F322<0.668,\"BAIXO\",\"ALTO\")","v":"ALTO"},"Norte de Minas","Bocaiúva",312825,"02 - Norte"]
[322,"Guaranésia",298.23,18714,17900473000148,0.70099999999999996,"ALTO","Sul de Minas","São Sebastião do Paraíso",312830,"15 - Sudoeste","2020-03-15","Normal","Adimplente","2019-09-17"]
[323,"Guarani",263.64,8688,18338160000100,0.67700000000000005,"ALTO","Zona da Mata","Ubá",312840,"12 - Mata"]
[324,"Guarará",88.73,3932,17723172000196,0.65200000000000002,"BAIXO","Zona da Mata","Juiz de Fora",312850,"12 - Mata"]
[325,"Guarda-Mor",2063.08,6569,18277947000100,0.69,"ALTO","Noroeste de Minas","Paracatu",312860,"01 - Noroeste","2019-09-16","Normal","Adimplente","2019-07-17"]
[326,"Guaxupé",285.39,49491,18663401000197,0.751,"ALTO","Sul de Minas","São Sebastião do Paraíso",312870,"15 - Sudoeste","2020-01-27","Normal","Adimplente","2019-08-06"]
[327,"Guidoval",158.72999999999999,7210,18128215000158,0.68300000000000005,"ALTO","Zona da Mata","Ubá",312880,"12 - Mata"]
[328,"Guimarânia",368.67,7290,18602052000101,0.69299999999999995,"ALTO","Alto Paranaíba","Patos de Minas",312890,"16 - Triângulo Norte"]
[329,"Guiricema",294.22000000000003,8697,18137943000126,0.67400000000000004,"ALTO","Zona da Mata","Ubá",312900,"12 - Mata"]
[330,"Gurinhatã",1848.99,6137,18457192000125,0.68,"ALTO","Triângulo","Ituiutaba",312910,"16 - Triângulo Norte"]
[331,"Heliodora",153.44999999999999,6120,18712133000156,0.65700000000000003,"BAIXO","Sul de Minas","Santa Rita do Sapucaí",312920,"14 - Sul"]
[332,"Iapu",342.75,10331,18338830000199,0.65400000000000003,"BAIXO","Rio Doce","Caratinga",312930,"08 - Vale do Aço","2020-01-29"]
[333,"Ibertioga",347.36,5029,18094839000100,0.65700000000000003,"BAIXO","Central","Barbacena",312940,"13 - Vertentes","2019-10-12"]
[334,"Ibiá",2701.54,23265,18584961000156,0.71799999999999997,"ALTO","Alto Paranaíba","Araxá",312950,"17 - Triângulo Sul"]
[335,"Ibiaí",873.27,7839,16899700000108,0.61399999999999999,"BAIXO","Norte de Minas","Pirapora",312960,"02 - Norte","2019-05-14","Bloqueado","Adimplente","2018-03-02"]
[336,"Ibiracatu",351.1,6155,1612477000190,0.59099999999999997,"BAIXO","Norte de Minas","Montes Claros",312965,"02 - Norte"]
[337,"Ibiraci",560.6,12177,17894072000122,0.70599999999999996,"ALTO","Sul de Minas","Passos",312970,"15 - Sudoeste"]
[338,"Ibirité",73.22,159026,18715490000178,0.70399999999999996,"ALTO","Central","Belo Horizonte",312980,"09 - Metropolitana","2020-02-25","Normal","Adimplente","2018-12-12"]
[339,"Ibitiúra de Minas",68.900000000000006,3406,18178962000109,0.67400000000000004,"ALTO","Sul de Minas","Poços de Caldas",312990,"14 - Sul"]
[340,"Ibituruna",153.58000000000001,2866,18244418000100,0.67500000000000004,"ALTO","Centro Oeste de Minas","Oliveira",313000,"13 - Vertentes"]
[341,"Icaraí de Minas",627.19000000000005,10737,25224304000163,0.624,"BAIXO","Norte de Minas","Januária",313005,"02 - Norte"]
[342,"Igarapé",110.08,34879,18715474000185,0.69799999999999995,"ALTO","Central","Belo Horizonte",313010,"09 - Metropolitana","2019-11-16"]
[343,"Igaratinga",216.27,9265,18313825000121,0.65100000000000002,"BAIXO","Centro Oeste de Minas","Divinópolis",313020,"10 - Oeste"]
[344,"Iguatama",627.97,8031,18306688000106,0.70699999999999996,"ALTO","Centro Oeste de Minas","Piuí",313030,"10 - Oeste"]
[345,"Ijaci",105.93,5863,18244400000108,0.71399999999999997,"ALTO","Sul de Minas","Lavras",313040,"14 - Sul"]
[346,"Ilicínea",375.74,11488,18239608000139,0.68,"ALTO","Sul de Minas","Varginha",313050,"14 - Sul"]
[347,"Imbé de Minas",192.77,6412,1613233000122,0.55300000000000005,"BAIXO","Rio Doce","Caratinga",313055,"08 - Vale do Aço"]
[348,"Inconfidentes",149.69999999999999,6904,18028829000168,0.69199999999999995,"ALTO","Sul de Minas","Poços de Caldas",313060,"14 - Sul","2018-12-17","Normal","Adimplente","2018-03-02"]
[349,"Indaiabira",1007.35,7327,1614599000116,0.61,"BAIXO","Norte de Minas","Salinas",313065,"02 - Norte"]
[350,"Indianópolis",838.32,6181,18259390000184,0.67400000000000004,"ALTO","Triângulo","Uberlândia",313070,"16 - Triângulo Norte"]
[351,"Ingaí",306.39,2636,18244319000128,0.69699999999999995,"ALTO","Sul de Minas","Lavras",313080,"14 - Sul"]
[352,"Inhapim",860.65,24269,20905865000104,0.65800000000000003,"BAIXO","Rio Doce","Caratinga",313090,"08 - Vale do Aço"]
[353,"Inhaúma",245.51,5781,18116152000110,0.70199999999999996,"ALTO","Central","Sete Lagoas",313100,"09 - Metropolitana"]
[354,"Inimutaba",527.5,6729,17694860000175,0.66400000000000003,"BAIXO","Central","Curvelo",313110,"06 - Central","2020-01-20","Normal","Adimplente","2019-07-30"]
[355,"Ipaba",113.77,16692,66229543000193,0.66500000000000004,"BAIXO","Rio Doce","Caratinga",313115,"08 - Vale do Aço","2020-02-02"]
[356,"Ipanema",457.61,18169,18334292000164,0.69299999999999995,"ALTO","Rio Doce","Aimorés",313120,"11 - Caparaó","2019-10-14","Normal","adimplente","2019-08-16"]
[357,"Ipatinga",166.09,239177,19876424000142,0.77100000000000002,"ALTO","Rio Doce","Ipatinga",313130,"08 - Vale do Aço","2019-12-21"]
[358,"Ipiaçu",469.24,4106,18457259000121,0.69599999999999995,"ALTO","Triângulo","Ituiutaba",313140,"16 - Triângulo Norte"]
[359,"Ipuiúna",298.39999999999998,9522,18179226000167,0.68600000000000005,"ALTO","Sul de Minas","Pouso Alegre",313150,"14 - Sul"]
[360,"Iraí de Minas",357.93,6464,18158642000189,0.69499999999999995,"ALTO","Alto Paranaíba","Patrocínio",313160,"16 - Triângulo Norte"]
[361,"Itabira",1254.49,109551,18299446000124,0.75600000000000001,"ALTO","Central","Itabira",313170,"09 - Metropolitana","2019-11-27","Normal","Adimplente","2019-03-08"]
[362,"Itabirinha",209.84,10692,17125444000156,0.65300000000000002,"BAIXO","Rio Doce","Mantena",313180,"07 - Vale do Rio Doce"]
[363,"Itabirito",541.92999999999995,45484,18307835000154,0.73,"ALTO","Central","Ouro Preto",313190,"09 - Metropolitana","2019-12-09","Normal","Adimplente","2018-12-13"]
[364,"Itacambira",1785.49,4982,18017400000175,0.628,"BAIXO","Norte de Minas","Grão Mogol",313200,"02 - Norte"]
[365,"Itacarambi",1224.98,17739,18283101000182,0.64100000000000001,"BAIXO","Norte de Minas","Januária",313210,"02 - Norte"]
[366,"Itaguara",410.62,12371,18313015000175,0.69099999999999995,"ALTO","Central","Itaguara",313220,"10 - Oeste"]
[367,"Itaipé",481.72,11798,18404756000161,0.55200000000000005,"BAIXO","Jequitinhonha/Mucuri","Teófilo Otoni",313230,"04 - Mucuri","2019-10-20","Normal","Adimplente","2019-05-08"]
[368,"Itajubá",295.2,90679,18025940000109,0.78700000000000003,"ALTO","Sul de Minas","Itajubá",313240,"14 - Sul","2019-08-03"]
[369,"Itamarandiba",2735.23,32177,16886871000194,0.64600000000000002,"BAIXO","Jequitinhonha/Mucuri","Capelinha",313250,"05 - Alto Jequitinhonha","2020-03-15","Normal","Adimplente","2019-09-17"]
[370,"Itamarati de Minas",94.49,4079,17706813000102,0.68799999999999994,"ALTO","Zona da Mata","Cataguases",313260,"12 - Mata"]
[371,"Itambacuri",1423.33,22797,18404855000143,0.63400000000000001,"BAIXO","Rio Doce","Governador Valadares",313270,"04 - Mucuri","2019-08-06"]
[372,"Itambé do Mato Dentro",380.65,2283,18299537000160,0.63400000000000001,"BAIXO","Central","Conceição do Mato dentro",313280,"09 - Metropolitana"]
[373,"Itamogi",242.63,10349,18241380000111,0.67400000000000004,"ALTO","Sul de Minas","São Sebastião do Paraíso",313290,"15 - Sudoeste","2018-08-04"]
[374,"Itamonte",430.99,14007,18666750000162,0.70499999999999996,"ALTO","Sul de Minas","São Lourenço",313300,"14 - Sul","2020-03-03","Normal","Adimplente","2018-12-03"]
[375,"Itanhandu",143.58000000000001,14183,18186718000180,0.73899999999999999,"ALTO","Sul de Minas","São Lourenço",313310,"14 - Sul","2018-12-12","Normal","Adimplente","2018-11-29"]
[376,"Itanhomi",487.25,11850,18493239000106,0.65,"BAIXO","Rio Doce","Governador Valadares",313320,"07 - Vale do Rio Doce"]
[377,"Itaobim",679.26,21001,18414573000127,0.629,"BAIXO","Jequitinhonha/Mucuri","Pedra Azul",313330,"03 - Médio e Baixo Jequitinhonha"]
[378,"Itapagipe",1797.48,13669,21226840000147,0.72299999999999998,"ALTO","","Frutal",313340,"17 - Triângulo Sul","2019-11-17"]
[379,"Itapecerica",1043.1400000000001,21377,18308742000144,0.71299999999999997,"ALTO","Centro Oeste de Minas","Formiga",313350,"10 - Oeste"]
[380,"Itapeva",177.79,8673,18677625000158,0.72,"ALTO","Sul de Minas","Pouso Alegre",313360,"14 - Sul","2018-04-29"]
[381,"Itatiaiuçu",295.64,9938,18691766000125,0.67700000000000005,"ALTO","Central","Itaguara",313370,"10 - Oeste"]
[382,"Itaú de Minas",154.1,14950,23767031000178,0.77600000000000002,"ALTO","Sul de Minas","Passos",313375,"15 - Sudoeste"]
[383,"Itaúna",495.75,85396,18309724000187,0.75800000000000001,"ALTO","Centro Oeste de Minas","Divinópolis",313380,"10 - Oeste","2019-08-13","Normal","Adimplente","2019-03-20"]
[384,"Itaverava",284.17,5798,19718386000108,0.627,"BAIXO","Central","Conselheiro Lafaiete",313390,"13 - Vertentes","2020-03-25"]
[385,"Itinga",1653.69,14407,18348748000145,0.6,{"$f":"IF(F386<0.668,\"BAIXO\",\"ALTO\")","v":"BAIXO"},"Jequitinhonha/Mucuri","Araçuaí",313400,"03 - Médio e Baixo Jequitinhonha"]
[386,"Itueta",454.03,5836,18413179000174,0.63500000000000001,"BAIXO","Rio Doce","Aimorés",313410,"07 - Vale do Rio Doce","2019-11-28"]
[387,"Ituiutaba",2596.6799999999998,97159,18457218000135,0.73899999999999999,"ALTO","Triângulo","Ituiutaba",313420,"16 - Triângulo Norte"]
[388,"Itumirim",234.11,6139,18244392000108,0.72599999999999998,"ALTO","Sul de Minas","Lavras",313430,"14 - Sul"]
[389,"Iturama",1399.07,34440,18457242000174,0.747,"ALTO","Triângulo","Frutal",313440,"17 - Triângulo Sul","2020-01-21"]
[390,"Itutinga",372.01,3913,18244384000153,0.72699999999999998,"ALTO","Sul de Minas","Lavras",313450,"14 - Sul","2019-11-26","Normal","Adimplente","2019-07-16"]
[391,"Jaboticatubas",1116.77,17119,18715417000104,0.68100000000000005,"ALTO","Central","Sete Lagoas",313460,"09 - Metropolitana"]
[392,"Jacinto",1391.11,12134,18349910000140,0.62,"BAIXO","Jequitinhonha/Mucuri","Almenara",313470,"03 - Médio e Baixo Jequitinhonha"]
[393,"Jacuí",409.56,7502,18186056000148,0.66800000000000004,"ALTO","Sul de Minas","São Sebastião do Paraíso",313480,"15 - Sudoeste","2018-09-29","Normal","Adimplente","2018-06-21"]
[394,"Jacutinga",347.11,22797,17914128000163,0.71499999999999997,"ALTO","Sul de Minas","Poços de Caldas",313490,"14 - Sul","2019-08-18","Normal","Adimplente","2019-02-22"]
[395,"Jaguaraçu",163.16999999999999,2982,16816522000104,0.67900000000000005,"ALTO","Rio Doce","Ipatinga",313500,"08 - Vale do Aço","2018-07-30","Normal","Adimplente"]
[396,"Jaíba",2625.94,33587,25209149000106,0.63800000000000001,"BAIXO","Norte de Minas","Janaúba",313505,"02 - Norte","2019-08-24"]
[397,"Jampruca",519.67999999999995,5068,66230384000147,0.60899999999999999,"BAIXO","Rio Doce","Governador Valadares",313507,"07 - Vale do Rio Doce"]
[398,"Janaúba",2180.56,66803,18017392000167,0.69599999999999995,"ALTO","Norte de Minas","Janaúba",313510,"02 - Norte"]
[399,"Januária",6670.41,65464,21461546000110,0.65800000000000003,"BAIXO","Norte de Minas","Januária",313520,"02 - Norte"]
[400,"Japaraíba",171.95,3950,18306654000103,0.72099999999999997,"ALTO","Centro Oeste de Minas","Bom despacho",313530,"10 - Oeste","2019-11-19"]
[401,"Japonvar",377.17,8305,1612476000146,0.60799999999999998,"BAIXO","Norte de Minas","Montes Claros",313535,"02 - Norte","2019-03-25"]
[402,"Jeceaba",235.55,5396,20356739000148,0.66100000000000003,"BAIXO","Central","Itaguara",313540,"13 - Vertentes","2019-05-21","Normal","Adimplente","2018-05-25"]
[403,"Jenipapo de Minas",284.63,7117,1613376000134,0.624,"BAIXO","Jequitinhonha/Mucuri","Capelinha",313545,"05 - Alto Jequitinhonha"]
[404,"Jequeri",548.45000000000005,12845,18316166000187,0.60099999999999998,"BAIXO","Zona da Mata","Ponte Nova",313550,"11 - Caparaó","24/06/2019","Normal","Adimplente"]
[405,"Jequitaí",1252.56,8010,18279083000165,0.64300000000000002,"BAIXO","Norte de Minas","Pirapora",313560,"02 - Norte"]
[406,"Jequitibá",445.3,5153,18062208000109,0.68899999999999995,"ALTO","Central","Sete Lagoas",313570,"09 - Metropolitana","2019-09-10"]
[407,"Jequitinhonha",3510.96,24179,18083659000114,0.61499999999999999,"BAIXO","Jequitinhonha/Mucuri","Almenara",313580,"03 - Médio e Baixo Jequitinhonha"]
[408,"Jesuânia",154.54,4768,18188227000178,0.65800000000000003,"BAIXO","Sul de Minas","São Lourenço",313590,"14 - Sul"]
[409,"Joaíma",1665.76,14930,18495812000110,0.58699999999999997,"BAIXO","Jequitinhonha/Mucuri","Almenara",313600,"03 - Médio e Baixo Jequitinhonha"]
[410,"Joanésia",232.69,5427,17111626000178,0.626,"BAIXO","Rio Doce","Ipatinga",313610,"08 - Vale do Aço","2019-04-15"]
[411,"João Monlevade",99.65,73451,18401059000157,0.75800000000000001,"ALTO","Central","Itabira",313620,"09 - Metropolitana","2020-03-20","Normal","Adimplente","2019-03-20"]
[412,"João Pinheiro",10711.57,45260,16930299000113,0.69699999999999995,"ALTO","Noroeste de Minas","Paracatu",313630,"01 - Noroeste","2018-05-21"]
[413,"Joaquim Felício",787.94,4305,17694878000177,0.63700000000000001,"BAIXO","Central","Curvelo",313640,"02 - Norte","2019-12-29","Normal","Adimplente","2018-12-13"]
[414,"Jordânia",547.47,10319,18349928000141,0.628,"BAIXO","Jequitinhonha/Mucuri","Almenara",313650,"03 - Médio e Baixo Jequitinhonha"]
[415,"José Gonçalves de Minas",381.09,4577,1613372000156,0.63200000000000001,"BAIXO","Jequitinhonha/Mucuri","Capelinha",313652,"05 - Alto Jequitinhonha","2019-11-13"]
[416,"José Raydan",180.81,4376,1613072000177,0.61699999999999999,"BAIXO","Rio Doce","Peçanha",313655,"07 - Vale do Rio Doce","2019-06-05"]
[417,"Josenópolis",540.66,4566,1612503000180,0.56399999999999995,"BAIXO","Norte de Minas","Grão Mogol",313657,"02 - Norte"]
[418,"Juatuba",97.14,22221,64487614000122,0.71699999999999997,"ALTO","Central","Belo Horizonte",313665,"09 - Metropolitana"]
[419,"Juiz de Fora",1433.87,517872,18338178000102,0.77800000000000002,"ALTO","Zona da Mata","Juiz de Fora",313670,"12 - Mata"," 03/07/2019","Normal","Adimplente","2018-12-12"]
[420,"Juramento",431.11,4110,18017368000128,0.66900000000000004,"ALTO","Norte de Minas","Montes Claros",313680,"02 - Norte","2019-10-23","Normal","Adimplente","2019-04-26"]
[421,"Juruaia",220.69,9238,18668368000198,0.72299999999999998,"ALTO","Sul de Minas","São Sebastião do Paraíso",313690,"15 - Sudoeste"]
[422,"Juvenília",1021.15,5708,1612485000137,0.59199999999999997,"BAIXO","Norte de Minas","Januária",313695,"02 - Norte","2020-02-08"]
[423,"Ladainha",868.62,16999,18404863000190,0.54100000000000004,"BAIXO","Jequitinhonha/Mucuri","Teófilo Otoni",313700,"04 - Mucuri","2019-01-21"]
[424,"Lagamar",1473.71,7598,18192260000171,0.71799999999999997,"ALTO","Noroeste de Minas","Paracatu",313710,"01 - Noroeste"]
[425,"Lagoa da Prata",442.26,45999,18318618000160,0.73199999999999998,"ALTO","Centro Oeste de Minas","Bom despacho",313720,"10 - Oeste"]
[426,"Lagoa dos Patos",600.27,4227,16901381000110,0.63400000000000001,"BAIXO","Norte de Minas","Pirapora",313730,"02 - Norte","2019-10-14"]
[427,"Lagoa Dourada",476.76,12267,18557595000146,0.67600000000000005,"ALTO","Central","São João del Rei",313740,"13 - Vertentes"]
[428,"Lagoa Formosa",839.97,17136,18602078000141,0.70299999999999996,"ALTO","Alto Paranaíba","Patos de Minas",313750,"01 - Noroeste"]
[429,"Lagoa Grande",1236.44,8631,23097454000128,0.67900000000000005,"ALTO","Noroeste de Minas","Paracatu",313753,"01 - Noroeste"]
[430,"Lagoa Santa",229.45,52526,73357469000156,0.77700000000000002,"ALTO","Central","Belo Horizonte",313760,"09 - Metropolitana","2018-08-05","Normal","Adimplente","2018-05-25"]
[431,"Lajinha",430.86,19616,18392522000141,0.66100000000000003,"BAIXO","Zona da Mata","Manhuaçu",313770,"11 - Caparaó"]
[432,"Lambari",213.34,19569,17877200000120,0.71099999999999997,"ALTO","Sul de Minas","São Lourenço",313780,"14 - Sul","2019-09-06"]
[433,"Lamim",118.47,3456,24179426000112,0.65500000000000003,"BAIXO","Zona da Mata","Viçosa",313790,"13 - Vertentes","2019-12-30"]
[434,"Laranjal",204.63,6465,17947615000122,0.71399999999999997,"ALTO","Zona da Mata","Cataguases",313800,"12 - Mata"]
[435,"Lassance",3207.9,6490,18279125000168,0.629,"BAIXO","Norte de Minas","Pirapora",313810,"02 - Norte"]
[436,"Lavras",564.46,92171,18244376000107,0.78200000000000003,"ALTO","Sul de Minas","Lavras",313820,"14 - Sul"]
[437,"Leandro Ferreira",352.68,3205,18315218000109,0.71,"ALTO","Centro Oeste de Minas","Bom despacho",313830,"10 - Oeste"]
[438,"Leme do Prado",280.92,4814,1587109000130,0.67,"ALTO","Jequitinhonha/Mucuri","Capelinha",313835,"05 - Alto Jequitinhonha"]
[439,"Leopoldina",942.74,51136,17733643000147,0.72599999999999998,"ALTO","Zona da Mata","Cataguases",313840,"12 - Mata","28/09/2019"]
[440,"Liberdade",402.7,5347,18029165000151,0.67200000000000004,"ALTO","Sul de Minas","Andrelândia",313850,"12 - Mata"]
[441,"Lima Duarte",848.04,16166,18338186000159,0.71,"ALTO","Zona da Mata","Juiz de Fora",313860,"12 - Mata"]
[442,"Limeira do Oeste",1317.69,6890,26042556000134,0.71,"ALTO","Triângulo","Frutal",313862,"17 - Triângulo Sul","2020-03-01","Normal","Adimplente","2019-09-12"]
[443,"Lontra",257.52,8401,25223009000192,0.64600000000000002,"BAIXO","Norte de Minas","Montes Claros",313865,"02 - Norte"]
[444,"Luisburgo",145.41999999999999,6236,1615423000189,0.60799999999999998,"BAIXO","Zona da Mata","Manhuaçu",313867,"11 - Caparaó"]
[445,"Luislândia",410.05,6405,1612887000131,0.61399999999999999,"BAIXO","Norte de Minas","Montes Claros",313868,"02 - Norte","2019-10-01"]
[446,"Luminárias",499.68,5425,18244301000126,0.67800000000000005,"ALTO","Sul de Minas","Lavras",313870,"14 - Sul","2019-12-14"]
[447,"Luz",1169.44,17492,18301036000170,0.72399999999999998,"ALTO","Centro Oeste de Minas","Bom despacho",313880,"10 - Oeste"]
[448,"Machacalis",330.47,6974,18404921000185,0.64,"BAIXO","Jequitinhonha/Mucuri","Nanuque",313890,"04 - Mucuri"]
[449,"Machado",587.14,38684,18242784000120,0.71499999999999997,{"$f":"IF(F450<0.668,\"BAIXO\",\"ALTO\")","v":"ALTO"},"Sul de Minas","Alfenas",313900,"14 - Sul","2018-10-31"]
[450,"Madre de Deus de Minas",493.26,4898,18029371000161,0.69899999999999995,"ALTO","Central","São João del Rei",313910,"13 - Vertentes"]
[451,"Malacacheta",706.58,18787,18404871000136,0.61799999999999999,"BAIXO","Jequitinhonha/Mucuri","Teófilo Otoni",313920,"04 - Mucuri"]
[452,"Mamonas",291.77999999999997,6321,25212242000170,0.61799999999999999,"BAIXO","Norte de Minas","Janaúba",313925,"02 - Norte"]
[453,"Manga",1949.69,19846,18270447000146,0.64200000000000002,"BAIXO","Norte de Minas","Januária",313930,"02 - Norte"]
[454,"Manhuaçu",628.42999999999995,79635,18385088000172,0.68899999999999995,"ALTO","Zona da Mata","Manhuaçu",313940,"11 - Caparaó","2019-10-29","Normal","Adimplente","2019-07-25"]
[455,"Manhumirim",176.34,21366,18392530000198,0.69699999999999995,"ALTO","Zona da Mata","Manhuaçu",313950,"11 - Caparaó"]
[456,"Mantena",685.11,27115,18504167000155,0.67500000000000004,"ALTO","Rio Doce","Mantena",313960,"07 - Vale do Rio Doce"]
[457,"Mar de Espanha",371.76,11758,18535658000163,0.68400000000000005,"ALTO","Zona da Mata","Juiz de Fora",313980,"12 - Mata"]
[458,"Maravilhas",258.77,7156,18313841000114,0.67200000000000004,"ALTO","Central","Sete Lagoas",313970,"09 - Metropolitana"]
[459,"Maria da Fé",202,14216,18025957000158,0.70199999999999996,"ALTO","Sul de Minas","Itajubá",313990,"14 - Sul"]
[460,"Mariana",1193.8599999999999,54179,18295303000144,0.74199999999999999,"ALTO","Central","Ouro Preto",314000,"09 - Metropolitana","2019-12-16"]
[461,"Marilac",158.22999999999999,4219,18409193000102,0.61499999999999999,"BAIXO","Rio Doce","Governador Valadares",314010,"07 - Vale do Rio Doce"]
[462,"Mário Campos",35.06,13214,1612508000103,0.69899999999999995,"ALTO","Central","Belo Horizonte",314015,"09 - Metropolitana","2018-10-02"]
[463,"Maripá de Minas",77.89,2788,17724162000175,0.68,"ALTO","Zona da Mata","Juiz de Fora",314020,"12 - Mata"]
[464,"Marliéria",543.67999999999995,4021,16796872000148,0.65700000000000003,"BAIXO","Rio Doce","Ipatinga",314030,"08 - Vale do Aço","2020-01-25"]
[465,"Marmelópolis",107.84,2968,18026021000141,0.65,"BAIXO","Sul de Minas","Itajubá",314040,"14 - Sul","2019-12-02"]
[466,"Martinho Campos",1050.03,12589,18315234000193,0.66900000000000004,"ALTO","Centro Oeste de Minas","Bom despacho",314050,"10 - Oeste"]
[467,"Martins Soares",113.69,7173,1615420000145,0.63500000000000001,"BAIXO","Zona da Mata","Manhuaçu",314053,"11 - Caparaó"]
[468,"Mata Verde",230.4,7880,66234360000166,0.58099999999999996,"BAIXO","Jequitinhonha/Mucuri","Almenara",314055,"03 - Médio e Baixo Jequitinhonha"]
[469,"Materlândia",280.92,4595,18303206000156,0.59699999999999998,"BAIXO","Rio Doce","Guanhães",314060,"09 - Metropolitana"]
[470,"Mateus Leme",303.13,27856,18715433000199,0.70399999999999996,"ALTO","Central","Belo Horizonte",314070,"09 - Metropolitana"]
[471,"Mathias Lobato",171.74,3371,18332619000169,0.61199999999999999,"BAIXO","Rio Doce","Governador Valadares",317150,"07 - Vale do Rio Doce","2019-11-26"]
[472,"Matias Barbosa",156.55000000000001,13435,18338194000103,0.72,"ALTO","Zona da Mata","Juiz de Fora",314080,"12 - Mata"]
[473,"Matias Cardoso",1952.01,9977,25209115000111,0.61599999999999999,"BAIXO","Norte de Minas","Januária",314085,"02 - Norte","2020-02-01"]
[474,"Matipó",267.10000000000002,17639,18385104000127,0.63100000000000001,"BAIXO","Zona da Mata","Manhuaçu",314090,"11 - Caparaó","2019-01-07"]
[475,"Mato Verde",474.34,12685,17782616000164,0.66200000000000003,"BAIXO","Norte de Minas","Janaúba",314100,"02 - Norte","2020-01-28","Normal","Adimplente","2019-08-06"]
[476,"Matozinhos",253.11,32973,18771238000186,0.73099999999999998,"ALTO","Central","Sete Lagoas",314110,"09 - Metropolitana"]
[477,"Matutina",259.01,3763,18602102000142,0.70699999999999996,"ALTO","Alto Paranaíba","Patos de Minas",314120,"01 - Noroeste"]
[478,"Medeiros",947.09,3444,18298182000194,0.71099999999999997,"ALTO","Centro Oeste de Minas","Piuí",314130,"10 - Oeste"]
[479,"Medina",1435.18,21037,18414607000183,0.624,"BAIXO","Jequitinhonha/Mucuri","Pedra Azul",314140,"03 - Médio e Baixo Jequitinhonha"]
[480,"Mendes Pimentel",305.29000000000002,6329,18505347000151,0.626,"BAIXO","Rio Doce","Mantena",314150,"07 - Vale do Rio Doce","2019-10-20"]
[481,"Mercês",348.63,10372,17744442000145,0.66400000000000003,"BAIXO","Zona da Mata","Ubá",314160,"12 - Mata"]
[482,"Mesquita",274.99,6072,17112061000143,0.65600000000000003,"BAIXO","Rio Doce","Ipatinga",314170,"08 - Vale do Aço","2019-11-25","Normal","Adimplente","2018-05-17"]
[483,"Minas Novas",1815.93,30803,22516405000110,0.63300000000000001,"BAIXO","Jequitinhonha/Mucuri","Capelinha",314180,"05 - Alto Jequitinhonha","2019-05-22","Normal","Adimplente","2018-05-11"]
[484,"Minduri",220.61,3840,17954041000110,0.65800000000000003,"BAIXO","Sul de Minas","Andrelândia",314190,"14 - Sul"]
[485,"Mirabela",721.94,13043,18017376000174,0.66500000000000004,"BAIXO","Norte de Minas","Montes Claros",314200,"02 - Norte"]
[486,"Miradouro",301.52,10251,17947623000179,0.66300000000000003,"BAIXO","Zona da Mata","Muriaé",314210,"12 - Mata","2019-09-12"]
[487,"Miraí",320.92,13800,17966201000140,0.68,"ALTO","Zona da Mata","Muriaé",314220,"12 - Mata"]
[488,"Miravânia",601.35,4561,1612491000194,0.59299999999999997,"BAIXO","Norte de Minas","Januária",314225,"02 - Norte","2019-06-17"]
[489,"Moeda",154.49,4700,18363952000135,0.63800000000000001,"BAIXO","Central","Itaguara",314230,"09 - Metropolitana"]
[490,"Moema",202.72,7028,18301044000117,0.72099999999999997,"ALTO","Centro Oeste de Minas","Bom despacho",314240,"10 - Oeste"]
[491,"Monjolos",655.53,2360,17754169000130,0.65,"BAIXO","Central","Curvelo",314250,"06 - Central"]
[492,"Monsenhor Paulo",217.48,8168,22541874000199,0.72099999999999997,"ALTO","Sul de Minas","Varginha",314260,"14 - Sul"]
[493,"Montalvânia",1553.59,15859,17097791000112,0.61299999999999999,"BAIXO","Norte de Minas","Januária",314270,"02 - Norte"]
[494,"Monte Alegre de Minas",2596.38,19616,18431155000148,0.67400000000000004,"ALTO","Triângulo","Uberlândia",314280,"16 - Triângulo Norte","2020-02-29"]
[495,"Monte Azul",996.33,22000,18650945000114,0.65900000000000003,"BAIXO","Norte de Minas","Janaúba",314290,"02 - Norte"]
[496,"Monte Belo",421.76,13061,18668376000134,0.68799999999999994,"ALTO","Sul de Minas","São Sebastião do Paraíso",314300,"15 - Sudoeste","2019-12-22"]
[497,"Monte Carmelo",1343.79,45799,18593103000178,0.72799999999999998,"ALTO","Alto Paranaíba","Patrocínio",314310,"16 - Triângulo Norte","2018-07-09","Normal","Adimplente","2018-05-17"]
[498,"Monte Formoso",385.69,4664,1615007000180,0.54100000000000004,"BAIXO","Jequitinhonha/Mucuri","Almenara",314315,"03 - Médio e Baixo Jequitinhonha","2020-02-03","Normal","Adimplente","2019-08-29"]
[499,"Monte Santo de Minas",592.46,21246,18241372000175,0.71,"ALTO","Sul de Minas","São Sebastião do Paraíso",314320,"15 - Sudoeste","2018-12-22","Normal","Adimplente"]
[500,"Monte Sião",290.36,21203,22646525000131,0.72399999999999998,"ALTO","Sul de Minas","Poços de Caldas",314340,"14 - Sul","2019-05-15"]
[501,"Montes Claros",3564.72,361971,22678874000135,0.77,"ALTO","Norte de Minas","Montes Claros",314330,"02 - Norte"]
[502,"Montezuma",1130.7,7472,25223983000156,0.58699999999999997,"BAIXO","Norte de Minas","Salinas",314345,"02 - Norte"]
[503,"Morada Nova de Minas",2081.58,8256,18296665000150,0.69599999999999995,"ALTO","Central","Três Marias",314350,"06 - Central"]
[504,"Morro da Garça",413.43,2661,17695040000106,0.64800000000000002,"BAIXO","Central","Curvelo",314360,"06 - Central"]
[505,"Morro do Pilar",476.62,3399,18303214000100,0.59699999999999998,"BAIXO","Central","Conceição do Mato dentro",314370,"09 - Metropolitana"]
[506,"Munhoz",190.72,6257,18675934000199,0.64700000000000002,"BAIXO","Sul de Minas","Pouso Alegre",314380,"14 - Sul","2018-07-17","Normal","Adimplente"]
[507,"Muriaé",842.15,100861,17947581000176,0.73399999999999999,"ALTO","Zona da Mata","Muriaé",314390,"12 - Mata","2019-12-24","Normal","Adimplente","2019-09-09"]
[508,"Mutum",1253.1199999999999,26672,18348086000103,0.64400000000000002,"BAIXO","Rio Doce","Aimorés",314400,"11 - Caparaó","2019-04-20","Normal","Adimplente"]
[509,"Muzambinho",409.93,20432,18668624000147,0.74,"ALTO","Sul de Minas","São Sebastião do Paraíso",314410,"15 - Sudoeste","2018-12-01","Normal","Adimplente","2018-12-19"]
[510,"Nacip Raydan",232.61,3154,18507079000107,0.58499999999999996,"BAIXO","Rio Doce","Governador Valadares",314420,"07 - Vale do Rio Doce","2019-08-04","Normal","Adimplente","2019-02-06"]
[511,"Nanuque",1542.97,40816,18398974000130,0.70099999999999996,"ALTO","Jequitinhonha/Mucuri","Nanuque",314430,"04 - Mucuri"]
[512,"Naque",126.44,6341,1613208000149,0.67500000000000004,"ALTO","Rio Doce","Ipatinga",314435,"08 - Vale do Aço"]
[513,"Natalândia",471.37,3288,1593752000176,0.67100000000000004,{"$f":"IF(F514<0.668,\"BAIXO\",\"ALTO\")","v":"ALTO"},"Noroeste de Minas","Unaí",314437,"01 - Noroeste"]
[514,"Natércia",189.35,4650,17935412000116,0.69299999999999995,"ALTO","Sul de Minas","Santa Rita do Sapucaí",314440,"14 - Sul"]
[515,"Nazareno",329.02,7953,18557561000151,0.69,"ALTO","Central","São João del Rei",314450,"13 - Vertentes"]
[516,"Nepomuceno",582.23,25721,18244350000169,0.66700000000000004,"BAIXO","Sul de Minas","Lavras",314460,"14 - Sul","2020-01-06"]
[517,"Ninheira",1109.1099999999999,9795,1612495000172,0.55600000000000005,"BAIXO","Norte de Minas","Salinas",314465,"02 - Norte"]
[518,"Nova Belém",175.16,3732,1613169000180,0.59199999999999997,"BAIXO","Rio Doce","Mantena",314467,"07 - Vale do Rio Doce","2019-08-11"]
[519,"Nova Era",360.01,17540,16819831000120,0.70899999999999996,"ALTO","Central","Itabira",314470,"09 - Metropolitana"]
[520,"Nova Lima",428.45,81162,22934889000117,0.81299999999999994,"ALTO","Central","Belo Horizonte",314480,"09 - Metropolitana"]
[521,"Nova Módica",375.43,3793,18404939000187,0.63,"BAIXO","Rio Doce","Governador Valadares",314490,"04 - Mucuri","2019-12-15","Normal","Adimplente"]
[522,"Nova Ponte",1105.77,12823,18159905000174,0.70099999999999996,"ALTO","Alto Paranaíba","Araxá",314500,"16 - Triângulo Norte"]
[523,"Nova Porteirinha",122.3,7398,1612499000150,0.64100000000000001,"BAIXO","Norte de Minas","Janaúba",314505,"02 - Norte"]
[524,"Nova Resende",390.09,15373,18187823000133,0.67100000000000004,"ALTO","Sul de Minas","São Sebastião do Paraíso",314510,"15 - Sudoeste","2019-06-10"]
[525,"Nova Serrana",281.24,73719,18291385000159,0.71499999999999997,"ALTO","Centro Oeste de Minas","Divinópolis",314520,"10 - Oeste","2019-12-08","Normal","Adimplente","2018-12-07"]
[526,"Nova União",171.78,5554,18302307000102,0.66200000000000003,"BAIXO","Central","Itabira",313660,"09 - Metropolitana"]
[527,"Novo Cruzeiro",1703.52,30726,18404889000138,0.57099999999999995,"BAIXO","Jequitinhonha/Mucuri","Araçuaí",314530,"03 - Médio e Baixo Jequitinhonha","2019-07-07"]
[528,"Novo Oriente de Minas",754.37,10342,1613373000109,0.55500000000000005,"BAIXO","Jequitinhonha/Mucuri","Teófilo Otoni",314535,"04 - Mucuri"]
[529,"Novorizonte",272.73,4953,1616420000160,0.61599999999999999,"BAIXO","Norte de Minas","Salinas",314537,"02 - Norte","2019-04-02"]
[530,"Olaria",178.42,1981,18338202000103,0.63600000000000001,"BAIXO","Zona da Mata","Juiz de Fora",314540,"12 - Mata"]
[531,"Olhos-d'Água",2091.4299999999998,5264,1612547000100,0.626,"BAIXO","Norte de Minas","Bocaiúva",314545,"02 - Norte"]
[532,"Olímpio Noronha",54.29,2533,18188276000100,0.67400000000000004,"ALTO","Sul de Minas","São Lourenço",314550,"14 - Sul","2019-05-03"]
[533,"Oliveira",896.96,39469,16854531000181,0.69899999999999995,"ALTO","Centro Oeste de Minas","Oliveira",314560,"10 - Oeste","2018-08-08"]
[534,"Oliveira Fortes",110.97,2123,17747957000107,0.63500000000000001,"BAIXO","Zona da Mata","Juiz de Fora",314570,"12 - Mata"]
[535,"Onça de Pitangui",243.13,3197,18313858000171,0.66300000000000003,"BAIXO","Central","Pará de Minas",314580,"10 - Oeste"]
[536,"Oratórios",89.22,4486,1616836000188,0.63700000000000001,"BAIXO","Zona da Mata","Ponte Nova",314585,"11 - Caparaó"]
[537,"Orizânia",121.84,7284,1616271000139,0.56200000000000006,"BAIXO","Zona da Mata","Muriaé",314587,"12 - Mata"]
[538,"Ouro Branco",258.79000000000002,35260,18295329000192,0.76400000000000001,"ALTO","Central","Conselheiro Lafaiete",314590,"13 - Vertentes","2020-02-08","Normal","Adimplente","2019-08-23"]
[539,"Ouro Fino",533.49,31580,18671271000134,0.72199999999999998,"ALTO","Sul de Minas","Poços de Caldas",314600,"14 - Sul"]
[540,"Ouro Preto",1246.53,70227,18295295000136,0.74099999999999999,"ALTO","Central","Ouro Preto",314610,"09 - Metropolitana","2019-10-12","Normal","Adimplente","2018-12-07"]
[541,"Ouro Verde de Minas",176.21,6021,18404947000123,0.59499999999999997,"BAIXO","Jequitinhonha/Mucuri","Teófilo Otoni",314620,"04 - Mucuri"]
[542,"Padre Carvalho",446.86,5834,1612490000140,0.59899999999999998,"BAIXO","Norte de Minas","Grão Mogol",314625,"02 - Norte","2019-10-23","Normal","Adimplente","2018-06-20"]
[543,"Padre Paraíso",544.37,18852,18404764000108,0.59599999999999997,"BAIXO","Jequitinhonha/Mucuri","Araçuaí",314630,"03 - Médio e Baixo Jequitinhonha","2019-07-02"]
[544,"Pai Pedro",840.13,5934,1612479000180,0.59,"BAIXO","Norte de Minas","Janaúba",314655,"02 - Norte"]
[545,"Paineiras",638.70000000000005,4631,18296673000104,0.66900000000000004,"ALTO","Central","Três Marias",314640,"06 - Central"]
[546,"Pains",421.6,8015,20920575000130,0.72799999999999998,"ALTO","Centro Oeste de Minas","Formiga",314650,"10 - Oeste","2019-05-27","Normal","Adimplente","2018-12-03"]
[547,"Paiva",58.66,1560,17747965000145,0.72,"ALTO","Zona da Mata","Juiz de Fora",314660,"13 - Vertentes"]
[548,"Palma",316.73,6545,17734906000132,0.70299999999999996,"ALTO","Zona da Mata","Cataguases",314670,"12 - Mata"]
[549,"Palmópolis",433.48,6925,66234345000118,0.56499999999999995,"BAIXO","Jequitinhonha/Mucuri","Almenara",314675,"03 - Médio e Baixo Jequitinhonha"]
[550,"Papagaios",552.79999999999995,14171,18313866000118,0.66600000000000004,"BAIXO","Central","Sete Lagoas",314690,"09 - Metropolitana","2019-10-22"]
[551,"Pará de Minas",543.57000000000005,84252,18313817000185,0.72499999999999998,"ALTO","Central","Pará de Minas",314710,"10 - Oeste","22/12/2019","Normal","Adimplente","2018-12-07"]
[552,"Paracatu",8229.11,84687,18278051000145,0.74399999999999999,"ALTO","Noroeste de Minas","Paracatu",314700,"01 - Noroeste","2019-05-11"]
[553,"Paraguaçu",425.65,20241,18008193000192,0.71499999999999997,"ALTO","Sul de Minas","Alfenas",314720,"14 - Sul","2019-12-02","Normal","Normal","2019-08-29"]
[554,"Paraisópolis",330.66,19392,18025965000102,0.72899999999999998,"ALTO","Sul de Minas","Itajubá",314730,"14 - Sul"]
[555,"Paraopeba",624.05999999999995,22571,18116160000166,0.69399999999999995,"ALTO","Central","Sete Lagoas",314740,"09 - Metropolitana"]
[556,"Passa Quatro",275.44,15584,18039503000136,0.71499999999999997,"ALTO","Sul de Minas","São Lourenço",314760,"14 - Sul"]
[557,"Passa Tempo",430.13,8199,18338210000150,0.68700000000000006,"ALTO","Centro Oeste de Minas","Oliveira",314770,"10 - Oeste"]
[558,"Passa Vinte",246.91,2084,18299511000111,0.64800000000000002,"BAIXO","Sul de Minas","Andrelândia",314780,"12 - Mata"]
[559,"Passabém",94.51,1766,23245806000145,0.64200000000000002,"BAIXO","Central","Conceição do Mato dentro",314750,"09 - Metropolitana"]
[560,"Passos",1337.52,106313,18241745000108,0.75600000000000001,"ALTO","Sul de Minas","Passos",314790,"15 - Sudoeste","2019-10-12"]
[561,"Patis",443.38,5594,1612478000135,0.61399999999999999,"BAIXO","Norte de Minas","Montes Claros",314795,"02 - Norte"]
[562,"Patos de Minas",3187.53,138836,18602011000107,0.76500000000000001,"ALTO","Alto Paranaíba","Patos de Minas",314800,"01 - Noroeste","2019-09-24"]
[563,"Patrocínio",2875.01,82541,18468033000126,0.72899999999999998,"ALTO","Alto Paranaíba","Patrocínio",314810,"16 - Triângulo Norte"]
[564,"Patrocínio do Muriaé",108.76,5298,17947607000186,0.68200000000000005,"ALTO","Zona da Mata","Muriaé",314820,"12 - Mata"]
[565,"Paula Cândido",268.39,9269,17763715000107,0.63700000000000001,"BAIXO","Zona da Mata","Viçosa",314830,"11 - Caparaó"]
[566,"Paulistas",220.97,4918,18307447000173,0.625,"BAIXO","Rio Doce","Guanhães",314840,"07 - Vale do Rio Doce"]
[567,"Pavão",599.33000000000004,8589,18404772000154,0.627,"BAIXO","Jequitinhonha/Mucuri","Teófilo Otoni",314850,"04 - Mucuri"]
[568,"Peçanha",996.05,17270,18409227000150,0.627,"BAIXO","Rio Doce","Peçanha",314860,"07 - Vale do Rio Doce"]
[569,"Pedra Azul",1592.79,23843,18414565000180,0.627,"BAIXO","Jequitinhonha/Mucuri","Pedra Azul",314870,"03 - Médio e Baixo Jequitinhonha","2019-10-22"]
[570,"Pedra Bonita",173.79,6673,1640429000106,0.57299999999999995,"BAIXO","Zona da Mata","Manhuaçu",314875,"12 - Mata","2019-08-08"]
[571,"Pedra do Anta",173.08,3365,18133439000158,0.624,"BAIXO","Zona da Mata","Viçosa",314880,"11 - Caparaó","2019-06-24","Normal","Adimplente","2018-12-19"]
[572,"Pedra do Indaiá",348.66,3878,18308759000100,0.70799999999999996,"ALTO","Centro Oeste de Minas","Formiga",314890,"10 - Oeste"]
[573,"Pedra Dourada",70.12,2187,18114215000107,0.65500000000000003,"BAIXO","Zona da Mata","Muriaé",314900,"12 - Mata"]
[574,"Pedralva",218.52,11467,18025973000140,0.67500000000000004,"ALTO","Sul de Minas","Santa Rita do Sapucaí",314910,"14 - Sul"]
[575,"Pedras de Maria da Cruz",1525.43,10310,25209156000108,0.61399999999999999,"BAIXO","Norte de Minas","Januária",314915,"02 - Norte"]
[576,"Pedrinópolis",359.69,3490,18140335000170,0.72899999999999998,"ALTO","Alto Paranaíba","Araxá",314920,"17 - Triângulo Sul"]
[577,"Pedro Leopoldo",292.56,58696,23456650000141,0.75700000000000001,{"$f":"IF(F578<0.668,\"BAIXO\",\"ALTO\")","v":"ALTO"},"Central","Belo Horizonte",314930,"09 - Metropolitana","2019-02-06"]
[578,"Pedro Teixeira",112.54,1789,18338228000151,0.63700000000000001,"BAIXO","Zona da Mata","Juiz de Fora",314940,"12 - Mata"]
[579,"Pequeri",90.91,3165,17724360000139,0.69399999999999995,"ALTO","Zona da Mata","Juiz de Fora",314950,"12 - Mata","2020-01-06","Normal","Adimplente","2019-02-08"]
[580,"Pequi",201.01,4075,18313874000164,0.67400000000000004,"ALTO","Central","Sete Lagoas",314960,"09 - Metropolitana"]
[581,"Perdigão",251.94,8912,18301051000119,0.70299999999999996,"ALTO","Centro Oeste de Minas","Divinópolis",314970,"10 - Oeste"]
[582,"Perdizes",2446.0500000000002,14391,18140772000194,0.72299999999999998,"ALTO","Alto Paranaíba","Araxá",314980,"17 - Triângulo Sul"]
[583,"Perdões",270.38,20140,18244343000167,0.74399999999999999,"ALTO","Centro Oeste de Minas","Campo Belo",314990,"14 - Sul"]
[584,"Periquito",227.66,7030,1613077000108,0.65100000000000002,"BAIXO","Rio Doce","Ipatinga",314995,"08 - Vale do Aço"]
[585,"Pescador",318.22000000000003,4129,18404962000171,0.65600000000000003,"BAIXO","Rio Doce","Governador Valadares",315000,"04 - Mucuri"]
[586,"Piau",192.03,2844,18338236000106,0.629,"BAIXO","Zona da Mata","Juiz de Fora",315010,"12 - Mata"]
[587,"Piedade de Caratinga",109.22,7101,1613130000162,0.61199999999999999,"BAIXO","Rio Doce","Caratinga",315015,"08 - Vale do Aço"]
[588,"Piedade de Ponte Nova",83.57,4063,18316257000112,0.63900000000000001,"BAIXO","Zona da Mata","Ponte Nova",315020,"11 - Caparaó"]
[589,"Piedade do Rio Grande",323.14,4709,18685438000116,0.67800000000000005,"ALTO","Central","São João del Rei",315030,"13 - Vertentes","2019-09-16","Normal","Adimplente","2019-04-24"]
[590,"Piedade dos Gerais",259.76,4645,18363960000181,0.626,"BAIXO","Central","Itaguara",315040,"09 - Metropolitana"]
[591,"Pimenta",415.61,8236,16725962000148,0.68600000000000005,"ALTO","Centro Oeste de Minas","Formiga",315050,"10 - Oeste","2020-01-15"]
[592,"Pingo d'Água",66.849999999999994,4420,1613204000160,0.61899999999999999,"BAIXO","Rio Doce","Caratinga",315053,"08 - Vale do Aço"]
[593,"Pintópolis",1228.4000000000001,7215,1612481000159,0.59399999999999997,"BAIXO","Norte de Minas","Januária",315057,"02 - Norte"]
[594,"Piracema",280.45,6406,17980392000103,0.64600000000000002,"BAIXO","Centro Oeste de Minas","Oliveira",315060,"10 - Oeste"]
[595,"Pirajuba",335.95,4664,18428847000137,0.72299999999999998,"ALTO","Triângulo","Frutal",315070,"17 - Triângulo Sul","2019-05-11","Normal","Adimplente","2018-11-14"]
[596,"Piranga",659.15,17230,23515687000101,0.6,"BAIXO","Zona da Mata","Viçosa",315080,"13 - Vertentes"]
[597,"Piranguçu",201.87,5219,18025981000197,0.68500000000000005,"ALTO","Sul de Minas","Itajubá",315090,"14 - Sul"]
[598,"Piranguinho",125.19,8016,18192906000110,0.71699999999999997,"ALTO","Sul de Minas","Itajubá",315100,"14 - Sul","2019-11-19"]
[599,"Pirapetinga",193.68,10366,18092825000149,0.70899999999999996,"ALTO","Zona da Mata","Cataguases",315110,"12 - Mata"]
[600,"Pirapora",549.27,53379,23539463000121,0.73099999999999998,"ALTO","Norte de Minas","Pirapora",315120,"02 - Norte","2019-07-23"]
[601,"Piraúba",144.09,10866,18554147000199,0.68400000000000005,"ALTO","Zona da Mata","Ubá",315130,"12 - Mata"]
[602,"Pitangui",563.23,25339,18315226000147,0.72499999999999998,"ALTO","Central","Pará de Minas",315140,"10 - Oeste"]
[603,"Piumhi",902.92,31885,16781346000104,0.73699999999999999,"ALTO","Centro Oeste de Minas","Piuí",315150,"15 - Sudoeste","2018-11-20"]
[604,"Planura",315.62,10393,18449157000164,0.71199999999999997,"ALTO","Triângulo","Frutal",315160,"17 - Triângulo Sul","2020-01-04","Normal","Adimplente","2018-05-25"]
[605,"Poço Fundo",474.55,15961,18242792000176,0.69099999999999995,"ALTO","Sul de Minas","Alfenas",315170,"14 - Sul","2020-01-13"]
[606,"Poços de Caldas",540.87,152496,18629840000183,0.77900000000000003,"ALTO","Sul de Minas","Poços de Caldas",315180,"14 - Sul","2019-06-18","Normal","Adimplente","2018-04-06"]
[607,"Pocrane",690.06,8998,18334318000174,0.626,"BAIXO","Rio Doce","Aimorés",315190,"11 - Caparaó"]
[608,"Pompéu",2557.48,29083,18296681000142,0.68899999999999995,"ALTO","Central","Três Marias",315200,"06 - Central","2019-09-22","Normal","Adimplente","2019-04-01"]
[609,"Ponte Nova",471.07,57361,23804149000129,0.71699999999999997,"ALTO","Zona da Mata","Ponte Nova",315210,"11 - Caparaó"]
[610,"Ponto Chique",606.95000000000005,3966,1612500000147,0.60599999999999998,"BAIXO","Norte de Minas","Montes Claros",315213,"02 - Norte"]
[611,"Ponto dos Volantes",1215.47,11345,1613377000189,0.59499999999999997,"BAIXO","Jequitinhonha/Mucuri","Araçuaí",315217,"03 - Médio e Baixo Jequitinhonha","2020-02-24","Normal","Adimplente","2019-08-29"]
[612,"Porteirinha",1745.15,37638,18013326000119,0.65100000000000002,"BAIXO","Norte de Minas","Janaúba",315220,"02 - Norte"]
[613,"Porto Firme",285.20999999999998,10410,18567354000188,0.63400000000000001,"BAIXO","Zona da Mata","Viçosa",315230,"11 - Caparaó","2019-07-24"]
[614,"Poté",642.63,15668,18404970000118,0.624,"BAIXO","Jequitinhonha/Mucuri","Teófilo Otoni",315240,"04 - Mucuri"]
[615,"Pouso Alegre",543.46,130586,18675983000121,0.77400000000000002,"ALTO","Sul de Minas","Pouso Alegre",315250,"14 - Sul","2019-07-22"]
[616,"Pouso Alto",262.02,6213,18667212000192,0.71,"ALTO","Sul de Minas","São Lourenço",315260,"14 - Sul"]
[617,"Prados",263.98,8395,18557538000167,0.68899999999999995,"ALTO","Central","São João del Rei",315270,"13 - Vertentes"]
[618,"Prata",4851.43,25805,18260505000150,0.69499999999999995,"ALTO","Triângulo","Uberlândia",315280,"16 - Triângulo Norte","2018-09-17","Normal","Adimplente","2018-05-09"]
[619,"Pratápolis",214.57,8808,18241356000182,0.72899999999999998,"ALTO","Sul de Minas","Passos",315290,"15 - Sudoeste","2020-01-15","Normal","Adimplente","2019-07-22"]
[620,"Pratinha",620.95000000000005,3285,18585570000156,0.72099999999999997,"ALTO","Alto Paranaíba","Araxá",315300,"17 - Triângulo Sul"]
[621,"Presidente Bernardes",236.7,5537,23515695000140,0.63200000000000001,"BAIXO","Zona da Mata","Viçosa",315310,"12 - Mata"]
[622,"Presidente Juscelino",693.51,3907,17695057000155,0.61399999999999999,"BAIXO","Central","Curvelo",315320,"06 - Central","2019-08-18"]
[623,"Presidente Kubitschek",188.87,2959,17754185000122,0.59499999999999997,"BAIXO","Central","Diamantina",315330,"05 - Alto Jequitinhonha"]
[624,"Presidente Olegário",3518.61,18546,18602060000140,0.70099999999999996,"ALTO","Noroeste de Minas","Paracatu",315340,"01 - Noroeste"]
[625,"Prudente de Morais",124.81,9576,18314625000193,0.69,"ALTO","Central","Sete Lagoas",315360,"09 - Metropolitana"]
[626,"Quartel Geral",557.45000000000005,3315,18296699000144,0.68300000000000005,"ALTO","Centro Oeste de Minas","Bom despacho",315370,"10 - Oeste"]
[627,"Queluzito",153.62,1866,19718410000109,0.68200000000000005,"ALTO","Central","Conselheiro Lafaiete",315380,"13 - Vertentes","2019-06-23"]
[628,"Raposos",71.59,15345,18312132000114,0.73,"ALTO","Central","Belo Horizonte",315390,"09 - Metropolitana","2018-09-03","Normal","Adimplente","2018-05-17"]
[629,"Raul Soares",765.89,23818,18836965000184,0.65500000000000003,"BAIXO","Zona da Mata","Ponte Nova",315400,"11 - Caparaó"]
[630,"Recreio",233.72,10301,17735754000192,0.69199999999999995,"ALTO","Zona da Mata","Cataguases",315410,"12 - Mata"]
[631,"Reduto",151.96,6561,1614977000161,0.629,"BAIXO","Zona da Mata","Manhuaçu",315415,"11 - Caparaó"]
[632,"Resende Costa",618.27,10918,17749912000163,0.68500000000000005,"ALTO","Central","São João del Rei",315420,"13 - Vertentes"]
[633,"Resplendor",1083.8399999999999,17099,18413161000172,0.67,"ALTO","Rio Doce","Aimorés",315430,"07 - Vale do Rio Doce"]
[634,"Ressaquinha",185.9,4686,18094847000148,0.68300000000000005,"ALTO","Central","Barbacena",315440,"13 - Vertentes"]
[635,"Riachinho",1778.48,8007,25222118000195,0.63200000000000001,"BAIXO","Norte de Minas","Pirapora",315445,"01 - Noroeste"]
[636,"Riacho dos Machados",1313.83,9360,16925208000151,0.627,"BAIXO","Norte de Minas","Janaúba",315450,"02 - Norte"]
[637,"Ribeirão das Neves",154.66999999999999,296376,18314609000109,0.68400000000000005,"ALTO","Central","Belo Horizonte",315460,"09 - Metropolitana"]
[638,"Ribeirão Vermelho",49.57,3826,18244087000108,0.73699999999999999,"ALTO","Sul de Minas","Lavras",315470,"14 - Sul"]
[639,"Rio Acima",230.06,9095,18312108000185,0.67300000000000004,"ALTO","Central","Belo Horizonte",315480,"09 - Metropolitana"]
[640,"Rio Casca",383.35,14198,18836957000138,0.65,"BAIXO","Zona da Mata","Ponte Nova",315490,"11 - Caparaó","2019-12-14","Normal","Adimplente","2019-02-13"]
[641,"Rio do Prado",478.97,5213,18349936000198,0.60499999999999998,{"$f":"IF(F642<0.668,\"BAIXO\",\"ALTO\")","v":"BAIXO"},"Jequitinhonha/Mucuri","Almenara",315510,"03 - Médio e Baixo Jequitinhonha"]
[642,"Rio Doce",112.91,2468,18316265000169,0.66400000000000003,"BAIXO","Zona da Mata","Ponte Nova",315500,"11 - Caparaó","2020-01-26"]
[643,"Rio Espera",239.03,6078,24179665000172,0.60199999999999998,"BAIXO","Zona da Mata","Viçosa",315520,"13 - Vertentes"]
[644,"Rio Manso",231.45,5267,18363978000183,0.64800000000000002,"BAIXO","Central","Itaguara",315530,"09 - Metropolitana","2020-02-08","Normal","Adimplente","2019-08-19"]
[645,"Rio Novo",209.6,8715,18338244000144,0.70699999999999996,"ALTO","Zona da Mata","Juiz de Fora",315540,"12 - Mata"]
[646,"Rio Paranaíba",1352.71,11898,18602045000100,0.70899999999999996,"ALTO","Alto Paranaíba","Patos de Minas",315550,"01 - Noroeste"]
[647,"Rio Pardo de Minas",3121.33,29075,24212862000146,0.624,"BAIXO","Norte de Minas","Salinas",315560,"02 - Norte","2019-05-13"]
[648,"Rio Piracicaba",373.17,14167,18400945000166,0.68500000000000005,"ALTO","Central","Itabira",315570,"09 - Metropolitana"]
[649,"Rio Pomba",251.89,17123,17744434000107,0.71399999999999997,"ALTO","Zona da Mata","Ubá",315580,"12 - Mata"]
[650,"Rio Preto",346.15,5292,18338251000146,0.67900000000000005,"ALTO","Zona da Mata","Juiz de Fora",315590,"12 - Mata"]
[651,"Rio Vermelho",986.2,13648,18303255000199,0.55800000000000005,"BAIXO","Central","Conceição do Mato dentro",315600,"09 - Metropolitana"]
[652,"Ritápolis",404.38,4931,18557553000105,0.65300000000000002,"BAIXO","Central","São João del Rei",315610,"13 - Vertentes"]
[653,"Rochedo de Minas",79.209999999999994,2116,18558080000160,0.68400000000000005,"ALTO","Zona da Mata","Juiz de Fora",315620,"12 - Mata"]
[654,"Rodeiro",72.55,6863,18128256000144,0.66800000000000004,"ALTO","Zona da Mata","Ubá",315630,"12 - Mata"]
[655,"Romaria",406.66,3601,18160044000144,0.70799999999999996,"ALTO","Alto Paranaíba","Patrocínio",315640,"16 - Triângulo Norte"]
[656,"Rosário da Limeira",111.81,4242,1616837000122,0.66200000000000003,"BAIXO","Zona da Mata","Muriaé",315645,"12 - Mata"]
[657,"Rubelita",1111.01,7777,24363590000185,0.58199999999999996,"BAIXO","Norte de Minas","Salinas",315650,"02 - Norte","2018-11-17","Normal","Adimplente","2018-05-25"]
[658,"Rubim",965.86,9908,18349944000134,0.60899999999999999,"BAIXO","Jequitinhonha/Mucuri","Almenara",315660,"03 - Médio e Baixo Jequitinhonha"]
[659,"Sabará",302.54000000000002,126219,18715441000135,0.73099999999999998,"ALTO","Central","Belo Horizonte",315670,"09 - Metropolitana","2018-05-16"]
[660,"Sabinópolis",919.49,15707,18307454000175,0.63800000000000001,"BAIXO","Rio Doce","Guanhães",315680,"09 - Metropolitana"]
[661,"Sacramento",3050.2,23880,18140764000148,0.73199999999999998,"ALTO","Alto Paranaíba","Araxá",315690,"17 - Triângulo Sul"]
[662,"Salinas",1891.33,39182,24359333000170,0.67900000000000005,"ALTO","Norte de Minas","Salinas",315700,"02 - Norte"]
[663,"Salto da Divisa",939.83,6862,18347401000188,0.60799999999999998,"BAIXO","Jequitinhonha/Mucuri","Almenara",315710,"03 - Médio e Baixo Jequitinhonha"]
[664,"Santa Bárbara",684.71,27850,19391945000100,0.70699999999999996,"ALTO","Central","Itabira",315720,"09 - Metropolitana","2019-10-19","Normal","Adimplente","2019-01-07"]
[665,"Santa Bárbara do Leste",106.5,7679,66229634000129,0.61299999999999999,"BAIXO","Rio Doce","Caratinga",315725,"08 - Vale do Aço","2019-08-21","Normal","Adimplente","2018-05-10"]
[666,"Santa Bárbara do Monte Verde",418.72,2789,1611138000190,0.60599999999999998,"BAIXO","Zona da Mata","Juiz de Fora",315727,"12 - Mata","2019-05-22"]
[667,"Santa Bárbara do Tugúrio",195.2,4603,18094854000140,0.63700000000000001,"BAIXO","Central","Barbacena",315730,"13 - Vertentes"]
[668,"Santa Cruz de Minas",3.11,7870,1615371000140,0.70599999999999996,"ALTO","Central","São João del Rei",315733,"13 - Vertentes","2019-10-14"]
[669,"Santa Cruz de Salinas",591.66999999999996,4397,1612497000161,0.57699999999999996,"BAIXO","Norte de Minas","Salinas",315737,"02 - Norte"]
[670,"Santa Cruz do Escalvado",258.33999999999997,4996,18316273000105,0.625,"BAIXO","Zona da Mata","Ponte Nova",315740,"11 - Caparaó"]
[671,"Santa Efigênia de Minas",131.93,4610,18307462000111,0.60699999999999998,"BAIXO","Rio Doce","Guanhães",315750,"07 - Vale do Rio Doce"]
[672,"Santa Fé de Minas",2913.79,3979,18279075000119,0.61499999999999999,"BAIXO","Norte de Minas","Pirapora",315760,"02 - Norte","2019-09-03"]
[673,"Santa Helena de Minas",276.76,6055,1613395000160,0.56699999999999995,"BAIXO","Jequitinhonha/Mucuri","Nanuque",315765,"04 - Mucuri"]
[674,"Santa Juliana",726.83,11343,18140780000130,0.70599999999999996,"ALTO","Alto Paranaíba","Araxá",315770,"17 - Triângulo Sul","2019-10-22","Normal","Adimplente","2018-11-28"]
[675,"Santa Luzia",234.52,203184,18715409000150,0.71499999999999997,"ALTO","Central","Belo Horizonte",315780,"09 - Metropolitana"]
[676,"Santa Margarida",256.33,15011,18385112000173,0.61,"BAIXO","Zona da Mata","Manhuaçu",315790,"11 - Caparaó"]
[677,"Santa Maria de Itabira",599.80999999999995,10561,18299453000126,0.64800000000000002,"BAIXO","Central","Itabira",315800,"09 - Metropolitana",null,null,null,"2019-03-08"]
[678,"Santa Maria do Salto",437.09,5293,18347419000180,0.61299999999999999,"BAIXO","Jequitinhonha/Mucuri","Almenara",315810,"03 - Médio e Baixo Jequitinhonha"]
[679,"Santa Maria do Suaçuí",623.24,14399,18409219000104,0.64,"BAIXO","Rio Doce","Peçanha",315820,"07 - Vale do Rio Doce"]
[680,"Santa Rita de Caldas",502.45,9031,17857442000151,0.69,"ALTO","Sul de Minas","Poços de Caldas",315920,"14 - Sul"]
[681,"Santa Rita de Ibitipoca",323.2,3583,18094862000196,0.63,"BAIXO","Zona da Mata","Juiz de Fora",315940,"13 - Vertentes"]
[682,"Santa Rita de Jacutinga",419.62,4996,18338269000148,0.68200000000000005,"ALTO","Zona da Mata","Juiz de Fora",315930,"12 - Mata"]
[683,"Santa Rita de Minas",68.760000000000005,6552,66229584000180,0.61299999999999999,"BAIXO","Rio Doce","Caratinga",315935,"08 - Vale do Aço","2020-03-17","Normal","Adimplente"]
[684,"Santa Rita do Itueto",486.91,5700,18413187000110,0.60699999999999998,"BAIXO","Rio Doce","Aimorés",315950,"07 - Vale do Rio Doce","2019-10-13","Normal","Adimplente","2019-01-03"]
[685,"Santa Rita do Sapucaí",353.36,37784,18192898000102,0.72099999999999997,"ALTO","Sul de Minas","Santa Rita do Sapucaí",315960,"14 - Sul"]
[686,"Santa Rosa da Serra",286.14999999999998,3224,18192252000125,0.70499999999999996,"ALTO","Alto Paranaíba","Patos de Minas",315970,"01 - Noroeste","2018-08-01"]
[687,"Santa Vitória",3001.97,18157,18457226000181,0.71,"ALTO","Triângulo","Ituiutaba",315980,"16 - Triângulo Norte","2019-11-10","Normal","Adimplente"]
[688,"Santana da Vargem",172.7,7239,18245183000170,0.69799999999999995,"ALTO","Sul de Minas","Varginha",315830,"14 - Sul"]
[689,"Santana de Cataguases",161.65,3622,17702515000136,0.69399999999999995,"ALTO","Zona da Mata","Cataguases",315840,"12 - Mata"]
[690,"Santana de Pirapama",1257.81,8004,18116178000168,0.628,"BAIXO","Central","Sete Lagoas",315850,"09 - Metropolitana"]
[691,"Santana do Deserto",182.44,3854,18338277000194,0.65100000000000002,"BAIXO","Zona da Mata","Juiz de Fora",315860,"12 - Mata"]
[692,"Santana do Garambéu",202.93,2235,18338285000130,0.66700000000000004,"BAIXO","Central","São João del Rei",315870,"13 - Vertentes"]
[693,"Santana do Jacaré",105.87,4613,17888116000101,0.64700000000000002,"BAIXO","Centro Oeste de Minas","Campo Belo",315880,"10 - Oeste"]
[694,"Santana do Manhuaçu",348.2,8603,18385146000168,0.621,"BAIXO","Zona da Mata","Manhuaçu",315890,"11 - Caparaó"]
[695,"Santana do Paraíso",275.27,27258,38515573000120,0.68500000000000005,"ALTO","Rio Doce","Ipatinga",315895,"08 - Vale do Aço","2019-06-17"]
[696,"Santana do Riacho",677.3,4023,18715458000192,0.66500000000000004,"BAIXO","Central","Sete Lagoas",315900,"09 - Metropolitana"]
[697,"Santana dos Montes",196.21,3822,19718394000146,0.64700000000000002,"BAIXO","Central","Conselheiro Lafaiete",315910,"13 - Vertentes"]
[698,"Santo Antônio do Amparo",489.18,17349,18244335000110,0.67200000000000004,"ALTO","Centro Oeste de Minas","Oliveira",315990,"10 - Oeste","2019-10-17"]
[699,"Santo Antônio do Aventureiro",202.12,3534,17710476000119,0.67100000000000004,"ALTO","Zona da Mata","Cataguases",316000,"12 - Mata"]
[700,"Santo Antônio do Grama",130.11000000000001,4090,18836973000120,0.63300000000000001,"BAIXO","Zona da Mata","Ponte Nova",316010,"11 - Caparaó"]
[701,"Santo Antônio do Itambé",304.97000000000003,4135,18303222000149,0.55800000000000005,"BAIXO","Central","Conceição do Mato dentro",316020,"09 - Metropolitana",null,"Normal","Adimplente"]
[702,"Santo Antônio do Jacinto",504.73,11780,18349951000136,0.57399999999999995,"BAIXO","Jequitinhonha/Mucuri","Almenara",316030,"03 - Médio e Baixo Jequitinhonha"]
[703,"Santo Antônio do Monte",1128.0899999999999,25989,16870974000166,0.72399999999999998,"ALTO","Centro Oeste de Minas","Divinópolis",316040,"10 - Oeste",null,"Normal","Adimplente"]
[704,"Santo Antônio do Retiro",796.04,6938,1612484000192,0.56999999999999995,"BAIXO","Norte de Minas","Salinas",316045,"02 - Norte"]
[705,"Santo Antônio do Rio Abaixo",107.09,1777,18303248000197,0.66900000000000004,{"$f":"IF(F706<0.668,\"BAIXO\",\"ALTO\")","v":"ALTO"},"Central","Conceição do Mato dentro",316050,"09 - Metropolitana"]
[706,"Santo Hipólito",432.88,3240,17694886000113,0.65700000000000003,"BAIXO","Central","Curvelo",316060,"06 - Central"]
[707,"Santos Dumont",638.22,46289,17747924000159,0.74099999999999999,"ALTO","Zona da Mata","Juiz de Fora",316070,"12 - Mata"]
[708,"São Bento Abade",80.290000000000006,4577,17877176000129,0.67200000000000004,"ALTO","Sul de Minas","Varginha",316080,"14 - Sul"]
[709,"São Brás do Suaçuí",110.11,3512,20356754000196,0.66400000000000003,"BAIXO","Central","Conselheiro Lafaiete",316090,"13 - Vertentes"]
[710,"São Domingos das Dores",60.9,5396,1613129000138,0.63800000000000001,"BAIXO","Rio Doce","Caratinga",316095,"08 - Vale do Aço"]
[711,"São Domingos do Prata",746.37,17352,18401018000160,0.69,"ALTO","Central","Itabira",316100,"09 - Metropolitana","2019-11-11"]
[712,"São Félix de Minas",163.04,3382,1613121000171,0.62,"BAIXO","Rio Doce","Mantena",316105,"07 - Vale do Rio Doce"]
[713,"São Francisco",3299.87,53898,22679153000140,0.63800000000000001,"BAIXO","Norte de Minas","Januária",316110,"02 - Norte"]
[714,"São Francisco de Paula",318.19,6487,18312975000110,0.66,"BAIXO","Centro Oeste de Minas","Oliveira",316120,"10 - Oeste"]
[715,"São Francisco de Sales",1126.6600000000001,5800,18457283000160,0.68799999999999994,"ALTO","Triângulo","Frutal",316130,"17 - Triângulo Sul","2019-09-17"]
[716,"São Francisco do Glória",164.91,5184,18114231000191,0.66300000000000003,"BAIXO","Zona da Mata","Muriaé",316140,"12 - Mata"]
[717,"São Geraldo",185.25,10246,18137935000180,0.65100000000000002,"BAIXO","Zona da Mata","Ubá",316150,"12 - Mata"]
[718,"São Geraldo da Piedade",153.75,4389,18307470000168,0.6,"BAIXO","Rio Doce","Governador Valadares",316160,"07 - Vale do Rio Doce"]
[719,"São Geraldo do Baixio",281.18,3487,1613075000100,0.63,"BAIXO","Rio Doce","Governador Valadares",316165,"07 - Vale do Rio Doce"]
[720,"São Gonçalo do Abaeté",2695.45,6252,18602086000198,0.67,"ALTO","Noroeste de Minas","Paracatu",316170,"01 - Noroeste"]
[721,"São Gonçalo do Pará",265.41000000000003,10405,18291369000166,0.68899999999999995,"ALTO","Centro Oeste de Minas","Divinópolis",316180,"10 - Oeste"]
[722,"São Gonçalo do Rio Abaixo",364.75,9782,24380651000112,0.66700000000000004,"BAIXO","Central","Itabira",316190,"09 - Metropolitana"]
[723,"São Gonçalo do Rio Preto",314.49,3039,17754151000138,0.64,"BAIXO","Central","Diamantina",312550,"05 - Alto Jequitinhonha"]
[724,"São Gonçalo do Sapucaí",517.16,23909,18712158000150,0.71499999999999997,"ALTO","Sul de Minas","Santa Rita do Sapucaí",316200,"14 - Sul"]
[725,"São Gotardo",867.81,31807,18602037000155,0.73599999999999999,"ALTO","Alto Paranaíba","Patos de Minas",316210,"01 - Noroeste","2018-07-31","Normal","Adimplente","2018-05-17"]
[726,"São João Batista do Glória",548.77,6890,18241778000158,0.72399999999999998,"ALTO","Sul de Minas","Passos",316220,"15 - Sudoeste"]
[727,"São João da Lagoa",1000.3,4659,1612494000128,0.63400000000000001,"BAIXO","Norte de Minas","Montes Claros",316225,"02 - Norte"]
[728,"São João da Mata",120.79,2732,17935206000106,0.65300000000000002,"BAIXO","Sul de Minas","Santa Rita do Sapucaí",316230,"14 - Sul"]
[729,"São João da Ponte",1853.9,25362,16928483000129,0.56899999999999995,"BAIXO","Norte de Minas","Montes Claros",316240,"02 - Norte"]
[730,"São João das Missões",679.89,11715,1612486000181,0.52900000000000003,"BAIXO","Norte de Minas","Januária",316245,"02 - Norte","2020-02-16"]
[731,"São João del Rei",1465.78,84404,17749896000109,0.75800000000000001,"ALTO","Central","São João del Rei",316250,"13 - Vertentes"]
[732,"São João do Manhuaçu",143.13999999999999,10245,66232521000182,0.65,"BAIXO","Zona da Mata","Manhuaçu",316255,"11 - Caparaó"]
[733,"São João do Manteninha",139.47,5183,22705248000190,0.64,"BAIXO","Rio Doce","Mantena",316257,"07 - Vale do Rio Doce"]
[734,"São João do Oriente",120.82,7874,18338848000190,0.64800000000000002,"BAIXO","Rio Doce","Caratinga",316260,"08 - Vale do Aço"]
[735,"São João do Pacuí",416.42,4066,1612474000157,0.625,"BAIXO","Norte de Minas","Montes Claros",316265,"02 - Norte","2019-08-30","Normal","Adimplente","2019-02-20"]
[736,"São João do Paraíso",1917.36,22334,24791154000107,0.61499999999999999,"BAIXO","Norte de Minas","Salinas",316270,"02 - Norte"]
[737,"São João Evangelista",478.29,15538,18307488000160,0.63800000000000001,"BAIXO","Rio Doce","Guanhães",316280,"07 - Vale do Rio Doce","2018-06-02"]
[738,"São João Nepomuceno",407.23,25062,18558072000114,0.70799999999999996,"ALTO","Zona da Mata","Juiz de Fora",316290,"12 - Mata"]
[739,"São Joaquim de Bicas",72.03,25619,1612516000150,0.66200000000000003,"BAIXO","Central","Belo Horizonte",316292,"09 - Metropolitana"]
[740,"São José da Barra",315.06,6778,1616458000132,0.73899999999999999,"ALTO","Sul de Minas","Passos",316294,"15 - Sudoeste"]
[741,"São José da Lapa",48.89,19801,42774281000180,0.72899999999999998,"ALTO","Central","Belo Horizonte",316295,"09 - Metropolitana","2019-10-12","Normal","Adimplente","2019-04-22"]
[742,"São José da Safira",214.86,4075,18409235000105,0.58299999999999996,"BAIXO","Rio Doce","Governador Valadares",316300,"07 - Vale do Rio Doce"]
[743,"São José da Varginha",201.46,4201,18313882000100,0.70399999999999996,"ALTO","Central","Pará de Minas",316310,"10 - Oeste"]
[744,"São José do Alegre",88.73,3996,18025999000199,0.71699999999999997,"ALTO","Sul de Minas","Santa Rita do Sapucaí",316320,"14 - Sul","2019-08-19","Normal","Adimplente","2019-03-13"]
[745,"São José do Divino",328.43,3837,18404988000110,0.65800000000000003,"BAIXO","Rio Doce","Governador Valadares",316330,"04 - Mucuri","2018-09-18","Normal","Adimplente","2018-05-25"]
[746,"São José do Goiabal",185.07,5636,18402552000191,0.66600000000000004,"BAIXO","Central","Itabira",316340,"11 - Caparaó","2020-01-19","Normal","Adimplente","2019-07-24"]
[747,"São José do Jacuri",344.97,6553,18409201000102,0.56599999999999995,"BAIXO","Rio Doce","Peçanha",316350,"07 - Vale do Rio Doce"]
[748,"São José do Mantimento",54.48,2592,18392514000103,0.65700000000000003,"BAIXO","Zona da Mata","Manhuaçu",316360,"11 - Caparaó"]
[749,"São Lourenço",57.84,41664,18188219000121,0.75900000000000001,"ALTO","Sul de Minas","São Lourenço",316370,"14 - Sul","2019-12-15","Normal","Adimplente","2018-12-13"]
[750,"São Miguel do Anta",152.06,6750,18133926000110,0.64400000000000002,"BAIXO","Zona da Mata","Viçosa",316380,"11 - Caparaó"]
[751,"São Pedro da União",260.13,5040,18666172000164,0.67400000000000004,"ALTO","Sul de Minas","São Sebastião do Paraíso",316390,"15 - Sudoeste","2018-05-23","Normal","Adimplente","2018-05-10"]
[752,"São Pedro do Suaçuí",309.32,5570,18409243000143,0.622,"BAIXO","Rio Doce","Peçanha",316410,"07 - Vale do Rio Doce","2019-12-21","Normal","Adimplente","2018-12-17"]
[753,"São Pedro dos Ferros",401.25,8353,19243500000182,0.65900000000000003,"BAIXO","Zona da Mata","Ponte Nova",316400,"11 - Caparaó"]
[754,"São Romão",2440.94,10285,24891418000102,0.64,"BAIXO","Norte de Minas","Pirapora",316420,"02 - Norte"]
[755,"São Roque de Minas",2096.7600000000002,6686,18306670000104,0.67200000000000004,"ALTO","Centro Oeste de Minas","Piuí",316430,"15 - Sudoeste","2019-11-20","Normal","Adimplente","2018-11-29"]
[756,"São Sebastião da Bela Vista",167.17,4948,17935370000113,0.69199999999999995,"ALTO","Sul de Minas","Santa Rita do Sapucaí",316440,"14 - Sul","2020-02-16"]
[757,"São Sebastião da Vargem Alegre",73.709999999999994,2798,1616854000160,0.66,"BAIXO","Zona da Mata","Muriaé",316443,"12 - Mata","2020-01-27","Normal","Adimplente","2019-08-16"]
[758,"São Sebastião do Anta",80.08,5739,1613123000160,0.60699999999999998,"BAIXO","Rio Doce","Caratinga",316447,"08 - Vale do Aço"]
[759,"São Sebastião do Maranhão",516.67999999999995,10647,18409177000101,0.58099999999999996,"BAIXO","Rio Doce","Peçanha",316450,"07 - Vale do Rio Doce"]
[760,"São Sebastião do Oeste",407.89,5805,18308734000106,0.626,"BAIXO","Centro Oeste de Minas","Divinópolis",316460,"10 - Oeste"]
[761,"São Sebastião do Paraíso",813.72,65034,18241349000180,0.72199999999999998,"ALTO","Sul de Minas","São Sebastião do Paraíso",316470,"15 - Sudoeste"]
[762,"São Sebastião do Rio Preto",127.89,1616,18303263000135,0.63200000000000001,"BAIXO","Central","Conceição do Mato dentro",316480,"09 - Metropolitana"]
[763,"São Sebastião do Rio Verde",92.14,2110,17906314000150,0.67600000000000005,"ALTO","Sul de Minas","São Lourenço",316490,"14 - Sul"]
[764,"São Thomé das Letras",370.96,6655,18008920000111,0.66700000000000004,"BAIXO","Sul de Minas","Varginha",316520,"14 - Sul","2019-07-07","Normal","Adimplente"]
[765,"São Tiago",572.33000000000004,10553,17749904000117,0.66200000000000003,"BAIXO","Central","São João del Rei",316500,"13 - Vertentes"]
[766,"São Tomás de Aquino",278.33999999999997,7093,18241364000129,0.7,"ALTO","Sul de Minas","São Sebastião do Paraíso",316510,"15 - Sudoeste"]
[767,"São Vicente de Minas",392.56,7008,17954546000184,0.71499999999999997,"ALTO","Sul de Minas","Andrelândia",316530,"13 - Vertentes","2018-09-23"]
[768,"Sapucaí-Mirim",285.85000000000002,6241,18026005000159,0.68,"ALTO","Sul de Minas","Pouso Alegre",316540,"14 - Sul","2020-03-11","Normal","Adimplente","2018-12-17"]
[769,"Sardoá",141.79,5597,18307496000106,0.63600000000000001,{"$f":"IF(F770<0.668,\"BAIXO\",\"ALTO\")","v":"BAIXO"},"Rio Doce","Guanhães",316550,"07 - Vale do Rio Doce"]
[770,"Sarzedo",62.34,25798,1612509000158,0.73399999999999999,"ALTO","Central","Belo Horizonte",316553,"09 - Metropolitana","2020-02-02"]
[771,"Sem-Peixe",176.21,2847,1625189000170,0.65400000000000003,"BAIXO","Zona da Mata","Ponte Nova",316556,"11 - Caparaó","2020-03-02"]
[772,"Senador Amaral",151.5,5225,41778556000190,0.66100000000000003,"BAIXO","Sul de Minas","Pouso Alegre",316557,"14 - Sul"]
[773,"Senador Cortes",97.98,1980,17724576000102,0.67400000000000004,"ALTO","Zona da Mata","Juiz de Fora",316560,"12 - Mata"]
[774,"Senador Firmino",166.69,7230,18128231000140,0.64400000000000002,"BAIXO","Zona da Mata","Ubá",316570,"12 - Mata","2019-11-28"]
[775,"Senador José Bento",94.02,1868,18675926000142,0.68400000000000005,"ALTO","Sul de Minas","Pouso Alegre",316580,"14 - Sul"]
[776,"Senador Modestino Gonçalves",951.51,4574,17754110000141,0.62,"BAIXO","Central","Diamantina",316590,"05 - Alto Jequitinhonha"]
[777,"Senhora de Oliveira",170.63,5689,23515703000158,0.63100000000000001,"BAIXO","Zona da Mata","Viçosa",316600,"13 - Vertentes"]
[778,"Senhora do Porto",382.2,3493,18307504000114,0.56499999999999995,"BAIXO","Rio Doce","Guanhães",316610,"09 - Metropolitana"]
[779,"Senhora dos Remédios",235.56,10202,18094870000132,0.626,"BAIXO","Central","Barbacena",316620,"13 - Vertentes","2018-06-25","Normal","Adimplente","2018-05-10"]
[780,"Sericita",165.98,7125,19243518000184,0.56000000000000005,"BAIXO","Zona da Mata","Ponte Nova",316630,"11 - Caparaó","2020-02-13"]
[781,"Seritinga",114.59,1790,18008854000180,0.66,"BAIXO","Sul de Minas","Andrelândia",316640,"14 - Sul"]
[782,"Serra Azul de Minas",218.67,4220,18303230000195,0.55700000000000005,"BAIXO","Central","Conceição do Mato dentro",316650,"09 - Metropolitana"]
[783,"Serra da Saudade",334.56,815,18301069000110,0.67700000000000005,"ALTO","Centro Oeste de Minas","Bom despacho",316660,"10 - Oeste"]
[784,"Serra do Salitre",1293.97,10541,18468058000120,0.69599999999999995,"ALTO","Alto Paranaíba","Patrocínio",316680,"16 - Triângulo Norte"]
[785,"Serra dos Aimorés",247.16,8419,18398966000194,0.65100000000000002,"BAIXO","Jequitinhonha/Mucuri","Nanuque",316670,"04 - Mucuri"]
[786,"Serrania",208.04,7540,18243261000106,0.67700000000000005,"ALTO","Sul de Minas","Alfenas",316690,"14 - Sul"]
[787,"Serranópolis de Minas",552.84,4425,1612501000191,0.63300000000000001,"BAIXO","Norte de Minas","Janaúba",316695,"02 - Norte"]
[788,"Serranos",211.97,1996,18008912000175,0.64300000000000002,"BAIXO","Sul de Minas","Andrelândia",316700,"14 - Sul"]
[789,"Serro",1214.94,20833,18303271000181,0.65600000000000003,"BAIXO","Central","Conceição do Mato dentro",316710,"05 - Alto Jequitinhonha","2018-08-25"]
[790,"Sete Lagoas",539.54999999999995,214071,24996969000122,0.76,"ALTO","Central","Sete Lagoas",316720,"09 - Metropolitana","2018-11-05"]
[791,"Setubinha",532.19000000000005,10885,1613375000190,0.54200000000000004,"BAIXO","Jequitinhonha/Mucuri","Teófilo Otoni",316555,"04 - Mucuri"]
[792,"Silveirânia",157.84,2192,17744558000184,0.65200000000000002,"BAIXO","Zona da Mata","Ubá",316730,"12 - Mata"]
[793,"Silvianópolis",311.19,6029,18675942000135,0.69899999999999995,"ALTO","Sul de Minas","Santa Rita do Sapucaí",316740,"14 - Sul"]
[794,"Simão Pereira",135.56,2537,18338293000187,0.63800000000000001,"BAIXO","Zona da Mata","Juiz de Fora",316750,"12 - Mata"]
[795,"Simonésia",487.33,18302,18385120000110,0.63200000000000001,"BAIXO","Zona da Mata","Manhuaçu",316760,"11 - Caparaó","2018-11-05","Normal","Adimplente","2018-05-10"]
[796,"Sobrália",206.35,5828,18083055000178,0.63100000000000001,"BAIXO","Rio Doce","Governador Valadares",316770,"07 - Vale do Rio Doce"]
[797,"Soledade de Minas",196.71,5678,18188235000114,0.69699999999999995,"ALTO","Sul de Minas","São Lourenço",316780,"14 - Sul"]
[798,"Tabuleiro",210.65,4076,17744798000189,0.68100000000000005,"ALTO","Zona da Mata","Ubá",316790,"12 - Mata"]
[799,"Taiobeiras",1193.8499999999999,30894,18017384000110,0.67,"ALTO","Norte de Minas","Salinas",316800,"02 - Norte","2019-11-03","Bloqueado","Adimplente","2019-02-14"]
[800,"Taparuba",193.43,3137,1616741000164,0.64500000000000002,"BAIXO","Rio Doce","Aimorés",316805,"11 - Caparaó"]
[801,"Tapira",1182.78,4102,18140806000140,0.71199999999999997,"ALTO","Alto Paranaíba","Araxá",316810,"17 - Triângulo Sul"]
[802,"Tapiraí",409.76,1873,17033507000144,0.66700000000000004,"BAIXO","Centro Oeste de Minas","Piuí",316820,"10 - Oeste"]
[803,"Taquaraçu de Minas",329.01,3792,18302315000159,0.65100000000000002,"BAIXO","Central","Itabira",316830,"09 - Metropolitana"]
[804,"Tarumirim",731.19,14294,18338855000192,0.63300000000000001,"BAIXO","Rio Doce","Caratinga",316840,"08 - Vale do Aço","2019-12-24","Normal","Adimplente","2019-07-24"]
[805,"Teixeiras",166.09,11346,18134056000102,0.67500000000000004,"ALTO","Zona da Mata","Viçosa",316850,"11 - Caparaó"]
[806,"Teófilo Otoni",3242.36,134733,18404780000109,0.70099999999999996,"ALTO","Jequitinhonha/Mucuri","Teófilo Otoni",316860,"04 - Mucuri","2019-10-23"]
[807,"Timóteo",143.99,81119,19875020000134,0.77,"ALTO","Rio Doce","Ipatinga",316870,"08 - Vale do Aço"]
[808,"Tiradentes",83.25,7002,18557579000153,0.74,"ALTO","Central","São João del Rei",316880,"13 - Vertentes"]
[809,"Tiros",2090.9,6906,18602094000134,0.68300000000000005,"ALTO","Alto Paranaíba","Patos de Minas",316890,"01 - Noroeste"]
[810,"Tocantins",174.2,15839,18128223000102,0.68799999999999994,"ALTO","Zona da Mata","Ubá",316900,"12 - Mata"]
[811,"Tocos do Moji",114.85,3950,1601656000122,0.69599999999999995,"ALTO","Sul de Minas","Pouso Alegre",316905,"14 - Sul"]
[812,"Toledo",135.86000000000001,5761,18677617000101,0.66100000000000003,"BAIXO","Sul de Minas","Pouso Alegre",316910,"14 - Sul"]
[813,"Tombos",282.89999999999998,9542,18114223000145,0.71799999999999997,"ALTO","Zona da Mata","Muriaé",316920,"12 - Mata"]
[814,"Três Corações",826.59,72796,17955535000119,0.74399999999999999,"ALTO","Sul de Minas","Varginha",316930,"14 - Sul","2019-03-20"]
[815,"Três Marias",2681.61,28315,17695008000112,0.752,"ALTO","Central","Três Marias",316935,"06 - Central"]
[816,"Três Pontas",689.62,53825,18245167000188,0.73099999999999998,"ALTO","Sul de Minas","Varginha",316940,"14 - Sul","2018-07-03"]
[817,"Tumiritinga",500.11,6291,21078563000172,0.626,"BAIXO","Rio Doce","Governador Valadares",316950,"07 - Vale do Rio Doce","2018-04-20"]
[818,"Tupaciguara",1818.19,24185,18260489000104,0.71899999999999997,"ALTO","Triângulo","Uberlândia",316960,"16 - Triângulo Norte","2020-02-22"]
[819,"Turmalina",1152.6300000000001,18046,25324187000100,0.68200000000000005,"ALTO","Jequitinhonha/Mucuri","Capelinha",316970,"05 - Alto Jequitinhonha"]
[820,"Turvolândia",220.94,4658,18712141000100,0.69599999999999995,"ALTO","Sul de Minas","Santa Rita do Sapucaí",316980,"14 - Sul","2020-02-08","Normal","Adimplente","2018-12-13"]
[821,"Ubá",407.44,101466,18128207000101,0.72399999999999998,"ALTO","Zona da Mata","Ubá",316990,"12 - Mata","2019-05-26","Normal","Adimplente","2018-12-18"]
[822,"Ubaí",823.95,11677,18017459000163,0.60899999999999999,"BAIXO","Norte de Minas","Montes Claros",317000,"02 - Norte"]
[823,"Ubaporanga",191.39,12040,66229717000118,0.61399999999999999,"BAIXO","Rio Doce","Caratinga",317005,"08 - Vale do Aço"]
[824,"Uberaba",4540.51,296000,18428839000190,0.77200000000000002,"ALTO","Triângulo","Uberaba",317010,"17 - Triângulo Sul"]
[825,"Uberlândia",4117.3100000000004,600285,18431312000115,0.78900000000000003,"ALTO","Triângulo","Uberlândia",317020,"16 - Triângulo Norte","2019-09-22"]
[826,"Umburatiba",409.54,2700,18404996000166,0.63800000000000001,"BAIXO","Jequitinhonha/Mucuri","Nanuque",317030,"04 - Mucuri"]
[827,"Unaí",8438.43,77590,18125161000177,0.73599999999999999,"ALTO","Noroeste de Minas","Unaí",317040,"01 - Noroeste","2020-02-28"]
[828,"União de Minas",1149.77,4424,1051819000140,0.67200000000000004,"ALTO","Triângulo","Frutal",317043,"17 - Triângulo Sul"]
[829,"Uruana de Minas",603.39,3238,1609942000134,0.66400000000000003,"BAIXO","Noroeste de Minas","Unaí",317047,"01 - Noroeste","2019-07-22","Normal","Adimplente","2018-05-17"]
[830,"Urucânia",138.83000000000001,10291,18316281000151,0.63300000000000001,"BAIXO","Zona da Mata","Ponte Nova",317050,"11 - Caparaó"]
[831,"Urucuia",2081.39,13605,25223850000180,0.61899999999999999,"BAIXO","Norte de Minas","Januária",317052,"02 - Norte"]
[832,"Vargem Alegre",115.97,6457,1613128000193,0.63100000000000001,"BAIXO","Rio Doce","Caratinga",317057,"08 - Vale do Aço"]
[833,"Vargem Bonita",408.96,2163,16788309000128,0.69599999999999995,{"$f":"IF(F834<0.668,\"BAIXO\",\"ALTO\")","v":"ALTO"},"Centro Oeste de Minas","Piuí",317060,"15 - Sudoeste","2019-12-04"]
[834,"Vargem Grande do Rio Pardo",494.8,4733,1612885000142,0.63400000000000001,"BAIXO","Norte de Minas","Salinas",317065,"02 - Norte"]
[835,"Varginha",395.35,123120,18240119000105,0.77800000000000002,"ALTO","Sul de Minas","Varginha",317070,"14 - Sul","2018-11-14"]
[836,"Varjão de MInas",652.28,6065,1609780000134,0.71099999999999997,"ALTO","Noroeste de Minas","Paracatu",317075,"01 - Noroeste"]
[837,"Várzea da Palma",2222.77,35804,18279059000126,0.66600000000000004,"BAIXO","Norte de Minas","Pirapora",317080,"02 - Norte","2019-07-15","Normal","Adimplente","2018-12-07"]
[838,"Varzelândia",815.86,19126,18017467000100,0.59399999999999997,"BAIXO","Norte de Minas","Montes Claros",317090,"02 - Norte","2019-09-15","Normal","Adimplente","2018-12-07"]
[839,"Vazante",1908.55,19721,18278069000147,0.74199999999999999,"ALTO","Noroeste de Minas","Paracatu",317100,"01 - Noroeste"]
[840,"Verdelândia",1572.21,8350,1612505000170,0.58399999999999996,"BAIXO","Norte de Minas","Montes Claros",317103,"02 - Norte"]
[841,"Veredinha",635.23,5533,1614685000129,0.63200000000000001,"BAIXO","Jequitinhonha/Mucuri","Capelinha",317107,"05 - Alto Jequitinhonha"]
[842,"Veríssimo",1030.6400000000001,3466,18428946000119,0.66700000000000004,"BAIXO","Triângulo","Uberaba",317110,"17 - Triângulo Sul"]
[843,"Vermelho Novo",113.79,4689,1620744000171,0.61199999999999999,"BAIXO","Zona da Mata","Ponte Nova",317115,"11 - Caparaó"]
[844,"Vespasiano",70.98,104612,18715425000142,0.68799999999999994,"ALTO","Central","Belo Horizonte",317120,"09 - Metropolitana"]
[845,"Viçosa",300.14999999999998,72244,18132449000179,0.77500000000000002,"ALTO","Zona da Mata","Viçosa",317130,"11 - Caparaó","2019-09-23"]
[846,"Vieiras",112.99,3732,17947599000178,0.66800000000000004,"ALTO","Zona da Mata","Muriaé",317140,"12 - Mata"]
[847,"Virgem da Lapa",871.03,13625,18348730000143,0.61,"BAIXO","Jequitinhonha/Mucuri","Araçuaí",317160,"03 - Médio e Baixo Jequitinhonha"]
[848,"Virgínia",327.27,8626,25970260000110,0.65100000000000002,"BAIXO","Sul de Minas","Itajubá",317170,"14 - Sul"]
[849,"Virginópolis",440.02,10572,18307512000160,0.67500000000000004,"ALTO","Rio Doce","Guanhães",317180,"09 - Metropolitana"]
[850,"Virgolândia",281.97000000000003,5659,18409185000158,0.62,"BAIXO","Rio Doce","Governador Valadares",317190,"07 - Vale do Rio Doce","2018-12-15"]
[851,"Visconde do Rio Branco",244.11,37952,18137927000133,0.70899999999999996,"ALTO","Zona da Mata","Ubá",317200,"12 - Mata"]
[852,"Volta Grande",207.96,5063,17710690000175,0.66900000000000004,"ALTO","Zona da Mata","Cataguases",317210,"12 - Mata","2019-09-25"]
[853,"Wenceslau Braz",102.17,2553,18026013000103,0.67800000000000005,"ALTO","Sul de Minas","Itajubá",317220,"14 - Sul"]
[854,"CESAMA","-","-",null,"-","-","-","-","-","-","2018-11-05","Normal","Adimplente","2018-05-18"]

{"sheet":"Tipos de Obra","index":59,"n_rows":47,"n_cols":8,"rows_kept":47,"cut":false,"hidden":false,"merged":[]}
["Lista de Tipos de Obra","Tipo de Obra  - Itens - Siglas","Tipo de Obra  - % Adotado BDI","Tipo de Obra","Sigla","MIN","MED","MAX"]
["Construção e Reforma de Edifícios","Estudos e Projetos, Planos e Gerenciamento e outros correlatos","Fornecimento de Materiais e Equipamentos (aquisição direta)","Construção e Reforma de Edifícios","AC",0.03,0.04,5.5E-2]
["Construção de Praças Urbanas, Rodovias, Ferrovias e recapeamento e pavimentação de vias urbanas",null,null,"Construção e Reforma de Edifícios","SG",8.0000000000000002E-3,8.0000000000000002E-3,0.01]
["Construção de Redes de Abastecimento de Água, Coleta de Esgoto",null,null,"Construção e Reforma de Edifícios","R",9.7000000000000003E-3,1.2699999999999999E-2,1.2699999999999999E-2]
["Construção e Manutenção de Estações e Redes de Distribuição de Energia Elétrica",null,null,"Construção e Reforma de Edifícios","DF",5.8999999999999999E-3,1.23E-2,1.3899999999999999E-2]
["Obras Portuárias, Marítimas e Fluviais",null,null,"Construção e Reforma de Edifícios","L",6.1600000000000002E-2,7.400000000000001E-2,8.9600000000000013E-2]
["Fornecimento de Materiais e Equipamentos (aquisição indireta - em conjunto com licitação de obras)",null,null,"Construção e Reforma de Edifícios","BDI PAD",0.2034,0.22120000000000001,0.25]
["Fornecimento de Materiais e Equipamentos (aquisição direta)",null,null,"Construção de Praças Urbanas, Rodovias, Ferrovias e recapeamento e pavimentação de vias urbanas","AC",3.7999999999999999E-2,4.0099999999999997E-2,4.6699999999999998E-2]
["Estudos e Projetos, Planos e Gerenciamento e outros correlatos",null,null,"Construção de Praças Urbanas, Rodovias, Ferrovias e recapeamento e pavimentação de vias urbanas","SG",3.2000000000000002E-3,4.0000000000000001E-3,7.4000000000000003E-3]
[null,null,null,"Construção de Praças Urbanas, Rodovias, Ferrovias e recapeamento e pavimentação de vias urbanas","R",5.0000000000000001E-3,5.6000000000000008E-3,9.7000000000000003E-3]
[null,null,null,"Construção de Praças Urbanas, Rodovias, Ferrovias e recapeamento e pavimentação de vias urbanas","DF",1.0200000000000001E-2,1.11E-2,1.21E-2]
[null,null,null,"Construção de Praças Urbanas, Rodovias, Ferrovias e recapeamento e pavimentação de vias urbanas","L",6.6400000000000001E-2,7.2999999999999995E-2,8.6899999999999991E-2]
[null,null,null,"Construção de Praças Urbanas, Rodovias, Ferrovias e recapeamento e pavimentação de vias urbanas","BDI PAD",0.19600000000000001,0.2097,0.24230000000000002]
[null,null,null,"Construção de Redes de Abastecimento de Água, Coleta de Esgoto","AC",3.4300000000000004E-2,4.9299999999999997E-2,6.7099999999999993E-2]
[null,null,null,"Construção de Redes de Abastecimento de Água, Coleta de Esgoto","SG",2.8000000000000004E-3,4.8999999999999998E-3,7.4999999999999997E-3]
[null,null,null,"Construção de Redes de Abastecimento de Água, Coleta de Esgoto","R",0.01,1.3899999999999999E-2,1.7399999999999999E-2]
[null,null,null,"Construção de Redes de Abastecimento de Água, Coleta de Esgoto","DF",9.3999999999999986E-3,9.8999999999999991E-3,1.1699999999999999E-2]
[null,null,null,"Construção de Redes de Abastecimento de Água, Coleta de Esgoto","L",6.7400000000000002E-2,8.0399999999999985E-2,9.4E-2]
[null,null,null,"Construção de Redes de Abastecimento de Água, Coleta de Esgoto","BDI PAD",0.20760000000000001,0.24179999999999999,0.26440000000000002]
[null,null,null,"Construção e Manutenção de Estações e Redes de Distribuição de Energia Elétrica","AC",5.2900000000000003E-2,5.9200000000000003E-2,7.9299999999999995E-2]
[null,null,null,"Construção e Manutenção de Estações e Redes de Distribuição de Energia Elétrica","SG",2.5000000000000001E-3,5.1000000000000004E-3,5.6000000000000008E-3]
[null,null,null,"Construção e Manutenção de Estações e Redes de Distribuição de Energia Elétrica","R",0.01,1.4800000000000001E-2,1.9699999999999999E-2]
[null,null,null,"Construção e Manutenção de Estações e Redes de Distribuição de Energia Elétrica","DF",1.01E-2,1.0700000000000001E-2,1.11E-2]
[null,null,null,"Construção e Manutenção de Estações e Redes de Distribuição de Energia Elétrica","L",0.08,8.3100000000000007E-2,9.5100000000000004E-2]
[null,null,null,"Construção e Manutenção de Estações e Redes de Distribuição de Energia Elétrica","BDI PAD",0.24,0.25840000000000002,0.27860000000000001]
[null,null,null,"Obras Portuárias, Marítimas e Fluviais","AC",0.04,5.5199999999999999E-2,7.85E-2]
[null,null,null,"Obras Portuárias, Marítimas e Fluviais","SG",8.1000000000000013E-3,1.2199999999999999E-2,1.9900000000000001E-2]
[null,null,null,"Obras Portuárias, Marítimas e Fluviais","R",1.46E-2,2.3199999999999998E-2,3.1600000000000003E-2]
[null,null,null,"Obras Portuárias, Marítimas e Fluviais","DF",9.3999999999999986E-3,1.0200000000000001E-2,1.3300000000000001E-2]
[null,null,null,"Obras Portuárias, Marítimas e Fluviais","L",7.1399999999999991E-2,8.4000000000000005E-2,0.1043]
[null,null,null,"Obras Portuárias, Marítimas e Fluviais","BDI PAD",0.22800000000000001,0.27479999999999999,0.3095]
[null,null,null,"Fornecimento de Materiais e Equipamentos (aquisição indireta - em conjunto com licitação de obras)","AC",1.4999999999999999E-2,3.4500000000000003E-2,4.4900000000000002E-2]
[null,null,null,"Fornecimento de Materiais e Equipamentos (aquisição indireta - em conjunto com licitação de obras)","SG",3.0000000000000001E-3,4.7999999999999996E-3,8.199999999999999E-3]
[null,null,null,"Fornecimento de Materiais e Equipamentos (aquisição indireta - em conjunto com licitação de obras)","R",5.6000000000000008E-3,8.5000000000000006E-3,8.8999999999999999E-3]
[null,null,null,"Fornecimento de Materiais e Equipamentos (aquisição indireta - em conjunto com licitação de obras)","DF",8.5000000000000006E-3,8.5000000000000006E-3,1.11E-2]
[null,null,null,"Fornecimento de Materiais e Equipamentos (aquisição indireta - em conjunto com licitação de obras)","L",3.5000000000000003E-2,5.1100000000000007E-2,6.2199999999999998E-2]
[null,null,null,"Fornecimento de Materiais e Equipamentos (aquisição indireta - em conjunto com licitação de obras)","BDI PAD",0.111,0.14019999999999999,0.16800000000000001]
[null,null,null,"Fornecimento de Materiais e Equipamentos (aquisição direta)","AC"]
[null,null,null,"Fornecimento de Materiais e Equipamentos (aquisição direta)","SG"]
[null,null,null,"Fornecimento de Materiais e Equipamentos (aquisição direta)","R"]
[null,null,null,"Fornecimento de Materiais e Equipamentos (aquisição direta)","DF"]
[null,null,null,"Fornecimento de Materiais e Equipamentos (aquisição direta)","L"]
[null,null,null,"Fornecimento de Materiais e Equipamentos (aquisição direta)","BDI PAD"]
[null,null,null,"Estudos e Projetos, Planos e Gerenciamento e outros correlatos","K1"]
[null,null,null,"Estudos e Projetos, Planos e Gerenciamento e outros correlatos","K2",null,0.2]
[null,null,null,"Estudos e Projetos, Planos e Gerenciamento e outros correlatos","K3",null,0.12]
[null,null,null,"Estudos e Projetos, Planos e Gerenciamento e outros correlatos","BDI PAD"]

{"sheet":"Menu Geral","index":60,"n_rows":0,"n_cols":0,"rows_kept":0,"cut":false,"hidden":true,"merged":[]}

{"sheet":"Menu Secundário","index":61,"n_rows":0,"n_cols":0,"rows_kept":0,"cut":false,"hidden":true,"merged":[]}